Workbook

Sheet Oversigt
A1: Oversigt | M1: Opfølgning | O1: Noter
B3: Titel | E3: PLAN | H3: DO | K3: CHECK | N3: ACT
E4: Antal | F4: Vægt | G4: Proces | H4: Antal | I4: Vægt | J4: Proces | K4: Antal | L4: Vægt | M4: Proces | N4: Antal | O4: Vægt | P4: Proces
C5: Titel | D5: Svar | E5: =E3&"_Antal" -> PLAN_Antal | F5: =E3&"_Vægt" -> PLAN_Vægt | G5: =E3&"_Proces" -> PLAN_Proces | H5: =H3&"_Antal" -> DO_Antal | I5: =H3&"_Vægt" -> DO_Vægt | J5: =H3&"_Proces" -> DO_Proces | K5: =K3&"_Antal" -> CHECK_Antal | L5: =K3&"_Vægt" -> CHECK_Vægt | M5: =K3&"_Proces" -> CHECK_Proces | N5: =N3&"_Antal" -> ACT_Antal | O5: =N3&"_Vægt" -> ACT_Vægt | P5: =N3&"_Proces" -> ACT_Proces
B6: Risikovurdering | C6: =B6 -> Risikovurdering | D6: Ja | E6: =IFERROR(COUNTIF(INDIRECT("'"&$B6&"'!"&CHAR(MATCH($D6,INDIRECT("'"&$B6&"'!6:6",TRUE),0)+64)&MATCH(E$3,INDIRECT("'"&$B6&"'!B:B",TRUE),0)&":"&CHAR(MATCH($D6,INDIRECT("'"&$B6&"'!6:6",TRUE),0)+64)&MATCH(E$3&"_slut",INDIRECT("'"&$B6&"'!B:B",TRUE),0),TRUE),"X"),0) -> 0 | F6: =IF(E11=0,0,COUNTIF(INDIRECT("'"&$B6&"'!"&CHAR(MATCH($D6,INDIRECT("'"&$B6&"'!6:6",TRUE),0)+64)&MATCH(E$3,INDIRECT("'"&$B6&"'!B:B",TRUE),0)&":"&CHAR(MATCH($D6,INDIRECT("'"&$B6&"'!6:6",TRUE),0)+64)&MATCH(E$3&"_slut",INDIRECT("'"&$B6&"'!B:B",TRUE),0),TRUE),"X")/E$61) -> 0 | G6: =IF(E11=0,0,COUNTIF(INDIRECT("'"&$B6&"'!"&CHAR(MATCH($D6,INDIRECT("'"&$B6&"'!6:6",TRUE),0)+64)&MATCH(E$3,INDIRECT("'"&$B6&"'!B:B",TRUE),0)&":"&CHAR(MATCH($D6,INDIRECT("'"&$B6&"'!6:6",TRUE),0)+64)&MATCH(E$3&"_slut",INDIRECT("'"&$B6&"'!B:B",TRUE),0),TRUE),"X")/SUM(E6:E10)) -> 0 | H6: =IFERROR(COUNTIF(INDIRECT("'"&$B6&"'!"&CHAR(MATCH($D6,INDIRECT("'"&$B6&"'!6:6",TRUE),0)+64)&MATCH(H$3,INDIRECT("'"&$B6&"'!B:B",TRUE),0)&":"&CHAR(MATCH($D6,INDIRECT("'"&$B6&"'!6:6",TRUE),0)+64)&MATCH(H$3&"_slut",INDIRECT("'"&$B6&"'!B:B",TRUE),0),TRUE),"X"),0) -> 0 | I6: =IF(H11=0,0,COUNTIF(INDIRECT("'"&$B6&"'!"&CHAR(MATCH($D6,INDIRECT("'"&$B6&"'!6:6",TRUE),0)+64)&MATCH(H$3,INDIRECT("'"&$B6&"'!B:B",TRUE),0)&":"&CHAR(MATCH($D6,INDIRECT("'"&$B6&"'!6:6",TRUE),0)+64)&MATCH(H$3&"_slut",INDIRECT("'"&$B6&"'!B:B",TRUE),0),TRUE),"X")/H$61) -> 0 | J6: =IF(H11=0,0,COUNTIF(INDIRECT("'"&$B6&"'!"&CHAR(MATCH($D6,INDIRECT("'"&$B6&"'!6:6",TRUE),0)+64)&MATCH(H$3,INDIRECT("'"&$B6&"'!B:B",TRUE),0)&":"&CHAR(MATCH($D6,INDIRECT("'"&$B6&"'!6:6",TRUE),0)+64)&MATCH(H$3&"_slut",INDIRECT("'"&$B6&"'!B:B",TRUE),0),TRUE),"X")/SUM(H6:H10)) -> 0 | K6: =IFERROR(COUNTIF(INDIRECT("'"&$B6&"'!"&CHAR(MATCH($D6,INDIRECT("'"&$B6&"'!6:6",TRUE),0)+64)&MATCH(K$3,INDIRECT("'"&$B6&"'!B:B",TRUE),0)&":"&CHAR(MATCH($D6,INDIRECT("'"&$B6&"'!6:6",TRUE),0)+64)&MATCH(K$3&"_slut",INDIRECT("'"&$B6&"'!B:B",TRUE),0),TRUE),"X"),0) -> 0 | L6: =IF(K11=0,0,COUNTIF(INDIRECT("'"&$B6&"'!"&CHAR(MATCH($D6,INDIRECT("'"&$B6&"'!6:6",TRUE),0)+64)&MATCH(K$3,INDIRECT("'"&$B6&"'!B:B",TRUE),0)&":"&CHAR(MATCH($D6,INDIRECT("'"&$B6&"'!6:6",TRUE),0)+64)&MATCH(K$3&"_slut",INDIRECT("'"&$B6&"'!B:B",TRUE),0),TRUE),"X")/K$61) -> 0 | M6: =IF(K11=0,0,COUNTIF(INDIRECT("'"&$B6&"'!"&CHAR(MATCH($D6,INDIRECT("'"&$B6&"'!6:6",TRUE),0)+64)&MATCH(K$3,INDIRECT("'"&$B6&"'!B:B",TRUE),0)&":"&CHAR(MATCH($D6,INDIRECT("'"&$B6&"'!6:6",TRUE),0)+64)&MATCH(K$3&"_slut",INDIRECT("'"&$B6&"'!B:B",TRUE),0),TRUE),"X")/SUM(K6:K10)) -> 0 | N6: =IFERROR(COUNTIF(INDIRECT("'"&$B6&"'!"&CHAR(MATCH($D6,INDIRECT("'"&$B6&"'!6:6",TRUE),0)+64)&MATCH(N$3,INDIRECT("'"&$B6&"'!B:B",TRUE),0)&":"&CHAR(MATCH($D6,INDIRECT("'"&$B6&"'!6:6",TRUE),0)+64)&MATCH(N$3&"_slut",INDIRECT("'"&$B6&"'!B:B",TRUE),0),TRUE),"X"),0) -> 0 | O6: =IF(N11=0,0,COUNTIF(INDIRECT("'"&$B6&"'!"&CHAR(MATCH($D6,INDIRECT("'"&$B6&"'!6:6",TRUE),0)+64)&MATCH(N$3,INDIRECT("'"&$B6&"'!B:B",TRUE),0)&":"&CHAR(MATCH($D6,INDIRECT("'"&$B6&"'!6:6",TRUE),0)+64)&MATCH(N$3&"_slut",INDIRECT("'"&$B6&"'!B:B",TRUE),0),TRUE),"X")/N$61) -> 0 | P6: =IF(N11=0,0,COUNTIF(INDIRECT("'"&$B6&"'!"&CHAR(MATCH($D6,INDIRECT("'"&$B6&"'!6:6",TRUE),0)+64)&MATCH(N$3,INDIRECT("'"&$B6&"'!B:B",TRUE),0)&":"&CHAR(MATCH($D6,INDIRECT("'"&$B6&"'!6:6",TRUE),0)+64)&MATCH(N$3&"_slut",INDIRECT("'"&$B6&"'!B:B",TRUE),0),TRUE),"X")/SUM(N6:N10)) -> 0
C7: =B6 -> Risikovurdering | D7: Delvist | E7: =IFERROR(COUNTIF(INDIRECT("'"&$B6&"'!"&CHAR(MATCH($D7,INDIRECT("'"&$B6&"'!6:6",TRUE),0)+64)&MATCH(E$3,INDIRECT("'"&$B6&"'!B:B",TRUE),0)&":"&CHAR(MATCH($D7,INDIRECT("'"&$B6&"'!6:6",TRUE),0)+64)&MATCH(E$3&"_slut",INDIRECT("'"&$B6&"'!B:B",TRUE),0),TRUE),"X"),0) -> 0 | F7: =IF(E11=0,0,COUNTIF(INDIRECT("'"&$B6&"'!"&CHAR(MATCH($D7,INDIRECT("'"&$B6&"'!6:6",TRUE),0)+64)&MATCH(E$3,INDIRECT("'"&$B6&"'!B:B",TRUE),0)&":"&CHAR(MATCH($D7,INDIRECT("'"&$B6&"'!6:6",TRUE),0)+64)&MATCH(E$3&"_slut",INDIRECT("'"&$B6&"'!B:B",TRUE),0),TRUE),"X")/E$61) -> 0 | G7: =IF(E11=0,0,COUNTIF(INDIRECT("'"&$B6&"'!"&CHAR(MATCH($D7,INDIRECT("'"&$B6&"'!6:6",TRUE),0)+64)&MATCH(E$3,INDIRECT("'"&$B6&"'!B:B",TRUE),0)&":"&CHAR(MATCH($D7,INDIRECT("'"&$B6&"'!6:6",TRUE),0)+64)&MATCH(E$3&"_slut",INDIRECT("'"&$B6&"'!B:B",TRUE),0),TRUE),"X")/SUM(E6:E10)) -> 0 | H7: =IFERROR(COUNTIF(INDIRECT("'"&$B6&"'!"&CHAR(MATCH($D7,INDIRECT("'"&$B6&"'!6:6",TRUE),0)+64)&MATCH(H$3,INDIRECT("'"&$B6&"'!B:B",TRUE),0)&":"&CHAR(MATCH($D7,INDIRECT("'"&$B6&"'!6:6",TRUE),0)+64)&MATCH(H$3&"_slut",INDIRECT("'"&$B6&"'!B:B",TRUE),0),TRUE),"X"),0) -> 0 | I7: =IF(H11=0,0,COUNTIF(INDIRECT("'"&$B6&"'!"&CHAR(MATCH($D7,INDIRECT("'"&$B6&"'!6:6",TRUE),0)+64)&MATCH(H$3,INDIRECT("'"&$B6&"'!B:B",TRUE),0)&":"&CHAR(MATCH($D7,INDIRECT("'"&$B6&"'!6:6",TRUE),0)+64)&MATCH(H$3&"_slut",INDIRECT("'"&$B6&"'!B:B",TRUE),0),TRUE),"X")/H$61) -> 0 | J7: =IF(H11=0,0,COUNTIF(INDIRECT("'"&$B6&"'!"&CHAR(MATCH($D7,INDIRECT("'"&$B6&"'!6:6",TRUE),0)+64)&MATCH(H$3,INDIRECT("'"&$B6&"'!B:B",TRUE),0)&":"&CHAR(MATCH($D7,INDIRECT("'"&$B6&"'!6:6",TRUE),0)+64)&MATCH(H$3&"_slut",INDIRECT("'"&$B6&"'!B:B",TRUE),0),TRUE),"X")/SUM(H6:H10)) -> 0 | K7: =IFERROR(COUNTIF(INDIRECT("'"&$B6&"'!"&CHAR(MATCH($D7,INDIRECT("'"&$B6&"'!6:6",TRUE),0)+64)&MATCH(K$3,INDIRECT("'"&$B6&"'!B:B",TRUE),0)&":"&CHAR(MATCH($D7,INDIRECT("'"&$B6&"'!6:6",TRUE),0)+64)&MATCH(K$3&"_slut",INDIRECT("'"&$B6&"'!B:B",TRUE),0),TRUE),"X"),0) -> 0 | L7: =IF(K11=0,0,COUNTIF(INDIRECT("'"&$B6&"'!"&CHAR(MATCH($D7,INDIRECT("'"&$B6&"'!6:6",TRUE),0)+64)&MATCH(K$3,INDIRECT("'"&$B6&"'!B:B",TRUE),0)&":"&CHAR(MATCH($D7,INDIRECT("'"&$B6&"'!6:6",TRUE),0)+64)&MATCH(K$3&"_slut",INDIRECT("'"&$B6&"'!B:B",TRUE),0),TRUE),"X")/K$61) -> 0 | M7: =IF(K11=0,0,COUNTIF(INDIRECT("'"&$B6&"'!"&CHAR(MATCH($D7,INDIRECT("'"&$B6&"'!6:6",TRUE),0)+64)&MATCH(K$3,INDIRECT("'"&$B6&"'!B:B",TRUE),0)&":"&CHAR(MATCH($D7,INDIRECT("'"&$B6&"'!6:6",TRUE),0)+64)&MATCH(K$3&"_slut",INDIRECT("'"&$B6&"'!B:B",TRUE),0),TRUE),"X")/SUM(K6:K10)) -> 0 | N7: =IFERROR(COUNTIF(INDIRECT("'"&$B6&"'!"&CHAR(MATCH($D7,INDIRECT("'"&$B6&"'!6:6",TRUE),0)+64)&MATCH(N$3,INDIRECT("'"&$B6&"'!B:B",TRUE),0)&":"&CHAR(MATCH($D7,INDIRECT("'"&$B6&"'!6:6",TRUE),0)+64)&MATCH(N$3&"_slut",INDIRECT("'"&$B6&"'!B:B",TRUE),0),TRUE),"X"),0) -> 0 | O7: =IF(N11=0,0,COUNTIF(INDIRECT("'"&$B6&"'!"&CHAR(MATCH($D7,INDIRECT("'"&$B6&"'!6:6",TRUE),0)+64)&MATCH(N$3,INDIRECT("'"&$B6&"'!B:B",TRUE),0)&":"&CHAR(MATCH($D7,INDIRECT("'"&$B6&"'!6:6",TRUE),0)+64)&MATCH(N$3&"_slut",INDIRECT("'"&$B6&"'!B:B",TRUE),0),TRUE),"X")/N$61) -> 0 | P7: =IF(N11=0,0,COUNTIF(INDIRECT("'"&$B6&"'!"&CHAR(MATCH($D7,INDIRECT("'"&$B6&"'!6:6",TRUE),0)+64)&MATCH(N$3,INDIRECT("'"&$B6&"'!B:B",TRUE),0)&":"&CHAR(MATCH($D7,INDIRECT("'"&$B6&"'!6:6",TRUE),0)+64)&MATCH(N$3&"_slut",INDIRECT("'"&$B6&"'!B:B",TRUE),0),TRUE),"X")/SUM(N6:N10)) -> 0
C8: =B6 -> Risikovurdering | D8: Nej | E8: =IFERROR(COUNTIF(INDIRECT("'"&$B6&"'!"&CHAR(MATCH($D8,INDIRECT("'"&$B6&"'!6:6",TRUE),0)+64)&MATCH(E$3,INDIRECT("'"&$B6&"'!B:B",TRUE),0)&":"&CHAR(MATCH($D8,INDIRECT("'"&$B6&"'!6:6",TRUE),0)+64)&MATCH(E$3&"_slut",INDIRECT("'"&$B6&"'!B:B",TRUE),0),TRUE),"X"),0) -> 0 | F8: =IF(E11=0,0,COUNTIF(INDIRECT("'"&$B6&"'!"&CHAR(MATCH($D8,INDIRECT("'"&$B6&"'!6:6",TRUE),0)+64)&MATCH(E$3,INDIRECT("'"&$B6&"'!B:B",TRUE),0)&":"&CHAR(MATCH($D8,INDIRECT("'"&$B6&"'!6:6",TRUE),0)+64)&MATCH(E$3&"_slut",INDIRECT("'"&$B6&"'!B:B",TRUE),0),TRUE),"X")/E$61) -> 0 | G8: =IF(E11=0,0,COUNTIF(INDIRECT("'"&$B6&"'!"&CHAR(MATCH($D8,INDIRECT("'"&$B6&"'!6:6",TRUE),0)+64)&MATCH(E$3,INDIRECT("'"&$B6&"'!B:B",TRUE),0)&":"&CHAR(MATCH($D8,INDIRECT("'"&$B6&"'!6:6",TRUE),0)+64)&MATCH(E$3&"_slut",INDIRECT("'"&$B6&"'!B:B",TRUE),0),TRUE),"X")/SUM(E6:E10)) -> 0 | H8: =IFERROR(COUNTIF(INDIRECT("'"&$B6&"'!"&CHAR(MATCH($D8,INDIRECT("'"&$B6&"'!6:6",TRUE),0)+64)&MATCH(H$3,INDIRECT("'"&$B6&"'!B:B",TRUE),0)&":"&CHAR(MATCH($D8,INDIRECT("'"&$B6&"'!6:6",TRUE),0)+64)&MATCH(H$3&"_slut",INDIRECT("'"&$B6&"'!B:B",TRUE),0),TRUE),"X"),0) -> 0 | I8: =IF(H11=0,0,COUNTIF(INDIRECT("'"&$B6&"'!"&CHAR(MATCH($D8,INDIRECT("'"&$B6&"'!6:6",TRUE),0)+64)&MATCH(H$3,INDIRECT("'"&$B6&"'!B:B",TRUE),0)&":"&CHAR(MATCH($D8,INDIRECT("'"&$B6&"'!6:6",TRUE),0)+64)&MATCH(H$3&"_slut",INDIRECT("'"&$B6&"'!B:B",TRUE),0),TRUE),"X")/H$61) -> 0 | J8: =IF(H11=0,0,COUNTIF(INDIRECT("'"&$B6&"'!"&CHAR(MATCH($D8,INDIRECT("'"&$B6&"'!6:6",TRUE),0)+64)&MATCH(H$3,INDIRECT("'"&$B6&"'!B:B",TRUE),0)&":"&CHAR(MATCH($D8,INDIRECT("'"&$B6&"'!6:6",TRUE),0)+64)&MATCH(H$3&"_slut",INDIRECT("'"&$B6&"'!B:B",TRUE),0),TRUE),"X")/SUM(H6:H10)) -> 0 | K8: =IFERROR(COUNTIF(INDIRECT("'"&$B6&"'!"&CHAR(MATCH($D8,INDIRECT("'"&$B6&"'!6:6",TRUE),0)+64)&MATCH(K$3,INDIRECT("'"&$B6&"'!B:B",TRUE),0)&":"&CHAR(MATCH($D8,INDIRECT("'"&$B6&"'!6:6",TRUE),0)+64)&MATCH(K$3&"_slut",INDIRECT("'"&$B6&"'!B:B",TRUE),0),TRUE),"X"),0) -> 0 | L8: =IF(K11=0,0,COUNTIF(INDIRECT("'"&$B6&"'!"&CHAR(MATCH($D8,INDIRECT("'"&$B6&"'!6:6",TRUE),0)+64)&MATCH(K$3,INDIRECT("'"&$B6&"'!B:B",TRUE),0)&":"&CHAR(MATCH($D8,INDIRECT("'"&$B6&"'!6:6",TRUE),0)+64)&MATCH(K$3&"_slut",INDIRECT("'"&$B6&"'!B:B",TRUE),0),TRUE),"X")/K$61) -> 0 | M8: =IF(K11=0,0,COUNTIF(INDIRECT("'"&$B6&"'!"&CHAR(MATCH($D8,INDIRECT("'"&$B6&"'!6:6",TRUE),0)+64)&MATCH(K$3,INDIRECT("'"&$B6&"'!B:B",TRUE),0)&":"&CHAR(MATCH($D8,INDIRECT("'"&$B6&"'!6:6",TRUE),0)+64)&MATCH(K$3&"_slut",INDIRECT("'"&$B6&"'!B:B",TRUE),0),TRUE),"X")/SUM(K6:K10)) -> 0 | N8: =IFERROR(COUNTIF(INDIRECT("'"&$B6&"'!"&CHAR(MATCH($D8,INDIRECT("'"&$B6&"'!6:6",TRUE),0)+64)&MATCH(N$3,INDIRECT("'"&$B6&"'!B:B",TRUE),0)&":"&CHAR(MATCH($D8,INDIRECT("'"&$B6&"'!6:6",TRUE),0)+64)&MATCH(N$3&"_slut",INDIRECT("'"&$B6&"'!B:B",TRUE),0),TRUE),"X"),0) -> 0 | O8: =IF(N11=0,0,COUNTIF(INDIRECT("'"&$B6&"'!"&CHAR(MATCH($D8,INDIRECT("'"&$B6&"'!6:6",TRUE),0)+64)&MATCH(N$3,INDIRECT("'"&$B6&"'!B:B",TRUE),0)&":"&CHAR(MATCH($D8,INDIRECT("'"&$B6&"'!6:6",TRUE),0)+64)&MATCH(N$3&"_slut",INDIRECT("'"&$B6&"'!B:B",TRUE),0),TRUE),"X")/N$61) -> 0 | P8: =IF(N11=0,0,COUNTIF(INDIRECT("'"&$B6&"'!"&CHAR(MATCH($D8,INDIRECT("'"&$B6&"'!6:6",TRUE),0)+64)&MATCH(N$3,INDIRECT("'"&$B6&"'!B:B",TRUE),0)&":"&CHAR(MATCH($D8,INDIRECT("'"&$B6&"'!6:6",TRUE),0)+64)&MATCH(N$3&"_slut",INDIRECT("'"&$B6&"'!B:B",TRUE),0),TRUE),"X")/SUM(N6:N10)) -> 0
C9: =B6 -> Risikovurdering | D9: Ikke relevant | E9: =IFERROR(COUNTIF(INDIRECT("'"&$B6&"'!"&CHAR(MATCH($D9,INDIRECT("'"&$B6&"'!6:6",TRUE),0)+64)&MATCH(E$3,INDIRECT("'"&$B6&"'!B:B",TRUE),0)&":"&CHAR(MATCH($D9,INDIRECT("'"&$B6&"'!6:6",TRUE),0)+64)&MATCH(E$3&"_slut",INDIRECT("'"&$B6&"'!B:B",TRUE),0),TRUE),"X"),0) -> 0 | F9: =IF(E11=0,0,COUNTIF(INDIRECT("'"&$B6&"'!"&CHAR(MATCH($D9,INDIRECT("'"&$B6&"'!6:6",TRUE),0)+64)&MATCH(E$3,INDIRECT("'"&$B6&"'!B:B",TRUE),0)&":"&CHAR(MATCH($D9,INDIRECT("'"&$B6&"'!6:6",TRUE),0)+64)&MATCH(E$3&"_slut",INDIRECT("'"&$B6&"'!B:B",TRUE),0),TRUE),"X")/E$61) -> 0 | G9: =IF(E11=0,0,COUNTIF(INDIRECT("'"&$B6&"'!"&CHAR(MATCH($D9,INDIRECT("'"&$B6&"'!6:6",TRUE),0)+64)&MATCH(E$3,INDIRECT("'"&$B6&"'!B:B",TRUE),0)&":"&CHAR(MATCH($D9,INDIRECT("'"&$B6&"'!6:6",TRUE),0)+64)&MATCH(E$3&"_slut",INDIRECT("'"&$B6&"'!B:B",TRUE),0),TRUE),"X")/SUM(E6:E10)) -> 0 | H9: =IFERROR(COUNTIF(INDIRECT("'"&$B6&"'!"&CHAR(MATCH($D9,INDIRECT("'"&$B6&"'!6:6",TRUE),0)+64)&MATCH(H$3,INDIRECT("'"&$B6&"'!B:B",TRUE),0)&":"&CHAR(MATCH($D9,INDIRECT("'"&$B6&"'!6:6",TRUE),0)+64)&MATCH(H$3&"_slut",INDIRECT("'"&$B6&"'!B:B",TRUE),0),TRUE),"X"),0) -> 0 | I9: =IF(H11=0,0,COUNTIF(INDIRECT("'"&$B6&"'!"&CHAR(MATCH($D9,INDIRECT("'"&$B6&"'!6:6",TRUE),0)+64)&MATCH(H$3,INDIRECT("'"&$B6&"'!B:B",TRUE),0)&":"&CHAR(MATCH($D9,INDIRECT("'"&$B6&"'!6:6",TRUE),0)+64)&MATCH(H$3&"_slut",INDIRECT("'"&$B6&"'!B:B",TRUE),0),TRUE),"X")/H$61) -> 0 | J9: =IF(H11=0,0,COUNTIF(INDIRECT("'"&$B6&"'!"&CHAR(MATCH($D9,INDIRECT("'"&$B6&"'!6:6",TRUE),0)+64)&MATCH(H$3,INDIRECT("'"&$B6&"'!B:B",TRUE),0)&":"&CHAR(MATCH($D9,INDIRECT("'"&$B6&"'!6:6",TRUE),0)+64)&MATCH(H$3&"_slut",INDIRECT("'"&$B6&"'!B:B",TRUE),0),TRUE),"X")/SUM(H6:H10)) -> 0 | K9: =IFERROR(COUNTIF(INDIRECT("'"&$B6&"'!"&CHAR(MATCH($D9,INDIRECT("'"&$B6&"'!6:6",TRUE),0)+64)&MATCH(K$3,INDIRECT("'"&$B6&"'!B:B",TRUE),0)&":"&CHAR(MATCH($D9,INDIRECT("'"&$B6&"'!6:6",TRUE),0)+64)&MATCH(K$3&"_slut",INDIRECT("'"&$B6&"'!B:B",TRUE),0),TRUE),"X"),0) -> 0 | L9: =IF(K11=0,0,COUNTIF(INDIRECT("'"&$B6&"'!"&CHAR(MATCH($D9,INDIRECT("'"&$B6&"'!6:6",TRUE),0)+64)&MATCH(K$3,INDIRECT("'"&$B6&"'!B:B",TRUE),0)&":"&CHAR(MATCH($D9,INDIRECT("'"&$B6&"'!6:6",TRUE),0)+64)&MATCH(K$3&"_slut",INDIRECT("'"&$B6&"'!B:B",TRUE),0),TRUE),"X")/K$61) -> 0 | M9: =IF(K11=0,0,COUNTIF(INDIRECT("'"&$B6&"'!"&CHAR(MATCH($D9,INDIRECT("'"&$B6&"'!6:6",TRUE),0)+64)&MATCH(K$3,INDIRECT("'"&$B6&"'!B:B",TRUE),0)&":"&CHAR(MATCH($D9,INDIRECT("'"&$B6&"'!6:6",TRUE),0)+64)&MATCH(K$3&"_slut",INDIRECT("'"&$B6&"'!B:B",TRUE),0),TRUE),"X")/SUM(K6:K10)) -> 0 | N9: =IFERROR(COUNTIF(INDIRECT("'"&$B6&"'!"&CHAR(MATCH($D9,INDIRECT("'"&$B6&"'!6:6",TRUE),0)+64)&MATCH(N$3,INDIRECT("'"&$B6&"'!B:B",TRUE),0)&":"&CHAR(MATCH($D9,INDIRECT("'"&$B6&"'!6:6",TRUE),0)+64)&MATCH(N$3&"_slut",INDIRECT("'"&$B6&"'!B:B",TRUE),0),TRUE),"X"),0) -> 0 | O9: =IF(N11=0,0,COUNTIF(INDIRECT("'"&$B6&"'!"&CHAR(MATCH($D9,INDIRECT("'"&$B6&"'!6:6",TRUE),0)+64)&MATCH(N$3,INDIRECT("'"&$B6&"'!B:B",TRUE),0)&":"&CHAR(MATCH($D9,INDIRECT("'"&$B6&"'!6:6",TRUE),0)+64)&MATCH(N$3&"_slut",INDIRECT("'"&$B6&"'!B:B",TRUE),0),TRUE),"X")/N$61) -> 0 | P9: =IF(N11=0,0,COUNTIF(INDIRECT("'"&$B6&"'!"&CHAR(MATCH($D9,INDIRECT("'"&$B6&"'!6:6",TRUE),0)+64)&MATCH(N$3,INDIRECT("'"&$B6&"'!B:B",TRUE),0)&":"&CHAR(MATCH($D9,INDIRECT("'"&$B6&"'!6:6",TRUE),0)+64)&MATCH(N$3&"_slut",INDIRECT("'"&$B6&"'!B:B",TRUE),0),TRUE),"X")/SUM(N6:N10)) -> 0
C10: =B6 -> Risikovurdering | D10: Ikke sat | E10: =IF(ISERROR(MATCH(E$3,INDIRECT("'"&$B6&"'!B:B",TRUE),0)),0,COUNTA(INDIRECT("'"&$B6&"'!E"&MATCH(E$3,INDIRECT("'"&$B6&"'!B:B",TRUE),0)&":E"&MATCH(E$3&"_slut",INDIRECT("'"&$B6&"'!B:B",TRUE),0),TRUE))-E6-E7-E8-E9) -> 2 | F10: =IF(E11=0,0,E11/E$61-F6-F7-F8-F9) -> 0.06451612903 | G10: =IF(E11=0,0,1-G6-G7-G8-G9) -> 1 | H10: =IF(ISERROR(MATCH(H$3,INDIRECT("'"&$B6&"'!B:B",TRUE),0)),0,COUNTA(INDIRECT("'"&$B6&"'!E"&MATCH(H$3,INDIRECT("'"&$B6&"'!B:B",TRUE),0)&":E"&MATCH(H$3&"_slut",INDIRECT("'"&$B6&"'!B:B",TRUE),0),TRUE))-H6-H7-H8-H9) -> 5 | I10: =IF(H11=0,0,H11/H$61-I6-I7-I8-I9) -> 0.1388888889 | J10: =IF(H11=0,0,1-J6-J7-J8-J9) -> 1 | K10: =IF(ISERROR(MATCH(K$3,INDIRECT("'"&$B6&"'!B:B",TRUE),0)),0,COUNTA(INDIRECT("'"&$B6&"'!E"&MATCH(K$3,INDIRECT("'"&$B6&"'!B:B",TRUE),0)&":E"&MATCH(K$3&"_slut",INDIRECT("'"&$B6&"'!B:B",TRUE),0),TRUE))-K6-K7-K8-K9) -> 3 | L10: =IF(K11=0,0,K11/K$61-L6-L7-L8-L9) -> 0.1111111111 | M10: =IF(K11=0,0,1-M6-M7-M8-M9) -> 1 | N10: =IF(ISERROR(MATCH(N$3,INDIRECT("'"&$B6&"'!B:B",TRUE),0)),0,COUNTA(INDIRECT("'"&$B6&"'!E"&MATCH(N$3,INDIRECT("'"&$B6&"'!B:B",TRUE),0)&":E"&MATCH(N$3&"_slut",INDIRECT("'"&$B6&"'!B:B",TRUE),0),TRUE))-N6-N7-N8-N9) -> 1 | O10: =IF(N11=0,0,N11/N$61-O6-O7-O8-O9) -> 0.0625 | P10: =IF(N11=0,0,1-P6-P7-P8-P9) -> 1
C11: =B6 -> Risikovurdering | D11: TOTAL | E11: =SUM(E6:E10) -> 2 | F11: =SUM(F6:F9) -> 0 | G11: =SUM(G6:G9) -> 0 | H11: =SUM(H6:H10) -> 5 | I11: =SUM(I6:I9) -> 0 | J11: 0 | K11: =SUM(K6:K10) -> 3 | L11: =SUM(L6:L9) -> 0 | M11: 0 | N11: =SUM(N6:N10) -> 1 | O11: =SUM(O6:O9) -> 0 | P11: 0
B12: Risikohåndtering | C12: =B12 -> Risikohåndtering | D12: Ja | E12: =IFERROR(COUNTIF(INDIRECT("'"&$B12&"'!"&CHAR(MATCH($D12,INDIRECT("'"&$B12&"'!6:6",TRUE),0)+64)&MATCH(E$3,INDIRECT("'"&$B12&"'!B:B",TRUE),0)&":"&CHAR(MATCH($D12,INDIRECT("'"&$B12&"'!6:6",TRUE),0)+64)&MATCH(E$3&"_slut",INDIRECT("'"&$B12&"'!B:B",TRUE),0),TRUE),"X"),0) -> 0 | F12: =IF(E17=0,0,COUNTIF(INDIRECT("'"&$B12&"'!"&CHAR(MATCH($D12,INDIRECT("'"&$B12&"'!6:6",TRUE),0)+64)&MATCH(E$3,INDIRECT("'"&$B12&"'!B:B",TRUE),0)&":"&CHAR(MATCH($D12,INDIRECT("'"&$B12&"'!6:6",TRUE),0)+64)&MATCH(E$3&"_slut",INDIRECT("'"&$B12&"'!B:B",TRUE),0),TRUE),"X")/E$61) -> 0 | G12: =IF(E17=0,0,COUNTIF(INDIRECT("'"&$B12&"'!"&CHAR(MATCH($D12,INDIRECT("'"&$B12&"'!6:6",TRUE),0)+64)&MATCH(E$3,INDIRECT("'"&$B12&"'!B:B",TRUE),0)&":"&CHAR(MATCH($D12,INDIRECT("'"&$B12&"'!6:6",TRUE),0)+64)&MATCH(E$3&"_slut",INDIRECT("'"&$B12&"'!B:B",TRUE),0),TRUE),"X")/SUM(E12:E16)) -> 0 | H12: =IFERROR(COUNTIF(INDIRECT("'"&$B12&"'!"&CHAR(MATCH($D12,INDIRECT("'"&$B12&"'!6:6",TRUE),0)+64)&MATCH(H$3,INDIRECT("'"&$B12&"'!B:B",TRUE),0)&":"&CHAR(MATCH($D12,INDIRECT("'"&$B12&"'!6:6",TRUE),0)+64)&MATCH(H$3&"_slut",INDIRECT("'"&$B12&"'!B:B",TRUE),0),TRUE),"X"),0) -> 0 | I12: =IF(H17=0,0,COUNTIF(INDIRECT("'"&$B12&"'!"&CHAR(MATCH($D12,INDIRECT("'"&$B12&"'!6:6",TRUE),0)+64)&MATCH(H$3,INDIRECT("'"&$B12&"'!B:B",TRUE),0)&":"&CHAR(MATCH($D12,INDIRECT("'"&$B12&"'!6:6",TRUE),0)+64)&MATCH(H$3&"_slut",INDIRECT("'"&$B12&"'!B:B",TRUE),0),TRUE),"X")/H$61) -> 0 | J12: =IF(H17=0,0,COUNTIF(INDIRECT("'"&$B12&"'!"&CHAR(MATCH($D12,INDIRECT("'"&$B12&"'!6:6",TRUE),0)+64)&MATCH(H$3,INDIRECT("'"&$B12&"'!B:B",TRUE),0)&":"&CHAR(MATCH($D12,INDIRECT("'"&$B12&"'!6:6",TRUE),0)+64)&MATCH(H$3&"_slut",INDIRECT("'"&$B12&"'!B:B",TRUE),0),TRUE),"X")/SUM(H12:H16)) -> 0 | K12: =IFERROR(COUNTIF(INDIRECT("'"&$B12&"'!"&CHAR(MATCH($D12,INDIRECT("'"&$B12&"'!6:6",TRUE),0)+64)&MATCH(K$3,INDIRECT("'"&$B12&"'!B:B",TRUE),0)&":"&CHAR(MATCH($D12,INDIRECT("'"&$B12&"'!6:6",TRUE),0)+64)&MATCH(K$3&"_slut",INDIRECT("'"&$B12&"'!B:B",TRUE),0),TRUE),"X"),0) -> 0 | L12: =IF(K17=0,0,COUNTIF(INDIRECT("'"&$B12&"'!"&CHAR(MATCH($D12,INDIRECT("'"&$B12&"'!6:6",TRUE),0)+64)&MATCH(K$3,INDIRECT("'"&$B12&"'!B:B",TRUE),0)&":"&CHAR(MATCH($D12,INDIRECT("'"&$B12&"'!6:6",TRUE),0)+64)&MATCH(K$3&"_slut",INDIRECT("'"&$B12&"'!B:B",TRUE),0),TRUE),"X")/K$61) -> 0 | M12: =IF(K17=0,0,COUNTIF(INDIRECT("'"&$B12&"'!"&CHAR(MATCH($D12,INDIRECT("'"&$B12&"'!6:6",TRUE),0)+64)&MATCH(K$3,INDIRECT("'"&$B12&"'!B:B",TRUE),0)&":"&CHAR(MATCH($D12,INDIRECT("'"&$B12&"'!6:6",TRUE),0)+64)&MATCH(K$3&"_slut",INDIRECT("'"&$B12&"'!B:B",TRUE),0),TRUE),"X")/SUM(K12:K16)) -> 0 | N12: =IFERROR(COUNTIF(INDIRECT("'"&$B12&"'!"&CHAR(MATCH($D12,INDIRECT("'"&$B12&"'!6:6",TRUE),0)+64)&MATCH(N$3,INDIRECT("'"&$B12&"'!B:B",TRUE),0)&":"&CHAR(MATCH($D12,INDIRECT("'"&$B12&"'!6:6",TRUE),0)+64)&MATCH(N$3&"_slut",INDIRECT("'"&$B12&"'!B:B",TRUE),0),TRUE),"X"),0) -> 0 | O12: =IF(N17=0,0,COUNTIF(INDIRECT("'"&$B12&"'!"&CHAR(MATCH($D12,INDIRECT("'"&$B12&"'!6:6",TRUE),0)+64)&MATCH(N$3,INDIRECT("'"&$B12&"'!B:B",TRUE),0)&":"&CHAR(MATCH($D12,INDIRECT("'"&$B12&"'!6:6",TRUE),0)+64)&MATCH(N$3&"_slut",INDIRECT("'"&$B12&"'!B:B",TRUE),0),TRUE),"X")/N$61) -> 0 | P12: =IF(N17=0,0,COUNTIF(INDIRECT("'"&$B12&"'!"&CHAR(MATCH($D12,INDIRECT("'"&$B12&"'!6:6",TRUE),0)+64)&MATCH(N$3,INDIRECT("'"&$B12&"'!B:B",TRUE),0)&":"&CHAR(MATCH($D12,INDIRECT("'"&$B12&"'!6:6",TRUE),0)+64)&MATCH(N$3&"_slut",INDIRECT("'"&$B12&"'!B:B",TRUE),0),TRUE),"X")/SUM(N12:N16)) -> 0
C13: =B12 -> Risikohåndtering | D13: Delvist | E13: =IFERROR(COUNTIF(INDIRECT("'"&$B12&"'!"&CHAR(MATCH($D13,INDIRECT("'"&$B12&"'!6:6",TRUE),0)+64)&MATCH(E$3,INDIRECT("'"&$B12&"'!B:B",TRUE),0)&":"&CHAR(MATCH($D13,INDIRECT("'"&$B12&"'!6:6",TRUE),0)+64)&MATCH(E$3&"_slut",INDIRECT("'"&$B12&"'!B:B",TRUE),0),TRUE),"X"),0) -> 0 | F13: =IF(E17=0,0,COUNTIF(INDIRECT("'"&$B12&"'!"&CHAR(MATCH($D13,INDIRECT("'"&$B12&"'!6:6",TRUE),0)+64)&MATCH(E$3,INDIRECT("'"&$B12&"'!B:B",TRUE),0)&":"&CHAR(MATCH($D13,INDIRECT("'"&$B12&"'!6:6",TRUE),0)+64)&MATCH(E$3&"_slut",INDIRECT("'"&$B12&"'!B:B",TRUE),0),TRUE),"X")/E$61) -> 0 | G13: =IF(E17=0,0,COUNTIF(INDIRECT("'"&$B12&"'!"&CHAR(MATCH($D13,INDIRECT("'"&$B12&"'!6:6",TRUE),0)+64)&MATCH(E$3,INDIRECT("'"&$B12&"'!B:B",TRUE),0)&":"&CHAR(MATCH($D13,INDIRECT("'"&$B12&"'!6:6",TRUE),0)+64)&MATCH(E$3&"_slut",INDIRECT("'"&$B12&"'!B:B",TRUE),0),TRUE),"X")/SUM(E12:E16)) -> 0 | H13: =IFERROR(COUNTIF(INDIRECT("'"&$B12&"'!"&CHAR(MATCH($D13,INDIRECT("'"&$B12&"'!6:6",TRUE),0)+64)&MATCH(H$3,INDIRECT("'"&$B12&"'!B:B",TRUE),0)&":"&CHAR(MATCH($D13,INDIRECT("'"&$B12&"'!6:6",TRUE),0)+64)&MATCH(H$3&"_slut",INDIRECT("'"&$B12&"'!B:B",TRUE),0),TRUE),"X"),0) -> 0 | I13: =IF(H17=0,0,COUNTIF(INDIRECT("'"&$B12&"'!"&CHAR(MATCH($D13,INDIRECT("'"&$B12&"'!6:6",TRUE),0)+64)&MATCH(H$3,INDIRECT("'"&$B12&"'!B:B",TRUE),0)&":"&CHAR(MATCH($D13,INDIRECT("'"&$B12&"'!6:6",TRUE),0)+64)&MATCH(H$3&"_slut",INDIRECT("'"&$B12&"'!B:B",TRUE),0),TRUE),"X")/H$61) -> 0 | J13: =IF(H17=0,0,COUNTIF(INDIRECT("'"&$B12&"'!"&CHAR(MATCH($D13,INDIRECT("'"&$B12&"'!6:6",TRUE),0)+64)&MATCH(H$3,INDIRECT("'"&$B12&"'!B:B",TRUE),0)&":"&CHAR(MATCH($D13,INDIRECT("'"&$B12&"'!6:6",TRUE),0)+64)&MATCH(H$3&"_slut",INDIRECT("'"&$B12&"'!B:B",TRUE),0),TRUE),"X")/SUM(H12:H16)) -> 0 | K13: =IFERROR(COUNTIF(INDIRECT("'"&$B12&"'!"&CHAR(MATCH($D13,INDIRECT("'"&$B12&"'!6:6",TRUE),0)+64)&MATCH(K$3,INDIRECT("'"&$B12&"'!B:B",TRUE),0)&":"&CHAR(MATCH($D13,INDIRECT("'"&$B12&"'!6:6",TRUE),0)+64)&MATCH(K$3&"_slut",INDIRECT("'"&$B12&"'!B:B",TRUE),0),TRUE),"X"),0) -> 0 | L13: =IF(K17=0,0,COUNTIF(INDIRECT("'"&$B12&"'!"&CHAR(MATCH($D13,INDIRECT("'"&$B12&"'!6:6",TRUE),0)+64)&MATCH(K$3,INDIRECT("'"&$B12&"'!B:B",TRUE),0)&":"&CHAR(MATCH($D13,INDIRECT("'"&$B12&"'!6:6",TRUE),0)+64)&MATCH(K$3&"_slut",INDIRECT("'"&$B12&"'!B:B",TRUE),0),TRUE),"X")/K$61) -> 0 | M13: =IF(K17=0,0,COUNTIF(INDIRECT("'"&$B12&"'!"&CHAR(MATCH($D13,INDIRECT("'"&$B12&"'!6:6",TRUE),0)+64)&MATCH(K$3,INDIRECT("'"&$B12&"'!B:B",TRUE),0)&":"&CHAR(MATCH($D13,INDIRECT("'"&$B12&"'!6:6",TRUE),0)+64)&MATCH(K$3&"_slut",INDIRECT("'"&$B12&"'!B:B",TRUE),0),TRUE),"X")/SUM(K12:K16)) -> 0 | N13: =IFERROR(COUNTIF(INDIRECT("'"&$B12&"'!"&CHAR(MATCH($D13,INDIRECT("'"&$B12&"'!6:6",TRUE),0)+64)&MATCH(N$3,INDIRECT("'"&$B12&"'!B:B",TRUE),0)&":"&CHAR(MATCH($D13,INDIRECT("'"&$B12&"'!6:6",TRUE),0)+64)&MATCH(N$3&"_slut",INDIRECT("'"&$B12&"'!B:B",TRUE),0),TRUE),"X"),0) -> 0 | O13: =IF(N17=0,0,COUNTIF(INDIRECT("'"&$B12&"'!"&CHAR(MATCH($D13,INDIRECT("'"&$B12&"'!6:6",TRUE),0)+64)&MATCH(N$3,INDIRECT("'"&$B12&"'!B:B",TRUE),0)&":"&CHAR(MATCH($D13,INDIRECT("'"&$B12&"'!6:6",TRUE),0)+64)&MATCH(N$3&"_slut",INDIRECT("'"&$B12&"'!B:B",TRUE),0),TRUE),"X")/N$61) -> 0 | P13: =IF(N17=0,0,COUNTIF(INDIRECT("'"&$B12&"'!"&CHAR(MATCH($D13,INDIRECT("'"&$B12&"'!6:6",TRUE),0)+64)&MATCH(N$3,INDIRECT("'"&$B12&"'!B:B",TRUE),0)&":"&CHAR(MATCH($D13,INDIRECT("'"&$B12&"'!6:6",TRUE),0)+64)&MATCH(N$3&"_slut",INDIRECT("'"&$B12&"'!B:B",TRUE),0),TRUE),"X")/SUM(N12:N16)) -> 0
C14: =B12 -> Risikohåndtering | D14: Nej | E14: =IFERROR(COUNTIF(INDIRECT("'"&$B12&"'!"&CHAR(MATCH($D14,INDIRECT("'"&$B12&"'!6:6",TRUE),0)+64)&MATCH(E$3,INDIRECT("'"&$B12&"'!B:B",TRUE),0)&":"&CHAR(MATCH($D14,INDIRECT("'"&$B12&"'!6:6",TRUE),0)+64)&MATCH(E$3&"_slut",INDIRECT("'"&$B12&"'!B:B",TRUE),0),TRUE),"X"),0) -> 0 | F14: =IF(E17=0,0,COUNTIF(INDIRECT("'"&$B12&"'!"&CHAR(MATCH($D14,INDIRECT("'"&$B12&"'!6:6",TRUE),0)+64)&MATCH(E$3,INDIRECT("'"&$B12&"'!B:B",TRUE),0)&":"&CHAR(MATCH($D14,INDIRECT("'"&$B12&"'!6:6",TRUE),0)+64)&MATCH(E$3&"_slut",INDIRECT("'"&$B12&"'!B:B",TRUE),0),TRUE),"X")/E$61) -> 0 | G14: =IF(E17=0,0,COUNTIF(INDIRECT("'"&$B12&"'!"&CHAR(MATCH($D14,INDIRECT("'"&$B12&"'!6:6",TRUE),0)+64)&MATCH(E$3,INDIRECT("'"&$B12&"'!B:B",TRUE),0)&":"&CHAR(MATCH($D14,INDIRECT("'"&$B12&"'!6:6",TRUE),0)+64)&MATCH(E$3&"_slut",INDIRECT("'"&$B12&"'!B:B",TRUE),0),TRUE),"X")/SUM(E12:E16)) -> 0 | H14: =IFERROR(COUNTIF(INDIRECT("'"&$B12&"'!"&CHAR(MATCH($D14,INDIRECT("'"&$B12&"'!6:6",TRUE),0)+64)&MATCH(H$3,INDIRECT("'"&$B12&"'!B:B",TRUE),0)&":"&CHAR(MATCH($D14,INDIRECT("'"&$B12&"'!6:6",TRUE),0)+64)&MATCH(H$3&"_slut",INDIRECT("'"&$B12&"'!B:B",TRUE),0),TRUE),"X"),0) -> 0 | I14: =IF(H17=0,0,COUNTIF(INDIRECT("'"&$B12&"'!"&CHAR(MATCH($D14,INDIRECT("'"&$B12&"'!6:6",TRUE),0)+64)&MATCH(H$3,INDIRECT("'"&$B12&"'!B:B",TRUE),0)&":"&CHAR(MATCH($D14,INDIRECT("'"&$B12&"'!6:6",TRUE),0)+64)&MATCH(H$3&"_slut",INDIRECT("'"&$B12&"'!B:B",TRUE),0),TRUE),"X")/H$61) -> 0 | J14: =IF(H17=0,0,COUNTIF(INDIRECT("'"&$B12&"'!"&CHAR(MATCH($D14,INDIRECT("'"&$B12&"'!6:6",TRUE),0)+64)&MATCH(H$3,INDIRECT("'"&$B12&"'!B:B",TRUE),0)&":"&CHAR(MATCH($D14,INDIRECT("'"&$B12&"'!6:6",TRUE),0)+64)&MATCH(H$3&"_slut",INDIRECT("'"&$B12&"'!B:B",TRUE),0),TRUE),"X")/SUM(H12:H16)) -> 0 | K14: =IFERROR(COUNTIF(INDIRECT("'"&$B12&"'!"&CHAR(MATCH($D14,INDIRECT("'"&$B12&"'!6:6",TRUE),0)+64)&MATCH(K$3,INDIRECT("'"&$B12&"'!B:B",TRUE),0)&":"&CHAR(MATCH($D14,INDIRECT("'"&$B12&"'!6:6",TRUE),0)+64)&MATCH(K$3&"_slut",INDIRECT("'"&$B12&"'!B:B",TRUE),0),TRUE),"X"),0) -> 0 | L14: =IF(K17=0,0,COUNTIF(INDIRECT("'"&$B12&"'!"&CHAR(MATCH($D14,INDIRECT("'"&$B12&"'!6:6",TRUE),0)+64)&MATCH(K$3,INDIRECT("'"&$B12&"'!B:B",TRUE),0)&":"&CHAR(MATCH($D14,INDIRECT("'"&$B12&"'!6:6",TRUE),0)+64)&MATCH(K$3&"_slut",INDIRECT("'"&$B12&"'!B:B",TRUE),0),TRUE),"X")/K$61) -> 0 | M14: =IF(K17=0,0,COUNTIF(INDIRECT("'"&$B12&"'!"&CHAR(MATCH($D14,INDIRECT("'"&$B12&"'!6:6",TRUE),0)+64)&MATCH(K$3,INDIRECT("'"&$B12&"'!B:B",TRUE),0)&":"&CHAR(MATCH($D14,INDIRECT("'"&$B12&"'!6:6",TRUE),0)+64)&MATCH(K$3&"_slut",INDIRECT("'"&$B12&"'!B:B",TRUE),0),TRUE),"X")/SUM(K12:K16)) -> 0 | N14: =IFERROR(COUNTIF(INDIRECT("'"&$B12&"'!"&CHAR(MATCH($D14,INDIRECT("'"&$B12&"'!6:6",TRUE),0)+64)&MATCH(N$3,INDIRECT("'"&$B12&"'!B:B",TRUE),0)&":"&CHAR(MATCH($D14,INDIRECT("'"&$B12&"'!6:6",TRUE),0)+64)&MATCH(N$3&"_slut",INDIRECT("'"&$B12&"'!B:B",TRUE),0),TRUE),"X"),0) -> 0 | O14: =IF(N17=0,0,COUNTIF(INDIRECT("'"&$B12&"'!"&CHAR(MATCH($D14,INDIRECT("'"&$B12&"'!6:6",TRUE),0)+64)&MATCH(N$3,INDIRECT("'"&$B12&"'!B:B",TRUE),0)&":"&CHAR(MATCH($D14,INDIRECT("'"&$B12&"'!6:6",TRUE),0)+64)&MATCH(N$3&"_slut",INDIRECT("'"&$B12&"'!B:B",TRUE),0),TRUE),"X")/N$61) -> 0 | P14: =IF(N17=0,0,COUNTIF(INDIRECT("'"&$B12&"'!"&CHAR(MATCH($D14,INDIRECT("'"&$B12&"'!6:6",TRUE),0)+64)&MATCH(N$3,INDIRECT("'"&$B12&"'!B:B",TRUE),0)&":"&CHAR(MATCH($D14,INDIRECT("'"&$B12&"'!6:6",TRUE),0)+64)&MATCH(N$3&"_slut",INDIRECT("'"&$B12&"'!B:B",TRUE),0),TRUE),"X")/SUM(N12:N16)) -> 0
C15: =B12 -> Risikohåndtering | D15: Ikke relevant | E15: =IFERROR(COUNTIF(INDIRECT("'"&$B12&"'!"&CHAR(MATCH($D15,INDIRECT("'"&$B12&"'!6:6",TRUE),0)+64)&MATCH(E$3,INDIRECT("'"&$B12&"'!B:B",TRUE),0)&":"&CHAR(MATCH($D15,INDIRECT("'"&$B12&"'!6:6",TRUE),0)+64)&MATCH(E$3&"_slut",INDIRECT("'"&$B12&"'!B:B",TRUE),0),TRUE),"X"),0) -> 0 | F15: =IF(E17=0,0,COUNTIF(INDIRECT("'"&$B12&"'!"&CHAR(MATCH($D15,INDIRECT("'"&$B12&"'!6:6",TRUE),0)+64)&MATCH(E$3,INDIRECT("'"&$B12&"'!B:B",TRUE),0)&":"&CHAR(MATCH($D15,INDIRECT("'"&$B12&"'!6:6",TRUE),0)+64)&MATCH(E$3&"_slut",INDIRECT("'"&$B12&"'!B:B",TRUE),0),TRUE),"X")/E$61) -> 0 | G15: =IF(E17=0,0,COUNTIF(INDIRECT("'"&$B12&"'!"&CHAR(MATCH($D15,INDIRECT("'"&$B12&"'!6:6",TRUE),0)+64)&MATCH(E$3,INDIRECT("'"&$B12&"'!B:B",TRUE),0)&":"&CHAR(MATCH($D15,INDIRECT("'"&$B12&"'!6:6",TRUE),0)+64)&MATCH(E$3&"_slut",INDIRECT("'"&$B12&"'!B:B",TRUE),0),TRUE),"X")/SUM(E12:E16)) -> 0 | H15: =IFERROR(COUNTIF(INDIRECT("'"&$B12&"'!"&CHAR(MATCH($D15,INDIRECT("'"&$B12&"'!6:6",TRUE),0)+64)&MATCH(H$3,INDIRECT("'"&$B12&"'!B:B",TRUE),0)&":"&CHAR(MATCH($D15,INDIRECT("'"&$B12&"'!6:6",TRUE),0)+64)&MATCH(H$3&"_slut",INDIRECT("'"&$B12&"'!B:B",TRUE),0),TRUE),"X"),0) -> 0 | I15: =IF(H17=0,0,COUNTIF(INDIRECT("'"&$B12&"'!"&CHAR(MATCH($D15,INDIRECT("'"&$B12&"'!6:6",TRUE),0)+64)&MATCH(H$3,INDIRECT("'"&$B12&"'!B:B",TRUE),0)&":"&CHAR(MATCH($D15,INDIRECT("'"&$B12&"'!6:6",TRUE),0)+64)&MATCH(H$3&"_slut",INDIRECT("'"&$B12&"'!B:B",TRUE),0),TRUE),"X")/H$61) -> 0 | J15: =IF(H17=0,0,COUNTIF(INDIRECT("'"&$B12&"'!"&CHAR(MATCH($D15,INDIRECT("'"&$B12&"'!6:6",TRUE),0)+64)&MATCH(H$3,INDIRECT("'"&$B12&"'!B:B",TRUE),0)&":"&CHAR(MATCH($D15,INDIRECT("'"&$B12&"'!6:6",TRUE),0)+64)&MATCH(H$3&"_slut",INDIRECT("'"&$B12&"'!B:B",TRUE),0),TRUE),"X")/SUM(H12:H16)) -> 0 | K15: =IFERROR(COUNTIF(INDIRECT("'"&$B12&"'!"&CHAR(MATCH($D15,INDIRECT("'"&$B12&"'!6:6",TRUE),0)+64)&MATCH(K$3,INDIRECT("'"&$B12&"'!B:B",TRUE),0)&":"&CHAR(MATCH($D15,INDIRECT("'"&$B12&"'!6:6",TRUE),0)+64)&MATCH(K$3&"_slut",INDIRECT("'"&$B12&"'!B:B",TRUE),0),TRUE),"X"),0) -> 0 | L15: =IF(K17=0,0,COUNTIF(INDIRECT("'"&$B12&"'!"&CHAR(MATCH($D15,INDIRECT("'"&$B12&"'!6:6",TRUE),0)+64)&MATCH(K$3,INDIRECT("'"&$B12&"'!B:B",TRUE),0)&":"&CHAR(MATCH($D15,INDIRECT("'"&$B12&"'!6:6",TRUE),0)+64)&MATCH(K$3&"_slut",INDIRECT("'"&$B12&"'!B:B",TRUE),0),TRUE),"X")/K$61) -> 0 | M15: =IF(K17=0,0,COUNTIF(INDIRECT("'"&$B12&"'!"&CHAR(MATCH($D15,INDIRECT("'"&$B12&"'!6:6",TRUE),0)+64)&MATCH(K$3,INDIRECT("'"&$B12&"'!B:B",TRUE),0)&":"&CHAR(MATCH($D15,INDIRECT("'"&$B12&"'!6:6",TRUE),0)+64)&MATCH(K$3&"_slut",INDIRECT("'"&$B12&"'!B:B",TRUE),0),TRUE),"X")/SUM(K12:K16)) -> 0 | N15: =IFERROR(COUNTIF(INDIRECT("'"&$B12&"'!"&CHAR(MATCH($D15,INDIRECT("'"&$B12&"'!6:6",TRUE),0)+64)&MATCH(N$3,INDIRECT("'"&$B12&"'!B:B",TRUE),0)&":"&CHAR(MATCH($D15,INDIRECT("'"&$B12&"'!6:6",TRUE),0)+64)&MATCH(N$3&"_slut",INDIRECT("'"&$B12&"'!B:B",TRUE),0),TRUE),"X"),0) -> 0 | O15: =IF(N17=0,0,COUNTIF(INDIRECT("'"&$B12&"'!"&CHAR(MATCH($D15,INDIRECT("'"&$B12&"'!6:6",TRUE),0)+64)&MATCH(N$3,INDIRECT("'"&$B12&"'!B:B",TRUE),0)&":"&CHAR(MATCH($D15,INDIRECT("'"&$B12&"'!6:6",TRUE),0)+64)&MATCH(N$3&"_slut",INDIRECT("'"&$B12&"'!B:B",TRUE),0),TRUE),"X")/N$61) -> 0 | P15: =IF(N17=0,0,COUNTIF(INDIRECT("'"&$B12&"'!"&CHAR(MATCH($D15,INDIRECT("'"&$B12&"'!6:6",TRUE),0)+64)&MATCH(N$3,INDIRECT("'"&$B12&"'!B:B",TRUE),0)&":"&CHAR(MATCH($D15,INDIRECT("'"&$B12&"'!6:6",TRUE),0)+64)&MATCH(N$3&"_slut",INDIRECT("'"&$B12&"'!B:B",TRUE),0),TRUE),"X")/SUM(N12:N16)) -> 0
C16: =B12 -> Risikohåndtering | D16: Ikke sat | E16: =IF(ISERROR(MATCH(E$3,INDIRECT("'"&$B12&"'!B:B",TRUE),0)),0,COUNTA(INDIRECT("'"&$B12&"'!E"&MATCH(E$3,INDIRECT("'"&$B12&"'!B:B",TRUE),0)&":E"&MATCH(E$3&"_slut",INDIRECT("'"&$B12&"'!B:B",TRUE),0),TRUE))-E12-E13-E14-E15) -> 3 | F16: =IF(E17=0,0,E17/E$61-F12-F13-F14-F15) -> 0.09677419355 | G16: =IF(E17=0,0,1-G12-G13-G14-G15) -> 1 | H16: =IF(ISERROR(MATCH(H$3,INDIRECT("'"&$B12&"'!B:B",TRUE),0)),0,COUNTA(INDIRECT("'"&$B12&"'!E"&MATCH(H$3,INDIRECT("'"&$B12&"'!B:B",TRUE),0)&":E"&MATCH(H$3&"_slut",INDIRECT("'"&$B12&"'!B:B",TRUE),0),TRUE))-H12-H13-H14-H15) -> 2 | I16: =IF(H17=0,0,H17/H$61-I12-I13-I14-I15) -> 0.05555555556 | J16: =IF(H17=0,0,1-J12-J13-J14-J15) -> 1 | K16: =IF(ISERROR(MATCH(K$3,INDIRECT("'"&$B12&"'!B:B",TRUE),0)),0,COUNTA(INDIRECT("'"&$B12&"'!E"&MATCH(K$3,INDIRECT("'"&$B12&"'!B:B",TRUE),0)&":E"&MATCH(K$3&"_slut",INDIRECT("'"&$B12&"'!B:B",TRUE),0),TRUE))-K12-K13-K14-K15) -> 3 | L16: =IF(K17=0,0,K17/K$61-L12-L13-L14-L15) -> 0.1111111111 | M16: =IF(K17=0,0,1-M12-M13-M14-M15) -> 1 | N16: =IF(ISERROR(MATCH(N$3,INDIRECT("'"&$B12&"'!B:B",TRUE),0)),0,COUNTA(INDIRECT("'"&$B12&"'!E"&MATCH(N$3,INDIRECT("'"&$B12&"'!B:B",TRUE),0)&":E"&MATCH(N$3&"_slut",INDIRECT("'"&$B12&"'!B:B",TRUE),0),TRUE))-N12-N13-N14-N15) -> 2 | O16: =IF(N17=0,0,N17/N$61-O12-O13-O14-O15) -> 0.125 | P16: =IF(N17=0,0,1-P12-P13-P14-P15) -> 1
C17: =B12 -> Risikohåndtering | D17: TOTAL | E17: =SUM(E12:E16) -> 3 | F17: =SUM(F12:F15) -> 0 | G17: =SUM(G12:G15) -> 0 | H17: =SUM(H12:H16) -> 2 | I17: =SUM(I12:I15) -> 0 | J17: 0 | K17: =SUM(K12:K16) -> 3 | L17: =SUM(L12:L15) -> 0 | M17: 0 | N17: =SUM(N12:N16) -> 2 | O17: =SUM(O12:O15) -> 0 | P17: 0
B18: ISMS | C18: =B18 -> ISMS | D18: Ja | E18: =IFERROR(COUNTIF(INDIRECT("'"&$B18&"'!"&CHAR(MATCH($D18,INDIRECT("'"&$B18&"'!6:6",TRUE),0)+64)&MATCH(E$3,INDIRECT("'"&$B18&"'!B:B",TRUE),0)&":"&CHAR(MATCH($D18,INDIRECT("'"&$B18&"'!6:6",TRUE),0)+64)&MATCH(E$3&"_slut",INDIRECT("'"&$B18&"'!B:B",TRUE),0),TRUE),"X"),0) -> 0 | F18: =IF(E23=0,0,COUNTIF(INDIRECT("'"&$B18&"'!"&CHAR(MATCH($D18,INDIRECT("'"&$B18&"'!6:6",TRUE),0)+64)&MATCH(E$3,INDIRECT("'"&$B18&"'!B:B",TRUE),0)&":"&CHAR(MATCH($D18,INDIRECT("'"&$B18&"'!6:6",TRUE),0)+64)&MATCH(E$3&"_slut",INDIRECT("'"&$B18&"'!B:B",TRUE),0),TRUE),"X")/E$61) -> 0 | G18: =IF(E23=0,0,COUNTIF(INDIRECT("'"&$B18&"'!"&CHAR(MATCH($D18,INDIRECT("'"&$B18&"'!6:6",TRUE),0)+64)&MATCH(E$3,INDIRECT("'"&$B18&"'!B:B",TRUE),0)&":"&CHAR(MATCH($D18,INDIRECT("'"&$B18&"'!6:6",TRUE),0)+64)&MATCH(E$3&"_slut",INDIRECT("'"&$B18&"'!B:B",TRUE),0),TRUE),"X")/SUM(E18:E22)) -> 0 | H18: =IFERROR(COUNTIF(INDIRECT("'"&$B18&"'!"&CHAR(MATCH($D18,INDIRECT("'"&$B18&"'!6:6",TRUE),0)+64)&MATCH(H$3,INDIRECT("'"&$B18&"'!B:B",TRUE),0)&":"&CHAR(MATCH($D18,INDIRECT("'"&$B18&"'!6:6",TRUE),0)+64)&MATCH(H$3&"_slut",INDIRECT("'"&$B18&"'!B:B",TRUE),0),TRUE),"X"),0) -> 0 | I18: =IF(H23=0,0,COUNTIF(INDIRECT("'"&$B18&"'!"&CHAR(MATCH($D18,INDIRECT("'"&$B18&"'!6:6",TRUE),0)+64)&MATCH(H$3,INDIRECT("'"&$B18&"'!B:B",TRUE),0)&":"&CHAR(MATCH($D18,INDIRECT("'"&$B18&"'!6:6",TRUE),0)+64)&MATCH(H$3&"_slut",INDIRECT("'"&$B18&"'!B:B",TRUE),0),TRUE),"X")/H$61) -> 0 | J18: =IF(H23=0,0,COUNTIF(INDIRECT("'"&$B18&"'!"&CHAR(MATCH($D18,INDIRECT("'"&$B18&"'!6:6",TRUE),0)+64)&MATCH(H$3,INDIRECT("'"&$B18&"'!B:B",TRUE),0)&":"&CHAR(MATCH($D18,INDIRECT("'"&$B18&"'!6:6",TRUE),0)+64)&MATCH(H$3&"_slut",INDIRECT("'"&$B18&"'!B:B",TRUE),0),TRUE),"X")/SUM(H18:H22)) -> 0 | K18: =IFERROR(COUNTIF(INDIRECT("'"&$B18&"'!"&CHAR(MATCH($D18,INDIRECT("'"&$B18&"'!6:6",TRUE),0)+64)&MATCH(K$3,INDIRECT("'"&$B18&"'!B:B",TRUE),0)&":"&CHAR(MATCH($D18,INDIRECT("'"&$B18&"'!6:6",TRUE),0)+64)&MATCH(K$3&"_slut",INDIRECT("'"&$B18&"'!B:B",TRUE),0),TRUE),"X"),0) -> 0 | L18: =IF(K23=0,0,COUNTIF(INDIRECT("'"&$B18&"'!"&CHAR(MATCH($D18,INDIRECT("'"&$B18&"'!6:6",TRUE),0)+64)&MATCH(K$3,INDIRECT("'"&$B18&"'!B:B",TRUE),0)&":"&CHAR(MATCH($D18,INDIRECT("'"&$B18&"'!6:6",TRUE),0)+64)&MATCH(K$3&"_slut",INDIRECT("'"&$B18&"'!B:B",TRUE),0),TRUE),"X")/K$61) -> 0 | M18: =IF(K23=0,0,COUNTIF(INDIRECT("'"&$B18&"'!"&CHAR(MATCH($D18,INDIRECT("'"&$B18&"'!6:6",TRUE),0)+64)&MATCH(K$3,INDIRECT("'"&$B18&"'!B:B",TRUE),0)&":"&CHAR(MATCH($D18,INDIRECT("'"&$B18&"'!6:6",TRUE),0)+64)&MATCH(K$3&"_slut",INDIRECT("'"&$B18&"'!B:B",TRUE),0),TRUE),"X")/SUM(K18:K22)) -> 0 | N18: =IFERROR(COUNTIF(INDIRECT("'"&$B18&"'!"&CHAR(MATCH($D18,INDIRECT("'"&$B18&"'!6:6",TRUE),0)+64)&MATCH(N$3,INDIRECT("'"&$B18&"'!B:B",TRUE),0)&":"&CHAR(MATCH($D18,INDIRECT("'"&$B18&"'!6:6",TRUE),0)+64)&MATCH(N$3&"_slut",INDIRECT("'"&$B18&"'!B:B",TRUE),0),TRUE),"X"),0) -> 0 | O18: =IF(N23=0,0,COUNTIF(INDIRECT("'"&$B18&"'!"&CHAR(MATCH($D18,INDIRECT("'"&$B18&"'!6:6",TRUE),0)+64)&MATCH(N$3,INDIRECT("'"&$B18&"'!B:B",TRUE),0)&":"&CHAR(MATCH($D18,INDIRECT("'"&$B18&"'!6:6",TRUE),0)+64)&MATCH(N$3&"_slut",INDIRECT("'"&$B18&"'!B:B",TRUE),0),TRUE),"X")/N$61) -> 0 | P18: =IF(N23=0,0,COUNTIF(INDIRECT("'"&$B18&"'!"&CHAR(MATCH($D18,INDIRECT("'"&$B18&"'!6:6",TRUE),0)+64)&MATCH(N$3,INDIRECT("'"&$B18&"'!B:B",TRUE),0)&":"&CHAR(MATCH($D18,INDIRECT("'"&$B18&"'!6:6",TRUE),0)+64)&MATCH(N$3&"_slut",INDIRECT("'"&$B18&"'!B:B",TRUE),0),TRUE),"X")/SUM(N18:N22)) -> 0
C19: =B18 -> ISMS | D19: Delvist | E19: =IFERROR(COUNTIF(INDIRECT("'"&$B18&"'!"&CHAR(MATCH($D19,INDIRECT("'"&$B18&"'!6:6",TRUE),0)+64)&MATCH(E$3,INDIRECT("'"&$B18&"'!B:B",TRUE),0)&":"&CHAR(MATCH($D19,INDIRECT("'"&$B18&"'!6:6",TRUE),0)+64)&MATCH(E$3&"_slut",INDIRECT("'"&$B18&"'!B:B",TRUE),0),TRUE),"X"),0) -> 0 | F19: =IF(E23=0,0,COUNTIF(INDIRECT("'"&$B18&"'!"&CHAR(MATCH($D19,INDIRECT("'"&$B18&"'!6:6",TRUE),0)+64)&MATCH(E$3,INDIRECT("'"&$B18&"'!B:B",TRUE),0)&":"&CHAR(MATCH($D19,INDIRECT("'"&$B18&"'!6:6",TRUE),0)+64)&MATCH(E$3&"_slut",INDIRECT("'"&$B18&"'!B:B",TRUE),0),TRUE),"X")/E$61) -> 0 | G19: =IF(E23=0,0,COUNTIF(INDIRECT("'"&$B18&"'!"&CHAR(MATCH($D19,INDIRECT("'"&$B18&"'!6:6",TRUE),0)+64)&MATCH(E$3,INDIRECT("'"&$B18&"'!B:B",TRUE),0)&":"&CHAR(MATCH($D19,INDIRECT("'"&$B18&"'!6:6",TRUE),0)+64)&MATCH(E$3&"_slut",INDIRECT("'"&$B18&"'!B:B",TRUE),0),TRUE),"X")/SUM(E18:E22)) -> 0 | H19: =IFERROR(COUNTIF(INDIRECT("'"&$B18&"'!"&CHAR(MATCH($D19,INDIRECT("'"&$B18&"'!6:6",TRUE),0)+64)&MATCH(H$3,INDIRECT("'"&$B18&"'!B:B",TRUE),0)&":"&CHAR(MATCH($D19,INDIRECT("'"&$B18&"'!6:6",TRUE),0)+64)&MATCH(H$3&"_slut",INDIRECT("'"&$B18&"'!B:B",TRUE),0),TRUE),"X"),0) -> 0 | I19: =IF(H23=0,0,COUNTIF(INDIRECT("'"&$B18&"'!"&CHAR(MATCH($D19,INDIRECT("'"&$B18&"'!6:6",TRUE),0)+64)&MATCH(H$3,INDIRECT("'"&$B18&"'!B:B",TRUE),0)&":"&CHAR(MATCH($D19,INDIRECT("'"&$B18&"'!6:6",TRUE),0)+64)&MATCH(H$3&"_slut",INDIRECT("'"&$B18&"'!B:B",TRUE),0),TRUE),"X")/H$61) -> 0 | J19: =IF(H23=0,0,COUNTIF(INDIRECT("'"&$B18&"'!"&CHAR(MATCH($D19,INDIRECT("'"&$B18&"'!6:6",TRUE),0)+64)&MATCH(H$3,INDIRECT("'"&$B18&"'!B:B",TRUE),0)&":"&CHAR(MATCH($D19,INDIRECT("'"&$B18&"'!6:6",TRUE),0)+64)&MATCH(H$3&"_slut",INDIRECT("'"&$B18&"'!B:B",TRUE),0),TRUE),"X")/SUM(H18:H22)) -> 0 | K19: =IFERROR(COUNTIF(INDIRECT("'"&$B18&"'!"&CHAR(MATCH($D19,INDIRECT("'"&$B18&"'!6:6",TRUE),0)+64)&MATCH(K$3,INDIRECT("'"&$B18&"'!B:B",TRUE),0)&":"&CHAR(MATCH($D19,INDIRECT("'"&$B18&"'!6:6",TRUE),0)+64)&MATCH(K$3&"_slut",INDIRECT("'"&$B18&"'!B:B",TRUE),0),TRUE),"X"),0) -> 0 | L19: =IF(K23=0,0,COUNTIF(INDIRECT("'"&$B18&"'!"&CHAR(MATCH($D19,INDIRECT("'"&$B18&"'!6:6",TRUE),0)+64)&MATCH(K$3,INDIRECT("'"&$B18&"'!B:B",TRUE),0)&":"&CHAR(MATCH($D19,INDIRECT("'"&$B18&"'!6:6",TRUE),0)+64)&MATCH(K$3&"_slut",INDIRECT("'"&$B18&"'!B:B",TRUE),0),TRUE),"X")/K$61) -> 0 | M19: =IF(K23=0,0,COUNTIF(INDIRECT("'"&$B18&"'!"&CHAR(MATCH($D19,INDIRECT("'"&$B18&"'!6:6",TRUE),0)+64)&MATCH(K$3,INDIRECT("'"&$B18&"'!B:B",TRUE),0)&":"&CHAR(MATCH($D19,INDIRECT("'"&$B18&"'!6:6",TRUE),0)+64)&MATCH(K$3&"_slut",INDIRECT("'"&$B18&"'!B:B",TRUE),0),TRUE),"X")/SUM(K18:K22)) -> 0 | N19: =IFERROR(COUNTIF(INDIRECT("'"&$B18&"'!"&CHAR(MATCH($D19,INDIRECT("'"&$B18&"'!6:6",TRUE),0)+64)&MATCH(N$3,INDIRECT("'"&$B18&"'!B:B",TRUE),0)&":"&CHAR(MATCH($D19,INDIRECT("'"&$B18&"'!6:6",TRUE),0)+64)&MATCH(N$3&"_slut",INDIRECT("'"&$B18&"'!B:B",TRUE),0),TRUE),"X"),0) -> 0 | O19: =IF(N23=0,0,COUNTIF(INDIRECT("'"&$B18&"'!"&CHAR(MATCH($D19,INDIRECT("'"&$B18&"'!6:6",TRUE),0)+64)&MATCH(N$3,INDIRECT("'"&$B18&"'!B:B",TRUE),0)&":"&CHAR(MATCH($D19,INDIRECT("'"&$B18&"'!6:6",TRUE),0)+64)&MATCH(N$3&"_slut",INDIRECT("'"&$B18&"'!B:B",TRUE),0),TRUE),"X")/N$61) -> 0 | P19: =IF(N23=0,0,COUNTIF(INDIRECT("'"&$B18&"'!"&CHAR(MATCH($D19,INDIRECT("'"&$B18&"'!6:6",TRUE),0)+64)&MATCH(N$3,INDIRECT("'"&$B18&"'!B:B",TRUE),0)&":"&CHAR(MATCH($D19,INDIRECT("'"&$B18&"'!6:6",TRUE),0)+64)&MATCH(N$3&"_slut",INDIRECT("'"&$B18&"'!B:B",TRUE),0),TRUE),"X")/SUM(N18:N22)) -> 0
C20: =B18 -> ISMS | D20: Nej | E20: =IFERROR(COUNTIF(INDIRECT("'"&$B18&"'!"&CHAR(MATCH($D20,INDIRECT("'"&$B18&"'!6:6",TRUE),0)+64)&MATCH(E$3,INDIRECT("'"&$B18&"'!B:B",TRUE),0)&":"&CHAR(MATCH($D20,INDIRECT("'"&$B18&"'!6:6",TRUE),0)+64)&MATCH(E$3&"_slut",INDIRECT("'"&$B18&"'!B:B",TRUE),0),TRUE),"X"),0) -> 0 | F20: =IF(E23=0,0,COUNTIF(INDIRECT("'"&$B18&"'!"&CHAR(MATCH($D20,INDIRECT("'"&$B18&"'!6:6",TRUE),0)+64)&MATCH(E$3,INDIRECT("'"&$B18&"'!B:B",TRUE),0)&":"&CHAR(MATCH($D20,INDIRECT("'"&$B18&"'!6:6",TRUE),0)+64)&MATCH(E$3&"_slut",INDIRECT("'"&$B18&"'!B:B",TRUE),0),TRUE),"X")/E$61) -> 0 | G20: =IF(E23=0,0,COUNTIF(INDIRECT("'"&$B18&"'!"&CHAR(MATCH($D20,INDIRECT("'"&$B18&"'!6:6",TRUE),0)+64)&MATCH(E$3,INDIRECT("'"&$B18&"'!B:B",TRUE),0)&":"&CHAR(MATCH($D20,INDIRECT("'"&$B18&"'!6:6",TRUE),0)+64)&MATCH(E$3&"_slut",INDIRECT("'"&$B18&"'!B:B",TRUE),0),TRUE),"X")/SUM(E18:E22)) -> 0 | H20: =IFERROR(COUNTIF(INDIRECT("'"&$B18&"'!"&CHAR(MATCH($D20,INDIRECT("'"&$B18&"'!6:6",TRUE),0)+64)&MATCH(H$3,INDIRECT("'"&$B18&"'!B:B",TRUE),0)&":"&CHAR(MATCH($D20,INDIRECT("'"&$B18&"'!6:6",TRUE),0)+64)&MATCH(H$3&"_slut",INDIRECT("'"&$B18&"'!B:B",TRUE),0),TRUE),"X"),0) -> 0 | I20: =IF(H23=0,0,COUNTIF(INDIRECT("'"&$B18&"'!"&CHAR(MATCH($D20,INDIRECT("'"&$B18&"'!6:6",TRUE),0)+64)&MATCH(H$3,INDIRECT("'"&$B18&"'!B:B",TRUE),0)&":"&CHAR(MATCH($D20,INDIRECT("'"&$B18&"'!6:6",TRUE),0)+64)&MATCH(H$3&"_slut",INDIRECT("'"&$B18&"'!B:B",TRUE),0),TRUE),"X")/H$61) -> 0 | J20: =IF(H23=0,0,COUNTIF(INDIRECT("'"&$B18&"'!"&CHAR(MATCH($D20,INDIRECT("'"&$B18&"'!6:6",TRUE),0)+64)&MATCH(H$3,INDIRECT("'"&$B18&"'!B:B",TRUE),0)&":"&CHAR(MATCH($D20,INDIRECT("'"&$B18&"'!6:6",TRUE),0)+64)&MATCH(H$3&"_slut",INDIRECT("'"&$B18&"'!B:B",TRUE),0),TRUE),"X")/SUM(H18:H22)) -> 0 | K20: =IFERROR(COUNTIF(INDIRECT("'"&$B18&"'!"&CHAR(MATCH($D20,INDIRECT("'"&$B18&"'!6:6",TRUE),0)+64)&MATCH(K$3,INDIRECT("'"&$B18&"'!B:B",TRUE),0)&":"&CHAR(MATCH($D20,INDIRECT("'"&$B18&"'!6:6",TRUE),0)+64)&MATCH(K$3&"_slut",INDIRECT("'"&$B18&"'!B:B",TRUE),0),TRUE),"X"),0) -> 0 | L20: =IF(K23=0,0,COUNTIF(INDIRECT("'"&$B18&"'!"&CHAR(MATCH($D20,INDIRECT("'"&$B18&"'!6:6",TRUE),0)+64)&MATCH(K$3,INDIRECT("'"&$B18&"'!B:B",TRUE),0)&":"&CHAR(MATCH($D20,INDIRECT("'"&$B18&"'!6:6",TRUE),0)+64)&MATCH(K$3&"_slut",INDIRECT("'"&$B18&"'!B:B",TRUE),0),TRUE),"X")/K$61) -> 0 | M20: =IF(K23=0,0,COUNTIF(INDIRECT("'"&$B18&"'!"&CHAR(MATCH($D20,INDIRECT("'"&$B18&"'!6:6",TRUE),0)+64)&MATCH(K$3,INDIRECT("'"&$B18&"'!B:B",TRUE),0)&":"&CHAR(MATCH($D20,INDIRECT("'"&$B18&"'!6:6",TRUE),0)+64)&MATCH(K$3&"_slut",INDIRECT("'"&$B18&"'!B:B",TRUE),0),TRUE),"X")/SUM(K18:K22)) -> 0 | N20: =IFERROR(COUNTIF(INDIRECT("'"&$B18&"'!"&CHAR(MATCH($D20,INDIRECT("'"&$B18&"'!6:6",TRUE),0)+64)&MATCH(N$3,INDIRECT("'"&$B18&"'!B:B",TRUE),0)&":"&CHAR(MATCH($D20,INDIRECT("'"&$B18&"'!6:6",TRUE),0)+64)&MATCH(N$3&"_slut",INDIRECT("'"&$B18&"'!B:B",TRUE),0),TRUE),"X"),0) -> 0 | O20: =IF(N23=0,0,COUNTIF(INDIRECT("'"&$B18&"'!"&CHAR(MATCH($D20,INDIRECT("'"&$B18&"'!6:6",TRUE),0)+64)&MATCH(N$3,INDIRECT("'"&$B18&"'!B:B",TRUE),0)&":"&CHAR(MATCH($D20,INDIRECT("'"&$B18&"'!6:6",TRUE),0)+64)&MATCH(N$3&"_slut",INDIRECT("'"&$B18&"'!B:B",TRUE),0),TRUE),"X")/N$61) -> 0 | P20: =IF(N23=0,0,COUNTIF(INDIRECT("'"&$B18&"'!"&CHAR(MATCH($D20,INDIRECT("'"&$B18&"'!6:6",TRUE),0)+64)&MATCH(N$3,INDIRECT("'"&$B18&"'!B:B",TRUE),0)&":"&CHAR(MATCH($D20,INDIRECT("'"&$B18&"'!6:6",TRUE),0)+64)&MATCH(N$3&"_slut",INDIRECT("'"&$B18&"'!B:B",TRUE),0),TRUE),"X")/SUM(N18:N22)) -> 0
C21: =B18 -> ISMS | D21: Ikke relevant | E21: =IFERROR(COUNTIF(INDIRECT("'"&$B18&"'!"&CHAR(MATCH($D21,INDIRECT("'"&$B18&"'!6:6",TRUE),0)+64)&MATCH(E$3,INDIRECT("'"&$B18&"'!B:B",TRUE),0)&":"&CHAR(MATCH($D21,INDIRECT("'"&$B18&"'!6:6",TRUE),0)+64)&MATCH(E$3&"_slut",INDIRECT("'"&$B18&"'!B:B",TRUE),0),TRUE),"X"),0) -> 0 | F21: =IF(E23=0,0,COUNTIF(INDIRECT("'"&$B18&"'!"&CHAR(MATCH($D21,INDIRECT("'"&$B18&"'!6:6",TRUE),0)+64)&MATCH(E$3,INDIRECT("'"&$B18&"'!B:B",TRUE),0)&":"&CHAR(MATCH($D21,INDIRECT("'"&$B18&"'!6:6",TRUE),0)+64)&MATCH(E$3&"_slut",INDIRECT("'"&$B18&"'!B:B",TRUE),0),TRUE),"X")/E$61) -> 0 | G21: =IF(E23=0,0,COUNTIF(INDIRECT("'"&$B18&"'!"&CHAR(MATCH($D21,INDIRECT("'"&$B18&"'!6:6",TRUE),0)+64)&MATCH(E$3,INDIRECT("'"&$B18&"'!B:B",TRUE),0)&":"&CHAR(MATCH($D21,INDIRECT("'"&$B18&"'!6:6",TRUE),0)+64)&MATCH(E$3&"_slut",INDIRECT("'"&$B18&"'!B:B",TRUE),0),TRUE),"X")/SUM(E18:E22)) -> 0 | H21: =IFERROR(COUNTIF(INDIRECT("'"&$B18&"'!"&CHAR(MATCH($D21,INDIRECT("'"&$B18&"'!6:6",TRUE),0)+64)&MATCH(H$3,INDIRECT("'"&$B18&"'!B:B",TRUE),0)&":"&CHAR(MATCH($D21,INDIRECT("'"&$B18&"'!6:6",TRUE),0)+64)&MATCH(H$3&"_slut",INDIRECT("'"&$B18&"'!B:B",TRUE),0),TRUE),"X"),0) -> 0 | I21: =IF(H23=0,0,COUNTIF(INDIRECT("'"&$B18&"'!"&CHAR(MATCH($D21,INDIRECT("'"&$B18&"'!6:6",TRUE),0)+64)&MATCH(H$3,INDIRECT("'"&$B18&"'!B:B",TRUE),0)&":"&CHAR(MATCH($D21,INDIRECT("'"&$B18&"'!6:6",TRUE),0)+64)&MATCH(H$3&"_slut",INDIRECT("'"&$B18&"'!B:B",TRUE),0),TRUE),"X")/H$61) -> 0 | J21: =IF(H23=0,0,COUNTIF(INDIRECT("'"&$B18&"'!"&CHAR(MATCH($D21,INDIRECT("'"&$B18&"'!6:6",TRUE),0)+64)&MATCH(H$3,INDIRECT("'"&$B18&"'!B:B",TRUE),0)&":"&CHAR(MATCH($D21,INDIRECT("'"&$B18&"'!6:6",TRUE),0)+64)&MATCH(H$3&"_slut",INDIRECT("'"&$B18&"'!B:B",TRUE),0),TRUE),"X")/SUM(H18:H22)) -> 0 | K21: =IFERROR(COUNTIF(INDIRECT("'"&$B18&"'!"&CHAR(MATCH($D21,INDIRECT("'"&$B18&"'!6:6",TRUE),0)+64)&MATCH(K$3,INDIRECT("'"&$B18&"'!B:B",TRUE),0)&":"&CHAR(MATCH($D21,INDIRECT("'"&$B18&"'!6:6",TRUE),0)+64)&MATCH(K$3&"_slut",INDIRECT("'"&$B18&"'!B:B",TRUE),0),TRUE),"X"),0) -> 0 | L21: =IF(K23=0,0,COUNTIF(INDIRECT("'"&$B18&"'!"&CHAR(MATCH($D21,INDIRECT("'"&$B18&"'!6:6",TRUE),0)+64)&MATCH(K$3,INDIRECT("'"&$B18&"'!B:B",TRUE),0)&":"&CHAR(MATCH($D21,INDIRECT("'"&$B18&"'!6:6",TRUE),0)+64)&MATCH(K$3&"_slut",INDIRECT("'"&$B18&"'!B:B",TRUE),0),TRUE),"X")/K$61) -> 0 | M21: =IF(K23=0,0,COUNTIF(INDIRECT("'"&$B18&"'!"&CHAR(MATCH($D21,INDIRECT("'"&$B18&"'!6:6",TRUE),0)+64)&MATCH(K$3,INDIRECT("'"&$B18&"'!B:B",TRUE),0)&":"&CHAR(MATCH($D21,INDIRECT("'"&$B18&"'!6:6",TRUE),0)+64)&MATCH(K$3&"_slut",INDIRECT("'"&$B18&"'!B:B",TRUE),0),TRUE),"X")/SUM(K18:K22)) -> 0 | N21: =IFERROR(COUNTIF(INDIRECT("'"&$B18&"'!"&CHAR(MATCH($D21,INDIRECT("'"&$B18&"'!6:6",TRUE),0)+64)&MATCH(N$3,INDIRECT("'"&$B18&"'!B:B",TRUE),0)&":"&CHAR(MATCH($D21,INDIRECT("'"&$B18&"'!6:6",TRUE),0)+64)&MATCH(N$3&"_slut",INDIRECT("'"&$B18&"'!B:B",TRUE),0),TRUE),"X"),0) -> 0 | O21: =IF(N23=0,0,COUNTIF(INDIRECT("'"&$B18&"'!"&CHAR(MATCH($D21,INDIRECT("'"&$B18&"'!6:6",TRUE),0)+64)&MATCH(N$3,INDIRECT("'"&$B18&"'!B:B",TRUE),0)&":"&CHAR(MATCH($D21,INDIRECT("'"&$B18&"'!6:6",TRUE),0)+64)&MATCH(N$3&"_slut",INDIRECT("'"&$B18&"'!B:B",TRUE),0),TRUE),"X")/N$61) -> 0 | P21: =IF(N23=0,0,COUNTIF(INDIRECT("'"&$B18&"'!"&CHAR(MATCH($D21,INDIRECT("'"&$B18&"'!6:6",TRUE),0)+64)&MATCH(N$3,INDIRECT("'"&$B18&"'!B:B",TRUE),0)&":"&CHAR(MATCH($D21,INDIRECT("'"&$B18&"'!6:6",TRUE),0)+64)&MATCH(N$3&"_slut",INDIRECT("'"&$B18&"'!B:B",TRUE),0),TRUE),"X")/SUM(N18:N22)) -> 0
C22: =B18 -> ISMS | D22: Ikke sat | E22: =IF(ISERROR(MATCH(E$3,INDIRECT("'"&$B18&"'!B:B",TRUE),0)),0,COUNTA(INDIRECT("'"&$B18&"'!E"&MATCH(E$3,INDIRECT("'"&$B18&"'!B:B",TRUE),0)&":E"&MATCH(E$3&"_slut",INDIRECT("'"&$B18&"'!B:B",TRUE),0),TRUE))-E18-E19-E20-E21) -> 4 | F22: =IF(E23=0,0,E23/E$61-F18-F19-F20-F21) -> 0.1290322581 | G22: =IF(E23=0,0,1-G18-G19-G20-G21) -> 1 | H22: =IF(ISERROR(MATCH(H$3,INDIRECT("'"&$B18&"'!B:B",TRUE),0)),0,COUNTA(INDIRECT("'"&$B18&"'!E"&MATCH(H$3,INDIRECT("'"&$B18&"'!B:B",TRUE),0)&":E"&MATCH(H$3&"_slut",INDIRECT("'"&$B18&"'!B:B",TRUE),0),TRUE))-H18-H19-H20-H21) -> 7 | I22: =IF(H23=0,0,H23/H$61-I18-I19-I20-I21) -> 0.1944444444 | J22: =IF(H23=0,0,1-J18-J19-J20-J21) -> 1 | K22: =IF(ISERROR(MATCH(K$3,INDIRECT("'"&$B18&"'!B:B",TRUE),0)),0,COUNTA(INDIRECT("'"&$B18&"'!E"&MATCH(K$3,INDIRECT("'"&$B18&"'!B:B",TRUE),0)&":E"&MATCH(K$3&"_slut",INDIRECT("'"&$B18&"'!B:B",TRUE),0),TRUE))-K18-K19-K20-K21) -> 3 | L22: =IF(K23=0,0,K23/K$61-L18-L19-L20-L21) -> 0.1111111111 | M22: =IF(K23=0,0,1-M18-M19-M20-M21) -> 1 | N22: =IF(ISERROR(MATCH(N$3,INDIRECT("'"&$B18&"'!B:B",TRUE),0)),0,COUNTA(INDIRECT("'"&$B18&"'!E"&MATCH(N$3,INDIRECT("'"&$B18&"'!B:B",TRUE),0)&":E"&MATCH(N$3&"_slut",INDIRECT("'"&$B18&"'!B:B",TRUE),0),TRUE))-N18-N19-N20-N21) -> 1 | O22: =IF(N23=0,0,N23/N$61-O18-O19-O20-O21) -> 0.0625 | P22: =IF(N23=0,0,1-P18-P19-P20-P21) -> 1
C23: =B18 -> ISMS | D23: TOTAL | E23: =SUM(E18:E22) -> 4 | F23: =SUM(F18:F21) -> 0 | G23: =SUM(G18:G21) -> 0 | H23: =SUM(H18:H22) -> 7 | I23: =SUM(I18:I21) -> 0 | J23: 0 | K23: =SUM(K18:K22) -> 3 | L23: =SUM(L18:L21) -> 0 | M23: 0 | N23: =SUM(N18:N22) -> 1 | O23: =SUM(O18:O21) -> 0 | P23: 0
B24: Politik | C24: =B24 -> Politik | D24: Ja | E24: =IFERROR(COUNTIF(INDIRECT("'"&$B24&"'!"&CHAR(MATCH($D24,INDIRECT("'"&$B24&"'!6:6",TRUE),0)+64)&MATCH(E$3,INDIRECT("'"&$B24&"'!B:B",TRUE),0)&":"&CHAR(MATCH($D24,INDIRECT("'"&$B24&"'!6:6",TRUE),0)+64)&MATCH(E$3&"_slut",INDIRECT("'"&$B24&"'!B:B",TRUE),0),TRUE),"X"),0) -> 0 | F24: =IF(E29=0,0,COUNTIF(INDIRECT("'"&$B24&"'!"&CHAR(MATCH($D24,INDIRECT("'"&$B24&"'!6:6",TRUE),0)+64)&MATCH(E$3,INDIRECT("'"&$B24&"'!B:B",TRUE),0)&":"&CHAR(MATCH($D24,INDIRECT("'"&$B24&"'!6:6",TRUE),0)+64)&MATCH(E$3&"_slut",INDIRECT("'"&$B24&"'!B:B",TRUE),0),TRUE),"X")/E$61) -> 0 | G24: =IF(E29=0,0,COUNTIF(INDIRECT("'"&$B24&"'!"&CHAR(MATCH($D24,INDIRECT("'"&$B24&"'!6:6",TRUE),0)+64)&MATCH(E$3,INDIRECT("'"&$B24&"'!B:B",TRUE),0)&":"&CHAR(MATCH($D24,INDIRECT("'"&$B24&"'!6:6",TRUE),0)+64)&MATCH(E$3&"_slut",INDIRECT("'"&$B24&"'!B:B",TRUE),0),TRUE),"X")/SUM(E24:E28)) -> 0 | H24: =IFERROR(COUNTIF(INDIRECT("'"&$B24&"'!"&CHAR(MATCH($D24,INDIRECT("'"&$B24&"'!6:6",TRUE),0)+64)&MATCH(H$3,INDIRECT("'"&$B24&"'!B:B",TRUE),0)&":"&CHAR(MATCH($D24,INDIRECT("'"&$B24&"'!6:6",TRUE),0)+64)&MATCH(H$3&"_slut",INDIRECT("'"&$B24&"'!B:B",TRUE),0),TRUE),"X"),0) -> 0 | I24: =IF(H29=0,0,COUNTIF(INDIRECT("'"&$B24&"'!"&CHAR(MATCH($D24,INDIRECT("'"&$B24&"'!6:6",TRUE),0)+64)&MATCH(H$3,INDIRECT("'"&$B24&"'!B:B",TRUE),0)&":"&CHAR(MATCH($D24,INDIRECT("'"&$B24&"'!6:6",TRUE),0)+64)&MATCH(H$3&"_slut",INDIRECT("'"&$B24&"'!B:B",TRUE),0),TRUE),"X")/H$61) -> 0 | J24: =IF(H29=0,0,COUNTIF(INDIRECT("'"&$B24&"'!"&CHAR(MATCH($D24,INDIRECT("'"&$B24&"'!6:6",TRUE),0)+64)&MATCH(H$3,INDIRECT("'"&$B24&"'!B:B",TRUE),0)&":"&CHAR(MATCH($D24,INDIRECT("'"&$B24&"'!6:6",TRUE),0)+64)&MATCH(H$3&"_slut",INDIRECT("'"&$B24&"'!B:B",TRUE),0),TRUE),"X")/SUM(H24:H28)) -> 0 | K24: =IFERROR(COUNTIF(INDIRECT("'"&$B24&"'!"&CHAR(MATCH($D24,INDIRECT("'"&$B24&"'!6:6",TRUE),0)+64)&MATCH(K$3,INDIRECT("'"&$B24&"'!B:B",TRUE),0)&":"&CHAR(MATCH($D24,INDIRECT("'"&$B24&"'!6:6",TRUE),0)+64)&MATCH(K$3&"_slut",INDIRECT("'"&$B24&"'!B:B",TRUE),0),TRUE),"X"),0) -> 0 | L24: =IF(K29=0,0,COUNTIF(INDIRECT("'"&$B24&"'!"&CHAR(MATCH($D24,INDIRECT("'"&$B24&"'!6:6",TRUE),0)+64)&MATCH(K$3,INDIRECT("'"&$B24&"'!B:B",TRUE),0)&":"&CHAR(MATCH($D24,INDIRECT("'"&$B24&"'!6:6",TRUE),0)+64)&MATCH(K$3&"_slut",INDIRECT("'"&$B24&"'!B:B",TRUE),0),TRUE),"X")/K$61) -> 0 | M24: =IF(K29=0,0,COUNTIF(INDIRECT("'"&$B24&"'!"&CHAR(MATCH($D24,INDIRECT("'"&$B24&"'!6:6",TRUE),0)+64)&MATCH(K$3,INDIRECT("'"&$B24&"'!B:B",TRUE),0)&":"&CHAR(MATCH($D24,INDIRECT("'"&$B24&"'!6:6",TRUE),0)+64)&MATCH(K$3&"_slut",INDIRECT("'"&$B24&"'!B:B",TRUE),0),TRUE),"X")/SUM(K24:K28)) -> 0 | N24: =IFERROR(COUNTIF(INDIRECT("'"&$B24&"'!"&CHAR(MATCH($D24,INDIRECT("'"&$B24&"'!6:6",TRUE),0)+64)&MATCH(N$3,INDIRECT("'"&$B24&"'!B:B",TRUE),0)&":"&CHAR(MATCH($D24,INDIRECT("'"&$B24&"'!6:6",TRUE),0)+64)&MATCH(N$3&"_slut",INDIRECT("'"&$B24&"'!B:B",TRUE),0),TRUE),"X"),0) -> 0 | O24: =IF(N29=0,0,COUNTIF(INDIRECT("'"&$B24&"'!"&CHAR(MATCH($D24,INDIRECT("'"&$B24&"'!6:6",TRUE),0)+64)&MATCH(N$3,INDIRECT("'"&$B24&"'!B:B",TRUE),0)&":"&CHAR(MATCH($D24,INDIRECT("'"&$B24&"'!6:6",TRUE),0)+64)&MATCH(N$3&"_slut",INDIRECT("'"&$B24&"'!B:B",TRUE),0),TRUE),"X")/N$61) -> 0 | P24: =IF(N29=0,0,COUNTIF(INDIRECT("'"&$B24&"'!"&CHAR(MATCH($D24,INDIRECT("'"&$B24&"'!6:6",TRUE),0)+64)&MATCH(N$3,INDIRECT("'"&$B24&"'!B:B",TRUE),0)&":"&CHAR(MATCH($D24,INDIRECT("'"&$B24&"'!6:6",TRUE),0)+64)&MATCH(N$3&"_slut",INDIRECT("'"&$B24&"'!B:B",TRUE),0),TRUE),"X")/SUM(N24:N28)) -> 0
C25: =B24 -> Politik | D25: Delvist | E25: =IFERROR(COUNTIF(INDIRECT("'"&$B24&"'!"&CHAR(MATCH($D25,INDIRECT("'"&$B24&"'!6:6",TRUE),0)+64)&MATCH(E$3,INDIRECT("'"&$B24&"'!B:B",TRUE),0)&":"&CHAR(MATCH($D25,INDIRECT("'"&$B24&"'!6:6",TRUE),0)+64)&MATCH(E$3&"_slut",INDIRECT("'"&$B24&"'!B:B",TRUE),0),TRUE),"X"),0) -> 0 | F25: =IF(E29=0,0,COUNTIF(INDIRECT("'"&$B24&"'!"&CHAR(MATCH($D25,INDIRECT("'"&$B24&"'!6:6",TRUE),0)+64)&MATCH(E$3,INDIRECT("'"&$B24&"'!B:B",TRUE),0)&":"&CHAR(MATCH($D25,INDIRECT("'"&$B24&"'!6:6",TRUE),0)+64)&MATCH(E$3&"_slut",INDIRECT("'"&$B24&"'!B:B",TRUE),0),TRUE),"X")/E$61) -> 0 | G25: =IF(E29=0,0,COUNTIF(INDIRECT("'"&$B24&"'!"&CHAR(MATCH($D25,INDIRECT("'"&$B24&"'!6:6",TRUE),0)+64)&MATCH(E$3,INDIRECT("'"&$B24&"'!B:B",TRUE),0)&":"&CHAR(MATCH($D25,INDIRECT("'"&$B24&"'!6:6",TRUE),0)+64)&MATCH(E$3&"_slut",INDIRECT("'"&$B24&"'!B:B",TRUE),0),TRUE),"X")/SUM(E24:E28)) -> 0 | H25: =IFERROR(COUNTIF(INDIRECT("'"&$B24&"'!"&CHAR(MATCH($D25,INDIRECT("'"&$B24&"'!6:6",TRUE),0)+64)&MATCH(H$3,INDIRECT("'"&$B24&"'!B:B",TRUE),0)&":"&CHAR(MATCH($D25,INDIRECT("'"&$B24&"'!6:6",TRUE),0)+64)&MATCH(H$3&"_slut",INDIRECT("'"&$B24&"'!B:B",TRUE),0),TRUE),"X"),0) -> 0 | I25: =IF(H29=0,0,COUNTIF(INDIRECT("'"&$B24&"'!"&CHAR(MATCH($D25,INDIRECT("'"&$B24&"'!6:6",TRUE),0)+64)&MATCH(H$3,INDIRECT("'"&$B24&"'!B:B",TRUE),0)&":"&CHAR(MATCH($D25,INDIRECT("'"&$B24&"'!6:6",TRUE),0)+64)&MATCH(H$3&"_slut",INDIRECT("'"&$B24&"'!B:B",TRUE),0),TRUE),"X")/H$61) -> 0 | J25: =IF(H29=0,0,COUNTIF(INDIRECT("'"&$B24&"'!"&CHAR(MATCH($D25,INDIRECT("'"&$B24&"'!6:6",TRUE),0)+64)&MATCH(H$3,INDIRECT("'"&$B24&"'!B:B",TRUE),0)&":"&CHAR(MATCH($D25,INDIRECT("'"&$B24&"'!6:6",TRUE),0)+64)&MATCH(H$3&"_slut",INDIRECT("'"&$B24&"'!B:B",TRUE),0),TRUE),"X")/SUM(H24:H28)) -> 0 | K25: =IFERROR(COUNTIF(INDIRECT("'"&$B24&"'!"&CHAR(MATCH($D25,INDIRECT("'"&$B24&"'!6:6",TRUE),0)+64)&MATCH(K$3,INDIRECT("'"&$B24&"'!B:B",TRUE),0)&":"&CHAR(MATCH($D25,INDIRECT("'"&$B24&"'!6:6",TRUE),0)+64)&MATCH(K$3&"_slut",INDIRECT("'"&$B24&"'!B:B",TRUE),0),TRUE),"X"),0) -> 0 | L25: =IF(K29=0,0,COUNTIF(INDIRECT("'"&$B24&"'!"&CHAR(MATCH($D25,INDIRECT("'"&$B24&"'!6:6",TRUE),0)+64)&MATCH(K$3,INDIRECT("'"&$B24&"'!B:B",TRUE),0)&":"&CHAR(MATCH($D25,INDIRECT("'"&$B24&"'!6:6",TRUE),0)+64)&MATCH(K$3&"_slut",INDIRECT("'"&$B24&"'!B:B",TRUE),0),TRUE),"X")/K$61) -> 0 | M25: =IF(K29=0,0,COUNTIF(INDIRECT("'"&$B24&"'!"&CHAR(MATCH($D25,INDIRECT("'"&$B24&"'!6:6",TRUE),0)+64)&MATCH(K$3,INDIRECT("'"&$B24&"'!B:B",TRUE),0)&":"&CHAR(MATCH($D25,INDIRECT("'"&$B24&"'!6:6",TRUE),0)+64)&MATCH(K$3&"_slut",INDIRECT("'"&$B24&"'!B:B",TRUE),0),TRUE),"X")/SUM(K24:K28)) -> 0 | N25: =IFERROR(COUNTIF(INDIRECT("'"&$B24&"'!"&CHAR(MATCH($D25,INDIRECT("'"&$B24&"'!6:6",TRUE),0)+64)&MATCH(N$3,INDIRECT("'"&$B24&"'!B:B",TRUE),0)&":"&CHAR(MATCH($D25,INDIRECT("'"&$B24&"'!6:6",TRUE),0)+64)&MATCH(N$3&"_slut",INDIRECT("'"&$B24&"'!B:B",TRUE),0),TRUE),"X"),0) -> 0 | O25: =IF(N29=0,0,COUNTIF(INDIRECT("'"&$B24&"'!"&CHAR(MATCH($D25,INDIRECT("'"&$B24&"'!6:6",TRUE),0)+64)&MATCH(N$3,INDIRECT("'"&$B24&"'!B:B",TRUE),0)&":"&CHAR(MATCH($D25,INDIRECT("'"&$B24&"'!6:6",TRUE),0)+64)&MATCH(N$3&"_slut",INDIRECT("'"&$B24&"'!B:B",TRUE),0),TRUE),"X")/N$61) -> 0 | P25: =IF(N29=0,0,COUNTIF(INDIRECT("'"&$B24&"'!"&CHAR(MATCH($D25,INDIRECT("'"&$B24&"'!6:6",TRUE),0)+64)&MATCH(N$3,INDIRECT("'"&$B24&"'!B:B",TRUE),0)&":"&CHAR(MATCH($D25,INDIRECT("'"&$B24&"'!6:6",TRUE),0)+64)&MATCH(N$3&"_slut",INDIRECT("'"&$B24&"'!B:B",TRUE),0),TRUE),"X")/SUM(N24:N28)) -> 0
C26: =B24 -> Politik | D26: Nej | E26: =IFERROR(COUNTIF(INDIRECT("'"&$B24&"'!"&CHAR(MATCH($D26,INDIRECT("'"&$B24&"'!6:6",TRUE),0)+64)&MATCH(E$3,INDIRECT("'"&$B24&"'!B:B",TRUE),0)&":"&CHAR(MATCH($D26,INDIRECT("'"&$B24&"'!6:6",TRUE),0)+64)&MATCH(E$3&"_slut",INDIRECT("'"&$B24&"'!B:B",TRUE),0),TRUE),"X"),0) -> 0 | F26: =IF(E29=0,0,COUNTIF(INDIRECT("'"&$B24&"'!"&CHAR(MATCH($D26,INDIRECT("'"&$B24&"'!6:6",TRUE),0)+64)&MATCH(E$3,INDIRECT("'"&$B24&"'!B:B",TRUE),0)&":"&CHAR(MATCH($D26,INDIRECT("'"&$B24&"'!6:6",TRUE),0)+64)&MATCH(E$3&"_slut",INDIRECT("'"&$B24&"'!B:B",TRUE),0),TRUE),"X")/E$61) -> 0 | G26: =IF(E29=0,0,COUNTIF(INDIRECT("'"&$B24&"'!"&CHAR(MATCH($D26,INDIRECT("'"&$B24&"'!6:6",TRUE),0)+64)&MATCH(E$3,INDIRECT("'"&$B24&"'!B:B",TRUE),0)&":"&CHAR(MATCH($D26,INDIRECT("'"&$B24&"'!6:6",TRUE),0)+64)&MATCH(E$3&"_slut",INDIRECT("'"&$B24&"'!B:B",TRUE),0),TRUE),"X")/SUM(E24:E28)) -> 0 | H26: =IFERROR(COUNTIF(INDIRECT("'"&$B24&"'!"&CHAR(MATCH($D26,INDIRECT("'"&$B24&"'!6:6",TRUE),0)+64)&MATCH(H$3,INDIRECT("'"&$B24&"'!B:B",TRUE),0)&":"&CHAR(MATCH($D26,INDIRECT("'"&$B24&"'!6:6",TRUE),0)+64)&MATCH(H$3&"_slut",INDIRECT("'"&$B24&"'!B:B",TRUE),0),TRUE),"X"),0) -> 0 | I26: =IF(H29=0,0,COUNTIF(INDIRECT("'"&$B24&"'!"&CHAR(MATCH($D26,INDIRECT("'"&$B24&"'!6:6",TRUE),0)+64)&MATCH(H$3,INDIRECT("'"&$B24&"'!B:B",TRUE),0)&":"&CHAR(MATCH($D26,INDIRECT("'"&$B24&"'!6:6",TRUE),0)+64)&MATCH(H$3&"_slut",INDIRECT("'"&$B24&"'!B:B",TRUE),0),TRUE),"X")/H$61) -> 0 | J26: =IF(H29=0,0,COUNTIF(INDIRECT("'"&$B24&"'!"&CHAR(MATCH($D26,INDIRECT("'"&$B24&"'!6:6",TRUE),0)+64)&MATCH(H$3,INDIRECT("'"&$B24&"'!B:B",TRUE),0)&":"&CHAR(MATCH($D26,INDIRECT("'"&$B24&"'!6:6",TRUE),0)+64)&MATCH(H$3&"_slut",INDIRECT("'"&$B24&"'!B:B",TRUE),0),TRUE),"X")/SUM(H24:H28)) -> 0 | K26: =IFERROR(COUNTIF(INDIRECT("'"&$B24&"'!"&CHAR(MATCH($D26,INDIRECT("'"&$B24&"'!6:6",TRUE),0)+64)&MATCH(K$3,INDIRECT("'"&$B24&"'!B:B",TRUE),0)&":"&CHAR(MATCH($D26,INDIRECT("'"&$B24&"'!6:6",TRUE),0)+64)&MATCH(K$3&"_slut",INDIRECT("'"&$B24&"'!B:B",TRUE),0),TRUE),"X"),0) -> 0 | L26: =IF(K29=0,0,COUNTIF(INDIRECT("'"&$B24&"'!"&CHAR(MATCH($D26,INDIRECT("'"&$B24&"'!6:6",TRUE),0)+64)&MATCH(K$3,INDIRECT("'"&$B24&"'!B:B",TRUE),0)&":"&CHAR(MATCH($D26,INDIRECT("'"&$B24&"'!6:6",TRUE),0)+64)&MATCH(K$3&"_slut",INDIRECT("'"&$B24&"'!B:B",TRUE),0),TRUE),"X")/K$61) -> 0 | M26: =IF(K29=0,0,COUNTIF(INDIRECT("'"&$B24&"'!"&CHAR(MATCH($D26,INDIRECT("'"&$B24&"'!6:6",TRUE),0)+64)&MATCH(K$3,INDIRECT("'"&$B24&"'!B:B",TRUE),0)&":"&CHAR(MATCH($D26,INDIRECT("'"&$B24&"'!6:6",TRUE),0)+64)&MATCH(K$3&"_slut",INDIRECT("'"&$B24&"'!B:B",TRUE),0),TRUE),"X")/SUM(K24:K28)) -> 0 | N26: =IFERROR(COUNTIF(INDIRECT("'"&$B24&"'!"&CHAR(MATCH($D26,INDIRECT("'"&$B24&"'!6:6",TRUE),0)+64)&MATCH(N$3,INDIRECT("'"&$B24&"'!B:B",TRUE),0)&":"&CHAR(MATCH($D26,INDIRECT("'"&$B24&"'!6:6",TRUE),0)+64)&MATCH(N$3&"_slut",INDIRECT("'"&$B24&"'!B:B",TRUE),0),TRUE),"X"),0) -> 0 | O26: =IF(N29=0,0,COUNTIF(INDIRECT("'"&$B24&"'!"&CHAR(MATCH($D26,INDIRECT("'"&$B24&"'!6:6",TRUE),0)+64)&MATCH(N$3,INDIRECT("'"&$B24&"'!B:B",TRUE),0)&":"&CHAR(MATCH($D26,INDIRECT("'"&$B24&"'!6:6",TRUE),0)+64)&MATCH(N$3&"_slut",INDIRECT("'"&$B24&"'!B:B",TRUE),0),TRUE),"X")/N$61) -> 0 | P26: =IF(N29=0,0,COUNTIF(INDIRECT("'"&$B24&"'!"&CHAR(MATCH($D26,INDIRECT("'"&$B24&"'!6:6",TRUE),0)+64)&MATCH(N$3,INDIRECT("'"&$B24&"'!B:B",TRUE),0)&":"&CHAR(MATCH($D26,INDIRECT("'"&$B24&"'!6:6",TRUE),0)+64)&MATCH(N$3&"_slut",INDIRECT("'"&$B24&"'!B:B",TRUE),0),TRUE),"X")/SUM(N24:N28)) -> 0
C27: =B24 -> Politik | D27: Ikke relevant | E27: =IFERROR(COUNTIF(INDIRECT("'"&$B24&"'!"&CHAR(MATCH($D27,INDIRECT("'"&$B24&"'!6:6",TRUE),0)+64)&MATCH(E$3,INDIRECT("'"&$B24&"'!B:B",TRUE),0)&":"&CHAR(MATCH($D27,INDIRECT("'"&$B24&"'!6:6",TRUE),0)+64)&MATCH(E$3&"_slut",INDIRECT("'"&$B24&"'!B:B",TRUE),0),TRUE),"X"),0) -> 0 | F27: =IF(E29=0,0,COUNTIF(INDIRECT("'"&$B24&"'!"&CHAR(MATCH($D27,INDIRECT("'"&$B24&"'!6:6",TRUE),0)+64)&MATCH(E$3,INDIRECT("'"&$B24&"'!B:B",TRUE),0)&":"&CHAR(MATCH($D27,INDIRECT("'"&$B24&"'!6:6",TRUE),0)+64)&MATCH(E$3&"_slut",INDIRECT("'"&$B24&"'!B:B",TRUE),0),TRUE),"X")/E$61) -> 0 | G27: =IF(E29=0,0,COUNTIF(INDIRECT("'"&$B24&"'!"&CHAR(MATCH($D27,INDIRECT("'"&$B24&"'!6:6",TRUE),0)+64)&MATCH(E$3,INDIRECT("'"&$B24&"'!B:B",TRUE),0)&":"&CHAR(MATCH($D27,INDIRECT("'"&$B24&"'!6:6",TRUE),0)+64)&MATCH(E$3&"_slut",INDIRECT("'"&$B24&"'!B:B",TRUE),0),TRUE),"X")/SUM(E24:E28)) -> 0 | H27: =IFERROR(COUNTIF(INDIRECT("'"&$B24&"'!"&CHAR(MATCH($D27,INDIRECT("'"&$B24&"'!6:6",TRUE),0)+64)&MATCH(H$3,INDIRECT("'"&$B24&"'!B:B",TRUE),0)&":"&CHAR(MATCH($D27,INDIRECT("'"&$B24&"'!6:6",TRUE),0)+64)&MATCH(H$3&"_slut",INDIRECT("'"&$B24&"'!B:B",TRUE),0),TRUE),"X"),0) -> 0 | I27: =IF(H29=0,0,COUNTIF(INDIRECT("'"&$B24&"'!"&CHAR(MATCH($D27,INDIRECT("'"&$B24&"'!6:6",TRUE),0)+64)&MATCH(H$3,INDIRECT("'"&$B24&"'!B:B",TRUE),0)&":"&CHAR(MATCH($D27,INDIRECT("'"&$B24&"'!6:6",TRUE),0)+64)&MATCH(H$3&"_slut",INDIRECT("'"&$B24&"'!B:B",TRUE),0),TRUE),"X")/H$61) -> 0 | J27: =IF(H29=0,0,COUNTIF(INDIRECT("'"&$B24&"'!"&CHAR(MATCH($D27,INDIRECT("'"&$B24&"'!6:6",TRUE),0)+64)&MATCH(H$3,INDIRECT("'"&$B24&"'!B:B",TRUE),0)&":"&CHAR(MATCH($D27,INDIRECT("'"&$B24&"'!6:6",TRUE),0)+64)&MATCH(H$3&"_slut",INDIRECT("'"&$B24&"'!B:B",TRUE),0),TRUE),"X")/SUM(H24:H28)) -> 0 | K27: =IFERROR(COUNTIF(INDIRECT("'"&$B24&"'!"&CHAR(MATCH($D27,INDIRECT("'"&$B24&"'!6:6",TRUE),0)+64)&MATCH(K$3,INDIRECT("'"&$B24&"'!B:B",TRUE),0)&":"&CHAR(MATCH($D27,INDIRECT("'"&$B24&"'!6:6",TRUE),0)+64)&MATCH(K$3&"_slut",INDIRECT("'"&$B24&"'!B:B",TRUE),0),TRUE),"X"),0) -> 0 | L27: =IF(K29=0,0,COUNTIF(INDIRECT("'"&$B24&"'!"&CHAR(MATCH($D27,INDIRECT("'"&$B24&"'!6:6",TRUE),0)+64)&MATCH(K$3,INDIRECT("'"&$B24&"'!B:B",TRUE),0)&":"&CHAR(MATCH($D27,INDIRECT("'"&$B24&"'!6:6",TRUE),0)+64)&MATCH(K$3&"_slut",INDIRECT("'"&$B24&"'!B:B",TRUE),0),TRUE),"X")/K$61) -> 0 | M27: =IF(K29=0,0,COUNTIF(INDIRECT("'"&$B24&"'!"&CHAR(MATCH($D27,INDIRECT("'"&$B24&"'!6:6",TRUE),0)+64)&MATCH(K$3,INDIRECT("'"&$B24&"'!B:B",TRUE),0)&":"&CHAR(MATCH($D27,INDIRECT("'"&$B24&"'!6:6",TRUE),0)+64)&MATCH(K$3&"_slut",INDIRECT("'"&$B24&"'!B:B",TRUE),0),TRUE),"X")/SUM(K24:K28)) -> 0 | N27: =IFERROR(COUNTIF(INDIRECT("'"&$B24&"'!"&CHAR(MATCH($D27,INDIRECT("'"&$B24&"'!6:6",TRUE),0)+64)&MATCH(N$3,INDIRECT("'"&$B24&"'!B:B",TRUE),0)&":"&CHAR(MATCH($D27,INDIRECT("'"&$B24&"'!6:6",TRUE),0)+64)&MATCH(N$3&"_slut",INDIRECT("'"&$B24&"'!B:B",TRUE),0),TRUE),"X"),0) -> 0 | O27: =IF(N29=0,0,COUNTIF(INDIRECT("'"&$B24&"'!"&CHAR(MATCH($D27,INDIRECT("'"&$B24&"'!6:6",TRUE),0)+64)&MATCH(N$3,INDIRECT("'"&$B24&"'!B:B",TRUE),0)&":"&CHAR(MATCH($D27,INDIRECT("'"&$B24&"'!6:6",TRUE),0)+64)&MATCH(N$3&"_slut",INDIRECT("'"&$B24&"'!B:B",TRUE),0),TRUE),"X")/N$61) -> 0 | P27: =IF(N29=0,0,COUNTIF(INDIRECT("'"&$B24&"'!"&CHAR(MATCH($D27,INDIRECT("'"&$B24&"'!6:6",TRUE),0)+64)&MATCH(N$3,INDIRECT("'"&$B24&"'!B:B",TRUE),0)&":"&CHAR(MATCH($D27,INDIRECT("'"&$B24&"'!6:6",TRUE),0)+64)&MATCH(N$3&"_slut",INDIRECT("'"&$B24&"'!B:B",TRUE),0),TRUE),"X")/SUM(N24:N28)) -> 0
C28: =B24 -> Politik | D28: Ikke sat | E28: =IF(ISERROR(MATCH(E$3,INDIRECT("'"&$B24&"'!B:B",TRUE),0)),0,COUNTA(INDIRECT("'"&$B24&"'!E"&MATCH(E$3,INDIRECT("'"&$B24&"'!B:B",TRUE),0)&":E"&MATCH(E$3&"_slut",INDIRECT("'"&$B24&"'!B:B",TRUE),0),TRUE))-E24-E25-E26-E27) -> 3 | F28: =IF(E29=0,0,E29/E$61-F24-F25-F26-F27) -> 0.09677419355 | G28: =IF(E29=0,0,1-G24-G25-G26-G27) -> 1 | H28: =IF(ISERROR(MATCH(H$3,INDIRECT("'"&$B24&"'!B:B",TRUE),0)),0,COUNTA(INDIRECT("'"&$B24&"'!E"&MATCH(H$3,INDIRECT("'"&$B24&"'!B:B",TRUE),0)&":E"&MATCH(H$3&"_slut",INDIRECT("'"&$B24&"'!B:B",TRUE),0),TRUE))-H24-H25-H26-H27) -> 3 | I28: =IF(H29=0,0,H29/H$61-I24-I25-I26-I27) -> 0.08333333333 | J28: =IF(H29=0,0,1-J24-J25-J26-J27) -> 1 | K28: =IF(ISERROR(MATCH(K$3,INDIRECT("'"&$B24&"'!B:B",TRUE),0)),0,COUNTA(INDIRECT("'"&$B24&"'!E"&MATCH(K$3,INDIRECT("'"&$B24&"'!B:B",TRUE),0)&":E"&MATCH(K$3&"_slut",INDIRECT("'"&$B24&"'!B:B",TRUE),0),TRUE))-K24-K25-K26-K27) -> 2 | L28: =IF(K29=0,0,K29/K$61-L24-L25-L26-L27) -> 0.07407407407 | M28: =IF(K29=0,0,1-M24-M25-M26-M27) -> 1 | N28: =IF(ISERROR(MATCH(N$3,INDIRECT("'"&$B24&"'!B:B",TRUE),0)),0,COUNTA(INDIRECT("'"&$B24&"'!E"&MATCH(N$3,INDIRECT("'"&$B24&"'!B:B",TRUE),0)&":E"&MATCH(N$3&"_slut",INDIRECT("'"&$B24&"'!B:B",TRUE),0),TRUE))-N24-N25-N26-N27) -> 2 | O28: =IF(N29=0,0,N29/N$61-O24-O25-O26-O27) -> 0.125 | P28: =IF(N29=0,0,1-P24-P25-P26-P27) -> 1
C29: =B24 -> Politik | D29: TOTAL | E29: =SUM(E24:E28) -> 3 | F29: =SUM(F24:F27) -> 0 | G29: =SUM(G24:G27) -> 0 | H29: =SUM(H24:H28) -> 3 | I29: =SUM(I24:I27) -> 0 | J29: 0 | K29: =SUM(K24:K28) -> 2 | L29: =SUM(L24:L27) -> 0 | M29: 0 | N29: =SUM(N24:N28) -> 2 | O29: =SUM(O24:O27) -> 0 | P29: 0
B30: Ledelsesforankring | C30: =B30 -> Ledelsesforankring | D30: Ja | E30: =IFERROR(COUNTIF(INDIRECT("'"&$B30&"'!"&CHAR(MATCH($D30,INDIRECT("'"&$B30&"'!6:6",TRUE),0)+64)&MATCH(E$3,INDIRECT("'"&$B30&"'!B:B",TRUE),0)&":"&CHAR(MATCH($D30,INDIRECT("'"&$B30&"'!6:6",TRUE),0)+64)&MATCH(E$3&"_slut",INDIRECT("'"&$B30&"'!B:B",TRUE),0),TRUE),"X"),0) -> 0 | F30: =IF(E35=0,0,COUNTIF(INDIRECT("'"&$B30&"'!"&CHAR(MATCH($D30,INDIRECT("'"&$B30&"'!6:6",TRUE),0)+64)&MATCH(E$3,INDIRECT("'"&$B30&"'!B:B",TRUE),0)&":"&CHAR(MATCH($D30,INDIRECT("'"&$B30&"'!6:6",TRUE),0)+64)&MATCH(E$3&"_slut",INDIRECT("'"&$B30&"'!B:B",TRUE),0),TRUE),"X")/E$61) -> 0 | G30: =IF(E35=0,0,COUNTIF(INDIRECT("'"&$B30&"'!"&CHAR(MATCH($D30,INDIRECT("'"&$B30&"'!6:6",TRUE),0)+64)&MATCH(E$3,INDIRECT("'"&$B30&"'!B:B",TRUE),0)&":"&CHAR(MATCH($D30,INDIRECT("'"&$B30&"'!6:6",TRUE),0)+64)&MATCH(E$3&"_slut",INDIRECT("'"&$B30&"'!B:B",TRUE),0),TRUE),"X")/SUM(E30:E34)) -> 0 | H30: =IFERROR(COUNTIF(INDIRECT("'"&$B30&"'!"&CHAR(MATCH($D30,INDIRECT("'"&$B30&"'!6:6",TRUE),0)+64)&MATCH(H$3,INDIRECT("'"&$B30&"'!B:B",TRUE),0)&":"&CHAR(MATCH($D30,INDIRECT("'"&$B30&"'!6:6",TRUE),0)+64)&MATCH(H$3&"_slut",INDIRECT("'"&$B30&"'!B:B",TRUE),0),TRUE),"X"),0) -> 0 | I30: =IF(H35=0,0,COUNTIF(INDIRECT("'"&$B30&"'!"&CHAR(MATCH($D30,INDIRECT("'"&$B30&"'!6:6",TRUE),0)+64)&MATCH(H$3,INDIRECT("'"&$B30&"'!B:B",TRUE),0)&":"&CHAR(MATCH($D30,INDIRECT("'"&$B30&"'!6:6",TRUE),0)+64)&MATCH(H$3&"_slut",INDIRECT("'"&$B30&"'!B:B",TRUE),0),TRUE),"X")/H$61) -> 0 | J30: =IF(H35=0,0,COUNTIF(INDIRECT("'"&$B30&"'!"&CHAR(MATCH($D30,INDIRECT("'"&$B30&"'!6:6",TRUE),0)+64)&MATCH(H$3,INDIRECT("'"&$B30&"'!B:B",TRUE),0)&":"&CHAR(MATCH($D30,INDIRECT("'"&$B30&"'!6:6",TRUE),0)+64)&MATCH(H$3&"_slut",INDIRECT("'"&$B30&"'!B:B",TRUE),0),TRUE),"X")/SUM(H30:H34)) -> 0 | K30: =IFERROR(COUNTIF(INDIRECT("'"&$B30&"'!"&CHAR(MATCH($D30,INDIRECT("'"&$B30&"'!6:6",TRUE),0)+64)&MATCH(K$3,INDIRECT("'"&$B30&"'!B:B",TRUE),0)&":"&CHAR(MATCH($D30,INDIRECT("'"&$B30&"'!6:6",TRUE),0)+64)&MATCH(K$3&"_slut",INDIRECT("'"&$B30&"'!B:B",TRUE),0),TRUE),"X"),0) -> 0 | L30: =IF(K35=0,0,COUNTIF(INDIRECT("'"&$B30&"'!"&CHAR(MATCH($D30,INDIRECT("'"&$B30&"'!6:6",TRUE),0)+64)&MATCH(K$3,INDIRECT("'"&$B30&"'!B:B",TRUE),0)&":"&CHAR(MATCH($D30,INDIRECT("'"&$B30&"'!6:6",TRUE),0)+64)&MATCH(K$3&"_slut",INDIRECT("'"&$B30&"'!B:B",TRUE),0),TRUE),"X")/K$61) -> 0 | M30: =IF(K35=0,0,COUNTIF(INDIRECT("'"&$B30&"'!"&CHAR(MATCH($D30,INDIRECT("'"&$B30&"'!6:6",TRUE),0)+64)&MATCH(K$3,INDIRECT("'"&$B30&"'!B:B",TRUE),0)&":"&CHAR(MATCH($D30,INDIRECT("'"&$B30&"'!6:6",TRUE),0)+64)&MATCH(K$3&"_slut",INDIRECT("'"&$B30&"'!B:B",TRUE),0),TRUE),"X")/SUM(K30:K34)) -> 0 | N30: =IFERROR(COUNTIF(INDIRECT("'"&$B30&"'!"&CHAR(MATCH($D30,INDIRECT("'"&$B30&"'!6:6",TRUE),0)+64)&MATCH(N$3,INDIRECT("'"&$B30&"'!B:B",TRUE),0)&":"&CHAR(MATCH($D30,INDIRECT("'"&$B30&"'!6:6",TRUE),0)+64)&MATCH(N$3&"_slut",INDIRECT("'"&$B30&"'!B:B",TRUE),0),TRUE),"X"),0) -> 0 | O30: =IF(N35=0,0,COUNTIF(INDIRECT("'"&$B30&"'!"&CHAR(MATCH($D30,INDIRECT("'"&$B30&"'!6:6",TRUE),0)+64)&MATCH(N$3,INDIRECT("'"&$B30&"'!B:B",TRUE),0)&":"&CHAR(MATCH($D30,INDIRECT("'"&$B30&"'!6:6",TRUE),0)+64)&MATCH(N$3&"_slut",INDIRECT("'"&$B30&"'!B:B",TRUE),0),TRUE),"X")/N$61) -> 0 | P30: =IF(N35=0,0,COUNTIF(INDIRECT("'"&$B30&"'!"&CHAR(MATCH($D30,INDIRECT("'"&$B30&"'!6:6",TRUE),0)+64)&MATCH(N$3,INDIRECT("'"&$B30&"'!B:B",TRUE),0)&":"&CHAR(MATCH($D30,INDIRECT("'"&$B30&"'!6:6",TRUE),0)+64)&MATCH(N$3&"_slut",INDIRECT("'"&$B30&"'!B:B",TRUE),0),TRUE),"X")/SUM(N30:N34)) -> 0
C31: =B30 -> Ledelsesforankring | D31: Delvist | E31: =IFERROR(COUNTIF(INDIRECT("'"&$B30&"'!"&CHAR(MATCH($D31,INDIRECT("'"&$B30&"'!6:6",TRUE),0)+64)&MATCH(E$3,INDIRECT("'"&$B30&"'!B:B",TRUE),0)&":"&CHAR(MATCH($D31,INDIRECT("'"&$B30&"'!6:6",TRUE),0)+64)&MATCH(E$3&"_slut",INDIRECT("'"&$B30&"'!B:B",TRUE),0),TRUE),"X"),0) -> 0 | F31: =IF(E35=0,0,COUNTIF(INDIRECT("'"&$B30&"'!"&CHAR(MATCH($D31,INDIRECT("'"&$B30&"'!6:6",TRUE),0)+64)&MATCH(E$3,INDIRECT("'"&$B30&"'!B:B",TRUE),0)&":"&CHAR(MATCH($D31,INDIRECT("'"&$B30&"'!6:6",TRUE),0)+64)&MATCH(E$3&"_slut",INDIRECT("'"&$B30&"'!B:B",TRUE),0),TRUE),"X")/E$61) -> 0 | G31: =IF(E35=0,0,COUNTIF(INDIRECT("'"&$B30&"'!"&CHAR(MATCH($D31,INDIRECT("'"&$B30&"'!6:6",TRUE),0)+64)&MATCH(E$3,INDIRECT("'"&$B30&"'!B:B",TRUE),0)&":"&CHAR(MATCH($D31,INDIRECT("'"&$B30&"'!6:6",TRUE),0)+64)&MATCH(E$3&"_slut",INDIRECT("'"&$B30&"'!B:B",TRUE),0),TRUE),"X")/SUM(E30:E34)) -> 0 | H31: =IFERROR(COUNTIF(INDIRECT("'"&$B30&"'!"&CHAR(MATCH($D31,INDIRECT("'"&$B30&"'!6:6",TRUE),0)+64)&MATCH(H$3,INDIRECT("'"&$B30&"'!B:B",TRUE),0)&":"&CHAR(MATCH($D31,INDIRECT("'"&$B30&"'!6:6",TRUE),0)+64)&MATCH(H$3&"_slut",INDIRECT("'"&$B30&"'!B:B",TRUE),0),TRUE),"X"),0) -> 0 | I31: =IF(H35=0,0,COUNTIF(INDIRECT("'"&$B30&"'!"&CHAR(MATCH($D31,INDIRECT("'"&$B30&"'!6:6",TRUE),0)+64)&MATCH(H$3,INDIRECT("'"&$B30&"'!B:B",TRUE),0)&":"&CHAR(MATCH($D31,INDIRECT("'"&$B30&"'!6:6",TRUE),0)+64)&MATCH(H$3&"_slut",INDIRECT("'"&$B30&"'!B:B",TRUE),0),TRUE),"X")/H$61) -> 0 | J31: =IF(H35=0,0,COUNTIF(INDIRECT("'"&$B30&"'!"&CHAR(MATCH($D31,INDIRECT("'"&$B30&"'!6:6",TRUE),0)+64)&MATCH(H$3,INDIRECT("'"&$B30&"'!B:B",TRUE),0)&":"&CHAR(MATCH($D31,INDIRECT("'"&$B30&"'!6:6",TRUE),0)+64)&MATCH(H$3&"_slut",INDIRECT("'"&$B30&"'!B:B",TRUE),0),TRUE),"X")/SUM(H30:H34)) -> 0 | K31: =IFERROR(COUNTIF(INDIRECT("'"&$B30&"'!"&CHAR(MATCH($D31,INDIRECT("'"&$B30&"'!6:6",TRUE),0)+64)&MATCH(K$3,INDIRECT("'"&$B30&"'!B:B",TRUE),0)&":"&CHAR(MATCH($D31,INDIRECT("'"&$B30&"'!6:6",TRUE),0)+64)&MATCH(K$3&"_slut",INDIRECT("'"&$B30&"'!B:B",TRUE),0),TRUE),"X"),0) -> 0 | L31: =IF(K35=0,0,COUNTIF(INDIRECT("'"&$B30&"'!"&CHAR(MATCH($D31,INDIRECT("'"&$B30&"'!6:6",TRUE),0)+64)&MATCH(K$3,INDIRECT("'"&$B30&"'!B:B",TRUE),0)&":"&CHAR(MATCH($D31,INDIRECT("'"&$B30&"'!6:6",TRUE),0)+64)&MATCH(K$3&"_slut",INDIRECT("'"&$B30&"'!B:B",TRUE),0),TRUE),"X")/K$61) -> 0 | M31: =IF(K35=0,0,COUNTIF(INDIRECT("'"&$B30&"'!"&CHAR(MATCH($D31,INDIRECT("'"&$B30&"'!6:6",TRUE),0)+64)&MATCH(K$3,INDIRECT("'"&$B30&"'!B:B",TRUE),0)&":"&CHAR(MATCH($D31,INDIRECT("'"&$B30&"'!6:6",TRUE),0)+64)&MATCH(K$3&"_slut",INDIRECT("'"&$B30&"'!B:B",TRUE),0),TRUE),"X")/SUM(K30:K34)) -> 0 | N31: =IFERROR(COUNTIF(INDIRECT("'"&$B30&"'!"&CHAR(MATCH($D31,INDIRECT("'"&$B30&"'!6:6",TRUE),0)+64)&MATCH(N$3,INDIRECT("'"&$B30&"'!B:B",TRUE),0)&":"&CHAR(MATCH($D31,INDIRECT("'"&$B30&"'!6:6",TRUE),0)+64)&MATCH(N$3&"_slut",INDIRECT("'"&$B30&"'!B:B",TRUE),0),TRUE),"X"),0) -> 0 | O31: =IF(N35=0,0,COUNTIF(INDIRECT("'"&$B30&"'!"&CHAR(MATCH($D31,INDIRECT("'"&$B30&"'!6:6",TRUE),0)+64)&MATCH(N$3,INDIRECT("'"&$B30&"'!B:B",TRUE),0)&":"&CHAR(MATCH($D31,INDIRECT("'"&$B30&"'!6:6",TRUE),0)+64)&MATCH(N$3&"_slut",INDIRECT("'"&$B30&"'!B:B",TRUE),0),TRUE),"X")/N$61) -> 0 | P31: =IF(N35=0,0,COUNTIF(INDIRECT("'"&$B30&"'!"&CHAR(MATCH($D31,INDIRECT("'"&$B30&"'!6:6",TRUE),0)+64)&MATCH(N$3,INDIRECT("'"&$B30&"'!B:B",TRUE),0)&":"&CHAR(MATCH($D31,INDIRECT("'"&$B30&"'!6:6",TRUE),0)+64)&MATCH(N$3&"_slut",INDIRECT("'"&$B30&"'!B:B",TRUE),0),TRUE),"X")/SUM(N30:N34)) -> 0
C32: =B30 -> Ledelsesforankring | D32: Nej | E32: =IFERROR(COUNTIF(INDIRECT("'"&$B30&"'!"&CHAR(MATCH($D32,INDIRECT("'"&$B30&"'!6:6",TRUE),0)+64)&MATCH(E$3,INDIRECT("'"&$B30&"'!B:B",TRUE),0)&":"&CHAR(MATCH($D32,INDIRECT("'"&$B30&"'!6:6",TRUE),0)+64)&MATCH(E$3&"_slut",INDIRECT("'"&$B30&"'!B:B",TRUE),0),TRUE),"X"),0) -> 0 | F32: =IF(E35=0,0,COUNTIF(INDIRECT("'"&$B30&"'!"&CHAR(MATCH($D32,INDIRECT("'"&$B30&"'!6:6",TRUE),0)+64)&MATCH(E$3,INDIRECT("'"&$B30&"'!B:B",TRUE),0)&":"&CHAR(MATCH($D32,INDIRECT("'"&$B30&"'!6:6",TRUE),0)+64)&MATCH(E$3&"_slut",INDIRECT("'"&$B30&"'!B:B",TRUE),0),TRUE),"X")/E$61) -> 0 | G32: =IF(E35=0,0,COUNTIF(INDIRECT("'"&$B30&"'!"&CHAR(MATCH($D32,INDIRECT("'"&$B30&"'!6:6",TRUE),0)+64)&MATCH(E$3,INDIRECT("'"&$B30&"'!B:B",TRUE),0)&":"&CHAR(MATCH($D32,INDIRECT("'"&$B30&"'!6:6",TRUE),0)+64)&MATCH(E$3&"_slut",INDIRECT("'"&$B30&"'!B:B",TRUE),0),TRUE),"X")/SUM(E30:E34)) -> 0 | H32: =IFERROR(COUNTIF(INDIRECT("'"&$B30&"'!"&CHAR(MATCH($D32,INDIRECT("'"&$B30&"'!6:6",TRUE),0)+64)&MATCH(H$3,INDIRECT("'"&$B30&"'!B:B",TRUE),0)&":"&CHAR(MATCH($D32,INDIRECT("'"&$B30&"'!6:6",TRUE),0)+64)&MATCH(H$3&"_slut",INDIRECT("'"&$B30&"'!B:B",TRUE),0),TRUE),"X"),0) -> 0 | I32: =IF(H35=0,0,COUNTIF(INDIRECT("'"&$B30&"'!"&CHAR(MATCH($D32,INDIRECT("'"&$B30&"'!6:6",TRUE),0)+64)&MATCH(H$3,INDIRECT("'"&$B30&"'!B:B",TRUE),0)&":"&CHAR(MATCH($D32,INDIRECT("'"&$B30&"'!6:6",TRUE),0)+64)&MATCH(H$3&"_slut",INDIRECT("'"&$B30&"'!B:B",TRUE),0),TRUE),"X")/H$61) -> 0 | J32: =IF(H35=0,0,COUNTIF(INDIRECT("'"&$B30&"'!"&CHAR(MATCH($D32,INDIRECT("'"&$B30&"'!6:6",TRUE),0)+64)&MATCH(H$3,INDIRECT("'"&$B30&"'!B:B",TRUE),0)&":"&CHAR(MATCH($D32,INDIRECT("'"&$B30&"'!6:6",TRUE),0)+64)&MATCH(H$3&"_slut",INDIRECT("'"&$B30&"'!B:B",TRUE),0),TRUE),"X")/SUM(H30:H34)) -> 0 | K32: =IFERROR(COUNTIF(INDIRECT("'"&$B30&"'!"&CHAR(MATCH($D32,INDIRECT("'"&$B30&"'!6:6",TRUE),0)+64)&MATCH(K$3,INDIRECT("'"&$B30&"'!B:B",TRUE),0)&":"&CHAR(MATCH($D32,INDIRECT("'"&$B30&"'!6:6",TRUE),0)+64)&MATCH(K$3&"_slut",INDIRECT("'"&$B30&"'!B:B",TRUE),0),TRUE),"X"),0) -> 0 | L32: =IF(K35=0,0,COUNTIF(INDIRECT("'"&$B30&"'!"&CHAR(MATCH($D32,INDIRECT("'"&$B30&"'!6:6",TRUE),0)+64)&MATCH(K$3,INDIRECT("'"&$B30&"'!B:B",TRUE),0)&":"&CHAR(MATCH($D32,INDIRECT("'"&$B30&"'!6:6",TRUE),0)+64)&MATCH(K$3&"_slut",INDIRECT("'"&$B30&"'!B:B",TRUE),0),TRUE),"X")/K$61) -> 0 | M32: =IF(K35=0,0,COUNTIF(INDIRECT("'"&$B30&"'!"&CHAR(MATCH($D32,INDIRECT("'"&$B30&"'!6:6",TRUE),0)+64)&MATCH(K$3,INDIRECT("'"&$B30&"'!B:B",TRUE),0)&":"&CHAR(MATCH($D32,INDIRECT("'"&$B30&"'!6:6",TRUE),0)+64)&MATCH(K$3&"_slut",INDIRECT("'"&$B30&"'!B:B",TRUE),0),TRUE),"X")/SUM(K30:K34)) -> 0 | N32: =IFERROR(COUNTIF(INDIRECT("'"&$B30&"'!"&CHAR(MATCH($D32,INDIRECT("'"&$B30&"'!6:6",TRUE),0)+64)&MATCH(N$3,INDIRECT("'"&$B30&"'!B:B",TRUE),0)&":"&CHAR(MATCH($D32,INDIRECT("'"&$B30&"'!6:6",TRUE),0)+64)&MATCH(N$3&"_slut",INDIRECT("'"&$B30&"'!B:B",TRUE),0),TRUE),"X"),0) -> 0 | O32: =IF(N35=0,0,COUNTIF(INDIRECT("'"&$B30&"'!"&CHAR(MATCH($D32,INDIRECT("'"&$B30&"'!6:6",TRUE),0)+64)&MATCH(N$3,INDIRECT("'"&$B30&"'!B:B",TRUE),0)&":"&CHAR(MATCH($D32,INDIRECT("'"&$B30&"'!6:6",TRUE),0)+64)&MATCH(N$3&"_slut",INDIRECT("'"&$B30&"'!B:B",TRUE),0),TRUE),"X")/N$61) -> 0 | P32: =IF(N35=0,0,COUNTIF(INDIRECT("'"&$B30&"'!"&CHAR(MATCH($D32,INDIRECT("'"&$B30&"'!6:6",TRUE),0)+64)&MATCH(N$3,INDIRECT("'"&$B30&"'!B:B",TRUE),0)&":"&CHAR(MATCH($D32,INDIRECT("'"&$B30&"'!6:6",TRUE),0)+64)&MATCH(N$3&"_slut",INDIRECT("'"&$B30&"'!B:B",TRUE),0),TRUE),"X")/SUM(N30:N34)) -> 0
C33: =B30 -> Ledelsesforankring | D33: Ikke relevant | E33: =IFERROR(COUNTIF(INDIRECT("'"&$B30&"'!"&CHAR(MATCH($D33,INDIRECT("'"&$B30&"'!6:6",TRUE),0)+64)&MATCH(E$3,INDIRECT("'"&$B30&"'!B:B",TRUE),0)&":"&CHAR(MATCH($D33,INDIRECT("'"&$B30&"'!6:6",TRUE),0)+64)&MATCH(E$3&"_slut",INDIRECT("'"&$B30&"'!B:B",TRUE),0),TRUE),"X"),0) -> 0 | F33: =IF(E35=0,0,COUNTIF(INDIRECT("'"&$B30&"'!"&CHAR(MATCH($D33,INDIRECT("'"&$B30&"'!6:6",TRUE),0)+64)&MATCH(E$3,INDIRECT("'"&$B30&"'!B:B",TRUE),0)&":"&CHAR(MATCH($D33,INDIRECT("'"&$B30&"'!6:6",TRUE),0)+64)&MATCH(E$3&"_slut",INDIRECT("'"&$B30&"'!B:B",TRUE),0),TRUE),"X")/E$61) -> 0 | G33: =IF(E35=0,0,COUNTIF(INDIRECT("'"&$B30&"'!"&CHAR(MATCH($D33,INDIRECT("'"&$B30&"'!6:6",TRUE),0)+64)&MATCH(E$3,INDIRECT("'"&$B30&"'!B:B",TRUE),0)&":"&CHAR(MATCH($D33,INDIRECT("'"&$B30&"'!6:6",TRUE),0)+64)&MATCH(E$3&"_slut",INDIRECT("'"&$B30&"'!B:B",TRUE),0),TRUE),"X")/SUM(E30:E34)) -> 0 | H33: =IFERROR(COUNTIF(INDIRECT("'"&$B30&"'!"&CHAR(MATCH($D33,INDIRECT("'"&$B30&"'!6:6",TRUE),0)+64)&MATCH(H$3,INDIRECT("'"&$B30&"'!B:B",TRUE),0)&":"&CHAR(MATCH($D33,INDIRECT("'"&$B30&"'!6:6",TRUE),0)+64)&MATCH(H$3&"_slut",INDIRECT("'"&$B30&"'!B:B",TRUE),0),TRUE),"X"),0) -> 0 | I33: =IF(H35=0,0,COUNTIF(INDIRECT("'"&$B30&"'!"&CHAR(MATCH($D33,INDIRECT("'"&$B30&"'!6:6",TRUE),0)+64)&MATCH(H$3,INDIRECT("'"&$B30&"'!B:B",TRUE),0)&":"&CHAR(MATCH($D33,INDIRECT("'"&$B30&"'!6:6",TRUE),0)+64)&MATCH(H$3&"_slut",INDIRECT("'"&$B30&"'!B:B",TRUE),0),TRUE),"X")/H$61) -> 0 | J33: =IF(H35=0,0,COUNTIF(INDIRECT("'"&$B30&"'!"&CHAR(MATCH($D33,INDIRECT("'"&$B30&"'!6:6",TRUE),0)+64)&MATCH(H$3,INDIRECT("'"&$B30&"'!B:B",TRUE),0)&":"&CHAR(MATCH($D33,INDIRECT("'"&$B30&"'!6:6",TRUE),0)+64)&MATCH(H$3&"_slut",INDIRECT("'"&$B30&"'!B:B",TRUE),0),TRUE),"X")/SUM(H30:H34)) -> 0 | K33: =IFERROR(COUNTIF(INDIRECT("'"&$B30&"'!"&CHAR(MATCH($D33,INDIRECT("'"&$B30&"'!6:6",TRUE),0)+64)&MATCH(K$3,INDIRECT("'"&$B30&"'!B:B",TRUE),0)&":"&CHAR(MATCH($D33,INDIRECT("'"&$B30&"'!6:6",TRUE),0)+64)&MATCH(K$3&"_slut",INDIRECT("'"&$B30&"'!B:B",TRUE),0),TRUE),"X"),0) -> 0 | L33: =IF(K35=0,0,COUNTIF(INDIRECT("'"&$B30&"'!"&CHAR(MATCH($D33,INDIRECT("'"&$B30&"'!6:6",TRUE),0)+64)&MATCH(K$3,INDIRECT("'"&$B30&"'!B:B",TRUE),0)&":"&CHAR(MATCH($D33,INDIRECT("'"&$B30&"'!6:6",TRUE),0)+64)&MATCH(K$3&"_slut",INDIRECT("'"&$B30&"'!B:B",TRUE),0),TRUE),"X")/K$61) -> 0 | M33: =IF(K35=0,0,COUNTIF(INDIRECT("'"&$B30&"'!"&CHAR(MATCH($D33,INDIRECT("'"&$B30&"'!6:6",TRUE),0)+64)&MATCH(K$3,INDIRECT("'"&$B30&"'!B:B",TRUE),0)&":"&CHAR(MATCH($D33,INDIRECT("'"&$B30&"'!6:6",TRUE),0)+64)&MATCH(K$3&"_slut",INDIRECT("'"&$B30&"'!B:B",TRUE),0),TRUE),"X")/SUM(K30:K34)) -> 0 | N33: =IFERROR(COUNTIF(INDIRECT("'"&$B30&"'!"&CHAR(MATCH($D33,INDIRECT("'"&$B30&"'!6:6",TRUE),0)+64)&MATCH(N$3,INDIRECT("'"&$B30&"'!B:B",TRUE),0)&":"&CHAR(MATCH($D33,INDIRECT("'"&$B30&"'!6:6",TRUE),0)+64)&MATCH(N$3&"_slut",INDIRECT("'"&$B30&"'!B:B",TRUE),0),TRUE),"X"),0) -> 0 | O33: =IF(N35=0,0,COUNTIF(INDIRECT("'"&$B30&"'!"&CHAR(MATCH($D33,INDIRECT("'"&$B30&"'!6:6",TRUE),0)+64)&MATCH(N$3,INDIRECT("'"&$B30&"'!B:B",TRUE),0)&":"&CHAR(MATCH($D33,INDIRECT("'"&$B30&"'!6:6",TRUE),0)+64)&MATCH(N$3&"_slut",INDIRECT("'"&$B30&"'!B:B",TRUE),0),TRUE),"X")/N$61) -> 0 | P33: =IF(N35=0,0,COUNTIF(INDIRECT("'"&$B30&"'!"&CHAR(MATCH($D33,INDIRECT("'"&$B30&"'!6:6",TRUE),0)+64)&MATCH(N$3,INDIRECT("'"&$B30&"'!B:B",TRUE),0)&":"&CHAR(MATCH($D33,INDIRECT("'"&$B30&"'!6:6",TRUE),0)+64)&MATCH(N$3&"_slut",INDIRECT("'"&$B30&"'!B:B",TRUE),0),TRUE),"X")/SUM(N30:N34)) -> 0
C34: =B30 -> Ledelsesforankring | D34: Ikke sat | E34: =IF(ISERROR(MATCH(E$3,INDIRECT("'"&$B30&"'!B:B",TRUE),0)),0,COUNTA(INDIRECT("'"&$B30&"'!E"&MATCH(E$3,INDIRECT("'"&$B30&"'!B:B",TRUE),0)&":E"&MATCH(E$3&"_slut",INDIRECT("'"&$B30&"'!B:B",TRUE),0),TRUE))-E30-E31-E32-E33) -> 0 | F34: =IF(E35=0,0,E35/E$61-F30-F31-F32-F33) -> 0 | G34: =IF(E35=0,0,1-G30-G31-G32-G33) -> 0 | H34: =IF(ISERROR(MATCH(H$3,INDIRECT("'"&$B30&"'!B:B",TRUE),0)),0,COUNTA(INDIRECT("'"&$B30&"'!E"&MATCH(H$3,INDIRECT("'"&$B30&"'!B:B",TRUE),0)&":E"&MATCH(H$3&"_slut",INDIRECT("'"&$B30&"'!B:B",TRUE),0),TRUE))-H30-H31-H32-H33) -> 4 | I34: =IF(H35=0,0,H35/H$61-I30-I31-I32-I33) -> 0.1111111111 | J34: =IF(H35=0,0,1-J30-J31-J32-J33) -> 1 | K34: =IF(ISERROR(MATCH(K$3,INDIRECT("'"&$B30&"'!B:B",TRUE),0)),0,COUNTA(INDIRECT("'"&$B30&"'!E"&MATCH(K$3,INDIRECT("'"&$B30&"'!B:B",TRUE),0)&":E"&MATCH(K$3&"_slut",INDIRECT("'"&$B30&"'!B:B",TRUE),0),TRUE))-K30-K31-K32-K33) -> 3 | L34: =IF(K35=0,0,K35/K$61-L30-L31-L32-L33) -> 0.1111111111 | M34: =IF(K35=0,0,1-M30-M31-M32-M33) -> 1 | N34: =IF(ISERROR(MATCH(N$3,INDIRECT("'"&$B30&"'!B:B",TRUE),0)),0,COUNTA(INDIRECT("'"&$B30&"'!E"&MATCH(N$3,INDIRECT("'"&$B30&"'!B:B",TRUE),0)&":E"&MATCH(N$3&"_slut",INDIRECT("'"&$B30&"'!B:B",TRUE),0),TRUE))-N30-N31-N32-N33) -> 2 | O34: =IF(N35=0,0,N35/N$61-O30-O31-O32-O33) -> 0.125 | P34: =IF(N35=0,0,1-P30-P31-P32-P33) -> 1
C35: =B30 -> Ledelsesforankring | D35: TOTAL | E35: =SUM(E30:E34) -> 0 | F35: =SUM(F30:F33) -> 0 | G35: =SUM(G30:G33) -> 0 | H35: =SUM(H30:H34) -> 4 | I35: =SUM(I30:I33) -> 0 | J35: 0 | K35: =SUM(K30:K34) -> 3 | L35: =SUM(L30:L33) -> 0 | M35: 0 | N35: =SUM(N30:N34) -> 2 | O35: =SUM(O30:O33) -> 0 | P35: 0
B36: Leverandørstyring | C36: =B36 -> Leverandørstyring | D36: Ja | E36: =IFERROR(COUNTIF(INDIRECT("'"&$B36&"'!"&CHAR(MATCH($D36,INDIRECT("'"&$B36&"'!6:6",TRUE),0)+64)&MATCH(E$3,INDIRECT("'"&$B36&"'!B:B",TRUE),0)&":"&CHAR(MATCH($D36,INDIRECT("'"&$B36&"'!6:6",TRUE),0)+64)&MATCH(E$3&"_slut",INDIRECT("'"&$B36&"'!B:B",TRUE),0),TRUE),"X"),0) -> 0 | F36: =IF(E41=0,0,COUNTIF(INDIRECT("'"&$B36&"'!"&CHAR(MATCH($D36,INDIRECT("'"&$B36&"'!6:6",TRUE),0)+64)&MATCH(E$3,INDIRECT("'"&$B36&"'!B:B",TRUE),0)&":"&CHAR(MATCH($D36,INDIRECT("'"&$B36&"'!6:6",TRUE),0)+64)&MATCH(E$3&"_slut",INDIRECT("'"&$B36&"'!B:B",TRUE),0),TRUE),"X")/E$61) -> 0 | G36: =IF(E41=0,0,COUNTIF(INDIRECT("'"&$B36&"'!"&CHAR(MATCH($D36,INDIRECT("'"&$B36&"'!6:6",TRUE),0)+64)&MATCH(E$3,INDIRECT("'"&$B36&"'!B:B",TRUE),0)&":"&CHAR(MATCH($D36,INDIRECT("'"&$B36&"'!6:6",TRUE),0)+64)&MATCH(E$3&"_slut",INDIRECT("'"&$B36&"'!B:B",TRUE),0),TRUE),"X")/SUM(E36:E40)) -> 0 | H36: =IFERROR(COUNTIF(INDIRECT("'"&$B36&"'!"&CHAR(MATCH($D36,INDIRECT("'"&$B36&"'!6:6",TRUE),0)+64)&MATCH(H$3,INDIRECT("'"&$B36&"'!B:B",TRUE),0)&":"&CHAR(MATCH($D36,INDIRECT("'"&$B36&"'!6:6",TRUE),0)+64)&MATCH(H$3&"_slut",INDIRECT("'"&$B36&"'!B:B",TRUE),0),TRUE),"X"),0) -> 0 | I36: =IF(H41=0,0,COUNTIF(INDIRECT("'"&$B36&"'!"&CHAR(MATCH($D36,INDIRECT("'"&$B36&"'!6:6",TRUE),0)+64)&MATCH(H$3,INDIRECT("'"&$B36&"'!B:B",TRUE),0)&":"&CHAR(MATCH($D36,INDIRECT("'"&$B36&"'!6:6",TRUE),0)+64)&MATCH(H$3&"_slut",INDIRECT("'"&$B36&"'!B:B",TRUE),0),TRUE),"X")/H$61) -> 0 | J36: =IF(H41=0,0,COUNTIF(INDIRECT("'"&$B36&"'!"&CHAR(MATCH($D36,INDIRECT("'"&$B36&"'!6:6",TRUE),0)+64)&MATCH(H$3,INDIRECT("'"&$B36&"'!B:B",TRUE),0)&":"&CHAR(MATCH($D36,INDIRECT("'"&$B36&"'!6:6",TRUE),0)+64)&MATCH(H$3&"_slut",INDIRECT("'"&$B36&"'!B:B",TRUE),0),TRUE),"X")/SUM(H36:H40)) -> 0 | K36: =IFERROR(COUNTIF(INDIRECT("'"&$B36&"'!"&CHAR(MATCH($D36,INDIRECT("'"&$B36&"'!6:6",TRUE),0)+64)&MATCH(K$3,INDIRECT("'"&$B36&"'!B:B",TRUE),0)&":"&CHAR(MATCH($D36,INDIRECT("'"&$B36&"'!6:6",TRUE),0)+64)&MATCH(K$3&"_slut",INDIRECT("'"&$B36&"'!B:B",TRUE),0),TRUE),"X"),0) -> 0 | L36: =IF(K41=0,0,COUNTIF(INDIRECT("'"&$B36&"'!"&CHAR(MATCH($D36,INDIRECT("'"&$B36&"'!6:6",TRUE),0)+64)&MATCH(K$3,INDIRECT("'"&$B36&"'!B:B",TRUE),0)&":"&CHAR(MATCH($D36,INDIRECT("'"&$B36&"'!6:6",TRUE),0)+64)&MATCH(K$3&"_slut",INDIRECT("'"&$B36&"'!B:B",TRUE),0),TRUE),"X")/K$61) -> 0 | M36: =IF(K41=0,0,COUNTIF(INDIRECT("'"&$B36&"'!"&CHAR(MATCH($D36,INDIRECT("'"&$B36&"'!6:6",TRUE),0)+64)&MATCH(K$3,INDIRECT("'"&$B36&"'!B:B",TRUE),0)&":"&CHAR(MATCH($D36,INDIRECT("'"&$B36&"'!6:6",TRUE),0)+64)&MATCH(K$3&"_slut",INDIRECT("'"&$B36&"'!B:B",TRUE),0),TRUE),"X")/SUM(K36:K40)) -> 0 | N36: =IFERROR(COUNTIF(INDIRECT("'"&$B36&"'!"&CHAR(MATCH($D36,INDIRECT("'"&$B36&"'!6:6",TRUE),0)+64)&MATCH(N$3,INDIRECT("'"&$B36&"'!B:B",TRUE),0)&":"&CHAR(MATCH($D36,INDIRECT("'"&$B36&"'!6:6",TRUE),0)+64)&MATCH(N$3&"_slut",INDIRECT("'"&$B36&"'!B:B",TRUE),0),TRUE),"X"),0) -> 0 | O36: =IF(N41=0,0,COUNTIF(INDIRECT("'"&$B36&"'!"&CHAR(MATCH($D36,INDIRECT("'"&$B36&"'!6:6",TRUE),0)+64)&MATCH(N$3,INDIRECT("'"&$B36&"'!B:B",TRUE),0)&":"&CHAR(MATCH($D36,INDIRECT("'"&$B36&"'!6:6",TRUE),0)+64)&MATCH(N$3&"_slut",INDIRECT("'"&$B36&"'!B:B",TRUE),0),TRUE),"X")/N$61) -> 0 | P36: =IF(N41=0,0,COUNTIF(INDIRECT("'"&$B36&"'!"&CHAR(MATCH($D36,INDIRECT("'"&$B36&"'!6:6",TRUE),0)+64)&MATCH(N$3,INDIRECT("'"&$B36&"'!B:B",TRUE),0)&":"&CHAR(MATCH($D36,INDIRECT("'"&$B36&"'!6:6",TRUE),0)+64)&MATCH(N$3&"_slut",INDIRECT("'"&$B36&"'!B:B",TRUE),0),TRUE),"X")/SUM(N36:N40)) -> 0
C37: =B36 -> Leverandørstyring | D37: Delvist | E37: =IFERROR(COUNTIF(INDIRECT("'"&$B36&"'!"&CHAR(MATCH($D37,INDIRECT("'"&$B36&"'!6:6",TRUE),0)+64)&MATCH(E$3,INDIRECT("'"&$B36&"'!B:B",TRUE),0)&":"&CHAR(MATCH($D37,INDIRECT("'"&$B36&"'!6:6",TRUE),0)+64)&MATCH(E$3&"_slut",INDIRECT("'"&$B36&"'!B:B",TRUE),0),TRUE),"X"),0) -> 0 | F37: =IF(E41=0,0,COUNTIF(INDIRECT("'"&$B36&"'!"&CHAR(MATCH($D37,INDIRECT("'"&$B36&"'!6:6",TRUE),0)+64)&MATCH(E$3,INDIRECT("'"&$B36&"'!B:B",TRUE),0)&":"&CHAR(MATCH($D37,INDIRECT("'"&$B36&"'!6:6",TRUE),0)+64)&MATCH(E$3&"_slut",INDIRECT("'"&$B36&"'!B:B",TRUE),0),TRUE),"X")/E$61) -> 0 | G37: =IF(E41=0,0,COUNTIF(INDIRECT("'"&$B36&"'!"&CHAR(MATCH($D37,INDIRECT("'"&$B36&"'!6:6",TRUE),0)+64)&MATCH(E$3,INDIRECT("'"&$B36&"'!B:B",TRUE),0)&":"&CHAR(MATCH($D37,INDIRECT("'"&$B36&"'!6:6",TRUE),0)+64)&MATCH(E$3&"_slut",INDIRECT("'"&$B36&"'!B:B",TRUE),0),TRUE),"X")/SUM(E36:E40)) -> 0 | H37: =IFERROR(COUNTIF(INDIRECT("'"&$B36&"'!"&CHAR(MATCH($D37,INDIRECT("'"&$B36&"'!6:6",TRUE),0)+64)&MATCH(H$3,INDIRECT("'"&$B36&"'!B:B",TRUE),0)&":"&CHAR(MATCH($D37,INDIRECT("'"&$B36&"'!6:6",TRUE),0)+64)&MATCH(H$3&"_slut",INDIRECT("'"&$B36&"'!B:B",TRUE),0),TRUE),"X"),0) -> 0 | I37: =IF(H41=0,0,COUNTIF(INDIRECT("'"&$B36&"'!"&CHAR(MATCH($D37,INDIRECT("'"&$B36&"'!6:6",TRUE),0)+64)&MATCH(H$3,INDIRECT("'"&$B36&"'!B:B",TRUE),0)&":"&CHAR(MATCH($D37,INDIRECT("'"&$B36&"'!6:6",TRUE),0)+64)&MATCH(H$3&"_slut",INDIRECT("'"&$B36&"'!B:B",TRUE),0),TRUE),"X")/H$61) -> 0 | J37: =IF(H41=0,0,COUNTIF(INDIRECT("'"&$B36&"'!"&CHAR(MATCH($D37,INDIRECT("'"&$B36&"'!6:6",TRUE),0)+64)&MATCH(H$3,INDIRECT("'"&$B36&"'!B:B",TRUE),0)&":"&CHAR(MATCH($D37,INDIRECT("'"&$B36&"'!6:6",TRUE),0)+64)&MATCH(H$3&"_slut",INDIRECT("'"&$B36&"'!B:B",TRUE),0),TRUE),"X")/SUM(H36:H40)) -> 0 | K37: =IFERROR(COUNTIF(INDIRECT("'"&$B36&"'!"&CHAR(MATCH($D37,INDIRECT("'"&$B36&"'!6:6",TRUE),0)+64)&MATCH(K$3,INDIRECT("'"&$B36&"'!B:B",TRUE),0)&":"&CHAR(MATCH($D37,INDIRECT("'"&$B36&"'!6:6",TRUE),0)+64)&MATCH(K$3&"_slut",INDIRECT("'"&$B36&"'!B:B",TRUE),0),TRUE),"X"),0) -> 0 | L37: =IF(K41=0,0,COUNTIF(INDIRECT("'"&$B36&"'!"&CHAR(MATCH($D37,INDIRECT("'"&$B36&"'!6:6",TRUE),0)+64)&MATCH(K$3,INDIRECT("'"&$B36&"'!B:B",TRUE),0)&":"&CHAR(MATCH($D37,INDIRECT("'"&$B36&"'!6:6",TRUE),0)+64)&MATCH(K$3&"_slut",INDIRECT("'"&$B36&"'!B:B",TRUE),0),TRUE),"X")/K$61) -> 0 | M37: =IF(K41=0,0,COUNTIF(INDIRECT("'"&$B36&"'!"&CHAR(MATCH($D37,INDIRECT("'"&$B36&"'!6:6",TRUE),0)+64)&MATCH(K$3,INDIRECT("'"&$B36&"'!B:B",TRUE),0)&":"&CHAR(MATCH($D37,INDIRECT("'"&$B36&"'!6:6",TRUE),0)+64)&MATCH(K$3&"_slut",INDIRECT("'"&$B36&"'!B:B",TRUE),0),TRUE),"X")/SUM(K36:K40)) -> 0 | N37: =IFERROR(COUNTIF(INDIRECT("'"&$B36&"'!"&CHAR(MATCH($D37,INDIRECT("'"&$B36&"'!6:6",TRUE),0)+64)&MATCH(N$3,INDIRECT("'"&$B36&"'!B:B",TRUE),0)&":"&CHAR(MATCH($D37,INDIRECT("'"&$B36&"'!6:6",TRUE),0)+64)&MATCH(N$3&"_slut",INDIRECT("'"&$B36&"'!B:B",TRUE),0),TRUE),"X"),0) -> 0 | O37: =IF(N41=0,0,COUNTIF(INDIRECT("'"&$B36&"'!"&CHAR(MATCH($D37,INDIRECT("'"&$B36&"'!6:6",TRUE),0)+64)&MATCH(N$3,INDIRECT("'"&$B36&"'!B:B",TRUE),0)&":"&CHAR(MATCH($D37,INDIRECT("'"&$B36&"'!6:6",TRUE),0)+64)&MATCH(N$3&"_slut",INDIRECT("'"&$B36&"'!B:B",TRUE),0),TRUE),"X")/N$61) -> 0 | P37: =IF(N41=0,0,COUNTIF(INDIRECT("'"&$B36&"'!"&CHAR(MATCH($D37,INDIRECT("'"&$B36&"'!6:6",TRUE),0)+64)&MATCH(N$3,INDIRECT("'"&$B36&"'!B:B",TRUE),0)&":"&CHAR(MATCH($D37,INDIRECT("'"&$B36&"'!6:6",TRUE),0)+64)&MATCH(N$3&"_slut",INDIRECT("'"&$B36&"'!B:B",TRUE),0),TRUE),"X")/SUM(N36:N40)) -> 0
C38: =B36 -> Leverandørstyring | D38: Nej | E38: =IFERROR(COUNTIF(INDIRECT("'"&$B36&"'!"&CHAR(MATCH($D38,INDIRECT("'"&$B36&"'!6:6",TRUE),0)+64)&MATCH(E$3,INDIRECT("'"&$B36&"'!B:B",TRUE),0)&":"&CHAR(MATCH($D38,INDIRECT("'"&$B36&"'!6:6",TRUE),0)+64)&MATCH(E$3&"_slut",INDIRECT("'"&$B36&"'!B:B",TRUE),0),TRUE),"X"),0) -> 0 | F38: =IF(E41=0,0,COUNTIF(INDIRECT("'"&$B36&"'!"&CHAR(MATCH($D38,INDIRECT("'"&$B36&"'!6:6",TRUE),0)+64)&MATCH(E$3,INDIRECT("'"&$B36&"'!B:B",TRUE),0)&":"&CHAR(MATCH($D38,INDIRECT("'"&$B36&"'!6:6",TRUE),0)+64)&MATCH(E$3&"_slut",INDIRECT("'"&$B36&"'!B:B",TRUE),0),TRUE),"X")/E$61) -> 0 | G38: =IF(E41=0,0,COUNTIF(INDIRECT("'"&$B36&"'!"&CHAR(MATCH($D38,INDIRECT("'"&$B36&"'!6:6",TRUE),0)+64)&MATCH(E$3,INDIRECT("'"&$B36&"'!B:B",TRUE),0)&":"&CHAR(MATCH($D38,INDIRECT("'"&$B36&"'!6:6",TRUE),0)+64)&MATCH(E$3&"_slut",INDIRECT("'"&$B36&"'!B:B",TRUE),0),TRUE),"X")/SUM(E36:E40)) -> 0 | H38: =IFERROR(COUNTIF(INDIRECT("'"&$B36&"'!"&CHAR(MATCH($D38,INDIRECT("'"&$B36&"'!6:6",TRUE),0)+64)&MATCH(H$3,INDIRECT("'"&$B36&"'!B:B",TRUE),0)&":"&CHAR(MATCH($D38,INDIRECT("'"&$B36&"'!6:6",TRUE),0)+64)&MATCH(H$3&"_slut",INDIRECT("'"&$B36&"'!B:B",TRUE),0),TRUE),"X"),0) -> 0 | I38: =IF(H41=0,0,COUNTIF(INDIRECT("'"&$B36&"'!"&CHAR(MATCH($D38,INDIRECT("'"&$B36&"'!6:6",TRUE),0)+64)&MATCH(H$3,INDIRECT("'"&$B36&"'!B:B",TRUE),0)&":"&CHAR(MATCH($D38,INDIRECT("'"&$B36&"'!6:6",TRUE),0)+64)&MATCH(H$3&"_slut",INDIRECT("'"&$B36&"'!B:B",TRUE),0),TRUE),"X")/H$61) -> 0 | J38: =IF(H41=0,0,COUNTIF(INDIRECT("'"&$B36&"'!"&CHAR(MATCH($D38,INDIRECT("'"&$B36&"'!6:6",TRUE),0)+64)&MATCH(H$3,INDIRECT("'"&$B36&"'!B:B",TRUE),0)&":"&CHAR(MATCH($D38,INDIRECT("'"&$B36&"'!6:6",TRUE),0)+64)&MATCH(H$3&"_slut",INDIRECT("'"&$B36&"'!B:B",TRUE),0),TRUE),"X")/SUM(H36:H40)) -> 0 | K38: =IFERROR(COUNTIF(INDIRECT("'"&$B36&"'!"&CHAR(MATCH($D38,INDIRECT("'"&$B36&"'!6:6",TRUE),0)+64)&MATCH(K$3,INDIRECT("'"&$B36&"'!B:B",TRUE),0)&":"&CHAR(MATCH($D38,INDIRECT("'"&$B36&"'!6:6",TRUE),0)+64)&MATCH(K$3&"_slut",INDIRECT("'"&$B36&"'!B:B",TRUE),0),TRUE),"X"),0) -> 0 | L38: =IF(K41=0,0,COUNTIF(INDIRECT("'"&$B36&"'!"&CHAR(MATCH($D38,INDIRECT("'"&$B36&"'!6:6",TRUE),0)+64)&MATCH(K$3,INDIRECT("'"&$B36&"'!B:B",TRUE),0)&":"&CHAR(MATCH($D38,INDIRECT("'"&$B36&"'!6:6",TRUE),0)+64)&MATCH(K$3&"_slut",INDIRECT("'"&$B36&"'!B:B",TRUE),0),TRUE),"X")/K$61) -> 0 | M38: =IF(K41=0,0,COUNTIF(INDIRECT("'"&$B36&"'!"&CHAR(MATCH($D38,INDIRECT("'"&$B36&"'!6:6",TRUE),0)+64)&MATCH(K$3,INDIRECT("'"&$B36&"'!B:B",TRUE),0)&":"&CHAR(MATCH($D38,INDIRECT("'"&$B36&"'!6:6",TRUE),0)+64)&MATCH(K$3&"_slut",INDIRECT("'"&$B36&"'!B:B",TRUE),0),TRUE),"X")/SUM(K36:K40)) -> 0 | N38: =IFERROR(COUNTIF(INDIRECT("'"&$B36&"'!"&CHAR(MATCH($D38,INDIRECT("'"&$B36&"'!6:6",TRUE),0)+64)&MATCH(N$3,INDIRECT("'"&$B36&"'!B:B",TRUE),0)&":"&CHAR(MATCH($D38,INDIRECT("'"&$B36&"'!6:6",TRUE),0)+64)&MATCH(N$3&"_slut",INDIRECT("'"&$B36&"'!B:B",TRUE),0),TRUE),"X"),0) -> 0 | O38: =IF(N41=0,0,COUNTIF(INDIRECT("'"&$B36&"'!"&CHAR(MATCH($D38,INDIRECT("'"&$B36&"'!6:6",TRUE),0)+64)&MATCH(N$3,INDIRECT("'"&$B36&"'!B:B",TRUE),0)&":"&CHAR(MATCH($D38,INDIRECT("'"&$B36&"'!6:6",TRUE),0)+64)&MATCH(N$3&"_slut",INDIRECT("'"&$B36&"'!B:B",TRUE),0),TRUE),"X")/N$61) -> 0 | P38: =IF(N41=0,0,COUNTIF(INDIRECT("'"&$B36&"'!"&CHAR(MATCH($D38,INDIRECT("'"&$B36&"'!6:6",TRUE),0)+64)&MATCH(N$3,INDIRECT("'"&$B36&"'!B:B",TRUE),0)&":"&CHAR(MATCH($D38,INDIRECT("'"&$B36&"'!6:6",TRUE),0)+64)&MATCH(N$3&"_slut",INDIRECT("'"&$B36&"'!B:B",TRUE),0),TRUE),"X")/SUM(N36:N40)) -> 0
C39: =B36 -> Leverandørstyring | D39: Ikke relevant | E39: =IFERROR(COUNTIF(INDIRECT("'"&$B36&"'!"&CHAR(MATCH($D39,INDIRECT("'"&$B36&"'!6:6",TRUE),0)+64)&MATCH(E$3,INDIRECT("'"&$B36&"'!B:B",TRUE),0)&":"&CHAR(MATCH($D39,INDIRECT("'"&$B36&"'!6:6",TRUE),0)+64)&MATCH(E$3&"_slut",INDIRECT("'"&$B36&"'!B:B",TRUE),0),TRUE),"X"),0) -> 0 | F39: =IF(E41=0,0,COUNTIF(INDIRECT("'"&$B36&"'!"&CHAR(MATCH($D39,INDIRECT("'"&$B36&"'!6:6",TRUE),0)+64)&MATCH(E$3,INDIRECT("'"&$B36&"'!B:B",TRUE),0)&":"&CHAR(MATCH($D39,INDIRECT("'"&$B36&"'!6:6",TRUE),0)+64)&MATCH(E$3&"_slut",INDIRECT("'"&$B36&"'!B:B",TRUE),0),TRUE),"X")/E$61) -> 0 | G39: =IF(E41=0,0,COUNTIF(INDIRECT("'"&$B36&"'!"&CHAR(MATCH($D39,INDIRECT("'"&$B36&"'!6:6",TRUE),0)+64)&MATCH(E$3,INDIRECT("'"&$B36&"'!B:B",TRUE),0)&":"&CHAR(MATCH($D39,INDIRECT("'"&$B36&"'!6:6",TRUE),0)+64)&MATCH(E$3&"_slut",INDIRECT("'"&$B36&"'!B:B",TRUE),0),TRUE),"X")/SUM(E36:E40)) -> 0 | H39: =IFERROR(COUNTIF(INDIRECT("'"&$B36&"'!"&CHAR(MATCH($D39,INDIRECT("'"&$B36&"'!6:6",TRUE),0)+64)&MATCH(H$3,INDIRECT("'"&$B36&"'!B:B",TRUE),0)&":"&CHAR(MATCH($D39,INDIRECT("'"&$B36&"'!6:6",TRUE),0)+64)&MATCH(H$3&"_slut",INDIRECT("'"&$B36&"'!B:B",TRUE),0),TRUE),"X"),0) -> 0 | I39: =IF(H41=0,0,COUNTIF(INDIRECT("'"&$B36&"'!"&CHAR(MATCH($D39,INDIRECT("'"&$B36&"'!6:6",TRUE),0)+64)&MATCH(H$3,INDIRECT("'"&$B36&"'!B:B",TRUE),0)&":"&CHAR(MATCH($D39,INDIRECT("'"&$B36&"'!6:6",TRUE),0)+64)&MATCH(H$3&"_slut",INDIRECT("'"&$B36&"'!B:B",TRUE),0),TRUE),"X")/H$61) -> 0 | J39: =IF(H41=0,0,COUNTIF(INDIRECT("'"&$B36&"'!"&CHAR(MATCH($D39,INDIRECT("'"&$B36&"'!6:6",TRUE),0)+64)&MATCH(H$3,INDIRECT("'"&$B36&"'!B:B",TRUE),0)&":"&CHAR(MATCH($D39,INDIRECT("'"&$B36&"'!6:6",TRUE),0)+64)&MATCH(H$3&"_slut",INDIRECT("'"&$B36&"'!B:B",TRUE),0),TRUE),"X")/SUM(H36:H40)) -> 0 | K39: =IFERROR(COUNTIF(INDIRECT("'"&$B36&"'!"&CHAR(MATCH($D39,INDIRECT("'"&$B36&"'!6:6",TRUE),0)+64)&MATCH(K$3,INDIRECT("'"&$B36&"'!B:B",TRUE),0)&":"&CHAR(MATCH($D39,INDIRECT("'"&$B36&"'!6:6",TRUE),0)+64)&MATCH(K$3&"_slut",INDIRECT("'"&$B36&"'!B:B",TRUE),0),TRUE),"X"),0) -> 0 | L39: =IF(K41=0,0,COUNTIF(INDIRECT("'"&$B36&"'!"&CHAR(MATCH($D39,INDIRECT("'"&$B36&"'!6:6",TRUE),0)+64)&MATCH(K$3,INDIRECT("'"&$B36&"'!B:B",TRUE),0)&":"&CHAR(MATCH($D39,INDIRECT("'"&$B36&"'!6:6",TRUE),0)+64)&MATCH(K$3&"_slut",INDIRECT("'"&$B36&"'!B:B",TRUE),0),TRUE),"X")/K$61) -> 0 | M39: =IF(K41=0,0,COUNTIF(INDIRECT("'"&$B36&"'!"&CHAR(MATCH($D39,INDIRECT("'"&$B36&"'!6:6",TRUE),0)+64)&MATCH(K$3,INDIRECT("'"&$B36&"'!B:B",TRUE),0)&":"&CHAR(MATCH($D39,INDIRECT("'"&$B36&"'!6:6",TRUE),0)+64)&MATCH(K$3&"_slut",INDIRECT("'"&$B36&"'!B:B",TRUE),0),TRUE),"X")/SUM(K36:K40)) -> 0 | N39: =IFERROR(COUNTIF(INDIRECT("'"&$B36&"'!"&CHAR(MATCH($D39,INDIRECT("'"&$B36&"'!6:6",TRUE),0)+64)&MATCH(N$3,INDIRECT("'"&$B36&"'!B:B",TRUE),0)&":"&CHAR(MATCH($D39,INDIRECT("'"&$B36&"'!6:6",TRUE),0)+64)&MATCH(N$3&"_slut",INDIRECT("'"&$B36&"'!B:B",TRUE),0),TRUE),"X"),0) -> 0 | O39: =IF(N41=0,0,COUNTIF(INDIRECT("'"&$B36&"'!"&CHAR(MATCH($D39,INDIRECT("'"&$B36&"'!6:6",TRUE),0)+64)&MATCH(N$3,INDIRECT("'"&$B36&"'!B:B",TRUE),0)&":"&CHAR(MATCH($D39,INDIRECT("'"&$B36&"'!6:6",TRUE),0)+64)&MATCH(N$3&"_slut",INDIRECT("'"&$B36&"'!B:B",TRUE),0),TRUE),"X")/N$61) -> 0 | P39: =IF(N41=0,0,COUNTIF(INDIRECT("'"&$B36&"'!"&CHAR(MATCH($D39,INDIRECT("'"&$B36&"'!6:6",TRUE),0)+64)&MATCH(N$3,INDIRECT("'"&$B36&"'!B:B",TRUE),0)&":"&CHAR(MATCH($D39,INDIRECT("'"&$B36&"'!6:6",TRUE),0)+64)&MATCH(N$3&"_slut",INDIRECT("'"&$B36&"'!B:B",TRUE),0),TRUE),"X")/SUM(N36:N40)) -> 0
C40: =B36 -> Leverandørstyring | D40: Ikke sat | E40: =IF(ISERROR(MATCH(E$3,INDIRECT("'"&$B36&"'!B:B",TRUE),0)),0,COUNTA(INDIRECT("'"&$B36&"'!E"&MATCH(E$3,INDIRECT("'"&$B36&"'!B:B",TRUE),0)&":E"&MATCH(E$3&"_slut",INDIRECT("'"&$B36&"'!B:B",TRUE),0),TRUE))-E36-E37-E38-E39) -> 9 | F40: =IF(E41=0,0,E41/E$61-F36-F37-F38-F39) -> 0.2903225806 | G40: =IF(E41=0,0,1-G36-G37-G38-G39) -> 1 | H40: =IF(ISERROR(MATCH(H$3,INDIRECT("'"&$B36&"'!B:B",TRUE),0)),0,COUNTA(INDIRECT("'"&$B36&"'!E"&MATCH(H$3,INDIRECT("'"&$B36&"'!B:B",TRUE),0)&":E"&MATCH(H$3&"_slut",INDIRECT("'"&$B36&"'!B:B",TRUE),0),TRUE))-H36-H37-H38-H39) -> 8 | I40: =IF(H41=0,0,H41/H$61-I36-I37-I38-I39) -> 0.2222222222 | J40: =IF(H41=0,0,1-J36-J37-J38-J39) -> 1 | K40: =IF(ISERROR(MATCH(K$3,INDIRECT("'"&$B36&"'!B:B",TRUE),0)),0,COUNTA(INDIRECT("'"&$B36&"'!E"&MATCH(K$3,INDIRECT("'"&$B36&"'!B:B",TRUE),0)&":E"&MATCH(K$3&"_slut",INDIRECT("'"&$B36&"'!B:B",TRUE),0),TRUE))-K36-K37-K38-K39) -> 7 | L40: =IF(K41=0,0,K41/K$61-L36-L37-L38-L39) -> 0.2592592593 | M40: =IF(K41=0,0,1-M36-M37-M38-M39) -> 1 | N40: =IF(ISERROR(MATCH(N$3,INDIRECT("'"&$B36&"'!B:B",TRUE),0)),0,COUNTA(INDIRECT("'"&$B36&"'!E"&MATCH(N$3,INDIRECT("'"&$B36&"'!B:B",TRUE),0)&":E"&MATCH(N$3&"_slut",INDIRECT("'"&$B36&"'!B:B",TRUE),0),TRUE))-N36-N37-N38-N39) -> 2 | O40: =IF(N41=0,0,N41/N$61-O36-O37-O38-O39) -> 0.125 | P40: =IF(N41=0,0,1-P36-P37-P38-P39) -> 1
C41: =B36 -> Leverandørstyring | D41: TOTAL | E41: =SUM(E36:E40) -> 9 | F41: =SUM(F36:F39) -> 0 | G41: =SUM(G36:G39) -> 0 | H41: =SUM(H36:H40) -> 8 | I41: =SUM(I36:I39) -> 0 | J41: 0 | K41: =SUM(K36:K40) -> 7 | L41: =SUM(L36:L39) -> 0 | M41: 0 | N41: =SUM(N36:N40) -> 2 | O41: =SUM(O36:O39) -> 0 | P41: 0
B42: It-beredskab | C42: =B42 -> It-beredskab | D42: Ja | E42: =IFERROR(COUNTIF(INDIRECT("'"&$B42&"'!"&CHAR(MATCH($D42,INDIRECT("'"&$B42&"'!6:6",TRUE),0)+64)&MATCH(E$3,INDIRECT("'"&$B42&"'!B:B",TRUE),0)&":"&CHAR(MATCH($D42,INDIRECT("'"&$B42&"'!6:6",TRUE),0)+64)&MATCH(E$3&"_slut",INDIRECT("'"&$B42&"'!B:B",TRUE),0),TRUE),"X"),0) -> 0 | F42: =IF(E47=0,0,COUNTIF(INDIRECT("'"&$B42&"'!"&CHAR(MATCH($D42,INDIRECT("'"&$B42&"'!6:6",TRUE),0)+64)&MATCH(E$3,INDIRECT("'"&$B42&"'!B:B",TRUE),0)&":"&CHAR(MATCH($D42,INDIRECT("'"&$B42&"'!6:6",TRUE),0)+64)&MATCH(E$3&"_slut",INDIRECT("'"&$B42&"'!B:B",TRUE),0),TRUE),"X")/E$61) -> 0 | G42: =IF(E47=0,0,COUNTIF(INDIRECT("'"&$B42&"'!"&CHAR(MATCH($D42,INDIRECT("'"&$B42&"'!6:6",TRUE),0)+64)&MATCH(E$3,INDIRECT("'"&$B42&"'!B:B",TRUE),0)&":"&CHAR(MATCH($D42,INDIRECT("'"&$B42&"'!6:6",TRUE),0)+64)&MATCH(E$3&"_slut",INDIRECT("'"&$B42&"'!B:B",TRUE),0),TRUE),"X")/SUM(E42:E46)) -> 0 | H42: =IFERROR(COUNTIF(INDIRECT("'"&$B42&"'!"&CHAR(MATCH($D42,INDIRECT("'"&$B42&"'!6:6",TRUE),0)+64)&MATCH(H$3,INDIRECT("'"&$B42&"'!B:B",TRUE),0)&":"&CHAR(MATCH($D42,INDIRECT("'"&$B42&"'!6:6",TRUE),0)+64)&MATCH(H$3&"_slut",INDIRECT("'"&$B42&"'!B:B",TRUE),0),TRUE),"X"),0) -> 0 | I42: =IF(H47=0,0,COUNTIF(INDIRECT("'"&$B42&"'!"&CHAR(MATCH($D42,INDIRECT("'"&$B42&"'!6:6",TRUE),0)+64)&MATCH(H$3,INDIRECT("'"&$B42&"'!B:B",TRUE),0)&":"&CHAR(MATCH($D42,INDIRECT("'"&$B42&"'!6:6",TRUE),0)+64)&MATCH(H$3&"_slut",INDIRECT("'"&$B42&"'!B:B",TRUE),0),TRUE),"X")/H$61) -> 0 | J42: =IF(H47=0,0,COUNTIF(INDIRECT("'"&$B42&"'!"&CHAR(MATCH($D42,INDIRECT("'"&$B42&"'!6:6",TRUE),0)+64)&MATCH(H$3,INDIRECT("'"&$B42&"'!B:B",TRUE),0)&":"&CHAR(MATCH($D42,INDIRECT("'"&$B42&"'!6:6",TRUE),0)+64)&MATCH(H$3&"_slut",INDIRECT("'"&$B42&"'!B:B",TRUE),0),TRUE),"X")/SUM(H42:H46)) -> 0 | K42: =IFERROR(COUNTIF(INDIRECT("'"&$B42&"'!"&CHAR(MATCH($D42,INDIRECT("'"&$B42&"'!6:6",TRUE),0)+64)&MATCH(K$3,INDIRECT("'"&$B42&"'!B:B",TRUE),0)&":"&CHAR(MATCH($D42,INDIRECT("'"&$B42&"'!6:6",TRUE),0)+64)&MATCH(K$3&"_slut",INDIRECT("'"&$B42&"'!B:B",TRUE),0),TRUE),"X"),0) -> 0 | L42: =IF(K47=0,0,COUNTIF(INDIRECT("'"&$B42&"'!"&CHAR(MATCH($D42,INDIRECT("'"&$B42&"'!6:6",TRUE),0)+64)&MATCH(K$3,INDIRECT("'"&$B42&"'!B:B",TRUE),0)&":"&CHAR(MATCH($D42,INDIRECT("'"&$B42&"'!6:6",TRUE),0)+64)&MATCH(K$3&"_slut",INDIRECT("'"&$B42&"'!B:B",TRUE),0),TRUE),"X")/K$61) -> 0 | M42: =IF(K47=0,0,COUNTIF(INDIRECT("'"&$B42&"'!"&CHAR(MATCH($D42,INDIRECT("'"&$B42&"'!6:6",TRUE),0)+64)&MATCH(K$3,INDIRECT("'"&$B42&"'!B:B",TRUE),0)&":"&CHAR(MATCH($D42,INDIRECT("'"&$B42&"'!6:6",TRUE),0)+64)&MATCH(K$3&"_slut",INDIRECT("'"&$B42&"'!B:B",TRUE),0),TRUE),"X")/SUM(K42:K46)) -> 0 | N42: =IFERROR(COUNTIF(INDIRECT("'"&$B42&"'!"&CHAR(MATCH($D42,INDIRECT("'"&$B42&"'!6:6",TRUE),0)+64)&MATCH(N$3,INDIRECT("'"&$B42&"'!B:B",TRUE),0)&":"&CHAR(MATCH($D42,INDIRECT("'"&$B42&"'!6:6",TRUE),0)+64)&MATCH(N$3&"_slut",INDIRECT("'"&$B42&"'!B:B",TRUE),0),TRUE),"X"),0) -> 0 | O42: =IF(N47=0,0,COUNTIF(INDIRECT("'"&$B42&"'!"&CHAR(MATCH($D42,INDIRECT("'"&$B42&"'!6:6",TRUE),0)+64)&MATCH(N$3,INDIRECT("'"&$B42&"'!B:B",TRUE),0)&":"&CHAR(MATCH($D42,INDIRECT("'"&$B42&"'!6:6",TRUE),0)+64)&MATCH(N$3&"_slut",INDIRECT("'"&$B42&"'!B:B",TRUE),0),TRUE),"X")/N$61) -> 0 | P42: =IF(N47=0,0,COUNTIF(INDIRECT("'"&$B42&"'!"&CHAR(MATCH($D42,INDIRECT("'"&$B42&"'!6:6",TRUE),0)+64)&MATCH(N$3,INDIRECT("'"&$B42&"'!B:B",TRUE),0)&":"&CHAR(MATCH($D42,INDIRECT("'"&$B42&"'!6:6",TRUE),0)+64)&MATCH(N$3&"_slut",INDIRECT("'"&$B42&"'!B:B",TRUE),0),TRUE),"X")/SUM(N42:N46)) -> 0
C43: =B42 -> It-beredskab | D43: Delvist | E43: =IFERROR(COUNTIF(INDIRECT("'"&$B42&"'!"&CHAR(MATCH($D43,INDIRECT("'"&$B42&"'!6:6",TRUE),0)+64)&MATCH(E$3,INDIRECT("'"&$B42&"'!B:B",TRUE),0)&":"&CHAR(MATCH($D43,INDIRECT("'"&$B42&"'!6:6",TRUE),0)+64)&MATCH(E$3&"_slut",INDIRECT("'"&$B42&"'!B:B",TRUE),0),TRUE),"X"),0) -> 0 | F43: =IF(E47=0,0,COUNTIF(INDIRECT("'"&$B42&"'!"&CHAR(MATCH($D43,INDIRECT("'"&$B42&"'!6:6",TRUE),0)+64)&MATCH(E$3,INDIRECT("'"&$B42&"'!B:B",TRUE),0)&":"&CHAR(MATCH($D43,INDIRECT("'"&$B42&"'!6:6",TRUE),0)+64)&MATCH(E$3&"_slut",INDIRECT("'"&$B42&"'!B:B",TRUE),0),TRUE),"X")/E$61) -> 0 | G43: =IF(E47=0,0,COUNTIF(INDIRECT("'"&$B42&"'!"&CHAR(MATCH($D43,INDIRECT("'"&$B42&"'!6:6",TRUE),0)+64)&MATCH(E$3,INDIRECT("'"&$B42&"'!B:B",TRUE),0)&":"&CHAR(MATCH($D43,INDIRECT("'"&$B42&"'!6:6",TRUE),0)+64)&MATCH(E$3&"_slut",INDIRECT("'"&$B42&"'!B:B",TRUE),0),TRUE),"X")/SUM(E42:E46)) -> 0 | H43: =IFERROR(COUNTIF(INDIRECT("'"&$B42&"'!"&CHAR(MATCH($D43,INDIRECT("'"&$B42&"'!6:6",TRUE),0)+64)&MATCH(H$3,INDIRECT("'"&$B42&"'!B:B",TRUE),0)&":"&CHAR(MATCH($D43,INDIRECT("'"&$B42&"'!6:6",TRUE),0)+64)&MATCH(H$3&"_slut",INDIRECT("'"&$B42&"'!B:B",TRUE),0),TRUE),"X"),0) -> 0 | I43: =IF(H47=0,0,COUNTIF(INDIRECT("'"&$B42&"'!"&CHAR(MATCH($D43,INDIRECT("'"&$B42&"'!6:6",TRUE),0)+64)&MATCH(H$3,INDIRECT("'"&$B42&"'!B:B",TRUE),0)&":"&CHAR(MATCH($D43,INDIRECT("'"&$B42&"'!6:6",TRUE),0)+64)&MATCH(H$3&"_slut",INDIRECT("'"&$B42&"'!B:B",TRUE),0),TRUE),"X")/H$61) -> 0 | J43: =IF(H47=0,0,COUNTIF(INDIRECT("'"&$B42&"'!"&CHAR(MATCH($D43,INDIRECT("'"&$B42&"'!6:6",TRUE),0)+64)&MATCH(H$3,INDIRECT("'"&$B42&"'!B:B",TRUE),0)&":"&CHAR(MATCH($D43,INDIRECT("'"&$B42&"'!6:6",TRUE),0)+64)&MATCH(H$3&"_slut",INDIRECT("'"&$B42&"'!B:B",TRUE),0),TRUE),"X")/SUM(H42:H46)) -> 0 | K43: =IFERROR(COUNTIF(INDIRECT("'"&$B42&"'!"&CHAR(MATCH($D43,INDIRECT("'"&$B42&"'!6:6",TRUE),0)+64)&MATCH(K$3,INDIRECT("'"&$B42&"'!B:B",TRUE),0)&":"&CHAR(MATCH($D43,INDIRECT("'"&$B42&"'!6:6",TRUE),0)+64)&MATCH(K$3&"_slut",INDIRECT("'"&$B42&"'!B:B",TRUE),0),TRUE),"X"),0) -> 0 | L43: =IF(K47=0,0,COUNTIF(INDIRECT("'"&$B42&"'!"&CHAR(MATCH($D43,INDIRECT("'"&$B42&"'!6:6",TRUE),0)+64)&MATCH(K$3,INDIRECT("'"&$B42&"'!B:B",TRUE),0)&":"&CHAR(MATCH($D43,INDIRECT("'"&$B42&"'!6:6",TRUE),0)+64)&MATCH(K$3&"_slut",INDIRECT("'"&$B42&"'!B:B",TRUE),0),TRUE),"X")/K$61) -> 0 | M43: =IF(K47=0,0,COUNTIF(INDIRECT("'"&$B42&"'!"&CHAR(MATCH($D43,INDIRECT("'"&$B42&"'!6:6",TRUE),0)+64)&MATCH(K$3,INDIRECT("'"&$B42&"'!B:B",TRUE),0)&":"&CHAR(MATCH($D43,INDIRECT("'"&$B42&"'!6:6",TRUE),0)+64)&MATCH(K$3&"_slut",INDIRECT("'"&$B42&"'!B:B",TRUE),0),TRUE),"X")/SUM(K42:K46)) -> 0 | N43: =IFERROR(COUNTIF(INDIRECT("'"&$B42&"'!"&CHAR(MATCH($D43,INDIRECT("'"&$B42&"'!6:6",TRUE),0)+64)&MATCH(N$3,INDIRECT("'"&$B42&"'!B:B",TRUE),0)&":"&CHAR(MATCH($D43,INDIRECT("'"&$B42&"'!6:6",TRUE),0)+64)&MATCH(N$3&"_slut",INDIRECT("'"&$B42&"'!B:B",TRUE),0),TRUE),"X"),0) -> 0 | O43: =IF(N47=0,0,COUNTIF(INDIRECT("'"&$B42&"'!"&CHAR(MATCH($D43,INDIRECT("'"&$B42&"'!6:6",TRUE),0)+64)&MATCH(N$3,INDIRECT("'"&$B42&"'!B:B",TRUE),0)&":"&CHAR(MATCH($D43,INDIRECT("'"&$B42&"'!6:6",TRUE),0)+64)&MATCH(N$3&"_slut",INDIRECT("'"&$B42&"'!B:B",TRUE),0),TRUE),"X")/N$61) -> 0 | P43: =IF(N47=0,0,COUNTIF(INDIRECT("'"&$B42&"'!"&CHAR(MATCH($D43,INDIRECT("'"&$B42&"'!6:6",TRUE),0)+64)&MATCH(N$3,INDIRECT("'"&$B42&"'!B:B",TRUE),0)&":"&CHAR(MATCH($D43,INDIRECT("'"&$B42&"'!6:6",TRUE),0)+64)&MATCH(N$3&"_slut",INDIRECT("'"&$B42&"'!B:B",TRUE),0),TRUE),"X")/SUM(N42:N46)) -> 0
C44: =B42 -> It-beredskab | D44: Nej | E44: =IFERROR(COUNTIF(INDIRECT("'"&$B42&"'!"&CHAR(MATCH($D44,INDIRECT("'"&$B42&"'!6:6",TRUE),0)+64)&MATCH(E$3,INDIRECT("'"&$B42&"'!B:B",TRUE),0)&":"&CHAR(MATCH($D44,INDIRECT("'"&$B42&"'!6:6",TRUE),0)+64)&MATCH(E$3&"_slut",INDIRECT("'"&$B42&"'!B:B",TRUE),0),TRUE),"X"),0) -> 0 | F44: =IF(E47=0,0,COUNTIF(INDIRECT("'"&$B42&"'!"&CHAR(MATCH($D44,INDIRECT("'"&$B42&"'!6:6",TRUE),0)+64)&MATCH(E$3,INDIRECT("'"&$B42&"'!B:B",TRUE),0)&":"&CHAR(MATCH($D44,INDIRECT("'"&$B42&"'!6:6",TRUE),0)+64)&MATCH(E$3&"_slut",INDIRECT("'"&$B42&"'!B:B",TRUE),0),TRUE),"X")/E$61) -> 0 | G44: =IF(E47=0,0,COUNTIF(INDIRECT("'"&$B42&"'!"&CHAR(MATCH($D44,INDIRECT("'"&$B42&"'!6:6",TRUE),0)+64)&MATCH(E$3,INDIRECT("'"&$B42&"'!B:B",TRUE),0)&":"&CHAR(MATCH($D44,INDIRECT("'"&$B42&"'!6:6",TRUE),0)+64)&MATCH(E$3&"_slut",INDIRECT("'"&$B42&"'!B:B",TRUE),0),TRUE),"X")/SUM(E42:E46)) -> 0 | H44: =IFERROR(COUNTIF(INDIRECT("'"&$B42&"'!"&CHAR(MATCH($D44,INDIRECT("'"&$B42&"'!6:6",TRUE),0)+64)&MATCH(H$3,INDIRECT("'"&$B42&"'!B:B",TRUE),0)&":"&CHAR(MATCH($D44,INDIRECT("'"&$B42&"'!6:6",TRUE),0)+64)&MATCH(H$3&"_slut",INDIRECT("'"&$B42&"'!B:B",TRUE),0),TRUE),"X"),0) -> 0 | I44: =IF(H47=0,0,COUNTIF(INDIRECT("'"&$B42&"'!"&CHAR(MATCH($D44,INDIRECT("'"&$B42&"'!6:6",TRUE),0)+64)&MATCH(H$3,INDIRECT("'"&$B42&"'!B:B",TRUE),0)&":"&CHAR(MATCH($D44,INDIRECT("'"&$B42&"'!6:6",TRUE),0)+64)&MATCH(H$3&"_slut",INDIRECT("'"&$B42&"'!B:B",TRUE),0),TRUE),"X")/H$61) -> 0 | J44: =IF(H47=0,0,COUNTIF(INDIRECT("'"&$B42&"'!"&CHAR(MATCH($D44,INDIRECT("'"&$B42&"'!6:6",TRUE),0)+64)&MATCH(H$3,INDIRECT("'"&$B42&"'!B:B",TRUE),0)&":"&CHAR(MATCH($D44,INDIRECT("'"&$B42&"'!6:6",TRUE),0)+64)&MATCH(H$3&"_slut",INDIRECT("'"&$B42&"'!B:B",TRUE),0),TRUE),"X")/SUM(H42:H46)) -> 0 | K44: =IFERROR(COUNTIF(INDIRECT("'"&$B42&"'!"&CHAR(MATCH($D44,INDIRECT("'"&$B42&"'!6:6",TRUE),0)+64)&MATCH(K$3,INDIRECT("'"&$B42&"'!B:B",TRUE),0)&":"&CHAR(MATCH($D44,INDIRECT("'"&$B42&"'!6:6",TRUE),0)+64)&MATCH(K$3&"_slut",INDIRECT("'"&$B42&"'!B:B",TRUE),0),TRUE),"X"),0) -> 0 | L44: =IF(K47=0,0,COUNTIF(INDIRECT("'"&$B42&"'!"&CHAR(MATCH($D44,INDIRECT("'"&$B42&"'!6:6",TRUE),0)+64)&MATCH(K$3,INDIRECT("'"&$B42&"'!B:B",TRUE),0)&":"&CHAR(MATCH($D44,INDIRECT("'"&$B42&"'!6:6",TRUE),0)+64)&MATCH(K$3&"_slut",INDIRECT("'"&$B42&"'!B:B",TRUE),0),TRUE),"X")/K$61) -> 0 | M44: =IF(K47=0,0,COUNTIF(INDIRECT("'"&$B42&"'!"&CHAR(MATCH($D44,INDIRECT("'"&$B42&"'!6:6",TRUE),0)+64)&MATCH(K$3,INDIRECT("'"&$B42&"'!B:B",TRUE),0)&":"&CHAR(MATCH($D44,INDIRECT("'"&$B42&"'!6:6",TRUE),0)+64)&MATCH(K$3&"_slut",INDIRECT("'"&$B42&"'!B:B",TRUE),0),TRUE),"X")/SUM(K42:K46)) -> 0 | N44: =IFERROR(COUNTIF(INDIRECT("'"&$B42&"'!"&CHAR(MATCH($D44,INDIRECT("'"&$B42&"'!6:6",TRUE),0)+64)&MATCH(N$3,INDIRECT("'"&$B42&"'!B:B",TRUE),0)&":"&CHAR(MATCH($D44,INDIRECT("'"&$B42&"'!6:6",TRUE),0)+64)&MATCH(N$3&"_slut",INDIRECT("'"&$B42&"'!B:B",TRUE),0),TRUE),"X"),0) -> 0 | O44: =IF(N47=0,0,COUNTIF(INDIRECT("'"&$B42&"'!"&CHAR(MATCH($D44,INDIRECT("'"&$B42&"'!6:6",TRUE),0)+64)&MATCH(N$3,INDIRECT("'"&$B42&"'!B:B",TRUE),0)&":"&CHAR(MATCH($D44,INDIRECT("'"&$B42&"'!6:6",TRUE),0)+64)&MATCH(N$3&"_slut",INDIRECT("'"&$B42&"'!B:B",TRUE),0),TRUE),"X")/N$61) -> 0 | P44: =IF(N47=0,0,COUNTIF(INDIRECT("'"&$B42&"'!"&CHAR(MATCH($D44,INDIRECT("'"&$B42&"'!6:6",TRUE),0)+64)&MATCH(N$3,INDIRECT("'"&$B42&"'!B:B",TRUE),0)&":"&CHAR(MATCH($D44,INDIRECT("'"&$B42&"'!6:6",TRUE),0)+64)&MATCH(N$3&"_slut",INDIRECT("'"&$B42&"'!B:B",TRUE),0),TRUE),"X")/SUM(N42:N46)) -> 0
C45: =B42 -> It-beredskab | D45: Ikke relevant | E45: =IFERROR(COUNTIF(INDIRECT("'"&$B42&"'!"&CHAR(MATCH($D45,INDIRECT("'"&$B42&"'!6:6",TRUE),0)+64)&MATCH(E$3,INDIRECT("'"&$B42&"'!B:B",TRUE),0)&":"&CHAR(MATCH($D45,INDIRECT("'"&$B42&"'!6:6",TRUE),0)+64)&MATCH(E$3&"_slut",INDIRECT("'"&$B42&"'!B:B",TRUE),0),TRUE),"X"),0) -> 0 | F45: =IF(E47=0,0,COUNTIF(INDIRECT("'"&$B42&"'!"&CHAR(MATCH($D45,INDIRECT("'"&$B42&"'!6:6",TRUE),0)+64)&MATCH(E$3,INDIRECT("'"&$B42&"'!B:B",TRUE),0)&":"&CHAR(MATCH($D45,INDIRECT("'"&$B42&"'!6:6",TRUE),0)+64)&MATCH(E$3&"_slut",INDIRECT("'"&$B42&"'!B:B",TRUE),0),TRUE),"X")/E$61) -> 0 | G45: =IF(E47=0,0,COUNTIF(INDIRECT("'"&$B42&"'!"&CHAR(MATCH($D45,INDIRECT("'"&$B42&"'!6:6",TRUE),0)+64)&MATCH(E$3,INDIRECT("'"&$B42&"'!B:B",TRUE),0)&":"&CHAR(MATCH($D45,INDIRECT("'"&$B42&"'!6:6",TRUE),0)+64)&MATCH(E$3&"_slut",INDIRECT("'"&$B42&"'!B:B",TRUE),0),TRUE),"X")/SUM(E42:E46)) -> 0 | H45: =IFERROR(COUNTIF(INDIRECT("'"&$B42&"'!"&CHAR(MATCH($D45,INDIRECT("'"&$B42&"'!6:6",TRUE),0)+64)&MATCH(H$3,INDIRECT("'"&$B42&"'!B:B",TRUE),0)&":"&CHAR(MATCH($D45,INDIRECT("'"&$B42&"'!6:6",TRUE),0)+64)&MATCH(H$3&"_slut",INDIRECT("'"&$B42&"'!B:B",TRUE),0),TRUE),"X"),0) -> 0 | I45: =IF(H47=0,0,COUNTIF(INDIRECT("'"&$B42&"'!"&CHAR(MATCH($D45,INDIRECT("'"&$B42&"'!6:6",TRUE),0)+64)&MATCH(H$3,INDIRECT("'"&$B42&"'!B:B",TRUE),0)&":"&CHAR(MATCH($D45,INDIRECT("'"&$B42&"'!6:6",TRUE),0)+64)&MATCH(H$3&"_slut",INDIRECT("'"&$B42&"'!B:B",TRUE),0),TRUE),"X")/H$61) -> 0 | J45: =IF(H47=0,0,COUNTIF(INDIRECT("'"&$B42&"'!"&CHAR(MATCH($D45,INDIRECT("'"&$B42&"'!6:6",TRUE),0)+64)&MATCH(H$3,INDIRECT("'"&$B42&"'!B:B",TRUE),0)&":"&CHAR(MATCH($D45,INDIRECT("'"&$B42&"'!6:6",TRUE),0)+64)&MATCH(H$3&"_slut",INDIRECT("'"&$B42&"'!B:B",TRUE),0),TRUE),"X")/SUM(H42:H46)) -> 0 | K45: =IFERROR(COUNTIF(INDIRECT("'"&$B42&"'!"&CHAR(MATCH($D45,INDIRECT("'"&$B42&"'!6:6",TRUE),0)+64)&MATCH(K$3,INDIRECT("'"&$B42&"'!B:B",TRUE),0)&":"&CHAR(MATCH($D45,INDIRECT("'"&$B42&"'!6:6",TRUE),0)+64)&MATCH(K$3&"_slut",INDIRECT("'"&$B42&"'!B:B",TRUE),0),TRUE),"X"),0) -> 0 | L45: =IF(K47=0,0,COUNTIF(INDIRECT("'"&$B42&"'!"&CHAR(MATCH($D45,INDIRECT("'"&$B42&"'!6:6",TRUE),0)+64)&MATCH(K$3,INDIRECT("'"&$B42&"'!B:B",TRUE),0)&":"&CHAR(MATCH($D45,INDIRECT("'"&$B42&"'!6:6",TRUE),0)+64)&MATCH(K$3&"_slut",INDIRECT("'"&$B42&"'!B:B",TRUE),0),TRUE),"X")/K$61) -> 0 | M45: =IF(K47=0,0,COUNTIF(INDIRECT("'"&$B42&"'!"&CHAR(MATCH($D45,INDIRECT("'"&$B42&"'!6:6",TRUE),0)+64)&MATCH(K$3,INDIRECT("'"&$B42&"'!B:B",TRUE),0)&":"&CHAR(MATCH($D45,INDIRECT("'"&$B42&"'!6:6",TRUE),0)+64)&MATCH(K$3&"_slut",INDIRECT("'"&$B42&"'!B:B",TRUE),0),TRUE),"X")/SUM(K42:K46)) -> 0 | N45: =IFERROR(COUNTIF(INDIRECT("'"&$B42&"'!"&CHAR(MATCH($D45,INDIRECT("'"&$B42&"'!6:6",TRUE),0)+64)&MATCH(N$3,INDIRECT("'"&$B42&"'!B:B",TRUE),0)&":"&CHAR(MATCH($D45,INDIRECT("'"&$B42&"'!6:6",TRUE),0)+64)&MATCH(N$3&"_slut",INDIRECT("'"&$B42&"'!B:B",TRUE),0),TRUE),"X"),0) -> 0 | O45: =IF(N47=0,0,COUNTIF(INDIRECT("'"&$B42&"'!"&CHAR(MATCH($D45,INDIRECT("'"&$B42&"'!6:6",TRUE),0)+64)&MATCH(N$3,INDIRECT("'"&$B42&"'!B:B",TRUE),0)&":"&CHAR(MATCH($D45,INDIRECT("'"&$B42&"'!6:6",TRUE),0)+64)&MATCH(N$3&"_slut",INDIRECT("'"&$B42&"'!B:B",TRUE),0),TRUE),"X")/N$61) -> 0 | P45: =IF(N47=0,0,COUNTIF(INDIRECT("'"&$B42&"'!"&CHAR(MATCH($D45,INDIRECT("'"&$B42&"'!6:6",TRUE),0)+64)&MATCH(N$3,INDIRECT("'"&$B42&"'!B:B",TRUE),0)&":"&CHAR(MATCH($D45,INDIRECT("'"&$B42&"'!6:6",TRUE),0)+64)&MATCH(N$3&"_slut",INDIRECT("'"&$B42&"'!B:B",TRUE),0),TRUE),"X")/SUM(N42:N46)) -> 0
C46: =B42 -> It-beredskab | D46: Ikke sat | E46: =IF(ISERROR(MATCH(E$3,INDIRECT("'"&$B42&"'!B:B",TRUE),0)),0,COUNTA(INDIRECT("'"&$B42&"'!E"&MATCH(E$3,INDIRECT("'"&$B42&"'!B:B",TRUE),0)&":E"&MATCH(E$3&"_slut",INDIRECT("'"&$B42&"'!B:B",TRUE),0),TRUE))-E42-E43-E44-E45) -> 8 | F46: =IF(E47=0,0,E47/E$61-F42-F43-F44-F45) -> 0.2580645161 | G46: =IF(E47=0,0,1-G42-G43-G44-G45) -> 1 | H46: =IF(ISERROR(MATCH(H$3,INDIRECT("'"&$B42&"'!B:B",TRUE),0)),0,COUNTA(INDIRECT("'"&$B42&"'!E"&MATCH(H$3,INDIRECT("'"&$B42&"'!B:B",TRUE),0)&":E"&MATCH(H$3&"_slut",INDIRECT("'"&$B42&"'!B:B",TRUE),0),TRUE))-H42-H43-H44-H45) -> 4 | I46: =IF(H47=0,0,H47/H$61-I42-I43-I44-I45) -> 0.1111111111 | J46: =IF(H47=0,0,1-J42-J43-J44-J45) -> 1 | K46: =IF(ISERROR(MATCH(K$3,INDIRECT("'"&$B42&"'!B:B",TRUE),0)),0,COUNTA(INDIRECT("'"&$B42&"'!E"&MATCH(K$3,INDIRECT("'"&$B42&"'!B:B",TRUE),0)&":E"&MATCH(K$3&"_slut",INDIRECT("'"&$B42&"'!B:B",TRUE),0),TRUE))-K42-K43-K44-K45) -> 2 | L46: =IF(K47=0,0,K47/K$61-L42-L43-L44-L45) -> 0.07407407407 | M46: =IF(K47=0,0,1-M42-M43-M44-M45) -> 1 | N46: =IF(ISERROR(MATCH(N$3,INDIRECT("'"&$B42&"'!B:B",TRUE),0)),0,COUNTA(INDIRECT("'"&$B42&"'!E"&MATCH(N$3,INDIRECT("'"&$B42&"'!B:B",TRUE),0)&":E"&MATCH(N$3&"_slut",INDIRECT("'"&$B42&"'!B:B",TRUE),0),TRUE))-N42-N43-N44-N45) -> 2 | O46: =IF(N47=0,0,N47/N$61-O42-O43-O44-O45) -> 0.125 | P46: =IF(N47=0,0,1-P42-P43-P44-P45) -> 1
C47: =B42 -> It-beredskab | D47: TOTAL | E47: =SUM(E42:E46) -> 8 | F47: =SUM(F42:F45) -> 0 | G47: =SUM(G42:G45) -> 0 | H47: =SUM(H42:H46) -> 4 | I47: =SUM(I42:I45) -> 0 | J47: 0 | K47: =SUM(K42:K46) -> 2 | L47: =SUM(L42:L45) -> 0 | M47: 0 | N47: =SUM(N42:N46) -> 2 | O47: =SUM(O42:O45) -> 0 | P47: 0
B48: Måling | C48: =B48 -> Måling | D48: Ja | E48: =IFERROR(COUNTIF(INDIRECT("'"&$B48&"'!"&CHAR(MATCH($D48,INDIRECT("'"&$B48&"'!6:6",TRUE),0)+64)&MATCH(E$3,INDIRECT("'"&$B48&"'!B:B",TRUE),0)&":"&CHAR(MATCH($D48,INDIRECT("'"&$B48&"'!6:6",TRUE),0)+64)&MATCH(E$3&"_slut",INDIRECT("'"&$B48&"'!B:B",TRUE),0),TRUE),"X"),0) -> 0 | F48: =IF(E53=0,0,COUNTIF(INDIRECT("'"&$B48&"'!"&CHAR(MATCH($D48,INDIRECT("'"&$B48&"'!6:6",TRUE),0)+64)&MATCH(E$3,INDIRECT("'"&$B48&"'!B:B",TRUE),0)&":"&CHAR(MATCH($D48,INDIRECT("'"&$B48&"'!6:6",TRUE),0)+64)&MATCH(E$3&"_slut",INDIRECT("'"&$B48&"'!B:B",TRUE),0),TRUE),"X")/E$61) -> 0 | G48: =IF(E53=0,0,COUNTIF(INDIRECT("'"&$B48&"'!"&CHAR(MATCH($D48,INDIRECT("'"&$B48&"'!6:6",TRUE),0)+64)&MATCH(E$3,INDIRECT("'"&$B48&"'!B:B",TRUE),0)&":"&CHAR(MATCH($D48,INDIRECT("'"&$B48&"'!6:6",TRUE),0)+64)&MATCH(E$3&"_slut",INDIRECT("'"&$B48&"'!B:B",TRUE),0),TRUE),"X")/SUM(E48:E52)) -> 0 | H48: =IFERROR(COUNTIF(INDIRECT("'"&$B48&"'!"&CHAR(MATCH($D48,INDIRECT("'"&$B48&"'!6:6",TRUE),0)+64)&MATCH(H$3,INDIRECT("'"&$B48&"'!B:B",TRUE),0)&":"&CHAR(MATCH($D48,INDIRECT("'"&$B48&"'!6:6",TRUE),0)+64)&MATCH(H$3&"_slut",INDIRECT("'"&$B48&"'!B:B",TRUE),0),TRUE),"X"),0) -> 0 | I48: =IF(H53=0,0,COUNTIF(INDIRECT("'"&$B48&"'!"&CHAR(MATCH($D48,INDIRECT("'"&$B48&"'!6:6",TRUE),0)+64)&MATCH(H$3,INDIRECT("'"&$B48&"'!B:B",TRUE),0)&":"&CHAR(MATCH($D48,INDIRECT("'"&$B48&"'!6:6",TRUE),0)+64)&MATCH(H$3&"_slut",INDIRECT("'"&$B48&"'!B:B",TRUE),0),TRUE),"X")/H$61) -> 0 | J48: =IF(H53=0,0,COUNTIF(INDIRECT("'"&$B48&"'!"&CHAR(MATCH($D48,INDIRECT("'"&$B48&"'!6:6",TRUE),0)+64)&MATCH(H$3,INDIRECT("'"&$B48&"'!B:B",TRUE),0)&":"&CHAR(MATCH($D48,INDIRECT("'"&$B48&"'!6:6",TRUE),0)+64)&MATCH(H$3&"_slut",INDIRECT("'"&$B48&"'!B:B",TRUE),0),TRUE),"X")/SUM(H48:H52)) -> 0 | K48: =IFERROR(COUNTIF(INDIRECT("'"&$B48&"'!"&CHAR(MATCH($D48,INDIRECT("'"&$B48&"'!6:6",TRUE),0)+64)&MATCH(K$3,INDIRECT("'"&$B48&"'!B:B",TRUE),0)&":"&CHAR(MATCH($D48,INDIRECT("'"&$B48&"'!6:6",TRUE),0)+64)&MATCH(K$3&"_slut",INDIRECT("'"&$B48&"'!B:B",TRUE),0),TRUE),"X"),0) -> 0 | L48: =IF(K53=0,0,COUNTIF(INDIRECT("'"&$B48&"'!"&CHAR(MATCH($D48,INDIRECT("'"&$B48&"'!6:6",TRUE),0)+64)&MATCH(K$3,INDIRECT("'"&$B48&"'!B:B",TRUE),0)&":"&CHAR(MATCH($D48,INDIRECT("'"&$B48&"'!6:6",TRUE),0)+64)&MATCH(K$3&"_slut",INDIRECT("'"&$B48&"'!B:B",TRUE),0),TRUE),"X")/K$61) -> 0 | M48: =IF(K53=0,0,COUNTIF(INDIRECT("'"&$B48&"'!"&CHAR(MATCH($D48,INDIRECT("'"&$B48&"'!6:6",TRUE),0)+64)&MATCH(K$3,INDIRECT("'"&$B48&"'!B:B",TRUE),0)&":"&CHAR(MATCH($D48,INDIRECT("'"&$B48&"'!6:6",TRUE),0)+64)&MATCH(K$3&"_slut",INDIRECT("'"&$B48&"'!B:B",TRUE),0),TRUE),"X")/SUM(K48:K52)) -> 0 | N48: =IFERROR(COUNTIF(INDIRECT("'"&$B48&"'!"&CHAR(MATCH($D48,INDIRECT("'"&$B48&"'!6:6",TRUE),0)+64)&MATCH(N$3,INDIRECT("'"&$B48&"'!B:B",TRUE),0)&":"&CHAR(MATCH($D48,INDIRECT("'"&$B48&"'!6:6",TRUE),0)+64)&MATCH(N$3&"_slut",INDIRECT("'"&$B48&"'!B:B",TRUE),0),TRUE),"X"),0) -> 0 | O48: =IF(N53=0,0,COUNTIF(INDIRECT("'"&$B48&"'!"&CHAR(MATCH($D48,INDIRECT("'"&$B48&"'!6:6",TRUE),0)+64)&MATCH(N$3,INDIRECT("'"&$B48&"'!B:B",TRUE),0)&":"&CHAR(MATCH($D48,INDIRECT("'"&$B48&"'!6:6",TRUE),0)+64)&MATCH(N$3&"_slut",INDIRECT("'"&$B48&"'!B:B",TRUE),0),TRUE),"X")/N$61) -> 0 | P48: =IF(N53=0,0,COUNTIF(INDIRECT("'"&$B48&"'!"&CHAR(MATCH($D48,INDIRECT("'"&$B48&"'!6:6",TRUE),0)+64)&MATCH(N$3,INDIRECT("'"&$B48&"'!B:B",TRUE),0)&":"&CHAR(MATCH($D48,INDIRECT("'"&$B48&"'!6:6",TRUE),0)+64)&MATCH(N$3&"_slut",INDIRECT("'"&$B48&"'!B:B",TRUE),0),TRUE),"X")/SUM(N48:N52)) -> 0
C49: =B48 -> Måling | D49: Delvist | E49: =IFERROR(COUNTIF(INDIRECT("'"&$B48&"'!"&CHAR(MATCH($D49,INDIRECT("'"&$B48&"'!6:6",TRUE),0)+64)&MATCH(E$3,INDIRECT("'"&$B48&"'!B:B",TRUE),0)&":"&CHAR(MATCH($D49,INDIRECT("'"&$B48&"'!6:6",TRUE),0)+64)&MATCH(E$3&"_slut",INDIRECT("'"&$B48&"'!B:B",TRUE),0),TRUE),"X"),0) -> 0 | F49: =IF(E53=0,0,COUNTIF(INDIRECT("'"&$B48&"'!"&CHAR(MATCH($D49,INDIRECT("'"&$B48&"'!6:6",TRUE),0)+64)&MATCH(E$3,INDIRECT("'"&$B48&"'!B:B",TRUE),0)&":"&CHAR(MATCH($D49,INDIRECT("'"&$B48&"'!6:6",TRUE),0)+64)&MATCH(E$3&"_slut",INDIRECT("'"&$B48&"'!B:B",TRUE),0),TRUE),"X")/E$61) -> 0 | G49: =IF(E53=0,0,COUNTIF(INDIRECT("'"&$B48&"'!"&CHAR(MATCH($D49,INDIRECT("'"&$B48&"'!6:6",TRUE),0)+64)&MATCH(E$3,INDIRECT("'"&$B48&"'!B:B",TRUE),0)&":"&CHAR(MATCH($D49,INDIRECT("'"&$B48&"'!6:6",TRUE),0)+64)&MATCH(E$3&"_slut",INDIRECT("'"&$B48&"'!B:B",TRUE),0),TRUE),"X")/SUM(E48:E52)) -> 0 | H49: =IFERROR(COUNTIF(INDIRECT("'"&$B48&"'!"&CHAR(MATCH($D49,INDIRECT("'"&$B48&"'!6:6",TRUE),0)+64)&MATCH(H$3,INDIRECT("'"&$B48&"'!B:B",TRUE),0)&":"&CHAR(MATCH($D49,INDIRECT("'"&$B48&"'!6:6",TRUE),0)+64)&MATCH(H$3&"_slut",INDIRECT("'"&$B48&"'!B:B",TRUE),0),TRUE),"X"),0) -> 0 | I49: =IF(H53=0,0,COUNTIF(INDIRECT("'"&$B48&"'!"&CHAR(MATCH($D49,INDIRECT("'"&$B48&"'!6:6",TRUE),0)+64)&MATCH(H$3,INDIRECT("'"&$B48&"'!B:B",TRUE),0)&":"&CHAR(MATCH($D49,INDIRECT("'"&$B48&"'!6:6",TRUE),0)+64)&MATCH(H$3&"_slut",INDIRECT("'"&$B48&"'!B:B",TRUE),0),TRUE),"X")/H$61) -> 0 | J49: =IF(H53=0,0,COUNTIF(INDIRECT("'"&$B48&"'!"&CHAR(MATCH($D49,INDIRECT("'"&$B48&"'!6:6",TRUE),0)+64)&MATCH(H$3,INDIRECT("'"&$B48&"'!B:B",TRUE),0)&":"&CHAR(MATCH($D49,INDIRECT("'"&$B48&"'!6:6",TRUE),0)+64)&MATCH(H$3&"_slut",INDIRECT("'"&$B48&"'!B:B",TRUE),0),TRUE),"X")/SUM(H48:H52)) -> 0 | K49: =IFERROR(COUNTIF(INDIRECT("'"&$B48&"'!"&CHAR(MATCH($D49,INDIRECT("'"&$B48&"'!6:6",TRUE),0)+64)&MATCH(K$3,INDIRECT("'"&$B48&"'!B:B",TRUE),0)&":"&CHAR(MATCH($D49,INDIRECT("'"&$B48&"'!6:6",TRUE),0)+64)&MATCH(K$3&"_slut",INDIRECT("'"&$B48&"'!B:B",TRUE),0),TRUE),"X"),0) -> 0 | L49: =IF(K53=0,0,COUNTIF(INDIRECT("'"&$B48&"'!"&CHAR(MATCH($D49,INDIRECT("'"&$B48&"'!6:6",TRUE),0)+64)&MATCH(K$3,INDIRECT("'"&$B48&"'!B:B",TRUE),0)&":"&CHAR(MATCH($D49,INDIRECT("'"&$B48&"'!6:6",TRUE),0)+64)&MATCH(K$3&"_slut",INDIRECT("'"&$B48&"'!B:B",TRUE),0),TRUE),"X")/K$61) -> 0 | M49: =IF(K53=0,0,COUNTIF(INDIRECT("'"&$B48&"'!"&CHAR(MATCH($D49,INDIRECT("'"&$B48&"'!6:6",TRUE),0)+64)&MATCH(K$3,INDIRECT("'"&$B48&"'!B:B",TRUE),0)&":"&CHAR(MATCH($D49,INDIRECT("'"&$B48&"'!6:6",TRUE),0)+64)&MATCH(K$3&"_slut",INDIRECT("'"&$B48&"'!B:B",TRUE),0),TRUE),"X")/SUM(K48:K52)) -> 0 | N49: =IFERROR(COUNTIF(INDIRECT("'"&$B48&"'!"&CHAR(MATCH($D49,INDIRECT("'"&$B48&"'!6:6",TRUE),0)+64)&MATCH(N$3,INDIRECT("'"&$B48&"'!B:B",TRUE),0)&":"&CHAR(MATCH($D49,INDIRECT("'"&$B48&"'!6:6",TRUE),0)+64)&MATCH(N$3&"_slut",INDIRECT("'"&$B48&"'!B:B",TRUE),0),TRUE),"X"),0) -> 0 | O49: =IF(N53=0,0,COUNTIF(INDIRECT("'"&$B48&"'!"&CHAR(MATCH($D49,INDIRECT("'"&$B48&"'!6:6",TRUE),0)+64)&MATCH(N$3,INDIRECT("'"&$B48&"'!B:B",TRUE),0)&":"&CHAR(MATCH($D49,INDIRECT("'"&$B48&"'!6:6",TRUE),0)+64)&MATCH(N$3&"_slut",INDIRECT("'"&$B48&"'!B:B",TRUE),0),TRUE),"X")/N$61) -> 0 | P49: =IF(N53=0,0,COUNTIF(INDIRECT("'"&$B48&"'!"&CHAR(MATCH($D49,INDIRECT("'"&$B48&"'!6:6",TRUE),0)+64)&MATCH(N$3,INDIRECT("'"&$B48&"'!B:B",TRUE),0)&":"&CHAR(MATCH($D49,INDIRECT("'"&$B48&"'!6:6",TRUE),0)+64)&MATCH(N$3&"_slut",INDIRECT("'"&$B48&"'!B:B",TRUE),0),TRUE),"X")/SUM(N48:N52)) -> 0
C50: =B48 -> Måling | D50: Nej | E50: =IFERROR(COUNTIF(INDIRECT("'"&$B48&"'!"&CHAR(MATCH($D50,INDIRECT("'"&$B48&"'!6:6",TRUE),0)+64)&MATCH(E$3,INDIRECT("'"&$B48&"'!B:B",TRUE),0)&":"&CHAR(MATCH($D50,INDIRECT("'"&$B48&"'!6:6",TRUE),0)+64)&MATCH(E$3&"_slut",INDIRECT("'"&$B48&"'!B:B",TRUE),0),TRUE),"X"),0) -> 0 | F50: =IF(E53=0,0,COUNTIF(INDIRECT("'"&$B48&"'!"&CHAR(MATCH($D50,INDIRECT("'"&$B48&"'!6:6",TRUE),0)+64)&MATCH(E$3,INDIRECT("'"&$B48&"'!B:B",TRUE),0)&":"&CHAR(MATCH($D50,INDIRECT("'"&$B48&"'!6:6",TRUE),0)+64)&MATCH(E$3&"_slut",INDIRECT("'"&$B48&"'!B:B",TRUE),0),TRUE),"X")/E$61) -> 0 | G50: =IF(E53=0,0,COUNTIF(INDIRECT("'"&$B48&"'!"&CHAR(MATCH($D50,INDIRECT("'"&$B48&"'!6:6",TRUE),0)+64)&MATCH(E$3,INDIRECT("'"&$B48&"'!B:B",TRUE),0)&":"&CHAR(MATCH($D50,INDIRECT("'"&$B48&"'!6:6",TRUE),0)+64)&MATCH(E$3&"_slut",INDIRECT("'"&$B48&"'!B:B",TRUE),0),TRUE),"X")/SUM(E48:E52)) -> 0 | H50: =IFERROR(COUNTIF(INDIRECT("'"&$B48&"'!"&CHAR(MATCH($D50,INDIRECT("'"&$B48&"'!6:6",TRUE),0)+64)&MATCH(H$3,INDIRECT("'"&$B48&"'!B:B",TRUE),0)&":"&CHAR(MATCH($D50,INDIRECT("'"&$B48&"'!6:6",TRUE),0)+64)&MATCH(H$3&"_slut",INDIRECT("'"&$B48&"'!B:B",TRUE),0),TRUE),"X"),0) -> 0 | I50: =IF(H53=0,0,COUNTIF(INDIRECT("'"&$B48&"'!"&CHAR(MATCH($D50,INDIRECT("'"&$B48&"'!6:6",TRUE),0)+64)&MATCH(H$3,INDIRECT("'"&$B48&"'!B:B",TRUE),0)&":"&CHAR(MATCH($D50,INDIRECT("'"&$B48&"'!6:6",TRUE),0)+64)&MATCH(H$3&"_slut",INDIRECT("'"&$B48&"'!B:B",TRUE),0),TRUE),"X")/H$61) -> 0 | J50: =IF(H53=0,0,COUNTIF(INDIRECT("'"&$B48&"'!"&CHAR(MATCH($D50,INDIRECT("'"&$B48&"'!6:6",TRUE),0)+64)&MATCH(H$3,INDIRECT("'"&$B48&"'!B:B",TRUE),0)&":"&CHAR(MATCH($D50,INDIRECT("'"&$B48&"'!6:6",TRUE),0)+64)&MATCH(H$3&"_slut",INDIRECT("'"&$B48&"'!B:B",TRUE),0),TRUE),"X")/SUM(H48:H52)) -> 0 | K50: =IFERROR(COUNTIF(INDIRECT("'"&$B48&"'!"&CHAR(MATCH($D50,INDIRECT("'"&$B48&"'!6:6",TRUE),0)+64)&MATCH(K$3,INDIRECT("'"&$B48&"'!B:B",TRUE),0)&":"&CHAR(MATCH($D50,INDIRECT("'"&$B48&"'!6:6",TRUE),0)+64)&MATCH(K$3&"_slut",INDIRECT("'"&$B48&"'!B:B",TRUE),0),TRUE),"X"),0) -> 0 | L50: =IF(K53=0,0,COUNTIF(INDIRECT("'"&$B48&"'!"&CHAR(MATCH($D50,INDIRECT("'"&$B48&"'!6:6",TRUE),0)+64)&MATCH(K$3,INDIRECT("'"&$B48&"'!B:B",TRUE),0)&":"&CHAR(MATCH($D50,INDIRECT("'"&$B48&"'!6:6",TRUE),0)+64)&MATCH(K$3&"_slut",INDIRECT("'"&$B48&"'!B:B",TRUE),0),TRUE),"X")/K$61) -> 0 | M50: =IF(K53=0,0,COUNTIF(INDIRECT("'"&$B48&"'!"&CHAR(MATCH($D50,INDIRECT("'"&$B48&"'!6:6",TRUE),0)+64)&MATCH(K$3,INDIRECT("'"&$B48&"'!B:B",TRUE),0)&":"&CHAR(MATCH($D50,INDIRECT("'"&$B48&"'!6:6",TRUE),0)+64)&MATCH(K$3&"_slut",INDIRECT("'"&$B48&"'!B:B",TRUE),0),TRUE),"X")/SUM(K48:K52)) -> 0 | N50: =IFERROR(COUNTIF(INDIRECT("'"&$B48&"'!"&CHAR(MATCH($D50,INDIRECT("'"&$B48&"'!6:6",TRUE),0)+64)&MATCH(N$3,INDIRECT("'"&$B48&"'!B:B",TRUE),0)&":"&CHAR(MATCH($D50,INDIRECT("'"&$B48&"'!6:6",TRUE),0)+64)&MATCH(N$3&"_slut",INDIRECT("'"&$B48&"'!B:B",TRUE),0),TRUE),"X"),0) -> 0 | O50: =IF(N53=0,0,COUNTIF(INDIRECT("'"&$B48&"'!"&CHAR(MATCH($D50,INDIRECT("'"&$B48&"'!6:6",TRUE),0)+64)&MATCH(N$3,INDIRECT("'"&$B48&"'!B:B",TRUE),0)&":"&CHAR(MATCH($D50,INDIRECT("'"&$B48&"'!6:6",TRUE),0)+64)&MATCH(N$3&"_slut",INDIRECT("'"&$B48&"'!B:B",TRUE),0),TRUE),"X")/N$61) -> 0 | P50: =IF(N53=0,0,COUNTIF(INDIRECT("'"&$B48&"'!"&CHAR(MATCH($D50,INDIRECT("'"&$B48&"'!6:6",TRUE),0)+64)&MATCH(N$3,INDIRECT("'"&$B48&"'!B:B",TRUE),0)&":"&CHAR(MATCH($D50,INDIRECT("'"&$B48&"'!6:6",TRUE),0)+64)&MATCH(N$3&"_slut",INDIRECT("'"&$B48&"'!B:B",TRUE),0),TRUE),"X")/SUM(N48:N52)) -> 0
C51: =B48 -> Måling | D51: Ikke relevant | E51: =IFERROR(COUNTIF(INDIRECT("'"&$B48&"'!"&CHAR(MATCH($D51,INDIRECT("'"&$B48&"'!6:6",TRUE),0)+64)&MATCH(E$3,INDIRECT("'"&$B48&"'!B:B",TRUE),0)&":"&CHAR(MATCH($D51,INDIRECT("'"&$B48&"'!6:6",TRUE),0)+64)&MATCH(E$3&"_slut",INDIRECT("'"&$B48&"'!B:B",TRUE),0),TRUE),"X"),0) -> 0 | F51: =IF(E53=0,0,COUNTIF(INDIRECT("'"&$B48&"'!"&CHAR(MATCH($D51,INDIRECT("'"&$B48&"'!6:6",TRUE),0)+64)&MATCH(E$3,INDIRECT("'"&$B48&"'!B:B",TRUE),0)&":"&CHAR(MATCH($D51,INDIRECT("'"&$B48&"'!6:6",TRUE),0)+64)&MATCH(E$3&"_slut",INDIRECT("'"&$B48&"'!B:B",TRUE),0),TRUE),"X")/E$61) -> 0 | G51: =IF(E53=0,0,COUNTIF(INDIRECT("'"&$B48&"'!"&CHAR(MATCH($D51,INDIRECT("'"&$B48&"'!6:6",TRUE),0)+64)&MATCH(E$3,INDIRECT("'"&$B48&"'!B:B",TRUE),0)&":"&CHAR(MATCH($D51,INDIRECT("'"&$B48&"'!6:6",TRUE),0)+64)&MATCH(E$3&"_slut",INDIRECT("'"&$B48&"'!B:B",TRUE),0),TRUE),"X")/SUM(E48:E52)) -> 0 | H51: =IFERROR(COUNTIF(INDIRECT("'"&$B48&"'!"&CHAR(MATCH($D51,INDIRECT("'"&$B48&"'!6:6",TRUE),0)+64)&MATCH(H$3,INDIRECT("'"&$B48&"'!B:B",TRUE),0)&":"&CHAR(MATCH($D51,INDIRECT("'"&$B48&"'!6:6",TRUE),0)+64)&MATCH(H$3&"_slut",INDIRECT("'"&$B48&"'!B:B",TRUE),0),TRUE),"X"),0) -> 0 | I51: =IF(H53=0,0,COUNTIF(INDIRECT("'"&$B48&"'!"&CHAR(MATCH($D51,INDIRECT("'"&$B48&"'!6:6",TRUE),0)+64)&MATCH(H$3,INDIRECT("'"&$B48&"'!B:B",TRUE),0)&":"&CHAR(MATCH($D51,INDIRECT("'"&$B48&"'!6:6",TRUE),0)+64)&MATCH(H$3&"_slut",INDIRECT("'"&$B48&"'!B:B",TRUE),0),TRUE),"X")/H$61) -> 0 | J51: =IF(H53=0,0,COUNTIF(INDIRECT("'"&$B48&"'!"&CHAR(MATCH($D51,INDIRECT("'"&$B48&"'!6:6",TRUE),0)+64)&MATCH(H$3,INDIRECT("'"&$B48&"'!B:B",TRUE),0)&":"&CHAR(MATCH($D51,INDIRECT("'"&$B48&"'!6:6",TRUE),0)+64)&MATCH(H$3&"_slut",INDIRECT("'"&$B48&"'!B:B",TRUE),0),TRUE),"X")/SUM(H48:H52)) -> 0 | K51: =IFERROR(COUNTIF(INDIRECT("'"&$B48&"'!"&CHAR(MATCH($D51,INDIRECT("'"&$B48&"'!6:6",TRUE),0)+64)&MATCH(K$3,INDIRECT("'"&$B48&"'!B:B",TRUE),0)&":"&CHAR(MATCH($D51,INDIRECT("'"&$B48&"'!6:6",TRUE),0)+64)&MATCH(K$3&"_slut",INDIRECT("'"&$B48&"'!B:B",TRUE),0),TRUE),"X"),0) -> 0 | L51: =IF(K53=0,0,COUNTIF(INDIRECT("'"&$B48&"'!"&CHAR(MATCH($D51,INDIRECT("'"&$B48&"'!6:6",TRUE),0)+64)&MATCH(K$3,INDIRECT("'"&$B48&"'!B:B",TRUE),0)&":"&CHAR(MATCH($D51,INDIRECT("'"&$B48&"'!6:6",TRUE),0)+64)&MATCH(K$3&"_slut",INDIRECT("'"&$B48&"'!B:B",TRUE),0),TRUE),"X")/K$61) -> 0 | M51: =IF(K53=0,0,COUNTIF(INDIRECT("'"&$B48&"'!"&CHAR(MATCH($D51,INDIRECT("'"&$B48&"'!6:6",TRUE),0)+64)&MATCH(K$3,INDIRECT("'"&$B48&"'!B:B",TRUE),0)&":"&CHAR(MATCH($D51,INDIRECT("'"&$B48&"'!6:6",TRUE),0)+64)&MATCH(K$3&"_slut",INDIRECT("'"&$B48&"'!B:B",TRUE),0),TRUE),"X")/SUM(K48:K52)) -> 0 | N51: =IFERROR(COUNTIF(INDIRECT("'"&$B48&"'!"&CHAR(MATCH($D51,INDIRECT("'"&$B48&"'!6:6",TRUE),0)+64)&MATCH(N$3,INDIRECT("'"&$B48&"'!B:B",TRUE),0)&":"&CHAR(MATCH($D51,INDIRECT("'"&$B48&"'!6:6",TRUE),0)+64)&MATCH(N$3&"_slut",INDIRECT("'"&$B48&"'!B:B",TRUE),0),TRUE),"X"),0) -> 0 | O51: =IF(N53=0,0,COUNTIF(INDIRECT("'"&$B48&"'!"&CHAR(MATCH($D51,INDIRECT("'"&$B48&"'!6:6",TRUE),0)+64)&MATCH(N$3,INDIRECT("'"&$B48&"'!B:B",TRUE),0)&":"&CHAR(MATCH($D51,INDIRECT("'"&$B48&"'!6:6",TRUE),0)+64)&MATCH(N$3&"_slut",INDIRECT("'"&$B48&"'!B:B",TRUE),0),TRUE),"X")/N$61) -> 0 | P51: =IF(N53=0,0,COUNTIF(INDIRECT("'"&$B48&"'!"&CHAR(MATCH($D51,INDIRECT("'"&$B48&"'!6:6",TRUE),0)+64)&MATCH(N$3,INDIRECT("'"&$B48&"'!B:B",TRUE),0)&":"&CHAR(MATCH($D51,INDIRECT("'"&$B48&"'!6:6",TRUE),0)+64)&MATCH(N$3&"_slut",INDIRECT("'"&$B48&"'!B:B",TRUE),0),TRUE),"X")/SUM(N48:N52)) -> 0
C52: =B48 -> Måling | D52: Ikke sat | E52: =IF(ISERROR(MATCH(E$3,INDIRECT("'"&$B48&"'!B:B",TRUE),0)),0,COUNTA(INDIRECT("'"&$B48&"'!E"&MATCH(E$3,INDIRECT("'"&$B48&"'!B:B",TRUE),0)&":E"&MATCH(E$3&"_slut",INDIRECT("'"&$B48&"'!B:B",TRUE),0),TRUE))-E48-E49-E50-E51) -> 1 | F52: =IF(E53=0,0,E53/E$61-F48-F49-F50-F51) -> 0.03225806452 | G52: =IF(E53=0,0,1-G48-G49-G50-G51) -> 1 | H52: =IF(ISERROR(MATCH(H$3,INDIRECT("'"&$B48&"'!B:B",TRUE),0)),0,COUNTA(INDIRECT("'"&$B48&"'!E"&MATCH(H$3,INDIRECT("'"&$B48&"'!B:B",TRUE),0)&":E"&MATCH(H$3&"_slut",INDIRECT("'"&$B48&"'!B:B",TRUE),0),TRUE))-H48-H49-H50-H51) -> 0 | I52: =IF(H53=0,0,H53/H$61-I48-I49-I50-I51) -> 0 | J52: =IF(H53=0,0,1-J48-J49-J50-J51) -> 0 | K52: =IF(ISERROR(MATCH(K$3,INDIRECT("'"&$B48&"'!B:B",TRUE),0)),0,COUNTA(INDIRECT("'"&$B48&"'!E"&MATCH(K$3,INDIRECT("'"&$B48&"'!B:B",TRUE),0)&":E"&MATCH(K$3&"_slut",INDIRECT("'"&$B48&"'!B:B",TRUE),0),TRUE))-K48-K49-K50-K51) -> 2 | L52: =IF(K53=0,0,K53/K$61-L48-L49-L50-L51) -> 0.07407407407 | M52: =IF(K53=0,0,1-M48-M49-M50-M51) -> 1 | N52: =IF(ISERROR(MATCH(N$3,INDIRECT("'"&$B48&"'!B:B",TRUE),0)),0,COUNTA(INDIRECT("'"&$B48&"'!E"&MATCH(N$3,INDIRECT("'"&$B48&"'!B:B",TRUE),0)&":E"&MATCH(N$3&"_slut",INDIRECT("'"&$B48&"'!B:B",TRUE),0),TRUE))-N48-N49-N50-N51) -> 1 | O52: =IF(N53=0,0,N53/N$61-O48-O49-O50-O51) -> 0.0625 | P52: =IF(N53=0,0,1-P48-P49-P50-P51) -> 1
C53: =B48 -> Måling | D53: TOTAL | E53: =SUM(E48:E52) -> 1 | F53: =SUM(F48:F51) -> 0 | G53: =SUM(G48:G51) -> 0 | H53: =SUM(H48:H52) -> 0 | I53: =SUM(I48:I51) -> 0 | J53: 0 | K53: =SUM(K48:K52) -> 2 | L53: =SUM(L48:L51) -> 0 | M53: 0 | N53: =SUM(N48:N52) -> 1 | O53: =SUM(O48:O51) -> 0 | P53: 0
B54: Intern opfølgning | C54: =B54 -> Intern opfølgning | D54: Ja | E54: =IFERROR(COUNTIF(INDIRECT("'"&$B54&"'!"&CHAR(MATCH($D54,INDIRECT("'"&$B54&"'!6:6",TRUE),0)+64)&MATCH(E$3,INDIRECT("'"&$B54&"'!B:B",TRUE),0)&":"&CHAR(MATCH($D54,INDIRECT("'"&$B54&"'!6:6",TRUE),0)+64)&MATCH(E$3&"_slut",INDIRECT("'"&$B54&"'!B:B",TRUE),0),TRUE),"X"),0) -> 0 | F54: =IF(E59=0,0,COUNTIF(INDIRECT("'"&$B54&"'!"&CHAR(MATCH($D54,INDIRECT("'"&$B54&"'!6:6",TRUE),0)+64)&MATCH(E$3,INDIRECT("'"&$B54&"'!B:B",TRUE),0)&":"&CHAR(MATCH($D54,INDIRECT("'"&$B54&"'!6:6",TRUE),0)+64)&MATCH(E$3&"_slut",INDIRECT("'"&$B54&"'!B:B",TRUE),0),TRUE),"X")/E$61) -> 0 | G54: =IF(E59=0,0,COUNTIF(INDIRECT("'"&$B54&"'!"&CHAR(MATCH($D54,INDIRECT("'"&$B54&"'!6:6",TRUE),0)+64)&MATCH(E$3,INDIRECT("'"&$B54&"'!B:B",TRUE),0)&":"&CHAR(MATCH($D54,INDIRECT("'"&$B54&"'!6:6",TRUE),0)+64)&MATCH(E$3&"_slut",INDIRECT("'"&$B54&"'!B:B",TRUE),0),TRUE),"X")/SUM(E54:E58)) -> 0 | H54: =IFERROR(COUNTIF(INDIRECT("'"&$B54&"'!"&CHAR(MATCH($D54,INDIRECT("'"&$B54&"'!6:6",TRUE),0)+64)&MATCH(H$3,INDIRECT("'"&$B54&"'!B:B",TRUE),0)&":"&CHAR(MATCH($D54,INDIRECT("'"&$B54&"'!6:6",TRUE),0)+64)&MATCH(H$3&"_slut",INDIRECT("'"&$B54&"'!B:B",TRUE),0),TRUE),"X"),0) -> 0 | I54: =IF(H59=0,0,COUNTIF(INDIRECT("'"&$B54&"'!"&CHAR(MATCH($D54,INDIRECT("'"&$B54&"'!6:6",TRUE),0)+64)&MATCH(H$3,INDIRECT("'"&$B54&"'!B:B",TRUE),0)&":"&CHAR(MATCH($D54,INDIRECT("'"&$B54&"'!6:6",TRUE),0)+64)&MATCH(H$3&"_slut",INDIRECT("'"&$B54&"'!B:B",TRUE),0),TRUE),"X")/H$61) -> 0 | J54: =IF(H59=0,0,COUNTIF(INDIRECT("'"&$B54&"'!"&CHAR(MATCH($D54,INDIRECT("'"&$B54&"'!6:6",TRUE),0)+64)&MATCH(H$3,INDIRECT("'"&$B54&"'!B:B",TRUE),0)&":"&CHAR(MATCH($D54,INDIRECT("'"&$B54&"'!6:6",TRUE),0)+64)&MATCH(H$3&"_slut",INDIRECT("'"&$B54&"'!B:B",TRUE),0),TRUE),"X")/SUM(H54:H58)) -> 0 | K54: =IFERROR(COUNTIF(INDIRECT("'"&$B54&"'!"&CHAR(MATCH($D54,INDIRECT("'"&$B54&"'!6:6",TRUE),0)+64)&MATCH(K$3,INDIRECT("'"&$B54&"'!B:B",TRUE),0)&":"&CHAR(MATCH($D54,INDIRECT("'"&$B54&"'!6:6",TRUE),0)+64)&MATCH(K$3&"_slut",INDIRECT("'"&$B54&"'!B:B",TRUE),0),TRUE),"X"),0) -> 0 | L54: =IF(K59=0,0,COUNTIF(INDIRECT("'"&$B54&"'!"&CHAR(MATCH($D54,INDIRECT("'"&$B54&"'!6:6",TRUE),0)+64)&MATCH(K$3,INDIRECT("'"&$B54&"'!B:B",TRUE),0)&":"&CHAR(MATCH($D54,INDIRECT("'"&$B54&"'!6:6",TRUE),0)+64)&MATCH(K$3&"_slut",INDIRECT("'"&$B54&"'!B:B",TRUE),0),TRUE),"X")/K$61) -> 0 | M54: =IF(K59=0,0,COUNTIF(INDIRECT("'"&$B54&"'!"&CHAR(MATCH($D54,INDIRECT("'"&$B54&"'!6:6",TRUE),0)+64)&MATCH(K$3,INDIRECT("'"&$B54&"'!B:B",TRUE),0)&":"&CHAR(MATCH($D54,INDIRECT("'"&$B54&"'!6:6",TRUE),0)+64)&MATCH(K$3&"_slut",INDIRECT("'"&$B54&"'!B:B",TRUE),0),TRUE),"X")/SUM(K54:K58)) -> 0 | N54: =IFERROR(COUNTIF(INDIRECT("'"&$B54&"'!"&CHAR(MATCH($D54,INDIRECT("'"&$B54&"'!6:6",TRUE),0)+64)&MATCH(N$3,INDIRECT("'"&$B54&"'!B:B",TRUE),0)&":"&CHAR(MATCH($D54,INDIRECT("'"&$B54&"'!6:6",TRUE),0)+64)&MATCH(N$3&"_slut",INDIRECT("'"&$B54&"'!B:B",TRUE),0),TRUE),"X"),0) -> 0 | O54: =IF(N59=0,0,COUNTIF(INDIRECT("'"&$B54&"'!"&CHAR(MATCH($D54,INDIRECT("'"&$B54&"'!6:6",TRUE),0)+64)&MATCH(N$3,INDIRECT("'"&$B54&"'!B:B",TRUE),0)&":"&CHAR(MATCH($D54,INDIRECT("'"&$B54&"'!6:6",TRUE),0)+64)&MATCH(N$3&"_slut",INDIRECT("'"&$B54&"'!B:B",TRUE),0),TRUE),"X")/N$61) -> 0 | P54: =IF(N59=0,0,COUNTIF(INDIRECT("'"&$B54&"'!"&CHAR(MATCH($D54,INDIRECT("'"&$B54&"'!6:6",TRUE),0)+64)&MATCH(N$3,INDIRECT("'"&$B54&"'!B:B",TRUE),0)&":"&CHAR(MATCH($D54,INDIRECT("'"&$B54&"'!6:6",TRUE),0)+64)&MATCH(N$3&"_slut",INDIRECT("'"&$B54&"'!B:B",TRUE),0),TRUE),"X")/SUM(N54:N58)) -> 0
C55: =B54 -> Intern opfølgning | D55: Delvist | E55: =IFERROR(COUNTIF(INDIRECT("'"&$B54&"'!"&CHAR(MATCH($D55,INDIRECT("'"&$B54&"'!6:6",TRUE),0)+64)&MATCH(E$3,INDIRECT("'"&$B54&"'!B:B",TRUE),0)&":"&CHAR(MATCH($D55,INDIRECT("'"&$B54&"'!6:6",TRUE),0)+64)&MATCH(E$3&"_slut",INDIRECT("'"&$B54&"'!B:B",TRUE),0),TRUE),"X"),0) -> 0 | F55: =IF(E59=0,0,COUNTIF(INDIRECT("'"&$B54&"'!"&CHAR(MATCH($D55,INDIRECT("'"&$B54&"'!6:6",TRUE),0)+64)&MATCH(E$3,INDIRECT("'"&$B54&"'!B:B",TRUE),0)&":"&CHAR(MATCH($D55,INDIRECT("'"&$B54&"'!6:6",TRUE),0)+64)&MATCH(E$3&"_slut",INDIRECT("'"&$B54&"'!B:B",TRUE),0),TRUE),"X")/E$61) -> 0 | G55: =IF(E59=0,0,COUNTIF(INDIRECT("'"&$B54&"'!"&CHAR(MATCH($D55,INDIRECT("'"&$B54&"'!6:6",TRUE),0)+64)&MATCH(E$3,INDIRECT("'"&$B54&"'!B:B",TRUE),0)&":"&CHAR(MATCH($D55,INDIRECT("'"&$B54&"'!6:6",TRUE),0)+64)&MATCH(E$3&"_slut",INDIRECT("'"&$B54&"'!B:B",TRUE),0),TRUE),"X")/SUM(E54:E58)) -> 0 | H55: =IFERROR(COUNTIF(INDIRECT("'"&$B54&"'!"&CHAR(MATCH($D55,INDIRECT("'"&$B54&"'!6:6",TRUE),0)+64)&MATCH(H$3,INDIRECT("'"&$B54&"'!B:B",TRUE),0)&":"&CHAR(MATCH($D55,INDIRECT("'"&$B54&"'!6:6",TRUE),0)+64)&MATCH(H$3&"_slut",INDIRECT("'"&$B54&"'!B:B",TRUE),0),TRUE),"X"),0) -> 0 | I55: =IF(H59=0,0,COUNTIF(INDIRECT("'"&$B54&"'!"&CHAR(MATCH($D55,INDIRECT("'"&$B54&"'!6:6",TRUE),0)+64)&MATCH(H$3,INDIRECT("'"&$B54&"'!B:B",TRUE),0)&":"&CHAR(MATCH($D55,INDIRECT("'"&$B54&"'!6:6",TRUE),0)+64)&MATCH(H$3&"_slut",INDIRECT("'"&$B54&"'!B:B",TRUE),0),TRUE),"X")/H$61) -> 0 | J55: =IF(H59=0,0,COUNTIF(INDIRECT("'"&$B54&"'!"&CHAR(MATCH($D55,INDIRECT("'"&$B54&"'!6:6",TRUE),0)+64)&MATCH(H$3,INDIRECT("'"&$B54&"'!B:B",TRUE),0)&":"&CHAR(MATCH($D55,INDIRECT("'"&$B54&"'!6:6",TRUE),0)+64)&MATCH(H$3&"_slut",INDIRECT("'"&$B54&"'!B:B",TRUE),0),TRUE),"X")/SUM(H54:H58)) -> 0 | K55: =IFERROR(COUNTIF(INDIRECT("'"&$B54&"'!"&CHAR(MATCH($D55,INDIRECT("'"&$B54&"'!6:6",TRUE),0)+64)&MATCH(K$3,INDIRECT("'"&$B54&"'!B:B",TRUE),0)&":"&CHAR(MATCH($D55,INDIRECT("'"&$B54&"'!6:6",TRUE),0)+64)&MATCH(K$3&"_slut",INDIRECT("'"&$B54&"'!B:B",TRUE),0),TRUE),"X"),0) -> 0 | L55: =IF(K59=0,0,COUNTIF(INDIRECT("'"&$B54&"'!"&CHAR(MATCH($D55,INDIRECT("'"&$B54&"'!6:6",TRUE),0)+64)&MATCH(K$3,INDIRECT("'"&$B54&"'!B:B",TRUE),0)&":"&CHAR(MATCH($D55,INDIRECT("'"&$B54&"'!6:6",TRUE),0)+64)&MATCH(K$3&"_slut",INDIRECT("'"&$B54&"'!B:B",TRUE),0),TRUE),"X")/K$61) -> 0 | M55: =IF(K59=0,0,COUNTIF(INDIRECT("'"&$B54&"'!"&CHAR(MATCH($D55,INDIRECT("'"&$B54&"'!6:6",TRUE),0)+64)&MATCH(K$3,INDIRECT("'"&$B54&"'!B:B",TRUE),0)&":"&CHAR(MATCH($D55,INDIRECT("'"&$B54&"'!6:6",TRUE),0)+64)&MATCH(K$3&"_slut",INDIRECT("'"&$B54&"'!B:B",TRUE),0),TRUE),"X")/SUM(K54:K58)) -> 0 | N55: =IFERROR(COUNTIF(INDIRECT("'"&$B54&"'!"&CHAR(MATCH($D55,INDIRECT("'"&$B54&"'!6:6",TRUE),0)+64)&MATCH(N$3,INDIRECT("'"&$B54&"'!B:B",TRUE),0)&":"&CHAR(MATCH($D55,INDIRECT("'"&$B54&"'!6:6",TRUE),0)+64)&MATCH(N$3&"_slut",INDIRECT("'"&$B54&"'!B:B",TRUE),0),TRUE),"X"),0) -> 0 | O55: =IF(N59=0,0,COUNTIF(INDIRECT("'"&$B54&"'!"&CHAR(MATCH($D55,INDIRECT("'"&$B54&"'!6:6",TRUE),0)+64)&MATCH(N$3,INDIRECT("'"&$B54&"'!B:B",TRUE),0)&":"&CHAR(MATCH($D55,INDIRECT("'"&$B54&"'!6:6",TRUE),0)+64)&MATCH(N$3&"_slut",INDIRECT("'"&$B54&"'!B:B",TRUE),0),TRUE),"X")/N$61) -> 0 | P55: =IF(N59=0,0,COUNTIF(INDIRECT("'"&$B54&"'!"&CHAR(MATCH($D55,INDIRECT("'"&$B54&"'!6:6",TRUE),0)+64)&MATCH(N$3,INDIRECT("'"&$B54&"'!B:B",TRUE),0)&":"&CHAR(MATCH($D55,INDIRECT("'"&$B54&"'!6:6",TRUE),0)+64)&MATCH(N$3&"_slut",INDIRECT("'"&$B54&"'!B:B",TRUE),0),TRUE),"X")/SUM(N54:N58)) -> 0
C56: =B54 -> Intern opfølgning | D56: Nej | E56: =IFERROR(COUNTIF(INDIRECT("'"&$B54&"'!"&CHAR(MATCH($D56,INDIRECT("'"&$B54&"'!6:6",TRUE),0)+64)&MATCH(E$3,INDIRECT("'"&$B54&"'!B:B",TRUE),0)&":"&CHAR(MATCH($D56,INDIRECT("'"&$B54&"'!6:6",TRUE),0)+64)&MATCH(E$3&"_slut",INDIRECT("'"&$B54&"'!B:B",TRUE),0),TRUE),"X"),0) -> 0 | F56: =IF(E59=0,0,COUNTIF(INDIRECT("'"&$B54&"'!"&CHAR(MATCH($D56,INDIRECT("'"&$B54&"'!6:6",TRUE),0)+64)&MATCH(E$3,INDIRECT("'"&$B54&"'!B:B",TRUE),0)&":"&CHAR(MATCH($D56,INDIRECT("'"&$B54&"'!6:6",TRUE),0)+64)&MATCH(E$3&"_slut",INDIRECT("'"&$B54&"'!B:B",TRUE),0),TRUE),"X")/E$61) -> 0 | G56: =IF(E59=0,0,COUNTIF(INDIRECT("'"&$B54&"'!"&CHAR(MATCH($D56,INDIRECT("'"&$B54&"'!6:6",TRUE),0)+64)&MATCH(E$3,INDIRECT("'"&$B54&"'!B:B",TRUE),0)&":"&CHAR(MATCH($D56,INDIRECT("'"&$B54&"'!6:6",TRUE),0)+64)&MATCH(E$3&"_slut",INDIRECT("'"&$B54&"'!B:B",TRUE),0),TRUE),"X")/SUM(E54:E58)) -> 0 | H56: =IFERROR(COUNTIF(INDIRECT("'"&$B54&"'!"&CHAR(MATCH($D56,INDIRECT("'"&$B54&"'!6:6",TRUE),0)+64)&MATCH(H$3,INDIRECT("'"&$B54&"'!B:B",TRUE),0)&":"&CHAR(MATCH($D56,INDIRECT("'"&$B54&"'!6:6",TRUE),0)+64)&MATCH(H$3&"_slut",INDIRECT("'"&$B54&"'!B:B",TRUE),0),TRUE),"X"),0) -> 0 | I56: =IF(H59=0,0,COUNTIF(INDIRECT("'"&$B54&"'!"&CHAR(MATCH($D56,INDIRECT("'"&$B54&"'!6:6",TRUE),0)+64)&MATCH(H$3,INDIRECT("'"&$B54&"'!B:B",TRUE),0)&":"&CHAR(MATCH($D56,INDIRECT("'"&$B54&"'!6:6",TRUE),0)+64)&MATCH(H$3&"_slut",INDIRECT("'"&$B54&"'!B:B",TRUE),0),TRUE),"X")/H$61) -> 0 | J56: =IF(H59=0,0,COUNTIF(INDIRECT("'"&$B54&"'!"&CHAR(MATCH($D56,INDIRECT("'"&$B54&"'!6:6",TRUE),0)+64)&MATCH(H$3,INDIRECT("'"&$B54&"'!B:B",TRUE),0)&":"&CHAR(MATCH($D56,INDIRECT("'"&$B54&"'!6:6",TRUE),0)+64)&MATCH(H$3&"_slut",INDIRECT("'"&$B54&"'!B:B",TRUE),0),TRUE),"X")/SUM(H54:H58)) -> 0 | K56: =IFERROR(COUNTIF(INDIRECT("'"&$B54&"'!"&CHAR(MATCH($D56,INDIRECT("'"&$B54&"'!6:6",TRUE),0)+64)&MATCH(K$3,INDIRECT("'"&$B54&"'!B:B",TRUE),0)&":"&CHAR(MATCH($D56,INDIRECT("'"&$B54&"'!6:6",TRUE),0)+64)&MATCH(K$3&"_slut",INDIRECT("'"&$B54&"'!B:B",TRUE),0),TRUE),"X"),0) -> 0 | L56: =IF(K59=0,0,COUNTIF(INDIRECT("'"&$B54&"'!"&CHAR(MATCH($D56,INDIRECT("'"&$B54&"'!6:6",TRUE),0)+64)&MATCH(K$3,INDIRECT("'"&$B54&"'!B:B",TRUE),0)&":"&CHAR(MATCH($D56,INDIRECT("'"&$B54&"'!6:6",TRUE),0)+64)&MATCH(K$3&"_slut",INDIRECT("'"&$B54&"'!B:B",TRUE),0),TRUE),"X")/K$61) -> 0 | M56: =IF(K59=0,0,COUNTIF(INDIRECT("'"&$B54&"'!"&CHAR(MATCH($D56,INDIRECT("'"&$B54&"'!6:6",TRUE),0)+64)&MATCH(K$3,INDIRECT("'"&$B54&"'!B:B",TRUE),0)&":"&CHAR(MATCH($D56,INDIRECT("'"&$B54&"'!6:6",TRUE),0)+64)&MATCH(K$3&"_slut",INDIRECT("'"&$B54&"'!B:B",TRUE),0),TRUE),"X")/SUM(K54:K58)) -> 0 | N56: =IFERROR(COUNTIF(INDIRECT("'"&$B54&"'!"&CHAR(MATCH($D56,INDIRECT("'"&$B54&"'!6:6",TRUE),0)+64)&MATCH(N$3,INDIRECT("'"&$B54&"'!B:B",TRUE),0)&":"&CHAR(MATCH($D56,INDIRECT("'"&$B54&"'!6:6",TRUE),0)+64)&MATCH(N$3&"_slut",INDIRECT("'"&$B54&"'!B:B",TRUE),0),TRUE),"X"),0) -> 0 | O56: =IF(N59=0,0,COUNTIF(INDIRECT("'"&$B54&"'!"&CHAR(MATCH($D56,INDIRECT("'"&$B54&"'!6:6",TRUE),0)+64)&MATCH(N$3,INDIRECT("'"&$B54&"'!B:B",TRUE),0)&":"&CHAR(MATCH($D56,INDIRECT("'"&$B54&"'!6:6",TRUE),0)+64)&MATCH(N$3&"_slut",INDIRECT("'"&$B54&"'!B:B",TRUE),0),TRUE),"X")/N$61) -> 0 | P56: =IF(N59=0,0,COUNTIF(INDIRECT("'"&$B54&"'!"&CHAR(MATCH($D56,INDIRECT("'"&$B54&"'!6:6",TRUE),0)+64)&MATCH(N$3,INDIRECT("'"&$B54&"'!B:B",TRUE),0)&":"&CHAR(MATCH($D56,INDIRECT("'"&$B54&"'!6:6",TRUE),0)+64)&MATCH(N$3&"_slut",INDIRECT("'"&$B54&"'!B:B",TRUE),0),TRUE),"X")/SUM(N54:N58)) -> 0
C57: =B54 -> Intern opfølgning | D57: Ikke relevant | E57: =IFERROR(COUNTIF(INDIRECT("'"&$B54&"'!"&CHAR(MATCH($D57,INDIRECT("'"&$B54&"'!6:6",TRUE),0)+64)&MATCH(E$3,INDIRECT("'"&$B54&"'!B:B",TRUE),0)&":"&CHAR(MATCH($D57,INDIRECT("'"&$B54&"'!6:6",TRUE),0)+64)&MATCH(E$3&"_slut",INDIRECT("'"&$B54&"'!B:B",TRUE),0),TRUE),"X"),0) -> 0 | F57: =IF(E59=0,0,COUNTIF(INDIRECT("'"&$B54&"'!"&CHAR(MATCH($D57,INDIRECT("'"&$B54&"'!6:6",TRUE),0)+64)&MATCH(E$3,INDIRECT("'"&$B54&"'!B:B",TRUE),0)&":"&CHAR(MATCH($D57,INDIRECT("'"&$B54&"'!6:6",TRUE),0)+64)&MATCH(E$3&"_slut",INDIRECT("'"&$B54&"'!B:B",TRUE),0),TRUE),"X")/E$61) -> 0 | G57: =IF(E59=0,0,COUNTIF(INDIRECT("'"&$B54&"'!"&CHAR(MATCH($D57,INDIRECT("'"&$B54&"'!6:6",TRUE),0)+64)&MATCH(E$3,INDIRECT("'"&$B54&"'!B:B",TRUE),0)&":"&CHAR(MATCH($D57,INDIRECT("'"&$B54&"'!6:6",TRUE),0)+64)&MATCH(E$3&"_slut",INDIRECT("'"&$B54&"'!B:B",TRUE),0),TRUE),"X")/SUM(E54:E58)) -> 0 | H57: =IFERROR(COUNTIF(INDIRECT("'"&$B54&"'!"&CHAR(MATCH($D57,INDIRECT("'"&$B54&"'!6:6",TRUE),0)+64)&MATCH(H$3,INDIRECT("'"&$B54&"'!B:B",TRUE),0)&":"&CHAR(MATCH($D57,INDIRECT("'"&$B54&"'!6:6",TRUE),0)+64)&MATCH(H$3&"_slut",INDIRECT("'"&$B54&"'!B:B",TRUE),0),TRUE),"X"),0) -> 0 | I57: =IF(H59=0,0,COUNTIF(INDIRECT("'"&$B54&"'!"&CHAR(MATCH($D57,INDIRECT("'"&$B54&"'!6:6",TRUE),0)+64)&MATCH(H$3,INDIRECT("'"&$B54&"'!B:B",TRUE),0)&":"&CHAR(MATCH($D57,INDIRECT("'"&$B54&"'!6:6",TRUE),0)+64)&MATCH(H$3&"_slut",INDIRECT("'"&$B54&"'!B:B",TRUE),0),TRUE),"X")/H$61) -> 0 | J57: =IF(H59=0,0,COUNTIF(INDIRECT("'"&$B54&"'!"&CHAR(MATCH($D57,INDIRECT("'"&$B54&"'!6:6",TRUE),0)+64)&MATCH(H$3,INDIRECT("'"&$B54&"'!B:B",TRUE),0)&":"&CHAR(MATCH($D57,INDIRECT("'"&$B54&"'!6:6",TRUE),0)+64)&MATCH(H$3&"_slut",INDIRECT("'"&$B54&"'!B:B",TRUE),0),TRUE),"X")/SUM(H54:H58)) -> 0 | K57: =IFERROR(COUNTIF(INDIRECT("'"&$B54&"'!"&CHAR(MATCH($D57,INDIRECT("'"&$B54&"'!6:6",TRUE),0)+64)&MATCH(K$3,INDIRECT("'"&$B54&"'!B:B",TRUE),0)&":"&CHAR(MATCH($D57,INDIRECT("'"&$B54&"'!6:6",TRUE),0)+64)&MATCH(K$3&"_slut",INDIRECT("'"&$B54&"'!B:B",TRUE),0),TRUE),"X"),0) -> 0 | L57: =IF(K59=0,0,COUNTIF(INDIRECT("'"&$B54&"'!"&CHAR(MATCH($D57,INDIRECT("'"&$B54&"'!6:6",TRUE),0)+64)&MATCH(K$3,INDIRECT("'"&$B54&"'!B:B",TRUE),0)&":"&CHAR(MATCH($D57,INDIRECT("'"&$B54&"'!6:6",TRUE),0)+64)&MATCH(K$3&"_slut",INDIRECT("'"&$B54&"'!B:B",TRUE),0),TRUE),"X")/K$61) -> 0 | M57: =IF(K59=0,0,COUNTIF(INDIRECT("'"&$B54&"'!"&CHAR(MATCH($D57,INDIRECT("'"&$B54&"'!6:6",TRUE),0)+64)&MATCH(K$3,INDIRECT("'"&$B54&"'!B:B",TRUE),0)&":"&CHAR(MATCH($D57,INDIRECT("'"&$B54&"'!6:6",TRUE),0)+64)&MATCH(K$3&"_slut",INDIRECT("'"&$B54&"'!B:B",TRUE),0),TRUE),"X")/SUM(K54:K58)) -> 0 | N57: =IFERROR(COUNTIF(INDIRECT("'"&$B54&"'!"&CHAR(MATCH($D57,INDIRECT("'"&$B54&"'!6:6",TRUE),0)+64)&MATCH(N$3,INDIRECT("'"&$B54&"'!B:B",TRUE),0)&":"&CHAR(MATCH($D57,INDIRECT("'"&$B54&"'!6:6",TRUE),0)+64)&MATCH(N$3&"_slut",INDIRECT("'"&$B54&"'!B:B",TRUE),0),TRUE),"X"),0) -> 0 | O57: =IF(N59=0,0,COUNTIF(INDIRECT("'"&$B54&"'!"&CHAR(MATCH($D57,INDIRECT("'"&$B54&"'!6:6",TRUE),0)+64)&MATCH(N$3,INDIRECT("'"&$B54&"'!B:B",TRUE),0)&":"&CHAR(MATCH($D57,INDIRECT("'"&$B54&"'!6:6",TRUE),0)+64)&MATCH(N$3&"_slut",INDIRECT("'"&$B54&"'!B:B",TRUE),0),TRUE),"X")/N$61) -> 0 | P57: =IF(N59=0,0,COUNTIF(INDIRECT("'"&$B54&"'!"&CHAR(MATCH($D57,INDIRECT("'"&$B54&"'!6:6",TRUE),0)+64)&MATCH(N$3,INDIRECT("'"&$B54&"'!B:B",TRUE),0)&":"&CHAR(MATCH($D57,INDIRECT("'"&$B54&"'!6:6",TRUE),0)+64)&MATCH(N$3&"_slut",INDIRECT("'"&$B54&"'!B:B",TRUE),0),TRUE),"X")/SUM(N54:N58)) -> 0
C58: =B54 -> Intern opfølgning | D58: Ikke sat | E58: =IF(ISERROR(MATCH(E$3,INDIRECT("'"&$B54&"'!B:B",TRUE),0)),0,COUNTA(INDIRECT("'"&$B54&"'!E"&MATCH(E$3,INDIRECT("'"&$B54&"'!B:B",TRUE),0)&":E"&MATCH(E$3&"_slut",INDIRECT("'"&$B54&"'!B:B",TRUE),0),TRUE))-E54-E55-E56-E57) -> 1 | F58: =IF(E59=0,0,E59/E$61-F54-F55-F56-F57) -> 0.03225806452 | G58: =IF(E59=0,0,1-G54-G55-G56-G57) -> 1 | H58: =IF(ISERROR(MATCH(H$3,INDIRECT("'"&$B54&"'!B:B",TRUE),0)),0,COUNTA(INDIRECT("'"&$B54&"'!E"&MATCH(H$3,INDIRECT("'"&$B54&"'!B:B",TRUE),0)&":E"&MATCH(H$3&"_slut",INDIRECT("'"&$B54&"'!B:B",TRUE),0),TRUE))-H54-H55-H56-H57) -> 3 | I58: =IF(H59=0,0,H59/H$61-I54-I55-I56-I57) -> 0.08333333333 | J58: =IF(H59=0,0,1-J54-J55-J56-J57) -> 1 | K58: =IF(ISERROR(MATCH(K$3,INDIRECT("'"&$B54&"'!B:B",TRUE),0)),0,COUNTA(INDIRECT("'"&$B54&"'!E"&MATCH(K$3,INDIRECT("'"&$B54&"'!B:B",TRUE),0)&":E"&MATCH(K$3&"_slut",INDIRECT("'"&$B54&"'!B:B",TRUE),0),TRUE))-K54-K55-K56-K57) -> 2 | L58: =IF(K59=0,0,K59/K$61-L54-L55-L56-L57) -> 0.07407407407 | M58: =IF(K59=0,0,1-M54-M55-M56-M57) -> 1 | N58: =IF(ISERROR(MATCH(N$3,INDIRECT("'"&$B54&"'!B:B",TRUE),0)),0,COUNTA(INDIRECT("'"&$B54&"'!E"&MATCH(N$3,INDIRECT("'"&$B54&"'!B:B",TRUE),0)&":E"&MATCH(N$3&"_slut",INDIRECT("'"&$B54&"'!B:B",TRUE),0),TRUE))-N54-N55-N56-N57) -> 3 | O58: =IF(N59=0,0,N59/N$61-O54-O55-O56-O57) -> 0.1875 | P58: =IF(N59=0,0,1-P54-P55-P56-P57) -> 1
C59: =B54 -> Intern opfølgning | D59: TOTAL | E59: =SUM(E54:E58) -> 1 | F59: =SUM(F54:F57) -> 0 | G59: =SUM(G54:G57) -> 0 | H59: =SUM(H54:H58) -> 3 | I59: =SUM(I54:I57) -> 0 | J59: 0 | K59: =SUM(K54:K58) -> 2 | L59: =SUM(L54:L57) -> 0 | M59: 0 | N59: =SUM(N54:N58) -> 3 | O59: =SUM(O54:O57) -> 0 | P59: 0
B61: Total | E61: =SUMIF($D5:$D60,"TOTAL",E5:E60) -> 31 | F61: =SUMIF($D5:$D60,"TOTAL",F5:F60) -> 0 | H61: =SUMIF($D5:$D60,"TOTAL",H5:H60) -> 36 | I61: =SUMIF($D5:$D60,"TOTAL",I5:I60) -> 0 | K61: =SUMIF($D5:$D60,"TOTAL",K5:K60) -> 27 | L61: =SUMIF($D5:$D60,"TOTAL",L5:L60) -> 0 | N61: =SUMIF($D5:$D60,"TOTAL",N5:N60) -> 16 | O61: =SUMIF($D5:$D60,"TOTAL",O5:O60) -> 0

Sheet Graf_Oversigt (hidden)
AH1: list_x
B2: Type | C2: PLAN | I2: DO | O2: CHECK | U2: ACT | AA2: SUM | AH2: X
B3: Antal | C3: Ja | D3: Delvist | E3: Nej | F3: Ikke relevant | G3: Ikke sat | H3: TOTAL | I3: Ja | J3: Delvist | K3: Nej | L3: Ikke relevant | M3: Ikke sat | N3: TOTAL | O3: Ja | P3: Delvist | Q3: Nej | R3: Ikke relevant | S3: Ikke sat | T3: TOTAL | U3: Ja | V3: Delvist | W3: Nej | X3: Ikke relevant | Y3: Ikke sat | Z3: TOTAL | AA3: Ja | AB3: Delvist | AC3: Nej | AD3: Ikke relevant | AE3: Ikke sat | AF3: TOTAL
B4: Risikovurdering | C4: =SUMIFS(Oversigt!$E:$E,Oversigt!$C:$C,$B4,Oversigt!$D:$D,C$3) -> 0 | D4: =SUMIFS(Oversigt!$E:$E,Oversigt!$C:$C,$B4,Oversigt!$D:$D,D$3) -> 0 | E4: =SUMIFS(Oversigt!$E:$E,Oversigt!$C:$C,$B4,Oversigt!$D:$D,E$3) -> 0 | F4: =SUMIFS(Oversigt!$E:$E,Oversigt!$C:$C,$B4,Oversigt!$D:$D,F$3) -> 0 | G4: =SUMIFS(Oversigt!$E:$E,Oversigt!$C:$C,$B4,Oversigt!$D:$D,G$3) -> 2 | H4: =SUMIFS(Oversigt!$E:$E,Oversigt!$C:$C,$B4,Oversigt!$D:$D,H$3) -> 2 | I4: =SUMIFS(Oversigt!$H:$H,Oversigt!$C:$C,$B4,Oversigt!$D:$D,I$3) -> 0 | J4: =SUMIFS(Oversigt!$H:$H,Oversigt!$C:$C,$B4,Oversigt!$D:$D,J$3) -> 0 | K4: =SUMIFS(Oversigt!$H:$H,Oversigt!$C:$C,$B4,Oversigt!$D:$D,K$3) -> 0 | L4: =SUMIFS(Oversigt!$H:$H,Oversigt!$C:$C,$B4,Oversigt!$D:$D,L$3) -> 0 | M4: =SUMIFS(Oversigt!$H:$H,Oversigt!$C:$C,$B4,Oversigt!$D:$D,M$3) -> 5 | N4: =SUMIFS(Oversigt!$H:$H,Oversigt!$C:$C,$B4,Oversigt!$D:$D,N$3) -> 5 | O4: =SUMIFS(Oversigt!$K:$K,Oversigt!$C:$C,$B4,Oversigt!$D:$D,O$3) -> 0 | P4: =SUMIFS(Oversigt!$K:$K,Oversigt!$C:$C,$B4,Oversigt!$D:$D,P$3) -> 0 | Q4: =SUMIFS(Oversigt!$K:$K,Oversigt!$C:$C,$B4,Oversigt!$D:$D,Q$3) -> 0 | R4: =SUMIFS(Oversigt!$K:$K,Oversigt!$C:$C,$B4,Oversigt!$D:$D,R$3) -> 0 | S4: =SUMIFS(Oversigt!$K:$K,Oversigt!$C:$C,$B4,Oversigt!$D:$D,S$3) -> 3 | T4: =SUMIFS(Oversigt!$K:$K,Oversigt!$C:$C,$B4,Oversigt!$D:$D,T$3) -> 3 | U4: =SUMIFS(Oversigt!$N:$N,Oversigt!$C:$C,$B4,Oversigt!$D:$D,U$3) -> 0 | V4: =SUMIFS(Oversigt!$N:$N,Oversigt!$C:$C,$B4,Oversigt!$D:$D,V$3) -> 0 | W4: =SUMIFS(Oversigt!$N:$N,Oversigt!$C:$C,$B4,Oversigt!$D:$D,W$3) -> 0 | X4: =SUMIFS(Oversigt!$N:$N,Oversigt!$C:$C,$B4,Oversigt!$D:$D,X$3) -> 0 | Y4: =SUMIFS(Oversigt!$N:$N,Oversigt!$C:$C,$B4,Oversigt!$D:$D,Y$3) -> 1 | Z4: =SUMIFS(Oversigt!$N:$N,Oversigt!$C:$C,$B4,Oversigt!$D:$D,Z$3) -> 1 | AA4: =SUMIFS(Oversigt!$E:$E,Oversigt!$C:$C,$B4,Oversigt!$D:$D,AA$3)+SUMIFS(Oversigt!$H:$H,Oversigt!$C:$C,$B4,Oversigt!$D:$D,AA$3)+SUMIFS(Oversigt!$K:$K,Oversigt!$C:$C,$B4,Oversigt!$D:$D,AA$3)+SUMIFS(Oversigt!$N:$N,Oversigt!$C:$C,$B4,Oversigt!$D:$D,AA$3) -> 0 | AB4: =SUMIFS(Oversigt!$E:$E,Oversigt!$C:$C,$B4,Oversigt!$D:$D,AB$3)+SUMIFS(Oversigt!$H:$H,Oversigt!$C:$C,$B4,Oversigt!$D:$D,AB$3)+SUMIFS(Oversigt!$K:$K,Oversigt!$C:$C,$B4,Oversigt!$D:$D,AB$3)+SUMIFS(Oversigt!$N:$N,Oversigt!$C:$C,$B4,Oversigt!$D:$D,AB$3) -> 0 | AC4: =SUMIFS(Oversigt!$E:$E,Oversigt!$C:$C,$B4,Oversigt!$D:$D,AC$3)+SUMIFS(Oversigt!$H:$H,Oversigt!$C:$C,$B4,Oversigt!$D:$D,AC$3)+SUMIFS(Oversigt!$K:$K,Oversigt!$C:$C,$B4,Oversigt!$D:$D,AC$3)+SUMIFS(Oversigt!$N:$N,Oversigt!$C:$C,$B4,Oversigt!$D:$D,AC$3) -> 0 | AD4: =SUMIFS(Oversigt!$E:$E,Oversigt!$C:$C,$B4,Oversigt!$D:$D,AD$3)+SUMIFS(Oversigt!$H:$H,Oversigt!$C:$C,$B4,Oversigt!$D:$D,AD$3)+SUMIFS(Oversigt!$K:$K,Oversigt!$C:$C,$B4,Oversigt!$D:$D,AD$3)+SUMIFS(Oversigt!$N:$N,Oversigt!$C:$C,$B4,Oversigt!$D:$D,AD$3) -> 0 | AE4: =SUMIFS(Oversigt!$E:$E,Oversigt!$C:$C,$B4,Oversigt!$D:$D,AE$3)+SUMIFS(Oversigt!$H:$H,Oversigt!$C:$C,$B4,Oversigt!$D:$D,AE$3)+SUMIFS(Oversigt!$K:$K,Oversigt!$C:$C,$B4,Oversigt!$D:$D,AE$3)+SUMIFS(Oversigt!$N:$N,Oversigt!$C:$C,$B4,Oversigt!$D:$D,AE$3) -> 11 | AF4: =SUMIFS(Oversigt!$E:$E,Oversigt!$C:$C,$B4,Oversigt!$D:$D,AF$3)+SUMIFS(Oversigt!$H:$H,Oversigt!$C:$C,$B4,Oversigt!$D:$D,AF$3)+SUMIFS(Oversigt!$K:$K,Oversigt!$C:$C,$B4,Oversigt!$D:$D,AF$3)+SUMIFS(Oversigt!$N:$N,Oversigt!$C:$C,$B4,Oversigt!$D:$D,AF$3) -> 11
B5: Risikohåndtering | C5: =SUMIFS(Oversigt!$E:$E,Oversigt!$C:$C,$B5,Oversigt!$D:$D,C$3) -> 0 | D5: =SUMIFS(Oversigt!$E:$E,Oversigt!$C:$C,$B5,Oversigt!$D:$D,D$3) -> 0 | E5: =SUMIFS(Oversigt!$E:$E,Oversigt!$C:$C,$B5,Oversigt!$D:$D,E$3) -> 0 | F5: =SUMIFS(Oversigt!$E:$E,Oversigt!$C:$C,$B5,Oversigt!$D:$D,F$3) -> 0 | G5: =SUMIFS(Oversigt!$E:$E,Oversigt!$C:$C,$B5,Oversigt!$D:$D,G$3) -> 3 | H5: =SUMIFS(Oversigt!$E:$E,Oversigt!$C:$C,$B5,Oversigt!$D:$D,H$3) -> 3 | I5: =SUMIFS(Oversigt!$H:$H,Oversigt!$C:$C,$B5,Oversigt!$D:$D,I$3) -> 0 | J5: =SUMIFS(Oversigt!$H:$H,Oversigt!$C:$C,$B5,Oversigt!$D:$D,J$3) -> 0 | K5: =SUMIFS(Oversigt!$H:$H,Oversigt!$C:$C,$B5,Oversigt!$D:$D,K$3) -> 0 | L5: =SUMIFS(Oversigt!$H:$H,Oversigt!$C:$C,$B5,Oversigt!$D:$D,L$3) -> 0 | M5: =SUMIFS(Oversigt!$H:$H,Oversigt!$C:$C,$B5,Oversigt!$D:$D,M$3) -> 2 | N5: =SUMIFS(Oversigt!$H:$H,Oversigt!$C:$C,$B5,Oversigt!$D:$D,N$3) -> 2 | O5: =SUMIFS(Oversigt!$K:$K,Oversigt!$C:$C,$B5,Oversigt!$D:$D,O$3) -> 0 | P5: =SUMIFS(Oversigt!$K:$K,Oversigt!$C:$C,$B5,Oversigt!$D:$D,P$3) -> 0 | Q5: =SUMIFS(Oversigt!$K:$K,Oversigt!$C:$C,$B5,Oversigt!$D:$D,Q$3) -> 0 | R5: =SUMIFS(Oversigt!$K:$K,Oversigt!$C:$C,$B5,Oversigt!$D:$D,R$3) -> 0 | S5: =SUMIFS(Oversigt!$K:$K,Oversigt!$C:$C,$B5,Oversigt!$D:$D,S$3) -> 3 | T5: =SUMIFS(Oversigt!$K:$K,Oversigt!$C:$C,$B5,Oversigt!$D:$D,T$3) -> 3 | U5: =SUMIFS(Oversigt!$N:$N,Oversigt!$C:$C,$B5,Oversigt!$D:$D,U$3) -> 0 | V5: =SUMIFS(Oversigt!$N:$N,Oversigt!$C:$C,$B5,Oversigt!$D:$D,V$3) -> 0 | W5: =SUMIFS(Oversigt!$N:$N,Oversigt!$C:$C,$B5,Oversigt!$D:$D,W$3) -> 0 | X5: =SUMIFS(Oversigt!$N:$N,Oversigt!$C:$C,$B5,Oversigt!$D:$D,X$3) -> 0 | Y5: =SUMIFS(Oversigt!$N:$N,Oversigt!$C:$C,$B5,Oversigt!$D:$D,Y$3) -> 2 | Z5: =SUMIFS(Oversigt!$N:$N,Oversigt!$C:$C,$B5,Oversigt!$D:$D,Z$3) -> 2 | AA5: =SUMIFS(Oversigt!$E:$E,Oversigt!$C:$C,$B5,Oversigt!$D:$D,AA$3)+SUMIFS(Oversigt!$H:$H,Oversigt!$C:$C,$B5,Oversigt!$D:$D,AA$3)+SUMIFS(Oversigt!$K:$K,Oversigt!$C:$C,$B5,Oversigt!$D:$D,AA$3)+SUMIFS(Oversigt!$N:$N,Oversigt!$C:$C,$B5,Oversigt!$D:$D,AA$3) -> 0 | AB5: =SUMIFS(Oversigt!$E:$E,Oversigt!$C:$C,$B5,Oversigt!$D:$D,AB$3)+SUMIFS(Oversigt!$H:$H,Oversigt!$C:$C,$B5,Oversigt!$D:$D,AB$3)+SUMIFS(Oversigt!$K:$K,Oversigt!$C:$C,$B5,Oversigt!$D:$D,AB$3)+SUMIFS(Oversigt!$N:$N,Oversigt!$C:$C,$B5,Oversigt!$D:$D,AB$3) -> 0 | AC5: =SUMIFS(Oversigt!$E:$E,Oversigt!$C:$C,$B5,Oversigt!$D:$D,AC$3)+SUMIFS(Oversigt!$H:$H,Oversigt!$C:$C,$B5,Oversigt!$D:$D,AC$3)+SUMIFS(Oversigt!$K:$K,Oversigt!$C:$C,$B5,Oversigt!$D:$D,AC$3)+SUMIFS(Oversigt!$N:$N,Oversigt!$C:$C,$B5,Oversigt!$D:$D,AC$3) -> 0 | AD5: =SUMIFS(Oversigt!$E:$E,Oversigt!$C:$C,$B5,Oversigt!$D:$D,AD$3)+SUMIFS(Oversigt!$H:$H,Oversigt!$C:$C,$B5,Oversigt!$D:$D,AD$3)+SUMIFS(Oversigt!$K:$K,Oversigt!$C:$C,$B5,Oversigt!$D:$D,AD$3)+SUMIFS(Oversigt!$N:$N,Oversigt!$C:$C,$B5,Oversigt!$D:$D,AD$3) -> 0 | AE5: =SUMIFS(Oversigt!$E:$E,Oversigt!$C:$C,$B5,Oversigt!$D:$D,AE$3)+SUMIFS(Oversigt!$H:$H,Oversigt!$C:$C,$B5,Oversigt!$D:$D,AE$3)+SUMIFS(Oversigt!$K:$K,Oversigt!$C:$C,$B5,Oversigt!$D:$D,AE$3)+SUMIFS(Oversigt!$N:$N,Oversigt!$C:$C,$B5,Oversigt!$D:$D,AE$3) -> 10 | AF5: =SUMIFS(Oversigt!$E:$E,Oversigt!$C:$C,$B5,Oversigt!$D:$D,AF$3)+SUMIFS(Oversigt!$H:$H,Oversigt!$C:$C,$B5,Oversigt!$D:$D,AF$3)+SUMIFS(Oversigt!$K:$K,Oversigt!$C:$C,$B5,Oversigt!$D:$D,AF$3)+SUMIFS(Oversigt!$N:$N,Oversigt!$C:$C,$B5,Oversigt!$D:$D,AF$3) -> 10
B6: ISMS | C6: =SUMIFS(Oversigt!$E:$E,Oversigt!$C:$C,$B6,Oversigt!$D:$D,C$3) -> 0 | D6: =SUMIFS(Oversigt!$E:$E,Oversigt!$C:$C,$B6,Oversigt!$D:$D,D$3) -> 0 | E6: =SUMIFS(Oversigt!$E:$E,Oversigt!$C:$C,$B6,Oversigt!$D:$D,E$3) -> 0 | F6: =SUMIFS(Oversigt!$E:$E,Oversigt!$C:$C,$B6,Oversigt!$D:$D,F$3) -> 0 | G6: =SUMIFS(Oversigt!$E:$E,Oversigt!$C:$C,$B6,Oversigt!$D:$D,G$3) -> 4 | H6: =SUMIFS(Oversigt!$E:$E,Oversigt!$C:$C,$B6,Oversigt!$D:$D,H$3) -> 4 | I6: =SUMIFS(Oversigt!$H:$H,Oversigt!$C:$C,$B6,Oversigt!$D:$D,I$3) -> 0 | J6: =SUMIFS(Oversigt!$H:$H,Oversigt!$C:$C,$B6,Oversigt!$D:$D,J$3) -> 0 | K6: =SUMIFS(Oversigt!$H:$H,Oversigt!$C:$C,$B6,Oversigt!$D:$D,K$3) -> 0 | L6: =SUMIFS(Oversigt!$H:$H,Oversigt!$C:$C,$B6,Oversigt!$D:$D,L$3) -> 0 | M6: =SUMIFS(Oversigt!$H:$H,Oversigt!$C:$C,$B6,Oversigt!$D:$D,M$3) -> 7 | N6: =SUMIFS(Oversigt!$H:$H,Oversigt!$C:$C,$B6,Oversigt!$D:$D,N$3) -> 7 | O6: =SUMIFS(Oversigt!$K:$K,Oversigt!$C:$C,$B6,Oversigt!$D:$D,O$3) -> 0 | P6: =SUMIFS(Oversigt!$K:$K,Oversigt!$C:$C,$B6,Oversigt!$D:$D,P$3) -> 0 | Q6: =SUMIFS(Oversigt!$K:$K,Oversigt!$C:$C,$B6,Oversigt!$D:$D,Q$3) -> 0 | R6: =SUMIFS(Oversigt!$K:$K,Oversigt!$C:$C,$B6,Oversigt!$D:$D,R$3) -> 0 | S6: =SUMIFS(Oversigt!$K:$K,Oversigt!$C:$C,$B6,Oversigt!$D:$D,S$3) -> 3 | T6: =SUMIFS(Oversigt!$K:$K,Oversigt!$C:$C,$B6,Oversigt!$D:$D,T$3) -> 3 | U6: =SUMIFS(Oversigt!$N:$N,Oversigt!$C:$C,$B6,Oversigt!$D:$D,U$3) -> 0 | V6: =SUMIFS(Oversigt!$N:$N,Oversigt!$C:$C,$B6,Oversigt!$D:$D,V$3) -> 0 | W6: =SUMIFS(Oversigt!$N:$N,Oversigt!$C:$C,$B6,Oversigt!$D:$D,W$3) -> 0 | X6: =SUMIFS(Oversigt!$N:$N,Oversigt!$C:$C,$B6,Oversigt!$D:$D,X$3) -> 0 | Y6: =SUMIFS(Oversigt!$N:$N,Oversigt!$C:$C,$B6,Oversigt!$D:$D,Y$3) -> 1 | Z6: =SUMIFS(Oversigt!$N:$N,Oversigt!$C:$C,$B6,Oversigt!$D:$D,Z$3) -> 1 | AA6: =SUMIFS(Oversigt!$E:$E,Oversigt!$C:$C,$B6,Oversigt!$D:$D,AA$3)+SUMIFS(Oversigt!$H:$H,Oversigt!$C:$C,$B6,Oversigt!$D:$D,AA$3)+SUMIFS(Oversigt!$K:$K,Oversigt!$C:$C,$B6,Oversigt!$D:$D,AA$3)+SUMIFS(Oversigt!$N:$N,Oversigt!$C:$C,$B6,Oversigt!$D:$D,AA$3) -> 0 | AB6: =SUMIFS(Oversigt!$E:$E,Oversigt!$C:$C,$B6,Oversigt!$D:$D,AB$3)+SUMIFS(Oversigt!$H:$H,Oversigt!$C:$C,$B6,Oversigt!$D:$D,AB$3)+SUMIFS(Oversigt!$K:$K,Oversigt!$C:$C,$B6,Oversigt!$D:$D,AB$3)+SUMIFS(Oversigt!$N:$N,Oversigt!$C:$C,$B6,Oversigt!$D:$D,AB$3) -> 0 | AC6: =SUMIFS(Oversigt!$E:$E,Oversigt!$C:$C,$B6,Oversigt!$D:$D,AC$3)+SUMIFS(Oversigt!$H:$H,Oversigt!$C:$C,$B6,Oversigt!$D:$D,AC$3)+SUMIFS(Oversigt!$K:$K,Oversigt!$C:$C,$B6,Oversigt!$D:$D,AC$3)+SUMIFS(Oversigt!$N:$N,Oversigt!$C:$C,$B6,Oversigt!$D:$D,AC$3) -> 0 | AD6: =SUMIFS(Oversigt!$E:$E,Oversigt!$C:$C,$B6,Oversigt!$D:$D,AD$3)+SUMIFS(Oversigt!$H:$H,Oversigt!$C:$C,$B6,Oversigt!$D:$D,AD$3)+SUMIFS(Oversigt!$K:$K,Oversigt!$C:$C,$B6,Oversigt!$D:$D,AD$3)+SUMIFS(Oversigt!$N:$N,Oversigt!$C:$C,$B6,Oversigt!$D:$D,AD$3) -> 0 | AE6: =SUMIFS(Oversigt!$E:$E,Oversigt!$C:$C,$B6,Oversigt!$D:$D,AE$3)+SUMIFS(Oversigt!$H:$H,Oversigt!$C:$C,$B6,Oversigt!$D:$D,AE$3)+SUMIFS(Oversigt!$K:$K,Oversigt!$C:$C,$B6,Oversigt!$D:$D,AE$3)+SUMIFS(Oversigt!$N:$N,Oversigt!$C:$C,$B6,Oversigt!$D:$D,AE$3) -> 15 | AF6: =SUMIFS(Oversigt!$E:$E,Oversigt!$C:$C,$B6,Oversigt!$D:$D,AF$3)+SUMIFS(Oversigt!$H:$H,Oversigt!$C:$C,$B6,Oversigt!$D:$D,AF$3)+SUMIFS(Oversigt!$K:$K,Oversigt!$C:$C,$B6,Oversigt!$D:$D,AF$3)+SUMIFS(Oversigt!$N:$N,Oversigt!$C:$C,$B6,Oversigt!$D:$D,AF$3) -> 15
B7: Politik | C7: =SUMIFS(Oversigt!$E:$E,Oversigt!$C:$C,$B7,Oversigt!$D:$D,C$3) -> 0 | D7: =SUMIFS(Oversigt!$E:$E,Oversigt!$C:$C,$B7,Oversigt!$D:$D,D$3) -> 0 | E7: =SUMIFS(Oversigt!$E:$E,Oversigt!$C:$C,$B7,Oversigt!$D:$D,E$3) -> 0 | F7: =SUMIFS(Oversigt!$E:$E,Oversigt!$C:$C,$B7,Oversigt!$D:$D,F$3) -> 0 | G7: =SUMIFS(Oversigt!$E:$E,Oversigt!$C:$C,$B7,Oversigt!$D:$D,G$3) -> 3 | H7: =SUMIFS(Oversigt!$E:$E,Oversigt!$C:$C,$B7,Oversigt!$D:$D,H$3) -> 3 | I7: =SUMIFS(Oversigt!$H:$H,Oversigt!$C:$C,$B7,Oversigt!$D:$D,I$3) -> 0 | J7: =SUMIFS(Oversigt!$H:$H,Oversigt!$C:$C,$B7,Oversigt!$D:$D,J$3) -> 0 | K7: =SUMIFS(Oversigt!$H:$H,Oversigt!$C:$C,$B7,Oversigt!$D:$D,K$3) -> 0 | L7: =SUMIFS(Oversigt!$H:$H,Oversigt!$C:$C,$B7,Oversigt!$D:$D,L$3) -> 0 | M7: =SUMIFS(Oversigt!$H:$H,Oversigt!$C:$C,$B7,Oversigt!$D:$D,M$3) -> 3 | N7: =SUMIFS(Oversigt!$H:$H,Oversigt!$C:$C,$B7,Oversigt!$D:$D,N$3) -> 3 | O7: =SUMIFS(Oversigt!$K:$K,Oversigt!$C:$C,$B7,Oversigt!$D:$D,O$3) -> 0 | P7: =SUMIFS(Oversigt!$K:$K,Oversigt!$C:$C,$B7,Oversigt!$D:$D,P$3) -> 0 | Q7: =SUMIFS(Oversigt!$K:$K,Oversigt!$C:$C,$B7,Oversigt!$D:$D,Q$3) -> 0 | R7: =SUMIFS(Oversigt!$K:$K,Oversigt!$C:$C,$B7,Oversigt!$D:$D,R$3) -> 0 | S7: =SUMIFS(Oversigt!$K:$K,Oversigt!$C:$C,$B7,Oversigt!$D:$D,S$3) -> 2 | T7: =SUMIFS(Oversigt!$K:$K,Oversigt!$C:$C,$B7,Oversigt!$D:$D,T$3) -> 2 | U7: =SUMIFS(Oversigt!$N:$N,Oversigt!$C:$C,$B7,Oversigt!$D:$D,U$3) -> 0 | V7: =SUMIFS(Oversigt!$N:$N,Oversigt!$C:$C,$B7,Oversigt!$D:$D,V$3) -> 0 | W7: =SUMIFS(Oversigt!$N:$N,Oversigt!$C:$C,$B7,Oversigt!$D:$D,W$3) -> 0 | X7: =SUMIFS(Oversigt!$N:$N,Oversigt!$C:$C,$B7,Oversigt!$D:$D,X$3) -> 0 | Y7: =SUMIFS(Oversigt!$N:$N,Oversigt!$C:$C,$B7,Oversigt!$D:$D,Y$3) -> 2 | Z7: =SUMIFS(Oversigt!$N:$N,Oversigt!$C:$C,$B7,Oversigt!$D:$D,Z$3) -> 2 | AA7: =SUMIFS(Oversigt!$E:$E,Oversigt!$C:$C,$B7,Oversigt!$D:$D,AA$3)+SUMIFS(Oversigt!$H:$H,Oversigt!$C:$C,$B7,Oversigt!$D:$D,AA$3)+SUMIFS(Oversigt!$K:$K,Oversigt!$C:$C,$B7,Oversigt!$D:$D,AA$3)+SUMIFS(Oversigt!$N:$N,Oversigt!$C:$C,$B7,Oversigt!$D:$D,AA$3) -> 0 | AB7: =SUMIFS(Oversigt!$E:$E,Oversigt!$C:$C,$B7,Oversigt!$D:$D,AB$3)+SUMIFS(Oversigt!$H:$H,Oversigt!$C:$C,$B7,Oversigt!$D:$D,AB$3)+SUMIFS(Oversigt!$K:$K,Oversigt!$C:$C,$B7,Oversigt!$D:$D,AB$3)+SUMIFS(Oversigt!$N:$N,Oversigt!$C:$C,$B7,Oversigt!$D:$D,AB$3) -> 0 | AC7: =SUMIFS(Oversigt!$E:$E,Oversigt!$C:$C,$B7,Oversigt!$D:$D,AC$3)+SUMIFS(Oversigt!$H:$H,Oversigt!$C:$C,$B7,Oversigt!$D:$D,AC$3)+SUMIFS(Oversigt!$K:$K,Oversigt!$C:$C,$B7,Oversigt!$D:$D,AC$3)+SUMIFS(Oversigt!$N:$N,Oversigt!$C:$C,$B7,Oversigt!$D:$D,AC$3) -> 0 | AD7: =SUMIFS(Oversigt!$E:$E,Oversigt!$C:$C,$B7,Oversigt!$D:$D,AD$3)+SUMIFS(Oversigt!$H:$H,Oversigt!$C:$C,$B7,Oversigt!$D:$D,AD$3)+SUMIFS(Oversigt!$K:$K,Oversigt!$C:$C,$B7,Oversigt!$D:$D,AD$3)+SUMIFS(Oversigt!$N:$N,Oversigt!$C:$C,$B7,Oversigt!$D:$D,AD$3) -> 0 | AE7: =SUMIFS(Oversigt!$E:$E,Oversigt!$C:$C,$B7,Oversigt!$D:$D,AE$3)+SUMIFS(Oversigt!$H:$H,Oversigt!$C:$C,$B7,Oversigt!$D:$D,AE$3)+SUMIFS(Oversigt!$K:$K,Oversigt!$C:$C,$B7,Oversigt!$D:$D,AE$3)+SUMIFS(Oversigt!$N:$N,Oversigt!$C:$C,$B7,Oversigt!$D:$D,AE$3) -> 10 | AF7: =SUMIFS(Oversigt!$E:$E,Oversigt!$C:$C,$B7,Oversigt!$D:$D,AF$3)+SUMIFS(Oversigt!$H:$H,Oversigt!$C:$C,$B7,Oversigt!$D:$D,AF$3)+SUMIFS(Oversigt!$K:$K,Oversigt!$C:$C,$B7,Oversigt!$D:$D,AF$3)+SUMIFS(Oversigt!$N:$N,Oversigt!$C:$C,$B7,Oversigt!$D:$D,AF$3) -> 10
B8: Ledelsesforankring | C8: =SUMIFS(Oversigt!$E:$E,Oversigt!$C:$C,$B8,Oversigt!$D:$D,C$3) -> 0 | D8: =SUMIFS(Oversigt!$E:$E,Oversigt!$C:$C,$B8,Oversigt!$D:$D,D$3) -> 0 | E8: =SUMIFS(Oversigt!$E:$E,Oversigt!$C:$C,$B8,Oversigt!$D:$D,E$3) -> 0 | F8: =SUMIFS(Oversigt!$E:$E,Oversigt!$C:$C,$B8,Oversigt!$D:$D,F$3) -> 0 | G8: =SUMIFS(Oversigt!$E:$E,Oversigt!$C:$C,$B8,Oversigt!$D:$D,G$3) -> 0 | H8: =SUMIFS(Oversigt!$E:$E,Oversigt!$C:$C,$B8,Oversigt!$D:$D,H$3) -> 0 | I8: =SUMIFS(Oversigt!$H:$H,Oversigt!$C:$C,$B8,Oversigt!$D:$D,I$3) -> 0 | J8: =SUMIFS(Oversigt!$H:$H,Oversigt!$C:$C,$B8,Oversigt!$D:$D,J$3) -> 0 | K8: =SUMIFS(Oversigt!$H:$H,Oversigt!$C:$C,$B8,Oversigt!$D:$D,K$3) -> 0 | L8: =SUMIFS(Oversigt!$H:$H,Oversigt!$C:$C,$B8,Oversigt!$D:$D,L$3) -> 0 | M8: =SUMIFS(Oversigt!$H:$H,Oversigt!$C:$C,$B8,Oversigt!$D:$D,M$3) -> 4 | N8: =SUMIFS(Oversigt!$H:$H,Oversigt!$C:$C,$B8,Oversigt!$D:$D,N$3) -> 4 | O8: =SUMIFS(Oversigt!$K:$K,Oversigt!$C:$C,$B8,Oversigt!$D:$D,O$3) -> 0 | P8: =SUMIFS(Oversigt!$K:$K,Oversigt!$C:$C,$B8,Oversigt!$D:$D,P$3) -> 0 | Q8: =SUMIFS(Oversigt!$K:$K,Oversigt!$C:$C,$B8,Oversigt!$D:$D,Q$3) -> 0 | R8: =SUMIFS(Oversigt!$K:$K,Oversigt!$C:$C,$B8,Oversigt!$D:$D,R$3) -> 0 | S8: =SUMIFS(Oversigt!$K:$K,Oversigt!$C:$C,$B8,Oversigt!$D:$D,S$3) -> 3 | T8: =SUMIFS(Oversigt!$K:$K,Oversigt!$C:$C,$B8,Oversigt!$D:$D,T$3) -> 3 | U8: =SUMIFS(Oversigt!$N:$N,Oversigt!$C:$C,$B8,Oversigt!$D:$D,U$3) -> 0 | V8: =SUMIFS(Oversigt!$N:$N,Oversigt!$C:$C,$B8,Oversigt!$D:$D,V$3) -> 0 | W8: =SUMIFS(Oversigt!$N:$N,Oversigt!$C:$C,$B8,Oversigt!$D:$D,W$3) -> 0 | X8: =SUMIFS(Oversigt!$N:$N,Oversigt!$C:$C,$B8,Oversigt!$D:$D,X$3) -> 0 | Y8: =SUMIFS(Oversigt!$N:$N,Oversigt!$C:$C,$B8,Oversigt!$D:$D,Y$3) -> 2 | Z8: =SUMIFS(Oversigt!$N:$N,Oversigt!$C:$C,$B8,Oversigt!$D:$D,Z$3) -> 2 | AA8: =SUMIFS(Oversigt!$E:$E,Oversigt!$C:$C,$B8,Oversigt!$D:$D,AA$3)+SUMIFS(Oversigt!$H:$H,Oversigt!$C:$C,$B8,Oversigt!$D:$D,AA$3)+SUMIFS(Oversigt!$K:$K,Oversigt!$C:$C,$B8,Oversigt!$D:$D,AA$3)+SUMIFS(Oversigt!$N:$N,Oversigt!$C:$C,$B8,Oversigt!$D:$D,AA$3) -> 0 | AB8: =SUMIFS(Oversigt!$E:$E,Oversigt!$C:$C,$B8,Oversigt!$D:$D,AB$3)+SUMIFS(Oversigt!$H:$H,Oversigt!$C:$C,$B8,Oversigt!$D:$D,AB$3)+SUMIFS(Oversigt!$K:$K,Oversigt!$C:$C,$B8,Oversigt!$D:$D,AB$3)+SUMIFS(Oversigt!$N:$N,Oversigt!$C:$C,$B8,Oversigt!$D:$D,AB$3) -> 0 | AC8: =SUMIFS(Oversigt!$E:$E,Oversigt!$C:$C,$B8,Oversigt!$D:$D,AC$3)+SUMIFS(Oversigt!$H:$H,Oversigt!$C:$C,$B8,Oversigt!$D:$D,AC$3)+SUMIFS(Oversigt!$K:$K,Oversigt!$C:$C,$B8,Oversigt!$D:$D,AC$3)+SUMIFS(Oversigt!$N:$N,Oversigt!$C:$C,$B8,Oversigt!$D:$D,AC$3) -> 0 | AD8: =SUMIFS(Oversigt!$E:$E,Oversigt!$C:$C,$B8,Oversigt!$D:$D,AD$3)+SUMIFS(Oversigt!$H:$H,Oversigt!$C:$C,$B8,Oversigt!$D:$D,AD$3)+SUMIFS(Oversigt!$K:$K,Oversigt!$C:$C,$B8,Oversigt!$D:$D,AD$3)+SUMIFS(Oversigt!$N:$N,Oversigt!$C:$C,$B8,Oversigt!$D:$D,AD$3) -> 0 | AE8: =SUMIFS(Oversigt!$E:$E,Oversigt!$C:$C,$B8,Oversigt!$D:$D,AE$3)+SUMIFS(Oversigt!$H:$H,Oversigt!$C:$C,$B8,Oversigt!$D:$D,AE$3)+SUMIFS(Oversigt!$K:$K,Oversigt!$C:$C,$B8,Oversigt!$D:$D,AE$3)+SUMIFS(Oversigt!$N:$N,Oversigt!$C:$C,$B8,Oversigt!$D:$D,AE$3) -> 9 | AF8: =SUMIFS(Oversigt!$E:$E,Oversigt!$C:$C,$B8,Oversigt!$D:$D,AF$3)+SUMIFS(Oversigt!$H:$H,Oversigt!$C:$C,$B8,Oversigt!$D:$D,AF$3)+SUMIFS(Oversigt!$K:$K,Oversigt!$C:$C,$B8,Oversigt!$D:$D,AF$3)+SUMIFS(Oversigt!$N:$N,Oversigt!$C:$C,$B8,Oversigt!$D:$D,AF$3) -> 9
B9: Leverandørstyring | C9: =SUMIFS(Oversigt!$E:$E,Oversigt!$C:$C,$B9,Oversigt!$D:$D,C$3) -> 0 | D9: =SUMIFS(Oversigt!$E:$E,Oversigt!$C:$C,$B9,Oversigt!$D:$D,D$3) -> 0 | E9: =SUMIFS(Oversigt!$E:$E,Oversigt!$C:$C,$B9,Oversigt!$D:$D,E$3) -> 0 | F9: =SUMIFS(Oversigt!$E:$E,Oversigt!$C:$C,$B9,Oversigt!$D:$D,F$3) -> 0 | G9: =SUMIFS(Oversigt!$E:$E,Oversigt!$C:$C,$B9,Oversigt!$D:$D,G$3) -> 9 | H9: =SUMIFS(Oversigt!$E:$E,Oversigt!$C:$C,$B9,Oversigt!$D:$D,H$3) -> 9 | I9: =SUMIFS(Oversigt!$H:$H,Oversigt!$C:$C,$B9,Oversigt!$D:$D,I$3) -> 0 | J9: =SUMIFS(Oversigt!$H:$H,Oversigt!$C:$C,$B9,Oversigt!$D:$D,J$3) -> 0 | K9: =SUMIFS(Oversigt!$H:$H,Oversigt!$C:$C,$B9,Oversigt!$D:$D,K$3) -> 0 | L9: =SUMIFS(Oversigt!$H:$H,Oversigt!$C:$C,$B9,Oversigt!$D:$D,L$3) -> 0 | M9: =SUMIFS(Oversigt!$H:$H,Oversigt!$C:$C,$B9,Oversigt!$D:$D,M$3) -> 8 | N9: =SUMIFS(Oversigt!$H:$H,Oversigt!$C:$C,$B9,Oversigt!$D:$D,N$3) -> 8 | O9: =SUMIFS(Oversigt!$K:$K,Oversigt!$C:$C,$B9,Oversigt!$D:$D,O$3) -> 0 | P9: =SUMIFS(Oversigt!$K:$K,Oversigt!$C:$C,$B9,Oversigt!$D:$D,P$3) -> 0 | Q9: =SUMIFS(Oversigt!$K:$K,Oversigt!$C:$C,$B9,Oversigt!$D:$D,Q$3) -> 0 | R9: =SUMIFS(Oversigt!$K:$K,Oversigt!$C:$C,$B9,Oversigt!$D:$D,R$3) -> 0 | S9: =SUMIFS(Oversigt!$K:$K,Oversigt!$C:$C,$B9,Oversigt!$D:$D,S$3) -> 7 | T9: =SUMIFS(Oversigt!$K:$K,Oversigt!$C:$C,$B9,Oversigt!$D:$D,T$3) -> 7 | U9: =SUMIFS(Oversigt!$N:$N,Oversigt!$C:$C,$B9,Oversigt!$D:$D,U$3) -> 0 | V9: =SUMIFS(Oversigt!$N:$N,Oversigt!$C:$C,$B9,Oversigt!$D:$D,V$3) -> 0 | W9: =SUMIFS(Oversigt!$N:$N,Oversigt!$C:$C,$B9,Oversigt!$D:$D,W$3) -> 0 | X9: =SUMIFS(Oversigt!$N:$N,Oversigt!$C:$C,$B9,Oversigt!$D:$D,X$3) -> 0 | Y9: =SUMIFS(Oversigt!$N:$N,Oversigt!$C:$C,$B9,Oversigt!$D:$D,Y$3) -> 2 | Z9: =SUMIFS(Oversigt!$N:$N,Oversigt!$C:$C,$B9,Oversigt!$D:$D,Z$3) -> 2 | AA9: =SUMIFS(Oversigt!$E:$E,Oversigt!$C:$C,$B9,Oversigt!$D:$D,AA$3)+SUMIFS(Oversigt!$H:$H,Oversigt!$C:$C,$B9,Oversigt!$D:$D,AA$3)+SUMIFS(Oversigt!$K:$K,Oversigt!$C:$C,$B9,Oversigt!$D:$D,AA$3)+SUMIFS(Oversigt!$N:$N,Oversigt!$C:$C,$B9,Oversigt!$D:$D,AA$3) -> 0 | AB9: =SUMIFS(Oversigt!$E:$E,Oversigt!$C:$C,$B9,Oversigt!$D:$D,AB$3)+SUMIFS(Oversigt!$H:$H,Oversigt!$C:$C,$B9,Oversigt!$D:$D,AB$3)+SUMIFS(Oversigt!$K:$K,Oversigt!$C:$C,$B9,Oversigt!$D:$D,AB$3)+SUMIFS(Oversigt!$N:$N,Oversigt!$C:$C,$B9,Oversigt!$D:$D,AB$3) -> 0 | AC9: =SUMIFS(Oversigt!$E:$E,Oversigt!$C:$C,$B9,Oversigt!$D:$D,AC$3)+SUMIFS(Oversigt!$H:$H,Oversigt!$C:$C,$B9,Oversigt!$D:$D,AC$3)+SUMIFS(Oversigt!$K:$K,Oversigt!$C:$C,$B9,Oversigt!$D:$D,AC$3)+SUMIFS(Oversigt!$N:$N,Oversigt!$C:$C,$B9,Oversigt!$D:$D,AC$3) -> 0 | AD9: =SUMIFS(Oversigt!$E:$E,Oversigt!$C:$C,$B9,Oversigt!$D:$D,AD$3)+SUMIFS(Oversigt!$H:$H,Oversigt!$C:$C,$B9,Oversigt!$D:$D,AD$3)+SUMIFS(Oversigt!$K:$K,Oversigt!$C:$C,$B9,Oversigt!$D:$D,AD$3)+SUMIFS(Oversigt!$N:$N,Oversigt!$C:$C,$B9,Oversigt!$D:$D,AD$3) -> 0 | AE9: =SUMIFS(Oversigt!$E:$E,Oversigt!$C:$C,$B9,Oversigt!$D:$D,AE$3)+SUMIFS(Oversigt!$H:$H,Oversigt!$C:$C,$B9,Oversigt!$D:$D,AE$3)+SUMIFS(Oversigt!$K:$K,Oversigt!$C:$C,$B9,Oversigt!$D:$D,AE$3)+SUMIFS(Oversigt!$N:$N,Oversigt!$C:$C,$B9,Oversigt!$D:$D,AE$3) -> 26 | AF9: =SUMIFS(Oversigt!$E:$E,Oversigt!$C:$C,$B9,Oversigt!$D:$D,AF$3)+SUMIFS(Oversigt!$H:$H,Oversigt!$C:$C,$B9,Oversigt!$D:$D,AF$3)+SUMIFS(Oversigt!$K:$K,Oversigt!$C:$C,$B9,Oversigt!$D:$D,AF$3)+SUMIFS(Oversigt!$N:$N,Oversigt!$C:$C,$B9,Oversigt!$D:$D,AF$3) -> 26
B10: It-beredskab | C10: =SUMIFS(Oversigt!$E:$E,Oversigt!$C:$C,$B10,Oversigt!$D:$D,C$3) -> 0 | D10: =SUMIFS(Oversigt!$E:$E,Oversigt!$C:$C,$B10,Oversigt!$D:$D,D$3) -> 0 | E10: =SUMIFS(Oversigt!$E:$E,Oversigt!$C:$C,$B10,Oversigt!$D:$D,E$3) -> 0 | F10: =SUMIFS(Oversigt!$E:$E,Oversigt!$C:$C,$B10,Oversigt!$D:$D,F$3) -> 0 | G10: =SUMIFS(Oversigt!$E:$E,Oversigt!$C:$C,$B10,Oversigt!$D:$D,G$3) -> 8 | H10: =SUMIFS(Oversigt!$E:$E,Oversigt!$C:$C,$B10,Oversigt!$D:$D,H$3) -> 8 | I10: =SUMIFS(Oversigt!$H:$H,Oversigt!$C:$C,$B10,Oversigt!$D:$D,I$3) -> 0 | J10: =SUMIFS(Oversigt!$H:$H,Oversigt!$C:$C,$B10,Oversigt!$D:$D,J$3) -> 0 | K10: =SUMIFS(Oversigt!$H:$H,Oversigt!$C:$C,$B10,Oversigt!$D:$D,K$3) -> 0 | L10: =SUMIFS(Oversigt!$H:$H,Oversigt!$C:$C,$B10,Oversigt!$D:$D,L$3) -> 0 | M10: =SUMIFS(Oversigt!$H:$H,Oversigt!$C:$C,$B10,Oversigt!$D:$D,M$3) -> 4 | N10: =SUMIFS(Oversigt!$H:$H,Oversigt!$C:$C,$B10,Oversigt!$D:$D,N$3) -> 4 | O10: =SUMIFS(Oversigt!$K:$K,Oversigt!$C:$C,$B10,Oversigt!$D:$D,O$3) -> 0 | P10: =SUMIFS(Oversigt!$K:$K,Oversigt!$C:$C,$B10,Oversigt!$D:$D,P$3) -> 0 | Q10: =SUMIFS(Oversigt!$K:$K,Oversigt!$C:$C,$B10,Oversigt!$D:$D,Q$3) -> 0 | R10: =SUMIFS(Oversigt!$K:$K,Oversigt!$C:$C,$B10,Oversigt!$D:$D,R$3) -> 0 | S10: =SUMIFS(Oversigt!$K:$K,Oversigt!$C:$C,$B10,Oversigt!$D:$D,S$3) -> 2 | T10: =SUMIFS(Oversigt!$K:$K,Oversigt!$C:$C,$B10,Oversigt!$D:$D,T$3) -> 2 | U10: =SUMIFS(Oversigt!$N:$N,Oversigt!$C:$C,$B10,Oversigt!$D:$D,U$3) -> 0 | V10: =SUMIFS(Oversigt!$N:$N,Oversigt!$C:$C,$B10,Oversigt!$D:$D,V$3) -> 0 | W10: =SUMIFS(Oversigt!$N:$N,Oversigt!$C:$C,$B10,Oversigt!$D:$D,W$3) -> 0 | X10: =SUMIFS(Oversigt!$N:$N,Oversigt!$C:$C,$B10,Oversigt!$D:$D,X$3) -> 0 | Y10: =SUMIFS(Oversigt!$N:$N,Oversigt!$C:$C,$B10,Oversigt!$D:$D,Y$3) -> 2 | Z10: =SUMIFS(Oversigt!$N:$N,Oversigt!$C:$C,$B10,Oversigt!$D:$D,Z$3) -> 2 | AA10: =SUMIFS(Oversigt!$E:$E,Oversigt!$C:$C,$B10,Oversigt!$D:$D,AA$3)+SUMIFS(Oversigt!$H:$H,Oversigt!$C:$C,$B10,Oversigt!$D:$D,AA$3)+SUMIFS(Oversigt!$K:$K,Oversigt!$C:$C,$B10,Oversigt!$D:$D,AA$3)+SUMIFS(Oversigt!$N:$N,Oversigt!$C:$C,$B10,Oversigt!$D:$D,AA$3) -> 0 | AB10: =SUMIFS(Oversigt!$E:$E,Oversigt!$C:$C,$B10,Oversigt!$D:$D,AB$3)+SUMIFS(Oversigt!$H:$H,Oversigt!$C:$C,$B10,Oversigt!$D:$D,AB$3)+SUMIFS(Oversigt!$K:$K,Oversigt!$C:$C,$B10,Oversigt!$D:$D,AB$3)+SUMIFS(Oversigt!$N:$N,Oversigt!$C:$C,$B10,Oversigt!$D:$D,AB$3) -> 0 | AC10: =SUMIFS(Oversigt!$E:$E,Oversigt!$C:$C,$B10,Oversigt!$D:$D,AC$3)+SUMIFS(Oversigt!$H:$H,Oversigt!$C:$C,$B10,Oversigt!$D:$D,AC$3)+SUMIFS(Oversigt!$K:$K,Oversigt!$C:$C,$B10,Oversigt!$D:$D,AC$3)+SUMIFS(Oversigt!$N:$N,Oversigt!$C:$C,$B10,Oversigt!$D:$D,AC$3) -> 0 | AD10: =SUMIFS(Oversigt!$E:$E,Oversigt!$C:$C,$B10,Oversigt!$D:$D,AD$3)+SUMIFS(Oversigt!$H:$H,Oversigt!$C:$C,$B10,Oversigt!$D:$D,AD$3)+SUMIFS(Oversigt!$K:$K,Oversigt!$C:$C,$B10,Oversigt!$D:$D,AD$3)+SUMIFS(Oversigt!$N:$N,Oversigt!$C:$C,$B10,Oversigt!$D:$D,AD$3) -> 0 | AE10: =SUMIFS(Oversigt!$E:$E,Oversigt!$C:$C,$B10,Oversigt!$D:$D,AE$3)+SUMIFS(Oversigt!$H:$H,Oversigt!$C:$C,$B10,Oversigt!$D:$D,AE$3)+SUMIFS(Oversigt!$K:$K,Oversigt!$C:$C,$B10,Oversigt!$D:$D,AE$3)+SUMIFS(Oversigt!$N:$N,Oversigt!$C:$C,$B10,Oversigt!$D:$D,AE$3) -> 16 | AF10: =SUMIFS(Oversigt!$E:$E,Oversigt!$C:$C,$B10,Oversigt!$D:$D,AF$3)+SUMIFS(Oversigt!$H:$H,Oversigt!$C:$C,$B10,Oversigt!$D:$D,AF$3)+SUMIFS(Oversigt!$K:$K,Oversigt!$C:$C,$B10,Oversigt!$D:$D,AF$3)+SUMIFS(Oversigt!$N:$N,Oversigt!$C:$C,$B10,Oversigt!$D:$D,AF$3) -> 16
B11: Måling | C11: =SUMIFS(Oversigt!$E:$E,Oversigt!$C:$C,$B11,Oversigt!$D:$D,C$3) -> 0 | D11: =SUMIFS(Oversigt!$E:$E,Oversigt!$C:$C,$B11,Oversigt!$D:$D,D$3) -> 0 | E11: =SUMIFS(Oversigt!$E:$E,Oversigt!$C:$C,$B11,Oversigt!$D:$D,E$3) -> 0 | F11: =SUMIFS(Oversigt!$E:$E,Oversigt!$C:$C,$B11,Oversigt!$D:$D,F$3) -> 0 | G11: =SUMIFS(Oversigt!$E:$E,Oversigt!$C:$C,$B11,Oversigt!$D:$D,G$3) -> 1 | H11: =SUMIFS(Oversigt!$E:$E,Oversigt!$C:$C,$B11,Oversigt!$D:$D,H$3) -> 1 | I11: =SUMIFS(Oversigt!$H:$H,Oversigt!$C:$C,$B11,Oversigt!$D:$D,I$3) -> 0 | J11: =SUMIFS(Oversigt!$H:$H,Oversigt!$C:$C,$B11,Oversigt!$D:$D,J$3) -> 0 | K11: =SUMIFS(Oversigt!$H:$H,Oversigt!$C:$C,$B11,Oversigt!$D:$D,K$3) -> 0 | L11: =SUMIFS(Oversigt!$H:$H,Oversigt!$C:$C,$B11,Oversigt!$D:$D,L$3) -> 0 | M11: =SUMIFS(Oversigt!$H:$H,Oversigt!$C:$C,$B11,Oversigt!$D:$D,M$3) -> 0 | N11: =SUMIFS(Oversigt!$H:$H,Oversigt!$C:$C,$B11,Oversigt!$D:$D,N$3) -> 0 | O11: =SUMIFS(Oversigt!$K:$K,Oversigt!$C:$C,$B11,Oversigt!$D:$D,O$3) -> 0 | P11: =SUMIFS(Oversigt!$K:$K,Oversigt!$C:$C,$B11,Oversigt!$D:$D,P$3) -> 0 | Q11: =SUMIFS(Oversigt!$K:$K,Oversigt!$C:$C,$B11,Oversigt!$D:$D,Q$3) -> 0 | R11: =SUMIFS(Oversigt!$K:$K,Oversigt!$C:$C,$B11,Oversigt!$D:$D,R$3) -> 0 | S11: =SUMIFS(Oversigt!$K:$K,Oversigt!$C:$C,$B11,Oversigt!$D:$D,S$3) -> 2 | T11: =SUMIFS(Oversigt!$K:$K,Oversigt!$C:$C,$B11,Oversigt!$D:$D,T$3) -> 2 | U11: =SUMIFS(Oversigt!$N:$N,Oversigt!$C:$C,$B11,Oversigt!$D:$D,U$3) -> 0 | V11: =SUMIFS(Oversigt!$N:$N,Oversigt!$C:$C,$B11,Oversigt!$D:$D,V$3) -> 0 | W11: =SUMIFS(Oversigt!$N:$N,Oversigt!$C:$C,$B11,Oversigt!$D:$D,W$3) -> 0 | X11: =SUMIFS(Oversigt!$N:$N,Oversigt!$C:$C,$B11,Oversigt!$D:$D,X$3) -> 0 | Y11: =SUMIFS(Oversigt!$N:$N,Oversigt!$C:$C,$B11,Oversigt!$D:$D,Y$3) -> 1 | Z11: =SUMIFS(Oversigt!$N:$N,Oversigt!$C:$C,$B11,Oversigt!$D:$D,Z$3) -> 1 | AA11: =SUMIFS(Oversigt!$E:$E,Oversigt!$C:$C,$B11,Oversigt!$D:$D,AA$3)+SUMIFS(Oversigt!$H:$H,Oversigt!$C:$C,$B11,Oversigt!$D:$D,AA$3)+SUMIFS(Oversigt!$K:$K,Oversigt!$C:$C,$B11,Oversigt!$D:$D,AA$3)+SUMIFS(Oversigt!$N:$N,Oversigt!$C:$C,$B11,Oversigt!$D:$D,AA$3) -> 0 | AB11: =SUMIFS(Oversigt!$E:$E,Oversigt!$C:$C,$B11,Oversigt!$D:$D,AB$3)+SUMIFS(Oversigt!$H:$H,Oversigt!$C:$C,$B11,Oversigt!$D:$D,AB$3)+SUMIFS(Oversigt!$K:$K,Oversigt!$C:$C,$B11,Oversigt!$D:$D,AB$3)+SUMIFS(Oversigt!$N:$N,Oversigt!$C:$C,$B11,Oversigt!$D:$D,AB$3) -> 0 | AC11: =SUMIFS(Oversigt!$E:$E,Oversigt!$C:$C,$B11,Oversigt!$D:$D,AC$3)+SUMIFS(Oversigt!$H:$H,Oversigt!$C:$C,$B11,Oversigt!$D:$D,AC$3)+SUMIFS(Oversigt!$K:$K,Oversigt!$C:$C,$B11,Oversigt!$D:$D,AC$3)+SUMIFS(Oversigt!$N:$N,Oversigt!$C:$C,$B11,Oversigt!$D:$D,AC$3) -> 0 | AD11: =SUMIFS(Oversigt!$E:$E,Oversigt!$C:$C,$B11,Oversigt!$D:$D,AD$3)+SUMIFS(Oversigt!$H:$H,Oversigt!$C:$C,$B11,Oversigt!$D:$D,AD$3)+SUMIFS(Oversigt!$K:$K,Oversigt!$C:$C,$B11,Oversigt!$D:$D,AD$3)+SUMIFS(Oversigt!$N:$N,Oversigt!$C:$C,$B11,Oversigt!$D:$D,AD$3) -> 0 | AE11: =SUMIFS(Oversigt!$E:$E,Oversigt!$C:$C,$B11,Oversigt!$D:$D,AE$3)+SUMIFS(Oversigt!$H:$H,Oversigt!$C:$C,$B11,Oversigt!$D:$D,AE$3)+SUMIFS(Oversigt!$K:$K,Oversigt!$C:$C,$B11,Oversigt!$D:$D,AE$3)+SUMIFS(Oversigt!$N:$N,Oversigt!$C:$C,$B11,Oversigt!$D:$D,AE$3) -> 4 | AF11: =SUMIFS(Oversigt!$E:$E,Oversigt!$C:$C,$B11,Oversigt!$D:$D,AF$3)+SUMIFS(Oversigt!$H:$H,Oversigt!$C:$C,$B11,Oversigt!$D:$D,AF$3)+SUMIFS(Oversigt!$K:$K,Oversigt!$C:$C,$B11,Oversigt!$D:$D,AF$3)+SUMIFS(Oversigt!$N:$N,Oversigt!$C:$C,$B11,Oversigt!$D:$D,AF$3) -> 4
B12: Intern opfølgning | C12: =SUMIFS(Oversigt!$E:$E,Oversigt!$C:$C,$B12,Oversigt!$D:$D,C$3) -> 0 | D12: =SUMIFS(Oversigt!$E:$E,Oversigt!$C:$C,$B12,Oversigt!$D:$D,D$3) -> 0 | E12: =SUMIFS(Oversigt!$E:$E,Oversigt!$C:$C,$B12,Oversigt!$D:$D,E$3) -> 0 | F12: =SUMIFS(Oversigt!$E:$E,Oversigt!$C:$C,$B12,Oversigt!$D:$D,F$3) -> 0 | G12: =SUMIFS(Oversigt!$E:$E,Oversigt!$C:$C,$B12,Oversigt!$D:$D,G$3) -> 1 | H12: =SUMIFS(Oversigt!$E:$E,Oversigt!$C:$C,$B12,Oversigt!$D:$D,H$3) -> 1 | I12: =SUMIFS(Oversigt!$H:$H,Oversigt!$C:$C,$B12,Oversigt!$D:$D,I$3) -> 0 | J12: =SUMIFS(Oversigt!$H:$H,Oversigt!$C:$C,$B12,Oversigt!$D:$D,J$3) -> 0 | K12: =SUMIFS(Oversigt!$H:$H,Oversigt!$C:$C,$B12,Oversigt!$D:$D,K$3) -> 0 | L12: =SUMIFS(Oversigt!$H:$H,Oversigt!$C:$C,$B12,Oversigt!$D:$D,L$3) -> 0 | M12: =SUMIFS(Oversigt!$H:$H,Oversigt!$C:$C,$B12,Oversigt!$D:$D,M$3) -> 3 | N12: =SUMIFS(Oversigt!$H:$H,Oversigt!$C:$C,$B12,Oversigt!$D:$D,N$3) -> 3 | O12: =SUMIFS(Oversigt!$K:$K,Oversigt!$C:$C,$B12,Oversigt!$D:$D,O$3) -> 0 | P12: =SUMIFS(Oversigt!$K:$K,Oversigt!$C:$C,$B12,Oversigt!$D:$D,P$3) -> 0 | Q12: =SUMIFS(Oversigt!$K:$K,Oversigt!$C:$C,$B12,Oversigt!$D:$D,Q$3) -> 0 | R12: =SUMIFS(Oversigt!$K:$K,Oversigt!$C:$C,$B12,Oversigt!$D:$D,R$3) -> 0 | S12: =SUMIFS(Oversigt!$K:$K,Oversigt!$C:$C,$B12,Oversigt!$D:$D,S$3) -> 2 | T12: =SUMIFS(Oversigt!$K:$K,Oversigt!$C:$C,$B12,Oversigt!$D:$D,T$3) -> 2 | U12: =SUMIFS(Oversigt!$N:$N,Oversigt!$C:$C,$B12,Oversigt!$D:$D,U$3) -> 0 | V12: =SUMIFS(Oversigt!$N:$N,Oversigt!$C:$C,$B12,Oversigt!$D:$D,V$3) -> 0 | W12: =SUMIFS(Oversigt!$N:$N,Oversigt!$C:$C,$B12,Oversigt!$D:$D,W$3) -> 0 | X12: =SUMIFS(Oversigt!$N:$N,Oversigt!$C:$C,$B12,Oversigt!$D:$D,X$3) -> 0 | Y12: =SUMIFS(Oversigt!$N:$N,Oversigt!$C:$C,$B12,Oversigt!$D:$D,Y$3) -> 3 | Z12: =SUMIFS(Oversigt!$N:$N,Oversigt!$C:$C,$B12,Oversigt!$D:$D,Z$3) -> 3 | AA12: =SUMIFS(Oversigt!$E:$E,Oversigt!$C:$C,$B12,Oversigt!$D:$D,AA$3)+SUMIFS(Oversigt!$H:$H,Oversigt!$C:$C,$B12,Oversigt!$D:$D,AA$3)+SUMIFS(Oversigt!$K:$K,Oversigt!$C:$C,$B12,Oversigt!$D:$D,AA$3)+SUMIFS(Oversigt!$N:$N,Oversigt!$C:$C,$B12,Oversigt!$D:$D,AA$3) -> 0 | AB12: =SUMIFS(Oversigt!$E:$E,Oversigt!$C:$C,$B12,Oversigt!$D:$D,AB$3)+SUMIFS(Oversigt!$H:$H,Oversigt!$C:$C,$B12,Oversigt!$D:$D,AB$3)+SUMIFS(Oversigt!$K:$K,Oversigt!$C:$C,$B12,Oversigt!$D:$D,AB$3)+SUMIFS(Oversigt!$N:$N,Oversigt!$C:$C,$B12,Oversigt!$D:$D,AB$3) -> 0 | AC12: =SUMIFS(Oversigt!$E:$E,Oversigt!$C:$C,$B12,Oversigt!$D:$D,AC$3)+SUMIFS(Oversigt!$H:$H,Oversigt!$C:$C,$B12,Oversigt!$D:$D,AC$3)+SUMIFS(Oversigt!$K:$K,Oversigt!$C:$C,$B12,Oversigt!$D:$D,AC$3)+SUMIFS(Oversigt!$N:$N,Oversigt!$C:$C,$B12,Oversigt!$D:$D,AC$3) -> 0 | AD12: =SUMIFS(Oversigt!$E:$E,Oversigt!$C:$C,$B12,Oversigt!$D:$D,AD$3)+SUMIFS(Oversigt!$H:$H,Oversigt!$C:$C,$B12,Oversigt!$D:$D,AD$3)+SUMIFS(Oversigt!$K:$K,Oversigt!$C:$C,$B12,Oversigt!$D:$D,AD$3)+SUMIFS(Oversigt!$N:$N,Oversigt!$C:$C,$B12,Oversigt!$D:$D,AD$3) -> 0 | AE12: =SUMIFS(Oversigt!$E:$E,Oversigt!$C:$C,$B12,Oversigt!$D:$D,AE$3)+SUMIFS(Oversigt!$H:$H,Oversigt!$C:$C,$B12,Oversigt!$D:$D,AE$3)+SUMIFS(Oversigt!$K:$K,Oversigt!$C:$C,$B12,Oversigt!$D:$D,AE$3)+SUMIFS(Oversigt!$N:$N,Oversigt!$C:$C,$B12,Oversigt!$D:$D,AE$3) -> 9 | AF12: =SUMIFS(Oversigt!$E:$E,Oversigt!$C:$C,$B12,Oversigt!$D:$D,AF$3)+SUMIFS(Oversigt!$H:$H,Oversigt!$C:$C,$B12,Oversigt!$D:$D,AF$3)+SUMIFS(Oversigt!$K:$K,Oversigt!$C:$C,$B12,Oversigt!$D:$D,AF$3)+SUMIFS(Oversigt!$N:$N,Oversigt!$C:$C,$B12,Oversigt!$D:$D,AF$3) -> 9
B14: Type | C14: PLAN | I14: DO | O14: CHECK | U14: ACT | AA14: Alle
B15: Vægt | C15: Ja | D15: Delvist | E15: Nej | F15: Ikke relevant | G15: Ikke sat | H15: TOTAL | I15: Ja | J15: Delvist | K15: Nej | L15: Ikke relevant | M15: Ikke sat | N15: TOTAL | O15: Ja | P15: Delvist | Q15: Nej | R15: Ikke relevant | S15: Ikke sat | T15: TOTAL | U15: Ja | V15: Delvist | W15: Nej | X15: Ikke relevant | Y15: Ikke sat | Z15: TOTAL | AA15: Ja | AB15: Delvist | AC15: Nej | AD15: Ikke relevant | AE15: Ikke sat | AF15: TOTAL
B16: Risikovurdering | C16: =SUMIFS(Oversigt!$F:$F,Oversigt!$C:$C,$B16,Oversigt!$D:$D,C$3) -> 0 | D16: =SUMIFS(Oversigt!$F:$F,Oversigt!$C:$C,$B16,Oversigt!$D:$D,D$3) -> 0 | E16: =SUMIFS(Oversigt!$F:$F,Oversigt!$C:$C,$B16,Oversigt!$D:$D,E$3) -> 0 | F16: =SUMIFS(Oversigt!$F:$F,Oversigt!$C:$C,$B16,Oversigt!$D:$D,F$3) -> 0 | G16: =SUMIFS(Oversigt!$F:$F,Oversigt!$C:$C,$B16,Oversigt!$D:$D,G$3) -> 0.06451612903 | H16: =SUMIFS(Oversigt!$F:$F,Oversigt!$C:$C,$B16,Oversigt!$D:$D,H$3) -> 0 | I16: =SUMIFS(Oversigt!$I:$I,Oversigt!$C:$C,$B16,Oversigt!$D:$D,I$3) -> 0 | J16: =SUMIFS(Oversigt!$I:$I,Oversigt!$C:$C,$B16,Oversigt!$D:$D,J$3) -> 0 | K16: =SUMIFS(Oversigt!$I:$I,Oversigt!$C:$C,$B16,Oversigt!$D:$D,K$3) -> 0 | L16: =SUMIFS(Oversigt!$I:$I,Oversigt!$C:$C,$B16,Oversigt!$D:$D,L$3) -> 0 | M16: =SUMIFS(Oversigt!$I:$I,Oversigt!$C:$C,$B16,Oversigt!$D:$D,M$3) -> 0.1388888889 | N16: =SUMIFS(Oversigt!$I:$I,Oversigt!$C:$C,$B16,Oversigt!$D:$D,N$3) -> 0 | O16: =SUMIFS(Oversigt!$L:$L,Oversigt!$C:$C,$B16,Oversigt!$D:$D,O$3) -> 0 | P16: =SUMIFS(Oversigt!$L:$L,Oversigt!$C:$C,$B16,Oversigt!$D:$D,P$3) -> 0 | Q16: =SUMIFS(Oversigt!$L:$L,Oversigt!$C:$C,$B16,Oversigt!$D:$D,Q$3) -> 0 | R16: =SUMIFS(Oversigt!$L:$L,Oversigt!$C:$C,$B16,Oversigt!$D:$D,R$3) -> 0 | S16: =SUMIFS(Oversigt!$L:$L,Oversigt!$C:$C,$B16,Oversigt!$D:$D,S$3) -> 0.1111111111 | T16: =SUMIFS(Oversigt!$L:$L,Oversigt!$C:$C,$B16,Oversigt!$D:$D,T$3) -> 0 | U16: =SUMIFS(Oversigt!$O:$O,Oversigt!$C:$C,$B16,Oversigt!$D:$D,U$3) -> 0 | V16: =SUMIFS(Oversigt!$O:$O,Oversigt!$C:$C,$B16,Oversigt!$D:$D,V$3) -> 0 | W16: =SUMIFS(Oversigt!$O:$O,Oversigt!$C:$C,$B16,Oversigt!$D:$D,W$3) -> 0 | X16: =SUMIFS(Oversigt!$O:$O,Oversigt!$C:$C,$B16,Oversigt!$D:$D,X$3) -> 0 | Y16: =SUMIFS(Oversigt!$O:$O,Oversigt!$C:$C,$B16,Oversigt!$D:$D,Y$3) -> 0.0625 | Z16: =SUMIFS(Oversigt!$O:$O,Oversigt!$C:$C,$B16,Oversigt!$D:$D,Z$3) -> 0 | AA16: =AVERAGE(C16,I16,O16,U16) -> 0 | AB16: =AVERAGE(D16,J16,P16,V16) -> 0 | AC16: 0 | AD16: 0 | AE16: 0.09425403226 | AF16: 0
B17: Risikohåndtering | C17: =SUMIFS(Oversigt!$F:$F,Oversigt!$C:$C,$B17,Oversigt!$D:$D,C$3) -> 0 | D17: =SUMIFS(Oversigt!$F:$F,Oversigt!$C:$C,$B17,Oversigt!$D:$D,D$3) -> 0 | E17: =SUMIFS(Oversigt!$F:$F,Oversigt!$C:$C,$B17,Oversigt!$D:$D,E$3) -> 0 | F17: =SUMIFS(Oversigt!$F:$F,Oversigt!$C:$C,$B17,Oversigt!$D:$D,F$3) -> 0 | G17: =SUMIFS(Oversigt!$F:$F,Oversigt!$C:$C,$B17,Oversigt!$D:$D,G$3) -> 0.09677419355 | H17: =SUMIFS(Oversigt!$F:$F,Oversigt!$C:$C,$B17,Oversigt!$D:$D,H$3) -> 0 | I17: =SUMIFS(Oversigt!$I:$I,Oversigt!$C:$C,$B17,Oversigt!$D:$D,I$3) -> 0 | J17: =SUMIFS(Oversigt!$I:$I,Oversigt!$C:$C,$B17,Oversigt!$D:$D,J$3) -> 0 | K17: =SUMIFS(Oversigt!$I:$I,Oversigt!$C:$C,$B17,Oversigt!$D:$D,K$3) -> 0 | L17: =SUMIFS(Oversigt!$I:$I,Oversigt!$C:$C,$B17,Oversigt!$D:$D,L$3) -> 0 | M17: =SUMIFS(Oversigt!$I:$I,Oversigt!$C:$C,$B17,Oversigt!$D:$D,M$3) -> 0.05555555556 | N17: =SUMIFS(Oversigt!$I:$I,Oversigt!$C:$C,$B17,Oversigt!$D:$D,N$3) -> 0 | O17: =SUMIFS(Oversigt!$L:$L,Oversigt!$C:$C,$B17,Oversigt!$D:$D,O$3) -> 0 | P17: =SUMIFS(Oversigt!$L:$L,Oversigt!$C:$C,$B17,Oversigt!$D:$D,P$3) -> 0 | Q17: =SUMIFS(Oversigt!$L:$L,Oversigt!$C:$C,$B17,Oversigt!$D:$D,Q$3) -> 0 | R17: =SUMIFS(Oversigt!$L:$L,Oversigt!$C:$C,$B17,Oversigt!$D:$D,R$3) -> 0 | S17: =SUMIFS(Oversigt!$L:$L,Oversigt!$C:$C,$B17,Oversigt!$D:$D,S$3) -> 0.1111111111 | T17: =SUMIFS(Oversigt!$L:$L,Oversigt!$C:$C,$B17,Oversigt!$D:$D,T$3) -> 0 | U17: =SUMIFS(Oversigt!$O:$O,Oversigt!$C:$C,$B17,Oversigt!$D:$D,U$3) -> 0 | V17: =SUMIFS(Oversigt!$O:$O,Oversigt!$C:$C,$B17,Oversigt!$D:$D,V$3) -> 0 | W17: =SUMIFS(Oversigt!$O:$O,Oversigt!$C:$C,$B17,Oversigt!$D:$D,W$3) -> 0 | X17: =SUMIFS(Oversigt!$O:$O,Oversigt!$C:$C,$B17,Oversigt!$D:$D,X$3) -> 0 | Y17: =SUMIFS(Oversigt!$O:$O,Oversigt!$C:$C,$B17,Oversigt!$D:$D,Y$3) -> 0.125 | Z17: =SUMIFS(Oversigt!$O:$O,Oversigt!$C:$C,$B17,Oversigt!$D:$D,Z$3) -> 0 | AA17: =AVERAGE(C17,I17,O17,U17) -> 0 | AB17: 0 | AC17: 0 | AD17: 0 | AE17: 0.09711021505 | AF17: 0
B18: ISMS | C18: =SUMIFS(Oversigt!$F:$F,Oversigt!$C:$C,$B18,Oversigt!$D:$D,C$3) -> 0 | D18: =SUMIFS(Oversigt!$F:$F,Oversigt!$C:$C,$B18,Oversigt!$D:$D,D$3) -> 0 | E18: =SUMIFS(Oversigt!$F:$F,Oversigt!$C:$C,$B18,Oversigt!$D:$D,E$3) -> 0 | F18: =SUMIFS(Oversigt!$F:$F,Oversigt!$C:$C,$B18,Oversigt!$D:$D,F$3) -> 0 | G18: =SUMIFS(Oversigt!$F:$F,Oversigt!$C:$C,$B18,Oversigt!$D:$D,G$3) -> 0.1290322581 | H18: =SUMIFS(Oversigt!$F:$F,Oversigt!$C:$C,$B18,Oversigt!$D:$D,H$3) -> 0 | I18: =SUMIFS(Oversigt!$I:$I,Oversigt!$C:$C,$B18,Oversigt!$D:$D,I$3) -> 0 | J18: =SUMIFS(Oversigt!$I:$I,Oversigt!$C:$C,$B18,Oversigt!$D:$D,J$3) -> 0 | K18: =SUMIFS(Oversigt!$I:$I,Oversigt!$C:$C,$B18,Oversigt!$D:$D,K$3) -> 0 | L18: =SUMIFS(Oversigt!$I:$I,Oversigt!$C:$C,$B18,Oversigt!$D:$D,L$3) -> 0 | M18: =SUMIFS(Oversigt!$I:$I,Oversigt!$C:$C,$B18,Oversigt!$D:$D,M$3) -> 0.1944444444 | N18: =SUMIFS(Oversigt!$I:$I,Oversigt!$C:$C,$B18,Oversigt!$D:$D,N$3) -> 0 | O18: =SUMIFS(Oversigt!$L:$L,Oversigt!$C:$C,$B18,Oversigt!$D:$D,O$3) -> 0 | P18: =SUMIFS(Oversigt!$L:$L,Oversigt!$C:$C,$B18,Oversigt!$D:$D,P$3) -> 0 | Q18: =SUMIFS(Oversigt!$L:$L,Oversigt!$C:$C,$B18,Oversigt!$D:$D,Q$3) -> 0 | R18: =SUMIFS(Oversigt!$L:$L,Oversigt!$C:$C,$B18,Oversigt!$D:$D,R$3) -> 0 | S18: =SUMIFS(Oversigt!$L:$L,Oversigt!$C:$C,$B18,Oversigt!$D:$D,S$3) -> 0.1111111111 | T18: =SUMIFS(Oversigt!$L:$L,Oversigt!$C:$C,$B18,Oversigt!$D:$D,T$3) -> 0 | U18: =SUMIFS(Oversigt!$O:$O,Oversigt!$C:$C,$B18,Oversigt!$D:$D,U$3) -> 0 | V18: =SUMIFS(Oversigt!$O:$O,Oversigt!$C:$C,$B18,Oversigt!$D:$D,V$3) -> 0 | W18: =SUMIFS(Oversigt!$O:$O,Oversigt!$C:$C,$B18,Oversigt!$D:$D,W$3) -> 0 | X18: =SUMIFS(Oversigt!$O:$O,Oversigt!$C:$C,$B18,Oversigt!$D:$D,X$3) -> 0 | Y18: =SUMIFS(Oversigt!$O:$O,Oversigt!$C:$C,$B18,Oversigt!$D:$D,Y$3) -> 0.0625 | Z18: =SUMIFS(Oversigt!$O:$O,Oversigt!$C:$C,$B18,Oversigt!$D:$D,Z$3) -> 0 | AA18: 0 | AB18: 0 | AC18: 0 | AD18: 0 | AE18: 0.1242719534 | AF18: 0
B19: Politik | C19: =SUMIFS(Oversigt!$F:$F,Oversigt!$C:$C,$B19,Oversigt!$D:$D,C$3) -> 0 | D19: =SUMIFS(Oversigt!$F:$F,Oversigt!$C:$C,$B19,Oversigt!$D:$D,D$3) -> 0 | E19: =SUMIFS(Oversigt!$F:$F,Oversigt!$C:$C,$B19,Oversigt!$D:$D,E$3) -> 0 | F19: =SUMIFS(Oversigt!$F:$F,Oversigt!$C:$C,$B19,Oversigt!$D:$D,F$3) -> 0 | G19: =SUMIFS(Oversigt!$F:$F,Oversigt!$C:$C,$B19,Oversigt!$D:$D,G$3) -> 0.09677419355 | H19: =SUMIFS(Oversigt!$F:$F,Oversigt!$C:$C,$B19,Oversigt!$D:$D,H$3) -> 0 | I19: =SUMIFS(Oversigt!$I:$I,Oversigt!$C:$C,$B19,Oversigt!$D:$D,I$3) -> 0 | J19: =SUMIFS(Oversigt!$I:$I,Oversigt!$C:$C,$B19,Oversigt!$D:$D,J$3) -> 0 | K19: =SUMIFS(Oversigt!$I:$I,Oversigt!$C:$C,$B19,Oversigt!$D:$D,K$3) -> 0 | L19: =SUMIFS(Oversigt!$I:$I,Oversigt!$C:$C,$B19,Oversigt!$D:$D,L$3) -> 0 | M19: =SUMIFS(Oversigt!$I:$I,Oversigt!$C:$C,$B19,Oversigt!$D:$D,M$3) -> 0.08333333333 | N19: =SUMIFS(Oversigt!$I:$I,Oversigt!$C:$C,$B19,Oversigt!$D:$D,N$3) -> 0 | O19: =SUMIFS(Oversigt!$L:$L,Oversigt!$C:$C,$B19,Oversigt!$D:$D,O$3) -> 0 | P19: =SUMIFS(Oversigt!$L:$L,Oversigt!$C:$C,$B19,Oversigt!$D:$D,P$3) -> 0 | Q19: =SUMIFS(Oversigt!$L:$L,Oversigt!$C:$C,$B19,Oversigt!$D:$D,Q$3) -> 0 | R19: =SUMIFS(Oversigt!$L:$L,Oversigt!$C:$C,$B19,Oversigt!$D:$D,R$3) -> 0 | S19: =SUMIFS(Oversigt!$L:$L,Oversigt!$C:$C,$B19,Oversigt!$D:$D,S$3) -> 0.07407407407 | T19: =SUMIFS(Oversigt!$L:$L,Oversigt!$C:$C,$B19,Oversigt!$D:$D,T$3) -> 0 | U19: =SUMIFS(Oversigt!$O:$O,Oversigt!$C:$C,$B19,Oversigt!$D:$D,U$3) -> 0 | V19: =SUMIFS(Oversigt!$O:$O,Oversigt!$C:$C,$B19,Oversigt!$D:$D,V$3) -> 0 | W19: =SUMIFS(Oversigt!$O:$O,Oversigt!$C:$C,$B19,Oversigt!$D:$D,W$3) -> 0 | X19: =SUMIFS(Oversigt!$O:$O,Oversigt!$C:$C,$B19,Oversigt!$D:$D,X$3) -> 0 | Y19: =SUMIFS(Oversigt!$O:$O,Oversigt!$C:$C,$B19,Oversigt!$D:$D,Y$3) -> 0.125 | Z19: =SUMIFS(Oversigt!$O:$O,Oversigt!$C:$C,$B19,Oversigt!$D:$D,Z$3) -> 0 | AA19: 0 | AB19: 0 | AC19: 0 | AD19: 0 | AE19: 0.09479540024 | AF19: 0
B20: Ledelsesforankring | C20: =SUMIFS(Oversigt!$F:$F,Oversigt!$C:$C,$B20,Oversigt!$D:$D,C$3) -> 0 | D20: =SUMIFS(Oversigt!$F:$F,Oversigt!$C:$C,$B20,Oversigt!$D:$D,D$3) -> 0 | E20: =SUMIFS(Oversigt!$F:$F,Oversigt!$C:$C,$B20,Oversigt!$D:$D,E$3) -> 0 | F20: =SUMIFS(Oversigt!$F:$F,Oversigt!$C:$C,$B20,Oversigt!$D:$D,F$3) -> 0 | G20: =SUMIFS(Oversigt!$F:$F,Oversigt!$C:$C,$B20,Oversigt!$D:$D,G$3) -> 0 | H20: =SUMIFS(Oversigt!$F:$F,Oversigt!$C:$C,$B20,Oversigt!$D:$D,H$3) -> 0 | I20: =SUMIFS(Oversigt!$I:$I,Oversigt!$C:$C,$B20,Oversigt!$D:$D,I$3) -> 0 | J20: =SUMIFS(Oversigt!$I:$I,Oversigt!$C:$C,$B20,Oversigt!$D:$D,J$3) -> 0 | K20: =SUMIFS(Oversigt!$I:$I,Oversigt!$C:$C,$B20,Oversigt!$D:$D,K$3) -> 0 | L20: =SUMIFS(Oversigt!$I:$I,Oversigt!$C:$C,$B20,Oversigt!$D:$D,L$3) -> 0 | M20: =SUMIFS(Oversigt!$I:$I,Oversigt!$C:$C,$B20,Oversigt!$D:$D,M$3) -> 0.1111111111 | N20: =SUMIFS(Oversigt!$I:$I,Oversigt!$C:$C,$B20,Oversigt!$D:$D,N$3) -> 0 | O20: =SUMIFS(Oversigt!$L:$L,Oversigt!$C:$C,$B20,Oversigt!$D:$D,O$3) -> 0 | P20: =SUMIFS(Oversigt!$L:$L,Oversigt!$C:$C,$B20,Oversigt!$D:$D,P$3) -> 0 | Q20: =SUMIFS(Oversigt!$L:$L,Oversigt!$C:$C,$B20,Oversigt!$D:$D,Q$3) -> 0 | R20: =SUMIFS(Oversigt!$L:$L,Oversigt!$C:$C,$B20,Oversigt!$D:$D,R$3) -> 0 | S20: =SUMIFS(Oversigt!$L:$L,Oversigt!$C:$C,$B20,Oversigt!$D:$D,S$3) -> 0.1111111111 | T20: =SUMIFS(Oversigt!$L:$L,Oversigt!$C:$C,$B20,Oversigt!$D:$D,T$3) -> 0 | U20: =SUMIFS(Oversigt!$O:$O,Oversigt!$C:$C,$B20,Oversigt!$D:$D,U$3) -> 0 | V20: =SUMIFS(Oversigt!$O:$O,Oversigt!$C:$C,$B20,Oversigt!$D:$D,V$3) -> 0 | W20: =SUMIFS(Oversigt!$O:$O,Oversigt!$C:$C,$B20,Oversigt!$D:$D,W$3) -> 0 | X20: =SUMIFS(Oversigt!$O:$O,Oversigt!$C:$C,$B20,Oversigt!$D:$D,X$3) -> 0 | Y20: =SUMIFS(Oversigt!$O:$O,Oversigt!$C:$C,$B20,Oversigt!$D:$D,Y$3) -> 0.125 | Z20: =SUMIFS(Oversigt!$O:$O,Oversigt!$C:$C,$B20,Oversigt!$D:$D,Z$3) -> 0 | AA20: 0 | AB20: 0 | AC20: 0 | AD20: 0 | AE20: 0.08680555556 | AF20: 0
B21: Leverandørstyring | C21: =SUMIFS(Oversigt!$F:$F,Oversigt!$C:$C,$B21,Oversigt!$D:$D,C$3) -> 0 | D21: =SUMIFS(Oversigt!$F:$F,Oversigt!$C:$C,$B21,Oversigt!$D:$D,D$3) -> 0 | E21: =SUMIFS(Oversigt!$F:$F,Oversigt!$C:$C,$B21,Oversigt!$D:$D,E$3) -> 0 | F21: =SUMIFS(Oversigt!$F:$F,Oversigt!$C:$C,$B21,Oversigt!$D:$D,F$3) -> 0 | G21: =SUMIFS(Oversigt!$F:$F,Oversigt!$C:$C,$B21,Oversigt!$D:$D,G$3) -> 0.2903225806 | H21: =SUMIFS(Oversigt!$F:$F,Oversigt!$C:$C,$B21,Oversigt!$D:$D,H$3) -> 0 | I21: =SUMIFS(Oversigt!$I:$I,Oversigt!$C:$C,$B21,Oversigt!$D:$D,I$3) -> 0 | J21: =SUMIFS(Oversigt!$I:$I,Oversigt!$C:$C,$B21,Oversigt!$D:$D,J$3) -> 0 | K21: =SUMIFS(Oversigt!$I:$I,Oversigt!$C:$C,$B21,Oversigt!$D:$D,K$3) -> 0 | L21: =SUMIFS(Oversigt!$I:$I,Oversigt!$C:$C,$B21,Oversigt!$D:$D,L$3) -> 0 | M21: =SUMIFS(Oversigt!$I:$I,Oversigt!$C:$C,$B21,Oversigt!$D:$D,M$3) -> 0.2222222222 | N21: =SUMIFS(Oversigt!$I:$I,Oversigt!$C:$C,$B21,Oversigt!$D:$D,N$3) -> 0 | O21: =SUMIFS(Oversigt!$L:$L,Oversigt!$C:$C,$B21,Oversigt!$D:$D,O$3) -> 0 | P21: =SUMIFS(Oversigt!$L:$L,Oversigt!$C:$C,$B21,Oversigt!$D:$D,P$3) -> 0 | Q21: =SUMIFS(Oversigt!$L:$L,Oversigt!$C:$C,$B21,Oversigt!$D:$D,Q$3) -> 0 | R21: =SUMIFS(Oversigt!$L:$L,Oversigt!$C:$C,$B21,Oversigt!$D:$D,R$3) -> 0 | S21: =SUMIFS(Oversigt!$L:$L,Oversigt!$C:$C,$B21,Oversigt!$D:$D,S$3) -> 0.2592592593 | T21: =SUMIFS(Oversigt!$L:$L,Oversigt!$C:$C,$B21,Oversigt!$D:$D,T$3) -> 0 | U21: =SUMIFS(Oversigt!$O:$O,Oversigt!$C:$C,$B21,Oversigt!$D:$D,U$3) -> 0 | V21: =SUMIFS(Oversigt!$O:$O,Oversigt!$C:$C,$B21,Oversigt!$D:$D,V$3) -> 0 | W21: =SUMIFS(Oversigt!$O:$O,Oversigt!$C:$C,$B21,Oversigt!$D:$D,W$3) -> 0 | X21: =SUMIFS(Oversigt!$O:$O,Oversigt!$C:$C,$B21,Oversigt!$D:$D,X$3) -> 0 | Y21: =SUMIFS(Oversigt!$O:$O,Oversigt!$C:$C,$B21,Oversigt!$D:$D,Y$3) -> 0.125 | Z21: =SUMIFS(Oversigt!$O:$O,Oversigt!$C:$C,$B21,Oversigt!$D:$D,Z$3) -> 0 | AA21: 0 | AB21: 0 | AC21: 0 | AD21: 0 | AE21: 0.2242010155 | AF21: 0
B22: It-beredskab | C22: =SUMIFS(Oversigt!$F:$F,Oversigt!$C:$C,$B22,Oversigt!$D:$D,C$3) -> 0 | D22: =SUMIFS(Oversigt!$F:$F,Oversigt!$C:$C,$B22,Oversigt!$D:$D,D$3) -> 0 | E22: =SUMIFS(Oversigt!$F:$F,Oversigt!$C:$C,$B22,Oversigt!$D:$D,E$3) -> 0 | F22: =SUMIFS(Oversigt!$F:$F,Oversigt!$C:$C,$B22,Oversigt!$D:$D,F$3) -> 0 | G22: =SUMIFS(Oversigt!$F:$F,Oversigt!$C:$C,$B22,Oversigt!$D:$D,G$3) -> 0.2580645161 | H22: =SUMIFS(Oversigt!$F:$F,Oversigt!$C:$C,$B22,Oversigt!$D:$D,H$3) -> 0 | I22: =SUMIFS(Oversigt!$I:$I,Oversigt!$C:$C,$B22,Oversigt!$D:$D,I$3) -> 0 | J22: =SUMIFS(Oversigt!$I:$I,Oversigt!$C:$C,$B22,Oversigt!$D:$D,J$3) -> 0 | K22: =SUMIFS(Oversigt!$I:$I,Oversigt!$C:$C,$B22,Oversigt!$D:$D,K$3) -> 0 | L22: =SUMIFS(Oversigt!$I:$I,Oversigt!$C:$C,$B22,Oversigt!$D:$D,L$3) -> 0 | M22: =SUMIFS(Oversigt!$I:$I,Oversigt!$C:$C,$B22,Oversigt!$D:$D,M$3) -> 0.1111111111 | N22: =SUMIFS(Oversigt!$I:$I,Oversigt!$C:$C,$B22,Oversigt!$D:$D,N$3) -> 0 | O22: =SUMIFS(Oversigt!$L:$L,Oversigt!$C:$C,$B22,Oversigt!$D:$D,O$3) -> 0 | P22: =SUMIFS(Oversigt!$L:$L,Oversigt!$C:$C,$B22,Oversigt!$D:$D,P$3) -> 0 | Q22: =SUMIFS(Oversigt!$L:$L,Oversigt!$C:$C,$B22,Oversigt!$D:$D,Q$3) -> 0 | R22: =SUMIFS(Oversigt!$L:$L,Oversigt!$C:$C,$B22,Oversigt!$D:$D,R$3) -> 0 | S22: =SUMIFS(Oversigt!$L:$L,Oversigt!$C:$C,$B22,Oversigt!$D:$D,S$3) -> 0.07407407407 | T22: =SUMIFS(Oversigt!$L:$L,Oversigt!$C:$C,$B22,Oversigt!$D:$D,T$3) -> 0 | U22: =SUMIFS(Oversigt!$O:$O,Oversigt!$C:$C,$B22,Oversigt!$D:$D,U$3) -> 0 | V22: =SUMIFS(Oversigt!$O:$O,Oversigt!$C:$C,$B22,Oversigt!$D:$D,V$3) -> 0 | W22: =SUMIFS(Oversigt!$O:$O,Oversigt!$C:$C,$B22,Oversigt!$D:$D,W$3) -> 0 | X22: =SUMIFS(Oversigt!$O:$O,Oversigt!$C:$C,$B22,Oversigt!$D:$D,X$3) -> 0 | Y22: =SUMIFS(Oversigt!$O:$O,Oversigt!$C:$C,$B22,Oversigt!$D:$D,Y$3) -> 0.125 | Z22: =SUMIFS(Oversigt!$O:$O,Oversigt!$C:$C,$B22,Oversigt!$D:$D,Z$3) -> 0 | AA22: 0 | AB22: 0 | AC22: 0 | AD22: 0 | AE22: 0.1420624253 | AF22: 0
B23: Måling | C23: =SUMIFS(Oversigt!$F:$F,Oversigt!$C:$C,$B23,Oversigt!$D:$D,C$3) -> 0 | D23: =SUMIFS(Oversigt!$F:$F,Oversigt!$C:$C,$B23,Oversigt!$D:$D,D$3) -> 0 | E23: =SUMIFS(Oversigt!$F:$F,Oversigt!$C:$C,$B23,Oversigt!$D:$D,E$3) -> 0 | F23: =SUMIFS(Oversigt!$F:$F,Oversigt!$C:$C,$B23,Oversigt!$D:$D,F$3) -> 0 | G23: =SUMIFS(Oversigt!$F:$F,Oversigt!$C:$C,$B23,Oversigt!$D:$D,G$3) -> 0.03225806452 | H23: =SUMIFS(Oversigt!$F:$F,Oversigt!$C:$C,$B23,Oversigt!$D:$D,H$3) -> 0 | I23: =SUMIFS(Oversigt!$I:$I,Oversigt!$C:$C,$B23,Oversigt!$D:$D,I$3) -> 0 | J23: =SUMIFS(Oversigt!$I:$I,Oversigt!$C:$C,$B23,Oversigt!$D:$D,J$3) -> 0 | K23: =SUMIFS(Oversigt!$I:$I,Oversigt!$C:$C,$B23,Oversigt!$D:$D,K$3) -> 0 | L23: =SUMIFS(Oversigt!$I:$I,Oversigt!$C:$C,$B23,Oversigt!$D:$D,L$3) -> 0 | M23: =SUMIFS(Oversigt!$I:$I,Oversigt!$C:$C,$B23,Oversigt!$D:$D,M$3) -> 0 | N23: =SUMIFS(Oversigt!$I:$I,Oversigt!$C:$C,$B23,Oversigt!$D:$D,N$3) -> 0 | O23: =SUMIFS(Oversigt!$L:$L,Oversigt!$C:$C,$B23,Oversigt!$D:$D,O$3) -> 0 | P23: =SUMIFS(Oversigt!$L:$L,Oversigt!$C:$C,$B23,Oversigt!$D:$D,P$3) -> 0 | Q23: =SUMIFS(Oversigt!$L:$L,Oversigt!$C:$C,$B23,Oversigt!$D:$D,Q$3) -> 0 | R23: =SUMIFS(Oversigt!$L:$L,Oversigt!$C:$C,$B23,Oversigt!$D:$D,R$3) -> 0 | S23: =SUMIFS(Oversigt!$L:$L,Oversigt!$C:$C,$B23,Oversigt!$D:$D,S$3) -> 0.07407407407 | T23: =SUMIFS(Oversigt!$L:$L,Oversigt!$C:$C,$B23,Oversigt!$D:$D,T$3) -> 0 | U23: =SUMIFS(Oversigt!$O:$O,Oversigt!$C:$C,$B23,Oversigt!$D:$D,U$3) -> 0 | V23: =SUMIFS(Oversigt!$O:$O,Oversigt!$C:$C,$B23,Oversigt!$D:$D,V$3) -> 0 | W23: =SUMIFS(Oversigt!$O:$O,Oversigt!$C:$C,$B23,Oversigt!$D:$D,W$3) -> 0 | X23: =SUMIFS(Oversigt!$O:$O,Oversigt!$C:$C,$B23,Oversigt!$D:$D,X$3) -> 0 | Y23: =SUMIFS(Oversigt!$O:$O,Oversigt!$C:$C,$B23,Oversigt!$D:$D,Y$3) -> 0.0625 | Z23: =SUMIFS(Oversigt!$O:$O,Oversigt!$C:$C,$B23,Oversigt!$D:$D,Z$3) -> 0 | AA23: 0 | AB23: 0 | AC23: 0 | AD23: 0 | AE23: 0.04220803465 | AF23: 0
B24: Intern opfølgning | C24: =SUMIFS(Oversigt!$F:$F,Oversigt!$C:$C,$B24,Oversigt!$D:$D,C$3) -> 0 | D24: =SUMIFS(Oversigt!$F:$F,Oversigt!$C:$C,$B24,Oversigt!$D:$D,D$3) -> 0 | E24: =SUMIFS(Oversigt!$F:$F,Oversigt!$C:$C,$B24,Oversigt!$D:$D,E$3) -> 0 | F24: =SUMIFS(Oversigt!$F:$F,Oversigt!$C:$C,$B24,Oversigt!$D:$D,F$3) -> 0 | G24: =SUMIFS(Oversigt!$F:$F,Oversigt!$C:$C,$B24,Oversigt!$D:$D,G$3) -> 0.03225806452 | H24: =SUMIFS(Oversigt!$F:$F,Oversigt!$C:$C,$B24,Oversigt!$D:$D,H$3) -> 0 | I24: =SUMIFS(Oversigt!$I:$I,Oversigt!$C:$C,$B24,Oversigt!$D:$D,I$3) -> 0 | J24: =SUMIFS(Oversigt!$I:$I,Oversigt!$C:$C,$B24,Oversigt!$D:$D,J$3) -> 0 | K24: =SUMIFS(Oversigt!$I:$I,Oversigt!$C:$C,$B24,Oversigt!$D:$D,K$3) -> 0 | L24: =SUMIFS(Oversigt!$I:$I,Oversigt!$C:$C,$B24,Oversigt!$D:$D,L$3) -> 0 | M24: =SUMIFS(Oversigt!$I:$I,Oversigt!$C:$C,$B24,Oversigt!$D:$D,M$3) -> 0.08333333333 | N24: =SUMIFS(Oversigt!$I:$I,Oversigt!$C:$C,$B24,Oversigt!$D:$D,N$3) -> 0 | O24: =SUMIFS(Oversigt!$L:$L,Oversigt!$C:$C,$B24,Oversigt!$D:$D,O$3) -> 0 | P24: =SUMIFS(Oversigt!$L:$L,Oversigt!$C:$C,$B24,Oversigt!$D:$D,P$3) -> 0 | Q24: =SUMIFS(Oversigt!$L:$L,Oversigt!$C:$C,$B24,Oversigt!$D:$D,Q$3) -> 0 | R24: =SUMIFS(Oversigt!$L:$L,Oversigt!$C:$C,$B24,Oversigt!$D:$D,R$3) -> 0 | S24: =SUMIFS(Oversigt!$L:$L,Oversigt!$C:$C,$B24,Oversigt!$D:$D,S$3) -> 0.07407407407 | T24: =SUMIFS(Oversigt!$L:$L,Oversigt!$C:$C,$B24,Oversigt!$D:$D,T$3) -> 0 | U24: =SUMIFS(Oversigt!$O:$O,Oversigt!$C:$C,$B24,Oversigt!$D:$D,U$3) -> 0 | V24: =SUMIFS(Oversigt!$O:$O,Oversigt!$C:$C,$B24,Oversigt!$D:$D,V$3) -> 0 | W24: =SUMIFS(Oversigt!$O:$O,Oversigt!$C:$C,$B24,Oversigt!$D:$D,W$3) -> 0 | X24: =SUMIFS(Oversigt!$O:$O,Oversigt!$C:$C,$B24,Oversigt!$D:$D,X$3) -> 0 | Y24: =SUMIFS(Oversigt!$O:$O,Oversigt!$C:$C,$B24,Oversigt!$D:$D,Y$3) -> 0.1875 | Z24: =SUMIFS(Oversigt!$O:$O,Oversigt!$C:$C,$B24,Oversigt!$D:$D,Z$3) -> 0 | AA24: 0 | AB24: 0 | AC24: 0 | AD24: 0 | AE24: 0.09429136798 | AF24: 0
B26: Type | C26: PLAN | I26: DO | O26: CHECK | U26: ACT | AA26: Alle
B27: Proces | C27: Ja | D27: Delvist | E27: Nej | F27: Ikke relevant | G27: Ikke sat | H27: TOTAL | I27: Ja | J27: Delvist | K27: Nej | L27: Ikke relevant | M27: Ikke sat | N27: TOTAL | O27: Ja | P27: Delvist | Q27: Nej | R27: Ikke relevant | S27: Ikke sat | T27: TOTAL | U27: Ja | V27: Delvist | W27: Nej | X27: Ikke relevant | Y27: Ikke sat | Z27: TOTAL | AA27: Ja | AB27: Delvist | AC27: Nej | AD27: Ikke relevant | AE27: Ikke sat | AF27: TOTAL
B28: Risikovurdering | C28: =SUMIFS(Oversigt!$G:$G,Oversigt!$C:$C,$B28,Oversigt!$D:$D,C$3) -> 0 | D28: =SUMIFS(Oversigt!$G:$G,Oversigt!$C:$C,$B28,Oversigt!$D:$D,D$3) -> 0 | E28: =SUMIFS(Oversigt!$G:$G,Oversigt!$C:$C,$B28,Oversigt!$D:$D,E$3) -> 0 | F28: =SUMIFS(Oversigt!$G:$G,Oversigt!$C:$C,$B28,Oversigt!$D:$D,F$3) -> 0 | G28: =SUMIFS(Oversigt!$G:$G,Oversigt!$C:$C,$B28,Oversigt!$D:$D,G$3) -> 1 | H28: =SUMIFS(Oversigt!$G:$G,Oversigt!$C:$C,$B28,Oversigt!$D:$D,H$3) -> 0 | I28: =SUMIFS(Oversigt!$J:$J,Oversigt!$C:$C,$B28,Oversigt!$D:$D,I$3) -> 0 | J28: =SUMIFS(Oversigt!$J:$J,Oversigt!$C:$C,$B28,Oversigt!$D:$D,J$3) -> 0 | K28: =SUMIFS(Oversigt!$J:$J,Oversigt!$C:$C,$B28,Oversigt!$D:$D,K$3) -> 0 | L28: =SUMIFS(Oversigt!$J:$J,Oversigt!$C:$C,$B28,Oversigt!$D:$D,L$3) -> 0 | M28: =SUMIFS(Oversigt!$J:$J,Oversigt!$C:$C,$B28,Oversigt!$D:$D,M$3) -> 1 | N28: =SUMIFS(Oversigt!$J:$J,Oversigt!$C:$C,$B28,Oversigt!$D:$D,N$3) -> 0 | O28: =SUMIFS(Oversigt!$M:$M,Oversigt!$C:$C,$B28,Oversigt!$D:$D,O$3) -> 0 | P28: =SUMIFS(Oversigt!$M:$M,Oversigt!$C:$C,$B28,Oversigt!$D:$D,P$3) -> 0 | Q28: =SUMIFS(Oversigt!$M:$M,Oversigt!$C:$C,$B28,Oversigt!$D:$D,Q$3) -> 0 | R28: =SUMIFS(Oversigt!$M:$M,Oversigt!$C:$C,$B28,Oversigt!$D:$D,R$3) -> 0 | S28: =SUMIFS(Oversigt!$M:$M,Oversigt!$C:$C,$B28,Oversigt!$D:$D,S$3) -> 1 | T28: =SUMIFS(Oversigt!$M:$M,Oversigt!$C:$C,$B28,Oversigt!$D:$D,T$3) -> 0 | U28: =SUMIFS(Oversigt!$P:$P,Oversigt!$C:$C,$B28,Oversigt!$D:$D,U$3) -> 0 | V28: =SUMIFS(Oversigt!$P:$P,Oversigt!$C:$C,$B28,Oversigt!$D:$D,V$3) -> 0 | W28: =SUMIFS(Oversigt!$P:$P,Oversigt!$C:$C,$B28,Oversigt!$D:$D,W$3) -> 0 | X28: =SUMIFS(Oversigt!$P:$P,Oversigt!$C:$C,$B28,Oversigt!$D:$D,X$3) -> 0 | Y28: =SUMIFS(Oversigt!$P:$P,Oversigt!$C:$C,$B28,Oversigt!$D:$D,Y$3) -> 1 | Z28: =SUMIFS(Oversigt!$P:$P,Oversigt!$C:$C,$B28,Oversigt!$D:$D,Z$3) -> 0 | AA28: =AVERAGE(C28,I28,O28,U28) -> 0 | AB28: =AVERAGE(D28,J28,P28,V28) -> 0 | AC28: =AVERAGE(E28,K28,Q28,W28) -> 0 | AD28: =AVERAGE(F28,L28,R28,X28) -> 0 | AE28: =AVERAGE(G28,M28,S28,Y28) -> 1 | AF28: =AVERAGE(H28,N28,T28,Z28) -> 0
B29: Risikohåndtering | C29: =SUMIFS(Oversigt!$G:$G,Oversigt!$C:$C,$B29,Oversigt!$D:$D,C$3) -> 0 | D29: =SUMIFS(Oversigt!$G:$G,Oversigt!$C:$C,$B29,Oversigt!$D:$D,D$3) -> 0 | E29: =SUMIFS(Oversigt!$G:$G,Oversigt!$C:$C,$B29,Oversigt!$D:$D,E$3) -> 0 | F29: =SUMIFS(Oversigt!$G:$G,Oversigt!$C:$C,$B29,Oversigt!$D:$D,F$3) -> 0 | G29: =SUMIFS(Oversigt!$G:$G,Oversigt!$C:$C,$B29,Oversigt!$D:$D,G$3) -> 1 | H29: =SUMIFS(Oversigt!$G:$G,Oversigt!$C:$C,$B29,Oversigt!$D:$D,H$3) -> 0 | I29: =SUMIFS(Oversigt!$J:$J,Oversigt!$C:$C,$B29,Oversigt!$D:$D,I$3) -> 0 | J29: =SUMIFS(Oversigt!$J:$J,Oversigt!$C:$C,$B29,Oversigt!$D:$D,J$3) -> 0 | K29: =SUMIFS(Oversigt!$J:$J,Oversigt!$C:$C,$B29,Oversigt!$D:$D,K$3) -> 0 | L29: =SUMIFS(Oversigt!$J:$J,Oversigt!$C:$C,$B29,Oversigt!$D:$D,L$3) -> 0 | M29: =SUMIFS(Oversigt!$J:$J,Oversigt!$C:$C,$B29,Oversigt!$D:$D,M$3) -> 1 | N29: =SUMIFS(Oversigt!$J:$J,Oversigt!$C:$C,$B29,Oversigt!$D:$D,N$3) -> 0 | O29: =SUMIFS(Oversigt!$M:$M,Oversigt!$C:$C,$B29,Oversigt!$D:$D,O$3) -> 0 | P29: =SUMIFS(Oversigt!$M:$M,Oversigt!$C:$C,$B29,Oversigt!$D:$D,P$3) -> 0 | Q29: =SUMIFS(Oversigt!$M:$M,Oversigt!$C:$C,$B29,Oversigt!$D:$D,Q$3) -> 0 | R29: =SUMIFS(Oversigt!$M:$M,Oversigt!$C:$C,$B29,Oversigt!$D:$D,R$3) -> 0 | S29: =SUMIFS(Oversigt!$M:$M,Oversigt!$C:$C,$B29,Oversigt!$D:$D,S$3) -> 1 | T29: =SUMIFS(Oversigt!$M:$M,Oversigt!$C:$C,$B29,Oversigt!$D:$D,T$3) -> 0 | U29: =SUMIFS(Oversigt!$P:$P,Oversigt!$C:$C,$B29,Oversigt!$D:$D,U$3) -> 0 | V29: =SUMIFS(Oversigt!$P:$P,Oversigt!$C:$C,$B29,Oversigt!$D:$D,V$3) -> 0 | W29: =SUMIFS(Oversigt!$P:$P,Oversigt!$C:$C,$B29,Oversigt!$D:$D,W$3) -> 0 | X29: =SUMIFS(Oversigt!$P:$P,Oversigt!$C:$C,$B29,Oversigt!$D:$D,X$3) -> 0 | Y29: =SUMIFS(Oversigt!$P:$P,Oversigt!$C:$C,$B29,Oversigt!$D:$D,Y$3) -> 1 | Z29: =SUMIFS(Oversigt!$P:$P,Oversigt!$C:$C,$B29,Oversigt!$D:$D,Z$3) -> 0 | AA29: =AVERAGE(C29,I29,O29,U29) -> 0 | AB29: 0 | AC29: 0 | AD29: 0 | AE29: 1 | AF29: 0
B30: ISMS | C30: =SUMIFS(Oversigt!$G:$G,Oversigt!$C:$C,$B30,Oversigt!$D:$D,C$3) -> 0 | D30: =SUMIFS(Oversigt!$G:$G,Oversigt!$C:$C,$B30,Oversigt!$D:$D,D$3) -> 0 | E30: =SUMIFS(Oversigt!$G:$G,Oversigt!$C:$C,$B30,Oversigt!$D:$D,E$3) -> 0 | F30: =SUMIFS(Oversigt!$G:$G,Oversigt!$C:$C,$B30,Oversigt!$D:$D,F$3) -> 0 | G30: =SUMIFS(Oversigt!$G:$G,Oversigt!$C:$C,$B30,Oversigt!$D:$D,G$3) -> 1 | H30: =SUMIFS(Oversigt!$G:$G,Oversigt!$C:$C,$B30,Oversigt!$D:$D,H$3) -> 0 | I30: =SUMIFS(Oversigt!$J:$J,Oversigt!$C:$C,$B30,Oversigt!$D:$D,I$3) -> 0 | J30: =SUMIFS(Oversigt!$J:$J,Oversigt!$C:$C,$B30,Oversigt!$D:$D,J$3) -> 0 | K30: =SUMIFS(Oversigt!$J:$J,Oversigt!$C:$C,$B30,Oversigt!$D:$D,K$3) -> 0 | L30: =SUMIFS(Oversigt!$J:$J,Oversigt!$C:$C,$B30,Oversigt!$D:$D,L$3) -> 0 | M30: =SUMIFS(Oversigt!$J:$J,Oversigt!$C:$C,$B30,Oversigt!$D:$D,M$3) -> 1 | N30: =SUMIFS(Oversigt!$J:$J,Oversigt!$C:$C,$B30,Oversigt!$D:$D,N$3) -> 0 | O30: =SUMIFS(Oversigt!$M:$M,Oversigt!$C:$C,$B30,Oversigt!$D:$D,O$3) -> 0 | P30: =SUMIFS(Oversigt!$M:$M,Oversigt!$C:$C,$B30,Oversigt!$D:$D,P$3) -> 0 | Q30: =SUMIFS(Oversigt!$M:$M,Oversigt!$C:$C,$B30,Oversigt!$D:$D,Q$3) -> 0 | R30: =SUMIFS(Oversigt!$M:$M,Oversigt!$C:$C,$B30,Oversigt!$D:$D,R$3) -> 0 | S30: =SUMIFS(Oversigt!$M:$M,Oversigt!$C:$C,$B30,Oversigt!$D:$D,S$3) -> 1 | T30: =SUMIFS(Oversigt!$M:$M,Oversigt!$C:$C,$B30,Oversigt!$D:$D,T$3) -> 0 | U30: =SUMIFS(Oversigt!$P:$P,Oversigt!$C:$C,$B30,Oversigt!$D:$D,U$3) -> 0 | V30: =SUMIFS(Oversigt!$P:$P,Oversigt!$C:$C,$B30,Oversigt!$D:$D,V$3) -> 0 | W30: =SUMIFS(Oversigt!$P:$P,Oversigt!$C:$C,$B30,Oversigt!$D:$D,W$3) -> 0 | X30: =SUMIFS(Oversigt!$P:$P,Oversigt!$C:$C,$B30,Oversigt!$D:$D,X$3) -> 0 | Y30: =SUMIFS(Oversigt!$P:$P,Oversigt!$C:$C,$B30,Oversigt!$D:$D,Y$3) -> 1 | Z30: =SUMIFS(Oversigt!$P:$P,Oversigt!$C:$C,$B30,Oversigt!$D:$D,Z$3) -> 0 | AA30: 0 | AB30: 0 | AC30: 0 | AD30: 0 | AE30: 1 | AF30: 0
B31: Politik | C31: =SUMIFS(Oversigt!$G:$G,Oversigt!$C:$C,$B31,Oversigt!$D:$D,C$3) -> 0 | D31: =SUMIFS(Oversigt!$G:$G,Oversigt!$C:$C,$B31,Oversigt!$D:$D,D$3) -> 0 | E31: =SUMIFS(Oversigt!$G:$G,Oversigt!$C:$C,$B31,Oversigt!$D:$D,E$3) -> 0 | F31: =SUMIFS(Oversigt!$G:$G,Oversigt!$C:$C,$B31,Oversigt!$D:$D,F$3) -> 0 | G31: =SUMIFS(Oversigt!$G:$G,Oversigt!$C:$C,$B31,Oversigt!$D:$D,G$3) -> 1 | H31: =SUMIFS(Oversigt!$G:$G,Oversigt!$C:$C,$B31,Oversigt!$D:$D,H$3) -> 0 | I31: =SUMIFS(Oversigt!$J:$J,Oversigt!$C:$C,$B31,Oversigt!$D:$D,I$3) -> 0 | J31: =SUMIFS(Oversigt!$J:$J,Oversigt!$C:$C,$B31,Oversigt!$D:$D,J$3) -> 0 | K31: =SUMIFS(Oversigt!$J:$J,Oversigt!$C:$C,$B31,Oversigt!$D:$D,K$3) -> 0 | L31: =SUMIFS(Oversigt!$J:$J,Oversigt!$C:$C,$B31,Oversigt!$D:$D,L$3) -> 0 | M31: =SUMIFS(Oversigt!$J:$J,Oversigt!$C:$C,$B31,Oversigt!$D:$D,M$3) -> 1 | N31: =SUMIFS(Oversigt!$J:$J,Oversigt!$C:$C,$B31,Oversigt!$D:$D,N$3) -> 0 | O31: =SUMIFS(Oversigt!$M:$M,Oversigt!$C:$C,$B31,Oversigt!$D:$D,O$3) -> 0 | P31: =SUMIFS(Oversigt!$M:$M,Oversigt!$C:$C,$B31,Oversigt!$D:$D,P$3) -> 0 | Q31: =SUMIFS(Oversigt!$M:$M,Oversigt!$C:$C,$B31,Oversigt!$D:$D,Q$3) -> 0 | R31: =SUMIFS(Oversigt!$M:$M,Oversigt!$C:$C,$B31,Oversigt!$D:$D,R$3) -> 0 | S31: =SUMIFS(Oversigt!$M:$M,Oversigt!$C:$C,$B31,Oversigt!$D:$D,S$3) -> 1 | T31: =SUMIFS(Oversigt!$M:$M,Oversigt!$C:$C,$B31,Oversigt!$D:$D,T$3) -> 0 | U31: =SUMIFS(Oversigt!$P:$P,Oversigt!$C:$C,$B31,Oversigt!$D:$D,U$3) -> 0 | V31: =SUMIFS(Oversigt!$P:$P,Oversigt!$C:$C,$B31,Oversigt!$D:$D,V$3) -> 0 | W31: =SUMIFS(Oversigt!$P:$P,Oversigt!$C:$C,$B31,Oversigt!$D:$D,W$3) -> 0 | X31: =SUMIFS(Oversigt!$P:$P,Oversigt!$C:$C,$B31,Oversigt!$D:$D,X$3) -> 0 | Y31: =SUMIFS(Oversigt!$P:$P,Oversigt!$C:$C,$B31,Oversigt!$D:$D,Y$3) -> 1 | Z31: =SUMIFS(Oversigt!$P:$P,Oversigt!$C:$C,$B31,Oversigt!$D:$D,Z$3) -> 0 | AA31: 0 | AB31: 0 | AC31: 0 | AD31: 0 | AE31: 1 | AF31: 0
B32: Ledelsesforankring | C32: =SUMIFS(Oversigt!$G:$G,Oversigt!$C:$C,$B32,Oversigt!$D:$D,C$3) -> 0 | D32: =SUMIFS(Oversigt!$G:$G,Oversigt!$C:$C,$B32,Oversigt!$D:$D,D$3) -> 0 | E32: =SUMIFS(Oversigt!$G:$G,Oversigt!$C:$C,$B32,Oversigt!$D:$D,E$3) -> 0 | F32: =SUMIFS(Oversigt!$G:$G,Oversigt!$C:$C,$B32,Oversigt!$D:$D,F$3) -> 0 | G32: =SUMIFS(Oversigt!$G:$G,Oversigt!$C:$C,$B32,Oversigt!$D:$D,G$3) -> 0 | H32: =SUMIFS(Oversigt!$G:$G,Oversigt!$C:$C,$B32,Oversigt!$D:$D,H$3) -> 0 | I32: =SUMIFS(Oversigt!$J:$J,Oversigt!$C:$C,$B32,Oversigt!$D:$D,I$3) -> 0 | J32: =SUMIFS(Oversigt!$J:$J,Oversigt!$C:$C,$B32,Oversigt!$D:$D,J$3) -> 0 | K32: =SUMIFS(Oversigt!$J:$J,Oversigt!$C:$C,$B32,Oversigt!$D:$D,K$3) -> 0 | L32: =SUMIFS(Oversigt!$J:$J,Oversigt!$C:$C,$B32,Oversigt!$D:$D,L$3) -> 0 | M32: =SUMIFS(Oversigt!$J:$J,Oversigt!$C:$C,$B32,Oversigt!$D:$D,M$3) -> 1 | N32: =SUMIFS(Oversigt!$J:$J,Oversigt!$C:$C,$B32,Oversigt!$D:$D,N$3) -> 0 | O32: =SUMIFS(Oversigt!$M:$M,Oversigt!$C:$C,$B32,Oversigt!$D:$D,O$3) -> 0 | P32: =SUMIFS(Oversigt!$M:$M,Oversigt!$C:$C,$B32,Oversigt!$D:$D,P$3) -> 0 | Q32: =SUMIFS(Oversigt!$M:$M,Oversigt!$C:$C,$B32,Oversigt!$D:$D,Q$3) -> 0 | R32: =SUMIFS(Oversigt!$M:$M,Oversigt!$C:$C,$B32,Oversigt!$D:$D,R$3) -> 0 | S32: =SUMIFS(Oversigt!$M:$M,Oversigt!$C:$C,$B32,Oversigt!$D:$D,S$3) -> 1 | T32: =SUMIFS(Oversigt!$M:$M,Oversigt!$C:$C,$B32,Oversigt!$D:$D,T$3) -> 0 | U32: =SUMIFS(Oversigt!$P:$P,Oversigt!$C:$C,$B32,Oversigt!$D:$D,U$3) -> 0 | V32: =SUMIFS(Oversigt!$P:$P,Oversigt!$C:$C,$B32,Oversigt!$D:$D,V$3) -> 0 | W32: =SUMIFS(Oversigt!$P:$P,Oversigt!$C:$C,$B32,Oversigt!$D:$D,W$3) -> 0 | X32: =SUMIFS(Oversigt!$P:$P,Oversigt!$C:$C,$B32,Oversigt!$D:$D,X$3) -> 0 | Y32: =SUMIFS(Oversigt!$P:$P,Oversigt!$C:$C,$B32,Oversigt!$D:$D,Y$3) -> 1 | Z32: =SUMIFS(Oversigt!$P:$P,Oversigt!$C:$C,$B32,Oversigt!$D:$D,Z$3) -> 0 | AA32: 0 | AB32: 0 | AC32: 0 | AD32: 0 | AE32: 0.75 | AF32: 0
B33: Leverandørstyring | C33: =SUMIFS(Oversigt!$G:$G,Oversigt!$C:$C,$B33,Oversigt!$D:$D,C$3) -> 0 | D33: =SUMIFS(Oversigt!$G:$G,Oversigt!$C:$C,$B33,Oversigt!$D:$D,D$3) -> 0 | E33: =SUMIFS(Oversigt!$G:$G,Oversigt!$C:$C,$B33,Oversigt!$D:$D,E$3) -> 0 | F33: =SUMIFS(Oversigt!$G:$G,Oversigt!$C:$C,$B33,Oversigt!$D:$D,F$3) -> 0 | G33: =SUMIFS(Oversigt!$G:$G,Oversigt!$C:$C,$B33,Oversigt!$D:$D,G$3) -> 1 | H33: =SUMIFS(Oversigt!$G:$G,Oversigt!$C:$C,$B33,Oversigt!$D:$D,H$3) -> 0 | I33: =SUMIFS(Oversigt!$J:$J,Oversigt!$C:$C,$B33,Oversigt!$D:$D,I$3) -> 0 | J33: =SUMIFS(Oversigt!$J:$J,Oversigt!$C:$C,$B33,Oversigt!$D:$D,J$3) -> 0 | K33: =SUMIFS(Oversigt!$J:$J,Oversigt!$C:$C,$B33,Oversigt!$D:$D,K$3) -> 0 | L33: =SUMIFS(Oversigt!$J:$J,Oversigt!$C:$C,$B33,Oversigt!$D:$D,L$3) -> 0 | M33: =SUMIFS(Oversigt!$J:$J,Oversigt!$C:$C,$B33,Oversigt!$D:$D,M$3) -> 1 | N33: =SUMIFS(Oversigt!$J:$J,Oversigt!$C:$C,$B33,Oversigt!$D:$D,N$3) -> 0 | O33: =SUMIFS(Oversigt!$M:$M,Oversigt!$C:$C,$B33,Oversigt!$D:$D,O$3) -> 0 | P33: =SUMIFS(Oversigt!$M:$M,Oversigt!$C:$C,$B33,Oversigt!$D:$D,P$3) -> 0 | Q33: =SUMIFS(Oversigt!$M:$M,Oversigt!$C:$C,$B33,Oversigt!$D:$D,Q$3) -> 0 | R33: =SUMIFS(Oversigt!$M:$M,Oversigt!$C:$C,$B33,Oversigt!$D:$D,R$3) -> 0 | S33: =SUMIFS(Oversigt!$M:$M,Oversigt!$C:$C,$B33,Oversigt!$D:$D,S$3) -> 1 | T33: =SUMIFS(Oversigt!$M:$M,Oversigt!$C:$C,$B33,Oversigt!$D:$D,T$3) -> 0 | U33: =SUMIFS(Oversigt!$P:$P,Oversigt!$C:$C,$B33,Oversigt!$D:$D,U$3) -> 0 | V33: =SUMIFS(Oversigt!$P:$P,Oversigt!$C:$C,$B33,Oversigt!$D:$D,V$3) -> 0 | W33: =SUMIFS(Oversigt!$P:$P,Oversigt!$C:$C,$B33,Oversigt!$D:$D,W$3) -> 0 | X33: =SUMIFS(Oversigt!$P:$P,Oversigt!$C:$C,$B33,Oversigt!$D:$D,X$3) -> 0 | Y33: =SUMIFS(Oversigt!$P:$P,Oversigt!$C:$C,$B33,Oversigt!$D:$D,Y$3) -> 1 | Z33: =SUMIFS(Oversigt!$P:$P,Oversigt!$C:$C,$B33,Oversigt!$D:$D,Z$3) -> 0 | AA33: 0 | AB33: 0 | AC33: 0 | AD33: 0 | AE33: 1 | AF33: 0
B34: It-beredskab | C34: =SUMIFS(Oversigt!$G:$G,Oversigt!$C:$C,$B34,Oversigt!$D:$D,C$3) -> 0 | D34: =SUMIFS(Oversigt!$G:$G,Oversigt!$C:$C,$B34,Oversigt!$D:$D,D$3) -> 0 | E34: =SUMIFS(Oversigt!$G:$G,Oversigt!$C:$C,$B34,Oversigt!$D:$D,E$3) -> 0 | F34: =SUMIFS(Oversigt!$G:$G,Oversigt!$C:$C,$B34,Oversigt!$D:$D,F$3) -> 0 | G34: =SUMIFS(Oversigt!$G:$G,Oversigt!$C:$C,$B34,Oversigt!$D:$D,G$3) -> 1 | H34: =SUMIFS(Oversigt!$G:$G,Oversigt!$C:$C,$B34,Oversigt!$D:$D,H$3) -> 0 | I34: =SUMIFS(Oversigt!$J:$J,Oversigt!$C:$C,$B34,Oversigt!$D:$D,I$3) -> 0 | J34: =SUMIFS(Oversigt!$J:$J,Oversigt!$C:$C,$B34,Oversigt!$D:$D,J$3) -> 0 | K34: =SUMIFS(Oversigt!$J:$J,Oversigt!$C:$C,$B34,Oversigt!$D:$D,K$3) -> 0 | L34: =SUMIFS(Oversigt!$J:$J,Oversigt!$C:$C,$B34,Oversigt!$D:$D,L$3) -> 0 | M34: =SUMIFS(Oversigt!$J:$J,Oversigt!$C:$C,$B34,Oversigt!$D:$D,M$3) -> 1 | N34: =SUMIFS(Oversigt!$J:$J,Oversigt!$C:$C,$B34,Oversigt!$D:$D,N$3) -> 0 | O34: =SUMIFS(Oversigt!$M:$M,Oversigt!$C:$C,$B34,Oversigt!$D:$D,O$3) -> 0 | P34: =SUMIFS(Oversigt!$M:$M,Oversigt!$C:$C,$B34,Oversigt!$D:$D,P$3) -> 0 | Q34: =SUMIFS(Oversigt!$M:$M,Oversigt!$C:$C,$B34,Oversigt!$D:$D,Q$3) -> 0 | R34: =SUMIFS(Oversigt!$M:$M,Oversigt!$C:$C,$B34,Oversigt!$D:$D,R$3) -> 0 | S34: =SUMIFS(Oversigt!$M:$M,Oversigt!$C:$C,$B34,Oversigt!$D:$D,S$3) -> 1 | T34: =SUMIFS(Oversigt!$M:$M,Oversigt!$C:$C,$B34,Oversigt!$D:$D,T$3) -> 0 | U34: =SUMIFS(Oversigt!$P:$P,Oversigt!$C:$C,$B34,Oversigt!$D:$D,U$3) -> 0 | V34: =SUMIFS(Oversigt!$P:$P,Oversigt!$C:$C,$B34,Oversigt!$D:$D,V$3) -> 0 | W34: =SUMIFS(Oversigt!$P:$P,Oversigt!$C:$C,$B34,Oversigt!$D:$D,W$3) -> 0 | X34: =SUMIFS(Oversigt!$P:$P,Oversigt!$C:$C,$B34,Oversigt!$D:$D,X$3) -> 0 | Y34: =SUMIFS(Oversigt!$P:$P,Oversigt!$C:$C,$B34,Oversigt!$D:$D,Y$3) -> 1 | Z34: =SUMIFS(Oversigt!$P:$P,Oversigt!$C:$C,$B34,Oversigt!$D:$D,Z$3) -> 0 | AA34: 0 | AB34: 0 | AC34: 0 | AD34: 0 | AE34: 1 | AF34: 0
B35: Måling | C35: =SUMIFS(Oversigt!$G:$G,Oversigt!$C:$C,$B35,Oversigt!$D:$D,C$3) -> 0 | D35: =SUMIFS(Oversigt!$G:$G,Oversigt!$C:$C,$B35,Oversigt!$D:$D,D$3) -> 0 | E35: =SUMIFS(Oversigt!$G:$G,Oversigt!$C:$C,$B35,Oversigt!$D:$D,E$3) -> 0 | F35: =SUMIFS(Oversigt!$G:$G,Oversigt!$C:$C,$B35,Oversigt!$D:$D,F$3) -> 0 | G35: =SUMIFS(Oversigt!$G:$G,Oversigt!$C:$C,$B35,Oversigt!$D:$D,G$3) -> 1 | H35: =SUMIFS(Oversigt!$G:$G,Oversigt!$C:$C,$B35,Oversigt!$D:$D,H$3) -> 0 | I35: =SUMIFS(Oversigt!$J:$J,Oversigt!$C:$C,$B35,Oversigt!$D:$D,I$3) -> 0 | J35: =SUMIFS(Oversigt!$J:$J,Oversigt!$C:$C,$B35,Oversigt!$D:$D,J$3) -> 0 | K35: =SUMIFS(Oversigt!$J:$J,Oversigt!$C:$C,$B35,Oversigt!$D:$D,K$3) -> 0 | L35: =SUMIFS(Oversigt!$J:$J,Oversigt!$C:$C,$B35,Oversigt!$D:$D,L$3) -> 0 | M35: =SUMIFS(Oversigt!$J:$J,Oversigt!$C:$C,$B35,Oversigt!$D:$D,M$3) -> 0 | N35: =SUMIFS(Oversigt!$J:$J,Oversigt!$C:$C,$B35,Oversigt!$D:$D,N$3) -> 0 | O35: =SUMIFS(Oversigt!$M:$M,Oversigt!$C:$C,$B35,Oversigt!$D:$D,O$3) -> 0 | P35: =SUMIFS(Oversigt!$M:$M,Oversigt!$C:$C,$B35,Oversigt!$D:$D,P$3) -> 0 | Q35: =SUMIFS(Oversigt!$M:$M,Oversigt!$C:$C,$B35,Oversigt!$D:$D,Q$3) -> 0 | R35: =SUMIFS(Oversigt!$M:$M,Oversigt!$C:$C,$B35,Oversigt!$D:$D,R$3) -> 0 | S35: =SUMIFS(Oversigt!$M:$M,Oversigt!$C:$C,$B35,Oversigt!$D:$D,S$3) -> 1 | T35: =SUMIFS(Oversigt!$M:$M,Oversigt!$C:$C,$B35,Oversigt!$D:$D,T$3) -> 0 | U35: =SUMIFS(Oversigt!$P:$P,Oversigt!$C:$C,$B35,Oversigt!$D:$D,U$3) -> 0 | V35: =SUMIFS(Oversigt!$P:$P,Oversigt!$C:$C,$B35,Oversigt!$D:$D,V$3) -> 0 | W35: =SUMIFS(Oversigt!$P:$P,Oversigt!$C:$C,$B35,Oversigt!$D:$D,W$3) -> 0 | X35: =SUMIFS(Oversigt!$P:$P,Oversigt!$C:$C,$B35,Oversigt!$D:$D,X$3) -> 0 | Y35: =SUMIFS(Oversigt!$P:$P,Oversigt!$C:$C,$B35,Oversigt!$D:$D,Y$3) -> 1 | Z35: =SUMIFS(Oversigt!$P:$P,Oversigt!$C:$C,$B35,Oversigt!$D:$D,Z$3) -> 0 | AA35: 0 | AB35: 0 | AC35: 0 | AD35: 0 | AE35: 0.75 | AF35: 0
B36: Intern opfølgning | C36: =SUMIFS(Oversigt!$G:$G,Oversigt!$C:$C,$B36,Oversigt!$D:$D,C$3) -> 0 | D36: =SUMIFS(Oversigt!$G:$G,Oversigt!$C:$C,$B36,Oversigt!$D:$D,D$3) -> 0 | E36: =SUMIFS(Oversigt!$G:$G,Oversigt!$C:$C,$B36,Oversigt!$D:$D,E$3) -> 0 | F36: =SUMIFS(Oversigt!$G:$G,Oversigt!$C:$C,$B36,Oversigt!$D:$D,F$3) -> 0 | G36: =SUMIFS(Oversigt!$G:$G,Oversigt!$C:$C,$B36,Oversigt!$D:$D,G$3) -> 1 | H36: =SUMIFS(Oversigt!$G:$G,Oversigt!$C:$C,$B36,Oversigt!$D:$D,H$3) -> 0 | I36: =SUMIFS(Oversigt!$J:$J,Oversigt!$C:$C,$B36,Oversigt!$D:$D,I$3) -> 0 | J36: =SUMIFS(Oversigt!$J:$J,Oversigt!$C:$C,$B36,Oversigt!$D:$D,J$3) -> 0 | K36: =SUMIFS(Oversigt!$J:$J,Oversigt!$C:$C,$B36,Oversigt!$D:$D,K$3) -> 0 | L36: =SUMIFS(Oversigt!$J:$J,Oversigt!$C:$C,$B36,Oversigt!$D:$D,L$3) -> 0 | M36: =SUMIFS(Oversigt!$J:$J,Oversigt!$C:$C,$B36,Oversigt!$D:$D,M$3) -> 1 | N36: =SUMIFS(Oversigt!$J:$J,Oversigt!$C:$C,$B36,Oversigt!$D:$D,N$3) -> 0 | O36: =SUMIFS(Oversigt!$M:$M,Oversigt!$C:$C,$B36,Oversigt!$D:$D,O$3) -> 0 | P36: =SUMIFS(Oversigt!$M:$M,Oversigt!$C:$C,$B36,Oversigt!$D:$D,P$3) -> 0 | Q36: =SUMIFS(Oversigt!$M:$M,Oversigt!$C:$C,$B36,Oversigt!$D:$D,Q$3) -> 0 | R36: =SUMIFS(Oversigt!$M:$M,Oversigt!$C:$C,$B36,Oversigt!$D:$D,R$3) -> 0 | S36: =SUMIFS(Oversigt!$M:$M,Oversigt!$C:$C,$B36,Oversigt!$D:$D,S$3) -> 1 | T36: =SUMIFS(Oversigt!$M:$M,Oversigt!$C:$C,$B36,Oversigt!$D:$D,T$3) -> 0 | U36: =SUMIFS(Oversigt!$P:$P,Oversigt!$C:$C,$B36,Oversigt!$D:$D,U$3) -> 0 | V36: =SUMIFS(Oversigt!$P:$P,Oversigt!$C:$C,$B36,Oversigt!$D:$D,V$3) -> 0 | W36: =SUMIFS(Oversigt!$P:$P,Oversigt!$C:$C,$B36,Oversigt!$D:$D,W$3) -> 0 | X36: =SUMIFS(Oversigt!$P:$P,Oversigt!$C:$C,$B36,Oversigt!$D:$D,X$3) -> 0 | Y36: =SUMIFS(Oversigt!$P:$P,Oversigt!$C:$C,$B36,Oversigt!$D:$D,Y$3) -> 1 | Z36: =SUMIFS(Oversigt!$P:$P,Oversigt!$C:$C,$B36,Oversigt!$D:$D,Z$3) -> 0 | AA36: 0 | AB36: 0 | AC36: 0 | AD36: 0 | AE36: 1 | AF36: 0
B37: Total | C37: =AVERAGE(C28:C36) -> 0 | D37: 0 | E37: 0 | F37: 0 | G37: 0.8888888889 | H37: 0 | I37: 0 | J37: 0 | K37: 0 | L37: 0 | M37: 0.8888888889 | N37: 0 | O37: 0 | P37: 0 | Q37: 0 | R37: 0 | S37: 1 | T37: 0 | U37: 0 | V37: 0 | W37: 0 | X37: 0 | Y37: 1 | Z37: 0 | AA37: =AVERAGE(AA28:AA36) -> 0 | AB37: 0 | AC37: 0 | AD37: 0 | AE37: =AVERAGE(AE28:AE36) -> 0.9444444444 | AF37: =AVERAGE(AF28:AF36) -> 0

Sheet Vejledning
A1: Vejledning | E1: Gå til Oversigt
B3: Baggrund
B4: Værktøjet er udviklet til at understøtte arbejdet med implementering af ISO27001 og kan bruges til en selvevaluering af, hvor langt organisationen er i denne proces. Selvevalueringsværktøjet er baseret på ISO27001, hvis formål er at bidrage med konkrete krav til at etablere, implementere, vedligeholde og forbedre et informationssikkerhedssystem i organisationer. Værktøjet er designet som en hjælp til at holde styr på de forskellige krav fra standarden, samt den implementeringsgrad den pågældende organisation har. Værktøjet kan benyttes som et levende dokument til løbende forbedring af det interne overblik og forståelsen for organisationens sikkerhedsniveau. Ydermere vil det være en stor hjælp til et ellers tidskrævende og omfattende dokumentationsarbejde ved besøg fra Rigsrevisionen eller It-tilsynet. Værktøjet er udviklet til de fagpersoner, som står for informationssikkerhedsarbejdet i organisationen. I standarden og dermed også i dette værktøj er der defineret flere roller i arbejdet, som i nogle organisationer udføres af færre personer end beskrevet. Det vigtigste er, at der i organisationen er udpeget en ansvarlig og en udførende for arbejdet.
B17: Brug af værktøjet
B18: ISO27001 består af en række forskellige aktiviteter.Standarden bygger på procesorientering, dvs. en fast strukturering - PLAN-DO-CHECK-ACT - af gennemførelsen af de enkelte aktiviteter forstået som processer. Standarden er i værktøjet brudt ned i en række delprocesser, som hver for sig indeholder en række delaktiviter, som er kategoriseret i forhold til PLAN-DO-CHECK-ACT. Det er altid en mulighed at starte i PLAN som kontrol af, hvad der skal til i forbindelse med den enkelte aktivitet. Er organisationen langt i forbindelse med implementering af styring af informationssikkerhed, er det også muligt at starte i CHECK, og værktøjet understøtter på denne måde en intern revision af den pågældende aktivitet. Ved udfyldelse af værktøjet gennemgår organisationen alle ISMS-processer – eller eventuelle aktiviteter - som ISO27001 indeholder. Ud fra dette fås et samlet overblik over, hvilke områder der er implementeret helt eller delvist, eller hvilke områder der er fravalgt eller vurderet som ikke relevante. Der er mange områder og krav – og det er derfor vigtigt at være pragmatisk i forbindelse med anvendelsen af værktøjet. Selvom ikke alle krav er opfyldt, er delvis opfyldelse rundt omkring altid en god begyndelse. Implementering af sikkerhed er en fortløbende proces. De vigtigste krav er markeret med rødt. Værktøjet er inddelt i faneblade som repræsenterer forskellige områder indenfor styring af informationssikkerhed. Inddelingen af områderne følger stort set ISO standardens inddelinger. Dog er der i dette værktøj tilføjet 2 ekstra faneblade vedrørende Leverandørstyring og It-beredskab, som ikke fremgår af ISO27001, men som bidrager med vigtige styringselementer til det samlede styringssystem ligesom de øvrige områder. Det anbefales at starte med mapperne Risikovurdering og Risikohåndtering, fordi disse områder er grundlæggende for hele det øvrige arbejde. Værktøjet er dynamisk og giver et overblik over hvor langt i implementeringsprocesserne organisationen er kommet. Det samlede overblik illustreres i øvrigt i fanebladet "Oversigt", hvor fordelingen mellem implementerede, delvist implementerede og fravalgte sikringsforanstaltninger netop vises ud fra lagkagemodeller for hvert enkelt område. Der genereres en samlet score for hvert af områderne: - Risikovurdering - Risikohåndtering - ISMS - Politik - Ledelsesforankring - Leverandørstyring - It beredskab - Måling - Intern opfølgning Der er ikke fastlagt et niveau for den ""rigtige"" grad af implementering eller vedligeholdelse. Scoringen giver muligheden for at bedømme sig selv samt at få input til, hvor der skal sættes ind.
B49: Implementeringsgrad
B50: Hvert område er endvidere inddelt i implementering af ISMS-processer knyttet til: - Plan (planlægningen af sikkerhedsarbejdet) - Do (selve udførelsen af sikkerhedsarbejdet) - Check (revurdering af arbejdet) - Act (opfølgning af eventuelle revurderinger) Det vil derfor også være muligt at se, hvilket led af styringssystemet der er implementeret indenfor hvert område. Det kunne eksempelvis være tilfældet, at en organisation er godt med både i planlægningen og udførelsen på de fleste områder, hvorimod revurderinger og opfølgningsarbejdet bliver nedprioritet. Det kan være helt i tråd med organisationens strategi og budget for styringen af sikkerheden, men det essentielle er, at der skabes klarhed over niveauet, så de rette udviklingspunkter vælges i fremtiden, og organisationens sårbarheder kendes.
B60: Værtøjets struktur
B61: Opfølgning Ved dobbeltklik i cellen i kolonnen Opfølgning popper et vindue op, hvor man kan udfylde en handlingsplan på det pågældende område. Indholdet i pop-op vinduet overføres automatisk til mappen Opfølgning, hvor det pågældende krav samt beskrivelse af handlingsplan opstilles sammen med øvrige udfyldte handlingsplaner. I mappen Oversigt vil alle resultater efterhånden blive registreret automatisk og danne en oversigt over, hvor langt organisationen i det hele taget er. Sikkerhedsområderne Resten af værtøjet udgøres af faneblade for hvert sikkerhedsområde, hvori dokumentejer kan udfylde implementeringsgrad for hvert sikkerhedskrav fra ISO27001. Der kan vælges 1 ud af følgende svarmuligheder: • Ja • Nej • Delvist • Ikke relevant Udover at udfylde implementeringsgraden kan der tilføjes bemærkninger til hver ISMS-proces, og der kan noteres hvilke opfølgninger, der er besluttet. Nederst i hvert faneblad fremgår hvilke dokumentationskrav, der stilles i standarden i relation til det pågældende område. De felter der er markeret med gul farve i dokumentet indikerer, at et felt skal udfyldes.

Sheet Opfølgning
A1: Titel | B1: Tekst | C1: Hvad | D1: Hvem | E1: Hvornår

Sheet Risikovurdering
A1: =MID(CELL("filename",B3),FIND("]",CELL("filename",B3),1)+1,100) -> Risikovurdering | L1: Gå til Oversigt
K3: Udarbejdet den - og af | L3: Godkendt den- og af
F6: Ja | G6: Delvist | H6: Nej | I6: Ikke relevant | J6: Noter - bemærkninger | K6: Dokumentation | L6: Opfølgning
B7: PLAN | C7: Planlægning af proces for risikovurdering | D7: Der er en defineret proces for risikovurdering | E7: Proces for risikoanalyse og -vurdering samt opfølgning og revurdering af tidligere risikovurderinger. Der er fastlagt kriterier for vurdering af konsekvens og for hvor store risici, der accepteres. | L7: =IF(COUNTIF(Opfølgning!B:B,E7)>0,COUNTIF(Opfølgning!B:B,E7),"Dobbeltklik") -> Dobbeltklik
D8: Identifikation af risici | E8: Risikovurderingsprocessen anvendes til at identificere risici forbundet med tab af - fortrolighed - integritet - tilgængelighed | L8: =IF(COUNTIF(Opfølgning!B:B,E8)>0,COUNTIF(Opfølgning!B:B,E8),"Dobbeltklik") -> Dobbeltklik
B9: PLAN_slut
B10: DO | C10: Risikoanalyse og -vurdering | E10: Konsekvenser for forretningen af de identificerede risici er vurderet. | L10: =IF(COUNTIF(Opfølgning!B:B,E10)>0,COUNTIF(Opfølgning!B:B,E10),"Dobbeltklik") -> Dobbeltklik
E11: Den realistiske sandsynlighed for de identificerede risici er vurderet. | L11: =IF(COUNTIF(Opfølgning!B:B,E11)>0,COUNTIF(Opfølgning!B:B,E11),"Dobbeltklik") -> Dobbeltklik
E12: Risikoniveauet er fastlagt. | L12: =IF(COUNTIF(Opfølgning!B:B,E12)>0,COUNTIF(Opfølgning!B:B,E12),"Dobbeltklik") -> Dobbeltklik
E13: De analyserede risici er sammenholdt med de fastsatte kriterier og prioriteret, så der kan udarbejdes en handlingsplan. | L13: =IF(COUNTIF(Opfølgning!B:B,E13)>0,COUNTIF(Opfølgning!B:B,E13),"Dobbeltklik") -> Dobbeltklik
E14: Ejerne til de vurderede risici er identificeret. | L14: =IF(COUNTIF(Opfølgning!B:B,E14)>0,COUNTIF(Opfølgning!B:B,E14),"Dobbeltklik") -> Dobbeltklik
B15: DO_slut
B16: CHECK | C16: Revurdering af risici | E16: Processen for risikoananalyse og -vurdering revurderes. | L16: =IF(COUNTIF(Opfølgning!B:B,E16)>0,COUNTIF(Opfølgning!B:B,E16),"Dobbeltklik") -> Dobbeltklik
E17: Risikovurderinger gennemføres med planlagte intervaller. | L17: =IF(COUNTIF(Opfølgning!B:B,E17)>0,COUNTIF(Opfølgning!B:B,E17),"Dobbeltklik") -> Dobbeltklik
E18: Risikovurderinger gennemføres i forbindelse med væsentlige ændringer (interne og eksterne forhold, ændringer i trusselsbillede mm.). | L18: =IF(COUNTIF(Opfølgning!B:B,E18)>0,COUNTIF(Opfølgning!B:B,E18),"Dobbeltklik") -> Dobbeltklik
B19: CHECK_slut
B20: ACT | C20: Forbedringer af processen til risikoanalyse og -vurdering | E20: Processen for risikoanalyse og -vurdering er ændret i forhold til uhensigtsmæssigeheder/mangler mm. | L20: =IF(COUNTIF(Opfølgning!B:B,E20)>0,COUNTIF(Opfølgning!B:B,E20),"Dobbeltklik") -> Dobbeltklik
B21: ACT_slut
B25: Krav om dokumentation
B26: Dokumentation af processen:
B27: Dokumentation af processen for risikovurdering
B28: Risikovurderingsrapport
B30: Dokumentationen indeholder: - identifikation og beskrivelse (titel, dato, forfatter mm.); - hensigtsmæssigt format i forhold til anvendelse; - revurdering og godkendelse af tilstrækkelighed og hensigtsmæssighed; Dokumentationen er: - til at få fat på og anvendelig, når der er brug for det; - passende beskyttet (fx i forhold til fortrolighed eller imod ændringer); Der er taget stilling til: - distribution, adgang, genfinding og brug; - opbevaring, herunder lovkrav til opbevaring; - kontrol af ændringer (fx versionering); - bevaring og sletning.

Sheet Risikohåndtering
A1: =MID(CELL("filename",B3),FIND("]",CELL("filename",B3),1)+1,100) -> Risikohåndtering | L1: Gå til Oversigt
K3: Udarbejdet den - og af | L3: Godkendt den- og af
F6: Ja | G6: Delvist | H6: Nej | I6: Ikke relevant | J6: Noter - bemærkninger | K6: Dokumentation | L6: Opfølgning
B7: PLAN | C7: Handlingsplan til håndtering af risici | E7: Der er udarbejdet en plan til håndtering af risici. | L7: =IF(COUNTIF(Opfølgning!B:B,E7)>0,COUNTIF(Opfølgning!B:B,E7),"Dobbeltklik") -> Dobbeltklik
E8: Risikoejer har godkendt planen til håndtering af risici samt restrisici. | L8: =IF(COUNTIF(Opfølgning!B:B,E8)>0,COUNTIF(Opfølgning!B:B,E8),"Dobbeltklik") -> Dobbeltklik
E9: Planen har defineret: - hvordan resultater af risikovurderingerne skal vurderes samlet set; - ansvarsfordeling; - behovet for ressourcer; - deadlines. | L9: =IF(COUNTIF(Opfølgning!B:B,E9)>0,COUNTIF(Opfølgning!B:B,E9),"Dobbeltklik") -> Dobbeltklik
B10: PLAN_slut
B11: DO | C11: Håndtering af risici | E11: De nødvendige sikkerhedsforanstaltninger er fastlagt. | L11: =IF(COUNTIF(Opfølgning!B:B,E11)>0,COUNTIF(Opfølgning!B:B,E11),"Dobbeltklik") -> Dobbeltklik
E12: De besluttede sikkerhedsforanstaltningerer sammenholdt med kontrollerne i Annex A, og til- og fravalg er begrundet. | L12: =IF(COUNTIF(Opfølgning!B:B,E12)>0,COUNTIF(Opfølgning!B:B,E12),"Dobbeltklik") -> Dobbeltklik
B13: DO_slut
B14: CHECK | C14: Revurdering af risikohåndtering | E14: Sikkerhedsforanstaltningernes effektivitet vurderes i efterfølgende risikovurderinger. | L14: =IF(COUNTIF(Opfølgning!B:B,E14)>0,COUNTIF(Opfølgning!B:B,E14),"Dobbeltklik") -> Dobbeltklik
E15: SoA-dokumentet revurderes. | L15: =IF(COUNTIF(Opfølgning!B:B,E15)>0,COUNTIF(Opfølgning!B:B,E15),"Dobbeltklik") -> Dobbeltklik
E16: Det vurderes, om handlingsplanen til håndtering af konkrete risici, herunder implementering af kontroller, er fulgt. | L16: =IF(COUNTIF(Opfølgning!B:B,E16)>0,COUNTIF(Opfølgning!B:B,E16),"Dobbeltklik") -> Dobbeltklik
B17: CHECK_slut
B18: ACT | C18: Opfølgning på risikohåndtering | E18: Konsekvenser af afvigelser eller mangelfuldheder håndteres. | L18: =IF(COUNTIF(Opfølgning!B:B,E18)>0,COUNTIF(Opfølgning!B:B,E18),"Dobbeltklik") -> Dobbeltklik
E19: Håndtering af risici gennemføres, så det bidrager til forbedringer af ISMS. | L19: =IF(COUNTIF(Opfølgning!B:B,E19)>0,COUNTIF(Opfølgning!B:B,E19),"Dobbeltklik") -> Dobbeltklik
B20: ACT_slut
B24: Krav om dokumentation
B25: Dokumentation af processen:
B26: Proces for risikohåndtering
B27: Statement of Applicability (SoA) - Erklæring om anvendelse
B29: Dokumentationen indeholder: - identifikation og beskrivelse (titel, dato, forfatter mm.); - hensigtsmæssigt format i forhold til anvendelse; - revurdering og godkendelse af tilstrækkelighed og hensigtsmæssighed; Dokumentationen er: - til at få fat på og anvendelig, når der er brug for det; - passende beskyttet (fx i forhold til fortrolighed eller imod ændringer); Der er taget stilling til: - distribution, adgang, genfinding og brug; - opbevaring, herunder lovkrav til opbevaring; - kontrol af ændringer (fx versionering); - bevaring og sletning.

Sheet ISMS
A1: =MID(CELL("filename",B3),FIND("]",CELL("filename",B3),1)+1,100) -> ISMS | L1: Gå til Oversigt
K3: Udarbejdet den - og af | L3: Godkendt den- og af
F6: Ja | G6: Delvist | H6: Nej | I6: Ikke relevant | J6: Noter - bemærkninger | K6: Dokumentation | L6: Opfølgning
B7: PLAN | C7: Organisationens omverden og interessenter - samt deres behov og forventninger | E7: Organisationens omverden og interessenter er analyseret, og der er kendskab til deres krav til risikoen for tab af tilgængelighed, fortrolighed og integritet | L7: =IF(COUNTIF(Opfølgning!B:B,E7)>0,COUNTIF(Opfølgning!B:B,E7),"Dobbeltklik") -> Dobbeltklik
C8: Afgrænsning af informationssikkerhedssystemet | E8: Informationssikkerhedssystemet dækker de relevante forretningsmæssige områder. | L8: =IF(COUNTIF(Opfølgning!B:B,E8)>0,COUNTIF(Opfølgning!B:B,E8),"Dobbeltklik") -> Dobbeltklik
C9: Roller og ansvar | E9: Relevante roller og funktioner er bemyndiget med ansvar, og det er kommunikeret i organisationen. | L9: =IF(COUNTIF(Opfølgning!B:B,E9)>0,COUNTIF(Opfølgning!B:B,E9),"Dobbeltklik") -> Dobbeltklik
C10: Kompetencer | E10: De nødvendige kompetencer i relation til informationssikkerhed er identificeret. | L10: =IF(COUNTIF(Opfølgning!B:B,E10)>0,COUNTIF(Opfølgning!B:B,E10),"Dobbeltklik") -> Dobbeltklik
B11: PLAN_slut
B12: DO | C12: Informationssikkerhedssystemet | D12: ISMS | E12: Informationssikkerhedssystemet er dokumenteret, og systemet vedligeholdes og forbedres løbende. | L12: =IF(COUNTIF(Opfølgning!B:B,E12)>0,COUNTIF(Opfølgning!B:B,E12),"Dobbeltklik") -> Dobbeltklik
D13: Organisatoriske roller og ansvar | E13: Der er udpeget en informationssikkerhedsansvarlig og en der er udførende i arbejdet, og roller og opgaver er fordelt. | L13: =IF(COUNTIF(Opfølgning!B:B,E13)>0,COUNTIF(Opfølgning!B:B,E13),"Dobbeltklik") -> Dobbeltklik
C14: Kompetencer | E14: Organisationen sikrer, at medarbejdere med relation til informationssikkerheden har de rette kompetencer mht. uddannelse, træning og erfaring. | L14: =IF(COUNTIF(Opfølgning!B:B,E14)>0,COUNTIF(Opfølgning!B:B,E14),"Dobbeltklik") -> Dobbeltklik
E15: Når det er relevant, gennemføres nødvendig uddannelse og træning. | L15: =IF(COUNTIF(Opfølgning!B:B,E15)>0,COUNTIF(Opfølgning!B:B,E15),"Dobbeltklik") -> Dobbeltklik
C16: Awareness | E16: Medarbejderne er informeret om de medarbejder relevante dele af informationssikkerhedspolitikken. | L16: =IF(COUNTIF(Opfølgning!B:B,E16)>0,COUNTIF(Opfølgning!B:B,E16),"Dobbeltklik") -> Dobbeltklik
E17: Medarbejderne ved, hvordan de bidrager til informationssikkerheden. | L17: =IF(COUNTIF(Opfølgning!B:B,E17)>0,COUNTIF(Opfølgning!B:B,E17),"Dobbeltklik") -> Dobbeltklik
E18: Medarbejderne kender til konsekvenser/sanktioner ved manglende efterlevelse af informationssikkerheden. | L18: =IF(COUNTIF(Opfølgning!B:B,E18)>0,COUNTIF(Opfølgning!B:B,E18),"Dobbeltklik") -> Dobbeltklik
B19: DO_slut
B20: CHECK | C20: Forståelse af interessenters behov og forventninger | E20: Relevante interessenter og deres krav revurderes periodisk. | L20: =IF(COUNTIF(Opfølgning!B:B,E20)>0,COUNTIF(Opfølgning!B:B,E20),"Dobbeltklik") -> Dobbeltklik
C21: Informationssikkerhedssystemet | E21: Der er implementeret processer til vurdering og rapportering af effekten af informationssikkerhedssystemet, herunder - hvad, hvornår, hvordan og hvem der skal gennemføre overvågning, måling, analyse og vurdering. | L21: =IF(COUNTIF(Opfølgning!B:B,E21)>0,COUNTIF(Opfølgning!B:B,E21),"Dobbeltklik") -> Dobbeltklik
C22: Kompetencer | E22: Effekten af gennemførte kompetenceudviklingsforløb evalueres efterfølgende. | L22: =IF(COUNTIF(Opfølgning!B:B,E22)>0,COUNTIF(Opfølgning!B:B,E22),"Dobbeltklik") -> Dobbeltklik
B23: CHECK_slut
B24: ACT | C24: Opfølgning på afvigelser fra ISMS-/informationssikkerhedspolitikken | E24: ISMS og informationssikkerheden justeres vedvarende som opfølgning på afvigelser med henblik på at forbedre ISMS/informationssikkerheden. | L24: =IF(COUNTIF(Opfølgning!B:B,E24)>0,COUNTIF(Opfølgning!B:B,E24),"Dobbeltklik") -> Dobbeltklik
B25: ACT_slut
B29: Krav om dokumentation
B30: Dokumentation af processen:
B31: Afgrænsning af informationssikkerhedssystemet | D31: Indgå i ISMS-/informationssikkerhedspolitikken.
B32: Information om medarbejderes kompetencer, herunder gennemførelse af deres kompetenceudvikling | D32: På overordnet niveau indgå i informationssikkerhedspolitikken. Planer for kompetenceudvikling indgå i årlige handlingsplaner. Information og effekt af kompetenceudvikling indarbejdes i årlig rapportering til ledelsen.
B33: Resultatet af evaluering af informationssikkerheden og effekten af informationssikkerhedssystemet | D33: Indgå i rapportering til ledelsen.
B34: Afvigelser i forhold til ledelsessystemet og ISMS/informationssikkerhedspolitikken samt opfølgende handlinger
B35: Resultatet af opfølgende handlinger
B37: Dokumentationen indeholder: - identifikation og beskrivelse (titel, dato, forfatter mm.); - hensigtsmæssigt format i forhold til anvendelse; - revurdering og godkendelse af tilstrækkelighed og hensigtsmæssighed; Dokumentationen er: - til at få fat på og anvendelig, når der er brug for det; - passende beskyttet (fx i forhold til fortrolighed eller imod ændringer); Der er taget stilling til: - distribution, adgang, genfinding og brug; - opbevaring, herunder lovkrav til opbevaring; - kontrol af ændringer (fx versionering); - bevaring og sletning.

Sheet Ledelsesforankring
A1: =MID(CELL("filename",B3),FIND("]",CELL("filename",B3),1)+1,100) -> Ledelsesforankring | L1: Gå til Oversigt
K3: Udarbejdet den - og af | L3: Godkendt den- og af
F6: Ja | G6: Delvist | H6: Nej | I6: Ikke relevant | J6: Noter - bemærkninger | K6: Dokumentation | L6: Opfølgning
B7: PLAN
B8: PLAN_slut
B9: DO | C9: Lederskab | D9: Ledelse og engagement | E9: Ledelsen kommunikerer vigtigheden af informationssikkerhed samt af efterlevelse af informationssikkerhed. | L9: =IF(COUNTIF(Opfølgning!B:B,E9)>0,COUNTIF(Opfølgning!B:B,E9),"Dobbeltklik") -> Dobbeltklik
E10: Ledelsen instruerer og understøtter medarbejdere til at bidrage til informationssikkerheden. | L10: =IF(COUNTIF(Opfølgning!B:B,E10)>0,COUNTIF(Opfølgning!B:B,E10),"Dobbeltklik") -> Dobbeltklik
E11: Ledelsen udviser ledelsesopbakning og bakker op omkring sikkerhedsstyringen. | L11: =IF(COUNTIF(Opfølgning!B:B,E11)>0,COUNTIF(Opfølgning!B:B,E11),"Dobbeltklik") -> Dobbeltklik
C12: Ressourcer | E12: Ledelsen sikrer at de nødvendige ressourcer til etablering, implementering, vedligeholdelse og forbedring af informationssikkerheden. | L12: =IF(COUNTIF(Opfølgning!B:B,E12)>0,COUNTIF(Opfølgning!B:B,E12),"Dobbeltklik") -> Dobbeltklik
B13: DO_slut
B14: CHECK | C14: Lederskab | E14: Ledelsen gennemgår informationssikkerhedsstyringen i planlagte intervaller til sikring af egnethed, tilstrækkelighed og effektivitet. | L14: =IF(COUNTIF(Opfølgning!B:B,E14)>0,COUNTIF(Opfølgning!B:B,E14),"Dobbeltklik") -> Dobbeltklik
E15: Ledelsesgennemgangen indeholder status på handlingsplaner. | L15: =IF(COUNTIF(Opfølgning!B:B,E15)>0,COUNTIF(Opfølgning!B:B,E15),"Dobbeltklik") -> Dobbeltklik
E16: Ledelsesgennemgangen indeholder overvejelser om organisationens arbejde med infomationssikkerhed, herunder udvikling i fht sikkerhedshændelser/afvigelser, korrigerende handlinger, overvågnings- og målingsresultater og resultater fra intern revision mv. | L16: =IF(COUNTIF(Opfølgning!B:B,E16)>0,COUNTIF(Opfølgning!B:B,E16),"Dobbeltklik") -> Dobbeltklik
B17: CHECK_slut
B18: ACT | C18: Ressourcer | E18: Ledelsen bakker op om forbedringer af styringen af informationssikkerheden. | L18: =IF(COUNTIF(Opfølgning!B:B,E18)>0,COUNTIF(Opfølgning!B:B,E18),"Dobbeltklik") -> Dobbeltklik
E19: Ledelsesgenemgangen indeholder overvejelser om mulige løbende forbedringer. | L19: =IF(COUNTIF(Opfølgning!B:B,E19)>0,COUNTIF(Opfølgning!B:B,E19),"Dobbeltklik") -> Dobbeltklik
B20: ACT_slut
B24: Krav om dokumentation
B25: Dokumentation af processen:
B26: Ingen krav om dokumentation
B28: Dokumentationen indeholder: - identifikation og beskrivelse (titel, dato, forfatter mm.); - hensigtsmæssigt format i forhold til anvendelse; - revurdering og godkendelse af tilstrækkelighed og hensigtsmæssighed; Dokumentationen er: - til at få fat på og anvendelig, når der er brug for det; - passende beskyttet (fx i forhold til fortrolighed eller imod ændringer); Der er taget stilling til: - distribution, adgang, genfinding og brug; - opbevaring, herunder lovkrav til opbevaring; - kontrol af ændringer (fx versionering); - bevaring og sletning.

Sheet Politik
A1: =MID(CELL("filename",B3),FIND("]",CELL("filename",B3),1)+1,100) -> Politik | L1: Gå til Oversigt
K3: Udarbejdet den - og af | L3: Godkendt den- og af
F6: Ja | G6: Delvist | H6: Nej | I6: Ikke relevant | J6: Noter - bemærkninger | K6: Dokumentation | L6: Opfølgning
B7: PLAN | C7: Informationssikkerhedspolitik | E7: Politikken er i overensstemmelse med organisationens mission og mål og udtrykker ambitioner for informationssikkerhed. | L7: =IF(COUNTIF(Opfølgning!B:B,E7)>0,COUNTIF(Opfølgning!B:B,E7),"Dobbeltklik") -> Dobbeltklik
C8: Mål for informationssikkerheden | E8: Målene for informationssikkerheden stiller relevante krav til sikkerheden. | L8: =IF(COUNTIF(Opfølgning!B:B,E8)>0,COUNTIF(Opfølgning!B:B,E8),"Dobbeltklik") -> Dobbeltklik
E9: Målene for informationssikkerheden er målbare. | L9: =IF(COUNTIF(Opfølgning!B:B,E9)>0,COUNTIF(Opfølgning!B:B,E9),"Dobbeltklik") -> Dobbeltklik
B10: PLAN_slut
B11: DO | C11: Informationssikkerhedspolitik | E11: Politikken er umiddelbart tilgængelig for alle interessenter. | L11: =IF(COUNTIF(Opfølgning!B:B,E11)>0,COUNTIF(Opfølgning!B:B,E11),"Dobbeltklik") -> Dobbeltklik
E12: Politikken og målene for informationssikkerheden er kommunikeret i organisationen. | L12: =IF(COUNTIF(Opfølgning!B:B,E12)>0,COUNTIF(Opfølgning!B:B,E12),"Dobbeltklik") -> Dobbeltklik
E13: Der er udarbejdet handlingsplaner i relation til målene for informationssikkerheden. | L13: =IF(COUNTIF(Opfølgning!B:B,E13)>0,COUNTIF(Opfølgning!B:B,E13),"Dobbeltklik") -> Dobbeltklik
B14: DO_slut
B15: CHECK | C15: Informationssikkerhedspolitik | E15: Informationssikkerhedspolitikken revurderes en gang om året og i forbindelse med større ændringer fx i organisationen. | L15: =IF(COUNTIF(Opfølgning!B:B,E15)>0,COUNTIF(Opfølgning!B:B,E15),"Dobbeltklik") -> Dobbeltklik
C16: Mål for informationssikkerheden | E16: Handlingsplanerne i relation til målene for informationssikkerhed revurderes. | L16: =IF(COUNTIF(Opfølgning!B:B,E16)>0,COUNTIF(Opfølgning!B:B,E16),"Dobbeltklik") -> Dobbeltklik
B17: CHECK_slut
B18: ACT | C18: Informationssikkerhedspolitik | E18: Hvis der har været afvigelser, tilpasses informationssikkerhedspolitikken for at forbedre informationssikkerheden. | L18: =IF(COUNTIF(Opfølgning!B:B,E18)>0,COUNTIF(Opfølgning!B:B,E18),"Dobbeltklik") -> Dobbeltklik
C19: Mål for informationssikkerheden | E19: Målene for informationssikkerheden opdateres, når det er relevant. | L19: =IF(COUNTIF(Opfølgning!B:B,E19)>0,COUNTIF(Opfølgning!B:B,E19),"Dobbeltklik") -> Dobbeltklik
B20: ACT_slut
B23: Krav om dokumentation
B24: Dokumentation af processen:
B25: Informationssikkerhedspolitikken.
B26: Mål for informationssikkerheden.
B28: Dokumentationen indeholder: - identifikation og beskrivelse (titel, dato, forfatter mm.); - hensigtsmæssigt format i forhold til anvendelse; - revurdering og godkendelse af tilstrækkelighed og hensigtsmæssighed; Dokumentationen er: - til at få fat på og anvendelig, når der er brug for det; - passende beskyttet (fx i forhold til fortrolighed eller imod ændringer); Der er taget stilling til: - distribution, adgang, genfinding og brug; - opbevaring, herunder lovkrav til opbevaring; - kontrol af ændringer (fx versionering); - bevaring og sletning.
B43: Krav om dokumentation
B44: Dokumentation af processen til vurdering af informationssikkerhedsrisici. | D44: Beskrivelse af metode.
B45: Dokumentation af resultatet af vurdering af informationssikkerhedsrisici/risikovurderingsrapport. | D45: Dokumentationen indeholder: - identifikation og beskrivelse (titel, dato, forfatter mm.); - hensigtsmæssigt format i forhold til anvendelse; - revurdering og godkendelse af tilstrækkelighed og hensigtsmæssighed; Dokumentationen er: - er til at få på og anvendeligt, når der er brug for det; - passende beskyttet (fx i forhold til fortrolighed eller imod modifikation); Der er taget stilling til: - distribution, adgang, genfinding og brug; - opbevaring, herundr lovkrav til opbevaring; - kontrol af ændringer (fx versionering); - bevaring og sletning.

Sheet Leverandørstyring
A1: =MID(CELL("filename",B3),FIND("]",CELL("filename",B3),1)+1,100) -> Leverandørstyring | L1: Gå til Oversigt
K3: Udarbejdet den - og af | L3: Godkendt den- og af
F6: Ja | G6: Delvist | H6: Nej | I6: Ikke relevant | J6: Noter - bemærkninger | K6: Dokumentation | L6: Opfølgning
B7: PLAN | C7: Leverandørstyringsproces | E7: Der er udarbejdet og implementeret i en leverandørstyringsproces | L7: =IF(COUNTIF(Opfølgning!B:B,E7)>0,COUNTIF(Opfølgning!B:B,E7),"Dobbeltklik") -> Dobbeltklik
C8: Risikovurdering af leverandører | E8: Der foretages risikovurderinger af leverandører forud for indgåelse af aftale. | L8: =IF(COUNTIF(Opfølgning!B:B,E8)>0,COUNTIF(Opfølgning!B:B,E8),"Dobbeltklik") -> Dobbeltklik
C9: Styring af informationssikkerhed | E9: Kontrakten indeholder krav om overholdelse af en anerkendt standard for informationssikkerhed. | L9: =IF(COUNTIF(Opfølgning!B:B,E9)>0,COUNTIF(Opfølgning!B:B,E9),"Dobbeltklik") -> Dobbeltklik
C10: Styrende lovvalg | E10: Lovvalg i kontrakten følger dansk/EU lovgivning. | L10: =IF(COUNTIF(Opfølgning!B:B,E10)>0,COUNTIF(Opfølgning!B:B,E10),"Dobbeltklik") -> Dobbeltklik
C11: Fortrolighedserklæring | E11: Der er underskrevet en tavshedserklæring dækkende kontraktprocessen og leverandørens medarbejdere. | L11: =IF(COUNTIF(Opfølgning!B:B,E11)>0,COUNTIF(Opfølgning!B:B,E11),"Dobbeltklik") -> Dobbeltklik
C12: Styring af underleverandører | E12: Der er retningslinjer for brug af underleverandører i kontrakten. | L12: =IF(COUNTIF(Opfølgning!B:B,E12)>0,COUNTIF(Opfølgning!B:B,E12),"Dobbeltklik") -> Dobbeltklik
C13: Roller og ansvar | E13: Roller og ansvar for kontrakt, ydelser og informationssikkerhed er klart defineret i kontrakten. | L13: =IF(COUNTIF(Opfølgning!B:B,E13)>0,COUNTIF(Opfølgning!B:B,E13),"Dobbeltklik") -> Dobbeltklik
C14: Persondata | E14: Der er indgås databehandleraftaler med de leverandører, der behandler persondata. | L14: =IF(COUNTIF(Opfølgning!B:B,E14)>0,COUNTIF(Opfølgning!B:B,E14),"Dobbeltklik") -> Dobbeltklik
C15: Ophørsbetingelser | E15: Der er bestemmelser for sletning af data mm. | L15: =IF(COUNTIF(Opfølgning!B:B,E15)>0,COUNTIF(Opfølgning!B:B,E15),"Dobbeltklik") -> Dobbeltklik
B16: PLAN_slut
B17: DO | C17: Valg af passende kontroller på baggrund af risici | E17: Der er udvalgt passende kontroller, som leverandøren bør prioritere for at håndtere de indentificerede risici i aftaleforholdet. Kontrollerne skrives ind i den skriftlige aftale. | L17: =IF(COUNTIF(Opfølgning!B:B,E17)>0,COUNTIF(Opfølgning!B:B,E17),"Dobbeltklik") -> Dobbeltklik
C18: Informationssikkerhed | E18: Leverandøren følger god praksis som fx ISO 27001, CobiT, ITIL, har en sikkerhedspolitik og gennemfører løbende awareness-kampagner. | L18: =IF(COUNTIF(Opfølgning!B:B,E18)>0,COUNTIF(Opfølgning!B:B,E18),"Dobbeltklik") -> Dobbeltklik
C19: Fysisk sikkerhed | E19: Leverandøren følger god praksis for fysisk sikkerhed. | L19: =IF(COUNTIF(Opfølgning!B:B,E19)>0,COUNTIF(Opfølgning!B:B,E19),"Dobbeltklik") -> Dobbeltklik
C20: Medarbejdersikkerhed | E20: Leverandørens medarbejdere screenes i forbindelse med ansættelse og skal fremvise ren straffeattest. Medarbejderne skal være certificerede inden for deres arbejdsfelt. | L20: =IF(COUNTIF(Opfølgning!B:B,E20)>0,COUNTIF(Opfølgning!B:B,E20),"Dobbeltklik") -> Dobbeltklik
C21: Adgangskontrol | E21: Leverandøren har implementeret adgangskontrolprocedurer omfattende funktionsadskillelse samt logisk og fysisk adgangskontrol. | L21: =IF(COUNTIF(Opfølgning!B:B,E21)>0,COUNTIF(Opfølgning!B:B,E21),"Dobbeltklik") -> Dobbeltklik
C22: Logning | E22: Leverandøren har implementeret passende logning og følger regelmæssigt op på denne. | L22: =IF(COUNTIF(Opfølgning!B:B,E22)>0,COUNTIF(Opfølgning!B:B,E22),"Dobbeltklik") -> Dobbeltklik
C23: It-beredskab | E23: Leverandøren har et it-beredskab i overensstemmelse med god praksis. | L23: =IF(COUNTIF(Opfølgning!B:B,E23)>0,COUNTIF(Opfølgning!B:B,E23),"Dobbeltklik") -> Dobbeltklik
C24: Reetableringstid | E24: Der er defineret recovery time (RTO) for den leverede ydelse. | L24: =IF(COUNTIF(Opfølgning!B:B,E24)>0,COUNTIF(Opfølgning!B:B,E24),"Dobbeltklik") -> Dobbeltklik
B25: DO_slut
B26: CHECK | C26: Statusmøder | E26: Der afholdes regelmæssigt statusmøder med leverandøren, hvor der følges op på leverandørens efterlevelse af de sikkerhedskrav der er stillet i aftalen | L26: =IF(COUNTIF(Opfølgning!B:B,E26)>0,COUNTIF(Opfølgning!B:B,E26),"Dobbeltklik") -> Dobbeltklik
C27: Overvågning | E27: Leverandøren gennemfører regelmæssig overvågning af informationssikkerheden, som fx gennemgang af adgange og rettigheder, logning. | L27: =IF(COUNTIF(Opfølgning!B:B,E27)>0,COUNTIF(Opfølgning!B:B,E27),"Dobbeltklik") -> Dobbeltklik
C28: Sikkerhedstests | E28: Leverandøren får regelmæssigt gennemgået informationssikkerheden i form af tekniske tests, gennemgang af it-kontroller mm. | L28: =IF(COUNTIF(Opfølgning!B:B,E28)>0,COUNTIF(Opfølgning!B:B,E28),"Dobbeltklik") -> Dobbeltklik
C29: Reetableringstid | E29: Leverandøren kan reetablere efter en hændelse inden for det specificerede tidpunkt. | L29: =IF(COUNTIF(Opfølgning!B:B,E29)>0,COUNTIF(Opfølgning!B:B,E29),"Dobbeltklik") -> Dobbeltklik
C30: Rapportering | E30: Der er adgang til leverandørens rapporter vedrørende informationssikkerhed. | L30: =IF(COUNTIF(Opfølgning!B:B,E30)>0,COUNTIF(Opfølgning!B:B,E30),"Dobbeltklik") -> Dobbeltklik
C31: Statusmøder | E31: Der afholdes regelmæssigt statusmøder med leverandøren, hvor der følges op på leverandørens efterlevelse af de sikkerhedskrav der er stillet i aftalen | L31: =IF(COUNTIF(Opfølgning!B:B,E31)>0,COUNTIF(Opfølgning!B:B,E31),"Dobbeltklik") -> Dobbeltklik
C32: Revision | E32: Leverandøren har aftale med uafhængig revisor om regelmæssig gennemgang af informationssikkerheden. | L32: =IF(COUNTIF(Opfølgning!B:B,E32)>0,COUNTIF(Opfølgning!B:B,E32),"Dobbeltklik") -> Dobbeltklik
B33: CHECK_slut
B34: ACT | C34: Ændringsstyring | E34: Der er stillet krav om at væsentlige ændringer i leverandørforholdet skal godkendes - Der udføres en ny risikovurdering. | L34: =IF(COUNTIF(Opfølgning!B:B,E34)>0,COUNTIF(Opfølgning!B:B,E34),"Dobbeltklik") -> Dobbeltklik
C35: Rapportering af sikkerhedshændelser | E35: Der er stillet krav om at leverandøren rapportere om sikkerhedshændelser, og der defineres reaktionstider og udbedringsprioriteringer | L35: =IF(COUNTIF(Opfølgning!B:B,E35)>0,COUNTIF(Opfølgning!B:B,E35),"Dobbeltklik") -> Dobbeltklik
B36: ACT_slut
B41: Krav om dokumentation
B42: Dokumentation af processen:
B43: ANBEFALING Register over levarandører. Registret opdeles i udvikling, drift og service, da der er forskellige risici og sikkerhedsudfordringer forbundet med hvert område.
B45: Dokumentationen indeholder: - identifikation og beskrivelse (titel, dato, forfatter mm.); - hensigtsmæssigt format i forhold til anvendelse; - revurdering og godkendelse af tilstrækkelighed og hensigtsmæssighed; Dokumentationen er: - til at få fat på og anvendelig, når der er brug for det; - passende beskyttet (fx i forhold til fortrolighed eller imod ændringer); Der er taget stilling til: - distribution, adgang, genfinding og brug; - opbevaring, herunder lovkrav til opbevaring; - kontrol af ændringer (fx versionering); - bevaring og sletning.

Sheet It-beredskab
A1: =MID(CELL("filename",B3),FIND("]",CELL("filename",B3),1)+1,100) -> It-beredskab | L1: Gå til Oversigt
K3: Udarbejdet den - og af | L3: Godkendt den- og af
F6: Ja | G6: Delvist | H6: Nej | I6: Ikke relevant | J6: Noter - bemærkninger | K6: Dokumentation | L6: Opfølgning
B7: PLAN | C7: It-beredskabspolitik | E7: Der er etableret en strategi for it-beredskabet. | L7: =IF(COUNTIF(Opfølgning!B:B,E7)>0,COUNTIF(Opfølgning!B:B,E7),"Dobbeltklik") -> Dobbeltklik
E8: Ledelsen har defineret overordnede målsætninger for beredskabet | L8: =IF(COUNTIF(Opfølgning!B:B,E8)>0,COUNTIF(Opfølgning!B:B,E8),"Dobbeltklik") -> Dobbeltklik
E9: De relevante roller i forhold planlægning, opgaver og kommunikation er identificeret og indgår i beredskabsplanen. Kravene til leverandørens ansvar i forhold til beredskab er stillet i aftalen og er baseret på en risikovurdering | L9: =IF(COUNTIF(Opfølgning!B:B,E9)>0,COUNTIF(Opfølgning!B:B,E9),"Dobbeltklik") -> Dobbeltklik
E10: It-beredskabet er forankret i organisationens øvrige beredskab eller krisestyring | L10: =IF(COUNTIF(Opfølgning!B:B,E10)>0,COUNTIF(Opfølgning!B:B,E10),"Dobbeltklik") -> Dobbeltklik
E11: Relevante sikkerhedshændelser, der kan forårsage afbrydelser i forretningsprocesser er identificeret, og sandsynligheden og konsekvensen er vurderet. | L11: =IF(COUNTIF(Opfølgning!B:B,E11)>0,COUNTIF(Opfølgning!B:B,E11),"Dobbeltklik") -> Dobbeltklik
E12: Retableringsplaner tager afsæt i risikovurderinger samt i Business Impact Assessments. | L12: =IF(COUNTIF(Opfølgning!B:B,E12)>0,COUNTIF(Opfølgning!B:B,E12),"Dobbeltklik") -> Dobbeltklik
E13: Der er etableret beredskabsplaner, herunder forretningsnødplaner. | L13: =IF(COUNTIF(Opfølgning!B:B,E13)>0,COUNTIF(Opfølgning!B:B,E13),"Dobbeltklik") -> Dobbeltklik
E14: Der er planer for kommunikation til nøglepersoner, medarbejdere og eksterne interessenter. | L14: =IF(COUNTIF(Opfølgning!B:B,E14)>0,COUNTIF(Opfølgning!B:B,E14),"Dobbeltklik") -> Dobbeltklik
B15: PLAN_slut
B16: DO | C16: It-beredskab | E16: Der er implementeret et system til styring af beredskabet med angivelse af roller og ansvar. | L16: =IF(COUNTIF(Opfølgning!B:B,E16)>0,COUNTIF(Opfølgning!B:B,E16),"Dobbeltklik") -> Dobbeltklik
E17: Der er implementeret kontroller, processer og procedurer for it-beredskabet på tværs i organisationen. | L17: =IF(COUNTIF(Opfølgning!B:B,E17)>0,COUNTIF(Opfølgning!B:B,E17),"Dobbeltklik") -> Dobbeltklik
E18: De implementerede kontroller imødekommer de tilgængelighedskrav, der er fastsat i risikovurderingen | L18: =IF(COUNTIF(Opfølgning!B:B,E18)>0,COUNTIF(Opfølgning!B:B,E18),"Dobbeltklik") -> Dobbeltklik
E19: Der er gennemført træning i beredskabssituationer. | L19: =IF(COUNTIF(Opfølgning!B:B,E19)>0,COUNTIF(Opfølgning!B:B,E19),"Dobbeltklik") -> Dobbeltklik
B20: DO_slut
B21: CHECK | C21: Test af it-beredskabsplanen | E21: Effekten af it-beredskabet er testet og evalueret mod målsætningerne for beredskabet. | L21: =IF(COUNTIF(Opfølgning!B:B,E21)>0,COUNTIF(Opfølgning!B:B,E21),"Dobbeltklik") -> Dobbeltklik
E22: De relevante leverandører indgår i testen af beredskabet. | L22: =IF(COUNTIF(Opfølgning!B:B,E22)>0,COUNTIF(Opfølgning!B:B,E22),"Dobbeltklik") -> Dobbeltklik
B23: CHECK_slut
B24: ACT | C24: Forbedringer af it-beredskabet | E24: Resultatet af evalueringen er rapporteret til ledelsen med anbefalinger til forbedringer. | L24: =IF(COUNTIF(Opfølgning!B:B,E24)>0,COUNTIF(Opfølgning!B:B,E24),"Dobbeltklik") -> Dobbeltklik
E25: It-beredskabet er tilrettet i forhold til resultatet af test og evaluering med henblik på større effektivitet i de tværorganisatoriske processer. | L25: =IF(COUNTIF(Opfølgning!B:B,E25)>0,COUNTIF(Opfølgning!B:B,E25),"Dobbeltklik") -> Dobbeltklik
B26: ACT_slut
B31: Krav om dokumentation
B32: Dokumentation af processen:
B33: It-beredskabsstrategi
B34: It-beredskabsplan
B35: Forretningsnødplaner
B36: Rapportering af test med handlingsplaner
B38: Dokumentationen indeholder: - identifikation og beskrivelse (titel, dato, forfatter mm.); - hensigtsmæssigt format i forhold til anvendelse; - revurdering og godkendelse af tilstrækkelighed og hensigtsmæssighed; Dokumentationen er: - til at få fat på og anvendelig, når der er brug for det; - passende beskyttet (fx i forhold til fortrolighed eller imod ændringer); Der er taget stilling til: - distribution, adgang, genfinding og brug; - opbevaring, herunder lovkrav til opbevaring; - kontrol af ændringer (fx versionering); - bevaring og sletning.

Sheet Måling
A1: =MID(CELL("filename",B3),FIND("]",CELL("filename",B3),1)+1,100) -> Måling | L1: Gå til Oversigt
K3: Udarbejdet den - og af | L3: Godkendt den- og af
F6: Ja | G6: Delvist | H6: Nej | I6: Ikke relevant | J6: Noter - bemærkninger | K6: Dokumentation | L6: Opfølgning
B7: PLAN | C7: Processerne for Overvågning, Måling, Analysering og Evaluering | E7: Metoderne til overvågning og måling er fastsat og beskrevet, herunder - hvad der skal overvåges og måles, - hvornår de skal udføres, - hvem der har ansvaret, - hvordan resultater skal evalueres. | L7: =IF(COUNTIF(Opfølgning!B:B,E7)>0,COUNTIF(Opfølgning!B:B,E7),"Dobbeltklik") -> Dobbeltklik
B8: PLAN_slut
B9: DO
B10: DO_slut
B11: CHECK | C11: Revurdering af organisationens overvågninger og målinger | E11: Anvendeligheden og sammenligneligheden i resultaterne fra de udførte overvågninger og målinger vurderes. | L11: =IF(COUNTIF(Opfølgning!B:B,E11)>0,COUNTIF(Opfølgning!B:B,E11),"Dobbeltklik") -> Dobbeltklik
E12: Frekvensen af de udførte målinger revurderes. | L12: =IF(COUNTIF(Opfølgning!B:B,E12)>0,COUNTIF(Opfølgning!B:B,E12),"Dobbeltklik") -> Dobbeltklik
B13: CHECK_slut
B14: ACT | C14: Opfølgning på evalueringer af overvågninger og målinger | E14: Metoderne til overvågning og måling ændres i forhold til uhensigtsmæssigheder. | L14: =IF(COUNTIF(Opfølgning!B:B,E14)>0,COUNTIF(Opfølgning!B:B,E14),"Dobbeltklik") -> Dobbeltklik
B15: ACT_slut
B19: Krav om dokumentation
B20: Dokumentation af processen:
B21: Overvågning og måling.
B22: Ledelsens revurdering af ISMS
B24: Dokumentationen indeholder: - identifikation og beskrivelse (titel, dato, forfatter mm.); - hensigtsmæssigt format i forhold til anvendelse; - revurdering og godkendelse af tilstrækkelighed og hensigtsmæssighed; Dokumentationen er: - til at få fat på og anvendelig, når der er brug for det; - passende beskyttet (fx i forhold til fortrolighed eller imod ændringer); Der er taget stilling til: - distribution, adgang, genfinding og brug; - opbevaring, herunder lovkrav til opbevaring; - kontrol af ændringer (fx versionering); - bevaring og sletning.

Sheet Intern opfølgning
A1: =MID(CELL("filename",B3),FIND("]",CELL("filename",B3),1)+1,100) -> Intern opfølgning | L1: Gå til Oversigt
K3: Udarbejdet den - og af | L3: Godkendt den- og af
F6: Ja | G6: Delvist | H6: Nej | I6: Ikke relevant | J6: Noter - bemærkninger | K6: Dokumentation | L6: Opfølgning
B7: PLAN | C7: Proces for intern audit | E7: Metoden, kriterier og afgrænsning er defineret og beskrevet, herunder - roller og ansvar, - rapportering af resultatet til ledelsen, - valg af intern auditor. | L7: =IF(COUNTIF(Opfølgning!B:B,E7)>0,COUNTIF(Opfølgning!B:B,E7),"Dobbeltklik") -> Dobbeltklik
B8: PLAN_slut
B9: DO | C9: Gennemførelse af den interne audit af informationssikkerhedsstyringen i organisationen | E9: Organisationen gennemfører intern audit på informationssikkerheds-styringen med planlagte intervaller. | L9: =IF(COUNTIF(Opfølgning!B:B,E9)>0,COUNTIF(Opfølgning!B:B,E9),"Dobbeltklik") -> Dobbeltklik
E10: Den interne audit vurderer om sikkerhedsarbejdet lever op til organisationens egne krav til it-sikkerhed. | L10: =IF(COUNTIF(Opfølgning!B:B,E10)>0,COUNTIF(Opfølgning!B:B,E10),"Dobbeltklik") -> Dobbeltklik
E11: Den interne audit vurderer om sikkerhedsarbejdet lever op til ISO 27001 standarden. | L11: =IF(COUNTIF(Opfølgning!B:B,E11)>0,COUNTIF(Opfølgning!B:B,E11),"Dobbeltklik") -> Dobbeltklik
B12: DO_slut
B13: CHECK | C13: Proces for intern audit | E13: Den interne audit er implementeret og vedligeholdes effektivt. | L13: =IF(COUNTIF(Opfølgning!B:B,E13)>0,COUNTIF(Opfølgning!B:B,E13),"Dobbeltklik") -> Dobbeltklik
E14: Programmet for intern audit revurderes efter gennemført audit. | L14: =IF(COUNTIF(Opfølgning!B:B,E14)>0,COUNTIF(Opfølgning!B:B,E14),"Dobbeltklik") -> Dobbeltklik
B15: CHECK_slut
B16: ACT | C16: Forbedringer af informationssikkerhedssystemet | E16: Afvigelser fra organisationens sikkerhedsmæssige målsætninger gennemgås og årsagen fastlægges. | L16: =IF(COUNTIF(Opfølgning!B:B,E16)>0,COUNTIF(Opfølgning!B:B,E16),"Dobbeltklik") -> Dobbeltklik
E17: Effektiviteten i de korrigerende indsatser evalueres og der foretages ændringer i informationssikkehedsstyringen på bagggrund af eventuelle uhensigtsmæssigheder. | L17: =IF(COUNTIF(Opfølgning!B:B,E17)>0,COUNTIF(Opfølgning!B:B,E17),"Dobbeltklik") -> Dobbeltklik
E18: Informationssikkerheden og styringen af sikkerheden forbedres på baggrund af de interne opfølgninger. | L18: =IF(COUNTIF(Opfølgning!B:B,E18)>0,COUNTIF(Opfølgning!B:B,E18),"Dobbeltklik") -> Dobbeltklik
B19: ACT_slut
B23: Krav om dokumentation
B24: Dokumentation af processen:
B25: Programmer for interne audits
B26: Gennemførte interne audits
B27: Afvigelser fundet i forbindelse med den interne audit samt de efterfølgende korrigerende handlinger og resultatet af disse.
B29: Dokumentationen indeholder: - identifikation og beskrivelse (titel, dato, forfatter mm.); - hensigtsmæssigt format i forhold til anvendelse; - revurdering og godkendelse af tilstrækkelighed og hensigtsmæssighed; Dokumentationen er: - til at få fat på og anvendelig, når der er brug for det; - passende beskyttet (fx i forhold til fortrolighed eller imod ændringer); Der er taget stilling til: - distribution, adgang, genfinding og brug; - opbevaring, herunder lovkrav til opbevaring; - kontrol af ændringer (fx versionering); - bevaring og sletning.
